{"text_format":"1","workbook":"xlsx","n_sheets":5,"sheets":["Présentation","Base Professeur","Menu Élèves","Auto-Positionnement","Résumé Professeur"],"not_rendered":{"charts":0,"images":9,"macros":1,"external_links":0,"defined_names":0,"comments":0,"pivot_tables":0},"unopened":[],"bounds":{"document_bytes":16777216,"sheet_cells":100000,"rows_first":2000,"rows_last":500,"rows_between":2000,"halvings":0,"cell_chars":16384,"cell_head_chars":4096},"cells_cut":0,"cells_raw":0,"read":"whole","date_system":"1900"}

{"sheet":"Présentation","index":0,"n_rows":19,"n_cols":16,"rows_kept":19,"cut":false,"hidden":false,"merged":[[17,1,21,3],[17,4,21,12],[18,14,20,16],[1,1,2,5],[9,1,11,3],[9,4,11,12],[13,1,15,3],[13,4,15,12],[1,6,2,12],[4,1,7,3],[4,4,7,12],[9,15,10,16],[1,14,2,16]]}
[]
[null,"Auto-Positionnement des élèves pour les AFL",null,null,null,null,"Tableur Excel qui permet à l'élève de s'auto-positionner à deux moments du cycle pour 6 AFL et ceci dans 4 APSA différentes. Suivis complet disponible pour le professeur, ainsi qu'un positionnement de sa part",null,null,null,null,null,null,null,"Ouvrir sur tablette avec                           l'Application Plan Maker"]
[]
[]
[null,"Feuille \"Base Professeur\"",null,null,"Permet de remplir l'ensemble des informations pour le bon fonctionnement du tableur : Prénoms/Noms des élèves, choix des 4 niveaux d'acquisition, ses APSA/AFL/objectifs… Cela remplis automatiquement l'ensemble des autres feuilles. De plus : Fonction macro : afin d'effacer les Auto-positionnements des élèves"]
[]
[]
[]
[]
[null,"Feuille \"Menu Élèves\"",null,null,"Permet pour chaque élèves d'aller sur son Auto-positionnement : Choix de l'APSA à s'auto-évaluer. Cette feuille est la base pour les élèves. Ils peuvent y retourner en cliquant sur le bouton \"Maison\"",null,null,null,null,null,null,null,null,null,null,"<-- Permet de revenir au Menu Élèves"]
[]
[]
[]
[null,"Feuille \"Auto-Positionnement\"",null,null,"Feuille pour les élèves qui leur permet de s'auto-positionner à deux reprises au cours d'un cycle, et cela sur 6 AfL différentes, dans 4 APSA différentes. Cette feuille est prête à être imprimée"]
[]
[]
[]
[null,"Feuille \"Résumé Professeur\"",null,null,"Feuille pour le Professeur, permet de voir le deuxième Auto-positionnement des élèves sur chaque AFL. Si il n'y a pas eu de 2ème Auto-positionnement, le 1er est alors indiqué. Le professeur peut ainsi également se postionner et comparer avec l'auto-positionnement. De plus : Fonction macro : afin d'effacer les positionnements du Professeur. Cette feuille est prête à être imprimée"]
[null,null,null,null,null,null,null,null,null,null,null,null,null,null,"N'hésitez pas à me contacter ! Rémi Vivet - Professeur d'EPS remi.vivet@ac-orleans-tours.fr"]

{"sheet":"Base Professeur","index":1,"n_rows":39,"n_cols":33,"rows_kept":39,"cut":false,"hidden":false,"merged":[[0,23,1,24],[0,30,1,31],[3,20,3,25],[3,27,3,32],[1,1,1,2],[3,6,3,11],[3,13,3,18],[0,4,1,4],[0,6,1,7],[0,9,1,10],[0,16,1,17]]}
[null,null,null,null,"Mettre ici le choix des Niveaux d'Acquisition",null,"Mettre ici ses 4 APSA, avec ses AFL, Objectifs, Positionnements ...",null,null,"Vider l'ensemble des Auto-Positionnements de cette APSA",null,null,null,null,null,null,"Vider l'ensemble des Auto-Positionnements de cette APSA",null,null,null,null,null,null,"Vider l'ensemble des Auto-Positionnements de cette APSA",null,null,null,null,null,null,"Vider l'ensemble des Auto-Positionnements de cette APSA"]
[null,"Mettre ici la liste         de ses élèves"]
[]
[null,"CLASSE : ","6ème 4",null,"NIVEAUX D'ACQUISITION",null,"Danse",null,null,null,null,null,null,"Course d'Orientation",null,null,null,null,null,null,"Musculation",null,null,null,null,null,null,"Demi-Fond"]
[null,"Fernot","Julie",null,"Non Atteint",null,"Attendus de Fin de Lycée","Objectifs",{"$f":"$E$5","v":"Non Atteint"},{"$f":"$E$6","v":"Partiellement"},{"$f":"$E$7","v":"Atteint"},{"$f":"$E$8","v":"Dépassé"},null,{"$f":"$G$5","v":"Attendus de Fin de Lycée"},{"$f":"$H$5","v":"Objectifs"},{"$f":"$I$5","v":"Non Atteint"},{"$f":"$J$5","v":"Partiellement"},{"$f":"$K$5","v":"Atteint"},{"$f":"$L$5","v":"Dépassé"},null,{"$f":"$G$5","v":"Attendus de Fin de Lycée"},{"$f":"$H$5","v":"Objectifs"},{"$f":"$I$5","v":"Non Atteint"},{"$f":"$J$5","v":"Partiellement"},{"$f":"$K$5","v":"Atteint"},{"$f":"$L$5","v":"Dépassé"},null,{"$f":"$G$5","v":"Attendus de Fin de Lycée"},{"$f":"$H$5","v":"Objectifs"},{"$f":"$I$5","v":"Non Atteint"},{"$f":"$J$5","v":"Partiellement"},{"$f":"$K$5","v":"Atteint"},{"$f":"$L$5","v":"Dépassé"}]
[null,"Dracin","Yacine",null,"Partiellement",null,"D2.a : Participer activement au sein d'un groupe, à l'élaboration d'un projet artistique","Chorégraphe acteur","Apporte peu au groupe, peu déchange, gêne. Numérique mal ou pas utilisé","Participe ponctuellement.             Peu de numérique ","Actif, participe pour plus-value.            Numérique utilisé","Fort de propositions, constructifs. Numérique en plus-value",null,1,null,null,null,null,null,null,7,null,null,null,null,null,null,13]
[null,null,"Ludivine",null,"Atteint",null,"D3.b : Accepter de se produire devant les autres","Danseur volontaire","Danse dans son coin, aucuns liens avec les autres danseurs","Hésite, se réfère aux autres danseurs","Concentré à danser","Vit sa danse",null,null,2,null,null,null,null,null,null,8,null,null,null,null,null,null,14]
[null,null,"Nouceiba",null,"Dépassé",null,"D1.b : Adapter sa motricité à des situations variées","Danseur acteur","Beaucoup d’hésitations, gestes parasites, rire, regard au sol …","Gestuelle connue. Quelques hésitations ou gestes parasites","Gestuelle précise. Aucunes hésitations ou gestes parasites","Gestuelle très précise. Aucunes erreurs",null,null,null,3,null,null,null,null,null,null,9,null,null,null,null,null,null,15]
[null,null,"Tanem",null,null,null,"D1.a Réaliser en petits groupes une séquence à visée artistique destinée à être jugée","Prestation de groupe finalisée","Manque deux exigences et +","Manque une exigence","Toutes les exigences","Toutes exigences et relation au thème",null,null,null,null,4,null,null,null,null,null,null,10,null,null,null,null,null,null,16]
[null,null,"Rémi",null,null,null,"D2.a : S'approprier les principes d'un échauffement","Échauffement","Echauffement Oublié","Echauffement Baclé","Echauffement Bien Exécuté","Echauffement Bien Exécuté et Guidé",null,null,null,null,null,5,null,null,null,null,null,null,11,null,null,null,null,null,null,17]
[null,null,"Léo",null,null,null,"D3.c Observer et apprécier les prestations des autres","Spectateur","Ricane et n'observe pas","Bavardages et observation imprécise","Respecte et Observation précise","Apprécie et Conseil constructif",null,null,null,null,null,null,6,null,null,null,null,null,null,12,null,null,null,null,null,null,18]
[null,null,"Zoé"]
[null,null,"Elliot"]
[null,null,"Sophia"]
[null,null,"Léa"]
[null,null,"Eliza"]
[null,null,"Mathis"]
[null,null,"Camille"]
[null,null,"Azra"]
[null,null,"Téoman"]
[null,null,"Emirkan"]
[null,null,"Mohamed-Ali"]
[null,null,"Keyran"]
[null,null,"Anne"]
[null,null,"Louise"]
[null,null,"Colin"]
[null,null,"Maya"]
[null,null,"Enzo"]
[null,null,"Elève 1"]
[null,null,2]
[null,null,3]
[null,null,4]
[null,null,5]
[null,null,6]
[null,null,7]
[null,null,8]
[null,null,9]
[null,null,10]
[null,null,11]

{"sheet":"Menu Élèves","index":2,"n_rows":70,"n_cols":10,"rows_kept":70,"cut":false,"hidden":false,"merged":[]}
[]
[null,{"$f":"'Base Professeur'!C5","v":"Julie"},null,{"$f":"'Base Professeur'!$G$4","v":"Danse"},null,{"$f":"'Base Professeur'!$N$4","v":"Course d'Orientation"},null,{"$f":"'Base Professeur'!$U$4","v":"Musculation"},null,{"$f":"'Base Professeur'!$AB$4","v":"Demi-Fond"}]
[]
[null,{"$f":"'Base Professeur'!C6","v":"Yacine"},null,{"$f":"'Base Professeur'!$G$4","v":"Danse"},null,{"$f":"'Base Professeur'!$N$4","v":"Course d'Orientation"},null,{"$f":"'Base Professeur'!$U$4","v":"Musculation"},null,{"$f":"'Base Professeur'!$AB$4","v":"Demi-Fond"}]
[]
[null,{"$f":"'Base Professeur'!C7","v":"Ludivine"},null,{"$f":"'Base Professeur'!$G$4","v":"Danse"},null,{"$f":"'Base Professeur'!$N$4","v":"Course d'Orientation"},null,{"$f":"'Base Professeur'!$U$4","v":"Musculation"},null,{"$f":"'Base Professeur'!$AB$4","v":"Demi-Fond"}]
[]
[null,{"$f":"'Base Professeur'!C8","v":"Nouceiba"},null,{"$f":"'Base Professeur'!$G$4","v":"Danse"},null,{"$f":"'Base Professeur'!$N$4","v":"Course d'Orientation"},null,{"$f":"'Base Professeur'!$U$4","v":"Musculation"},null,{"$f":"'Base Professeur'!$AB$4","v":"Demi-Fond"}]
[]
[null,{"$f":"'Base Professeur'!C9","v":"Tanem"},null,{"$f":"'Base Professeur'!$G$4","v":"Danse"},null,{"$f":"'Base Professeur'!$N$4","v":"Course d'Orientation"},null,{"$f":"'Base Professeur'!$U$4","v":"Musculation"},null,{"$f":"'Base Professeur'!$AB$4","v":"Demi-Fond"}]
[]
[null,{"$f":"'Base Professeur'!C10","v":"Rémi"},null,{"$f":"'Base Professeur'!$G$4","v":"Danse"},null,{"$f":"'Base Professeur'!$N$4","v":"Course d'Orientation"},null,{"$f":"'Base Professeur'!$U$4","v":"Musculation"},null,{"$f":"'Base Professeur'!$AB$4","v":"Demi-Fond"}]
[]
[null,{"$f":"'Base Professeur'!C11","v":"Léo"},null,{"$f":"'Base Professeur'!$G$4","v":"Danse"},null,{"$f":"'Base Professeur'!$N$4","v":"Course d'Orientation"},null,{"$f":"'Base Professeur'!$U$4","v":"Musculation"},null,{"$f":"'Base Professeur'!$AB$4","v":"Demi-Fond"}]
[]
[null,{"$f":"'Base Professeur'!C12","v":"Zoé"},null,{"$f":"'Base Professeur'!$G$4","v":"Danse"},null,{"$f":"'Base Professeur'!$N$4","v":"Course d'Orientation"},null,{"$f":"'Base Professeur'!$U$4","v":"Musculation"},null,{"$f":"'Base Professeur'!$AB$4","v":"Demi-Fond"}]
[]
[null,{"$f":"'Base Professeur'!C13","v":"Elliot"},null,{"$f":"'Base Professeur'!$G$4","v":"Danse"},null,{"$f":"'Base Professeur'!$N$4","v":"Course d'Orientation"},null,{"$f":"'Base Professeur'!$U$4","v":"Musculation"},null,{"$f":"'Base Professeur'!$AB$4","v":"Demi-Fond"}]
[]
[null,{"$f":"'Base Professeur'!C14","v":"Sophia"},null,{"$f":"'Base Professeur'!$G$4","v":"Danse"},null,{"$f":"'Base Professeur'!$N$4","v":"Course d'Orientation"},null,{"$f":"'Base Professeur'!$U$4","v":"Musculation"},null,{"$f":"'Base Professeur'!$AB$4","v":"Demi-Fond"}]
[]
[null,{"$f":"'Base Professeur'!C15","v":"Léa"},null,{"$f":"'Base Professeur'!$G$4","v":"Danse"},null,{"$f":"'Base Professeur'!$N$4","v":"Course d'Orientation"},null,{"$f":"'Base Professeur'!$U$4","v":"Musculation"},null,{"$f":"'Base Professeur'!$AB$4","v":"Demi-Fond"}]
[]
[null,{"$f":"'Base Professeur'!C16","v":"Eliza"},null,{"$f":"'Base Professeur'!$G$4","v":"Danse"},null,{"$f":"'Base Professeur'!$N$4","v":"Course d'Orientation"},null,{"$f":"'Base Professeur'!$U$4","v":"Musculation"},null,{"$f":"'Base Professeur'!$AB$4","v":"Demi-Fond"}]
[]
[null,{"$f":"'Base Professeur'!C17","v":"Mathis"},null,{"$f":"'Base Professeur'!$G$4","v":"Danse"},null,{"$f":"'Base Professeur'!$N$4","v":"Course d'Orientation"},null,{"$f":"'Base Professeur'!$U$4","v":"Musculation"},null,{"$f":"'Base Professeur'!$AB$4","v":"Demi-Fond"}]
[]
[null,{"$f":"'Base Professeur'!C18","v":"Camille"},null,{"$f":"'Base Professeur'!$G$4","v":"Danse"},null,{"$f":"'Base Professeur'!$N$4","v":"Course d'Orientation"},null,{"$f":"'Base Professeur'!$U$4","v":"Musculation"},null,{"$f":"'Base Professeur'!$AB$4","v":"Demi-Fond"}]
[]
[null,{"$f":"'Base Professeur'!C19","v":"Azra"},null,{"$f":"'Base Professeur'!$G$4","v":"Danse"},null,{"$f":"'Base Professeur'!$N$4","v":"Course d'Orientation"},null,{"$f":"'Base Professeur'!$U$4","v":"Musculation"},null,{"$f":"'Base Professeur'!$AB$4","v":"Demi-Fond"}]
[]
[null,{"$f":"'Base Professeur'!C20","v":"Téoman"},null,{"$f":"'Base Professeur'!$G$4","v":"Danse"},null,{"$f":"'Base Professeur'!$N$4","v":"Course d'Orientation"},null,{"$f":"'Base Professeur'!$U$4","v":"Musculation"},null,{"$f":"'Base Professeur'!$AB$4","v":"Demi-Fond"}]
[]
[null,{"$f":"'Base Professeur'!C21","v":"Emirkan"},null,{"$f":"'Base Professeur'!$G$4","v":"Danse"},null,{"$f":"'Base Professeur'!$N$4","v":"Course d'Orientation"},null,{"$f":"'Base Professeur'!$U$4","v":"Musculation"},null,{"$f":"'Base Professeur'!$AB$4","v":"Demi-Fond"}]
[]
[null,{"$f":"'Base Professeur'!C22","v":"Mohamed-Ali"},null,{"$f":"'Base Professeur'!$G$4","v":"Danse"},null,{"$f":"'Base Professeur'!$N$4","v":"Course d'Orientation"},null,{"$f":"'Base Professeur'!$U$4","v":"Musculation"},null,{"$f":"'Base Professeur'!$AB$4","v":"Demi-Fond"}]
[]
[null,{"$f":"'Base Professeur'!C23","v":"Keyran"},null,{"$f":"'Base Professeur'!$G$4","v":"Danse"},null,{"$f":"'Base Professeur'!$N$4","v":"Course d'Orientation"},null,{"$f":"'Base Professeur'!$U$4","v":"Musculation"},null,{"$f":"'Base Professeur'!$AB$4","v":"Demi-Fond"}]
[]
[null,{"$f":"'Base Professeur'!C24","v":"Anne"},null,{"$f":"'Base Professeur'!$G$4","v":"Danse"},null,{"$f":"'Base Professeur'!$N$4","v":"Course d'Orientation"},null,{"$f":"'Base Professeur'!$U$4","v":"Musculation"},null,{"$f":"'Base Professeur'!$AB$4","v":"Demi-Fond"}]
[]
[null,{"$f":"'Base Professeur'!C25","v":"Louise"},null,{"$f":"'Base Professeur'!$G$4","v":"Danse"},null,{"$f":"'Base Professeur'!$N$4","v":"Course d'Orientation"},null,{"$f":"'Base Professeur'!$U$4","v":"Musculation"},null,{"$f":"'Base Professeur'!$AB$4","v":"Demi-Fond"}]
[]
[null,{"$f":"'Base Professeur'!C26","v":"Colin"},null,{"$f":"'Base Professeur'!$G$4","v":"Danse"},null,{"$f":"'Base Professeur'!$N$4","v":"Course d'Orientation"},null,{"$f":"'Base Professeur'!$U$4","v":"Musculation"},null,{"$f":"'Base Professeur'!$AB$4","v":"Demi-Fond"}]
[]
[null,{"$f":"'Base Professeur'!C27","v":"Maya"},null,{"$f":"'Base Professeur'!$G$4","v":"Danse"},null,{"$f":"'Base Professeur'!$N$4","v":"Course d'Orientation"},null,{"$f":"'Base Professeur'!$U$4","v":"Musculation"},null,{"$f":"'Base Professeur'!$AB$4","v":"Demi-Fond"}]
[]
[null,{"$f":"'Base Professeur'!C28","v":"Enzo"},null,{"$f":"'Base Professeur'!$G$4","v":"Danse"},null,{"$f":"'Base Professeur'!$N$4","v":"Course d'Orientation"},null,{"$f":"'Base Professeur'!$U$4","v":"Musculation"},null,{"$f":"'Base Professeur'!$AB$4","v":"Demi-Fond"}]
[]
[null,{"$f":"'Base Professeur'!C29","v":"Elève 1"},null,{"$f":"'Base Professeur'!$G$4","v":"Danse"},null,{"$f":"'Base Professeur'!$N$4","v":"Course d'Orientation"},null,{"$f":"'Base Professeur'!$U$4","v":"Musculation"},null,{"$f":"'Base Professeur'!$AB$4","v":"Demi-Fond"}]
[]
[null,{"$f":"'Base Professeur'!C30","v":2},null,{"$f":"'Base Professeur'!$G$4","v":"Danse"},null,{"$f":"'Base Professeur'!$N$4","v":"Course d'Orientation"},null,{"$f":"'Base Professeur'!$U$4","v":"Musculation"},null,{"$f":"'Base Professeur'!$AB$4","v":"Demi-Fond"}]
[]
[null,{"$f":"'Base Professeur'!C31","v":3},null,{"$f":"'Base Professeur'!$G$4","v":"Danse"},null,{"$f":"'Base Professeur'!$N$4","v":"Course d'Orientation"},null,{"$f":"'Base Professeur'!$U$4","v":"Musculation"},null,{"$f":"'Base Professeur'!$AB$4","v":"Demi-Fond"}]
[]
[null,{"$f":"'Base Professeur'!C32","v":4},null,{"$f":"'Base Professeur'!$G$4","v":"Danse"},null,{"$f":"'Base Professeur'!$N$4","v":"Course d'Orientation"},null,{"$f":"'Base Professeur'!$U$4","v":"Musculation"},null,{"$f":"'Base Professeur'!$AB$4","v":"Demi-Fond"}]
[]
[null,{"$f":"'Base Professeur'!C33","v":5},null,{"$f":"'Base Professeur'!$G$4","v":"Danse"},null,{"$f":"'Base Professeur'!$N$4","v":"Course d'Orientation"},null,{"$f":"'Base Professeur'!$U$4","v":"Musculation"},null,{"$f":"'Base Professeur'!$AB$4","v":"Demi-Fond"}]
[]
[null,{"$f":"'Base Professeur'!C34","v":6},null,{"$f":"'Base Professeur'!$G$4","v":"Danse"},null,{"$f":"'Base Professeur'!$N$4","v":"Course d'Orientation"},null,{"$f":"'Base Professeur'!$U$4","v":"Musculation"},null,{"$f":"'Base Professeur'!$AB$4","v":"Demi-Fond"}]
[]
[null,{"$f":"'Base Professeur'!C35","v":7},null,{"$f":"'Base Professeur'!$G$4","v":"Danse"},null,{"$f":"'Base Professeur'!$N$4","v":"Course d'Orientation"},null,{"$f":"'Base Professeur'!$U$4","v":"Musculation"},null,{"$f":"'Base Professeur'!$AB$4","v":"Demi-Fond"}]
[]
[null,{"$f":"'Base Professeur'!C36","v":8},null,{"$f":"'Base Professeur'!$G$4","v":"Danse"},null,{"$f":"'Base Professeur'!$N$4","v":"Course d'Orientation"},null,{"$f":"'Base Professeur'!$U$4","v":"Musculation"},null,{"$f":"'Base Professeur'!$AB$4","v":"Demi-Fond"}]
[]
[null,{"$f":"'Base Professeur'!C37","v":9},null,{"$f":"'Base Professeur'!$G$4","v":"Danse"},null,{"$f":"'Base Professeur'!$N$4","v":"Course d'Orientation"},null,{"$f":"'Base Professeur'!$U$4","v":"Musculation"},null,{"$f":"'Base Professeur'!$AB$4","v":"Demi-Fond"}]
[]
[null,{"$f":"'Base Professeur'!C38","v":10},null,{"$f":"'Base Professeur'!$G$4","v":"Danse"},null,{"$f":"'Base Professeur'!$N$4","v":"Course d'Orientation"},null,{"$f":"'Base Professeur'!$U$4","v":"Musculation"},null,{"$f":"'Base Professeur'!$AB$4","v":"Demi-Fond"}]
[]
[null,{"$f":"'Base Professeur'!C39","v":11},null,{"$f":"'Base Professeur'!$G$4","v":"Danse"},null,{"$f":"'Base Professeur'!$N$4","v":"Course d'Orientation"},null,{"$f":"'Base Professeur'!$U$4","v":"Musculation"},null,{"$f":"'Base Professeur'!$AB$4","v":"Demi-Fond"}]

{"sheet":"Auto-Positionnement","index":3,"n_rows":350,"n_cols":32,"rows_kept":350,"cut":false,"hidden":false,"merged":[[341,1,341,7],[341,9,341,15],[341,17,341,23],[341,25,341,31],[342,1,342,7],[342,9,342,15],[342,17,342,23],[342,25,342,31],[331,1,331,7],[331,9,331,15],[331,17,331,23],[331,25,331,31],[332,1,332,7],[332,9,332,15],[332,17,332,23],[332,25,332,31],[321,1,321,7],[321,9,321,15],[321,17,321,23],[321,25,321,31],[322,1,322,7],[322,9,322,15],[322,17,322,23],[322,25,322,31],[311,1,311,7],[311,9,311,15],[311,17,311,23],[311,25,311,31],[312,1,312,7],[312,9,312,15],[312,17,312,23],[312,25,312,31],[301,1,301,7],[301,9,301,15],[301,17,301,23],[301,25,301,31],[302,1,302,7],[302,9,302,15],[302,17,302,23],[302,25,302,31],[291,1,291,7],[291,9,291,15],[291,17,291,23],[291,25,291,31],[292,1,292,7],[292,9,292,15],[292,17,292,23],[292,25,292,31],[281,1,281,7],[281,9,281,15],[281,17,281,23],[281,25,281,31],[282,1,282,7],[282,9,282,15],[282,17,282,23],[282,25,282,31],[271,1,271,7],[271,9,271,15],[271,17,271,23],[271,25,271,31],[272,1,272,7],[272,9,272,15],[272,17,272,23],[272,25,272,31],[261,1,261,7],[261,9,261,15],[261,17,261,23],[261,25,261,31],[262,1,262,7],[262,9,262,15],[262,17,262,23],[262,25,262,31],[251,1,251,7],[251,9,251,15],[251,17,251,23],[251,25,251,31],[252,1,252,7],[252,9,252,15],[252,17,252,23],[252,25,252,31],[241,1,241,7],[241,9,241,15],[241,17,241,23],[241,25,241,31],[242,1,242,7],[242,9,242,15],[242,17,242,23],[242,25,242,31],[231,1,231,7],[231,9,231,15],[231,17,231,23],[231,25,231,31],[232,1,232,7],[232,9,232,15],[232,17,232,23],[232,25,232,31],[221,1,221,7],[221,9,221,15],[221,17,221,23],[221,25,221,31],[222,1,222,7],[222,9,222,15],[222,17,222,23],[222,25,222,31],[211,1,211,7],[211,9,211,15],[211,17,211,23],[211,25,211,31],[212,1,212,7],[212,9,212,15],[212,17,212,23],[212,25,212,31],[201,1,201,7],[201,9,201,15],[201,17,201,23],[201,25,201,31],[202,1,202,7],[202,9,202,15],[202,17,202,23],[202,25,202,31],[191,1,191,7],[191,9,191,15],[191,17,191,23],[191,25,191,31],[192,1,192,7],[192,9,192,15],[192,17,192,23],[192,25,192,31],[181,1,181,7],[181,9,181,15],[181,17,181,23],[181,25,181,31],[182,1,182,7],[182,9,182,15],[182,17,182,23],[182,25,182,31],[171,1,171,7],[171,9,171,15],[171,17,171,23],[171,25,171,31],[172,1,172,7],[172,9,172,15],[172,17,172,23],[172,25,172,31],[161,1,161,7],[161,9,161,15],[161,17,161,23],[161,25,161,31],[162,1,162,7],[162,9,162,15],[162,17,162,23],[162,25,162,31],[151,1,151,7],[151,9,151,15],[151,17,151,23],[151,25,151,31],[152,1,152,7],[152,9,152,15],[152,17,152,23],[152,25,152,31],[141,1,141,7],[141,9,141,15],[141,17,141,23],[141,25,141,31],[142,1,142,7],[142,9,142,15],[142,17,142,23],[142,25,142,31],[131,1,131,7],[131,9,131,15],[131,17,131,23],[131,25,131,31],[132,1,132,7],[132,9,132,15],[132,17,132,23],[132,25,132,31],[121,1,121,7],[121,9,121,15],[121,17,121,23],[121,25,121,31],[122,1,122,7],[122,9,122,15],[122,17,122,23],[122,25,122,31],[111,1,111,7],[111,9,111,15],[111,17,111,23],[111,25,111,31],[112,1,112,7],[112,9,112,15],[112,17,112,23],[112,25,112,31],[101,1,101,7],[101,9,101,15],[101,17,101,23],[101,25,101,31],[102,1,102,7],[102,9,102,15],[102,17,102,23],[102,25,102,31],[91,1,91,7],[91,9,91,15],[91,17,91,23],[91,25,91,31],[92,1,92,7],[92,9,92,15],[92,17,92,23],[92,25,92,31],[81,1,81,7],[81,9,81,15],[81,17,81,23],[81,25,81,31],[82,1,82,7],[82,9,82,15],[82,17,82,23],[82,25,82,31],[71,1,71,7],[71,9,71,15],[71,17,71,23],[71,25,71,31],[72,1,72,7],[72,9,72,15],[72,17,72,23],[72,25,72,31],[61,1,61,7],[61,9,61,15],[61,17,61,23],[61,25,61,31],[62,1,62,7],[62,9,62,15],[62,17,62,23],[62,25,62,31],[51,1,51,7],[51,9,51,15],[51,17,51,23],[51,25,51,31],[52,1,52,7],[52,9,52,15],[52,17,52,23],[52,25,52,31],[42,1,42,7],[42,9,42,15],[42,17,42,23],[42,25,42,31],[31,9,31,15],[31,17,31,23],[31,25,31,31],[32,1,32,7],[32,9,32,15],[32,17,32,23],[32,25,32,31],[21,1,21,7],[22,1,22,7],[31,1,31,7],[41,1,41,7],[12,17,12,23],[12,25,12,31],[21,9,21,15],[21,17,21,23],[21,25,21,31],[22,9,22,15],[22,17,22,23],[22,25,22,31],[12,1,12,7],[12,9,12,15],[41,9,41,15],[41,17,41,23],[41,25,41,31],[1,25,1,31],[2,25,2,31],[11,1,11,7],[11,9,11,15],[11,17,11,23],[11,25,11,31],[1,1,1,7],[2,1,2,7],[1,9,1,15],[2,9,2,15],[1,17,1,23],[2,17,2,23]]}
[]
[null,{"$f":"'Base Professeur'!C5","v":"Julie"},null,null,null,null,null,null,null,{"$f":"B2","v":"Julie"},null,null,null,null,null,null,null,{"$f":"J2","v":"Julie"},null,null,null,null,null,null,null,{"$f":"R2","v":"Julie"}]
[null,{"$f":"'Base Professeur'!$G$4","v":"Danse"},null,null,null,null,null,null,null,{"$f":"'Base Professeur'!$N$4","v":"Course d'Orientation"},null,null,null,null,null,null,null,{"$f":"'Base Professeur'!$U$4","v":"Musculation"},null,null,null,null,null,null,null,{"$f":"'Base Professeur'!$AB$4","v":"Demi-Fond"}]
[null,{"$f":"'Base Professeur'!$H$5","v":"Objectifs"},{"$f":"'Base Professeur'!$I$5","v":"Non Atteint"},{"$f":"'Base Professeur'!$J$5","v":"Partiellement"},{"$f":"'Base Professeur'!$K$5","v":"Atteint"},{"$f":"'Base Professeur'!$L$5","v":"Dépassé"},"1er Auto-    Positionnement ","2ème Auto- Positionnement",null,{"$f":"'Base Professeur'!$O$5","v":"Objectifs"},{"$f":"'Base Professeur'!$P$5","v":"Non Atteint"},{"$f":"'Base Professeur'!$Q$5","v":"Partiellement"},{"$f":"'Base Professeur'!$R$5","v":"Atteint"},{"$f":"'Base Professeur'!$S$5","v":"Dépassé"},"1er Auto-    Positionnement ","2ème Auto- Positionnement",null,{"$f":"'Base Professeur'!$V$5","v":"Objectifs"},{"$f":"'Base Professeur'!$W$5","v":"Non Atteint"},{"$f":"'Base Professeur'!X5","v":"Partiellement"},{"$f":"'Base Professeur'!$Y$5","v":"Atteint"},{"$f":"'Base Professeur'!$Z$5","v":"Dépassé"},"1er Auto-    Positionnement ","2ème Auto- Positionnement",null,{"$f":"'Base Professeur'!$AC$5","v":"Objectifs"},{"$f":"'Base Professeur'!$AD$5","v":"Non Atteint"},{"$f":"'Base Professeur'!$AE$5","v":"Partiellement"},{"$f":"'Base Professeur'!$AF$5","v":"Atteint"},{"$f":"'Base Professeur'!$AG$5","v":"Dépassé"},"1er Auto-    Positionnement ","2ème Auto- Positionnement"]
[null,{"$f":"'Base Professeur'!$H$6","v":"Chorégraphe acteur"},{"$f":"'Base Professeur'!$I$6","v":"Apporte peu au groupe, peu déchange, gêne. Numérique mal ou pas utilisé"},{"$f":"'Base Professeur'!$J$6","v":"Participe ponctuellement.             Peu de numérique "},{"$f":"'Base Professeur'!$K$6","v":"Actif, participe pour plus-value.            Numérique utilisé"},{"$f":"'Base Professeur'!$L$6","v":"Fort de propositions, constructifs. Numérique en plus-value"},"Partiellement","Atteint",null,{"$f":"'Base Professeur'!$O$6","v":0},{"$f":"'Base Professeur'!$P$6","v":0},{"$f":"'Base Professeur'!$Q$6","v":0},{"$f":"'Base Professeur'!$R$6","v":0},{"$f":"'Base Professeur'!$S$6","v":0},null,null,null,{"$f":"'Base Professeur'!$V$6","v":0},{"$f":"'Base Professeur'!$W$6","v":0},{"$f":"'Base Professeur'!$X$6","v":0},{"$f":"'Base Professeur'!$Y$6","v":0},{"$f":"'Base Professeur'!$Z$6","v":0},null,null,null,{"$f":"'Base Professeur'!$AC$6","v":0},{"$f":"'Base Professeur'!$AD$6","v":0},{"$f":"'Base Professeur'!$AE$6","v":0},{"$f":"'Base Professeur'!$AF$6","v":0},{"$f":"'Base Professeur'!$AG$6","v":0}]
[null,{"$f":"'Base Professeur'!$H$7","v":"Danseur volontaire"},{"$f":"'Base Professeur'!$I$7","v":"Danse dans son coin, aucuns liens avec les autres danseurs"},{"$f":"'Base Professeur'!$J$7","v":"Hésite, se réfère aux autres danseurs"},{"$f":"'Base Professeur'!$K$7","v":"Concentré à danser"},{"$f":"'Base Professeur'!$L$7","v":"Vit sa danse"},"Non Atteint","Partiellement",null,{"$f":"'Base Professeur'!$O$7","v":2},{"$f":"'Base Professeur'!$P$7","v":0},{"$f":"'Base Professeur'!$Q$7","v":0},{"$f":"'Base Professeur'!$R$7","v":0},{"$f":"'Base Professeur'!$S$7","v":0},null,null,null,{"$f":"'Base Professeur'!$V$7","v":8},{"$f":"'Base Professeur'!$W$7","v":0},{"$f":"'Base Professeur'!$X$7","v":0},{"$f":"'Base Professeur'!$Y$7","v":0},{"$f":"'Base Professeur'!$Z$7","v":0},null,null,null,{"$f":"'Base Professeur'!$AC$7","v":14},{"$f":"'Base Professeur'!$AD$7","v":0},{"$f":"'Base Professeur'!$AE$7","v":0},{"$f":"'Base Professeur'!$AF$7","v":0},{"$f":"'Base Professeur'!$AG$7","v":0}]
[null,{"$f":"'Base Professeur'!$H$8","v":"Danseur acteur"},{"$f":"'Base Professeur'!$I$8","v":"Beaucoup d’hésitations, gestes parasites, rire, regard au sol …"},{"$f":"'Base Professeur'!$J$8","v":"Gestuelle connue. Quelques hésitations ou gestes parasites"},{"$f":"'Base Professeur'!$K$8","v":"Gestuelle précise. Aucunes hésitations ou gestes parasites"},{"$f":"'Base Professeur'!$L$8","v":"Gestuelle très précise. Aucunes erreurs"},"Atteint","Partiellement",null,{"$f":"'Base Professeur'!$O$8","v":0},{"$f":"'Base Professeur'!$P$8","v":3},{"$f":"'Base Professeur'!$Q$8","v":0},{"$f":"'Base Professeur'!$R$8","v":0},{"$f":"'Base Professeur'!$S$8","v":0},null,null,null,{"$f":"'Base Professeur'!$V$8","v":0},{"$f":"'Base Professeur'!$W$8","v":9},{"$f":"'Base Professeur'!$X$8","v":0},{"$f":"'Base Professeur'!$Y$8","v":0},{"$f":"'Base Professeur'!$Z$8","v":0},null,null,null,{"$f":"'Base Professeur'!$AC$8","v":0},{"$f":"'Base Professeur'!$AD$8","v":15},{"$f":"'Base Professeur'!$AE$8","v":0},{"$f":"'Base Professeur'!$AF$8","v":0},{"$f":"'Base Professeur'!$AG$8","v":0}]
[null,{"$f":"'Base Professeur'!$H$9","v":"Prestation de groupe finalisée"},{"$f":"'Base Professeur'!$I$9","v":"Manque deux exigences et +"},{"$f":"'Base Professeur'!$J$9","v":"Manque une exigence"},{"$f":"'Base Professeur'!$K$9","v":"Toutes les exigences"},{"$f":"'Base Professeur'!$L$9","v":"Toutes exigences et relation au thème"},"Atteint","Dépassé",null,{"$f":"'Base Professeur'!$O$9","v":0},{"$f":"'Base Professeur'!$P$9","v":0},{"$f":"'Base Professeur'!$Q$9","v":4},{"$f":"'Base Professeur'!$R$9","v":0},{"$f":"'Base Professeur'!$S$9","v":0},null,null,null,{"$f":"'Base Professeur'!$V$9","v":0},{"$f":"'Base Professeur'!$W$9","v":0},{"$f":"'Base Professeur'!$X$9","v":10},{"$f":"'Base Professeur'!$Y$9","v":0},{"$f":"'Base Professeur'!$Z$9","v":0},null,null,null,{"$f":"'Base Professeur'!$AC$9","v":0},{"$f":"'Base Professeur'!$AD$9","v":0},{"$f":"'Base Professeur'!$AE$9","v":16},{"$f":"'Base Professeur'!$AF$9","v":0},{"$f":"'Base Professeur'!$AG$9","v":0}]
[null,{"$f":"'Base Professeur'!$H$10","v":"Échauffement"},{"$f":"'Base Professeur'!$I$10","v":"Echauffement Oublié"},{"$f":"'Base Professeur'!$J$10","v":"Echauffement Baclé"},{"$f":"'Base Professeur'!$K$10","v":"Echauffement Bien Exécuté"},{"$f":"'Base Professeur'!$L$10","v":"Echauffement Bien Exécuté et Guidé"},"Non Atteint","Non Atteint",null,{"$f":"'Base Professeur'!$O$10","v":0},{"$f":"'Base Professeur'!$P$10","v":0},{"$f":"'Base Professeur'!$Q$10","v":0},{"$f":"'Base Professeur'!$R$10","v":5},{"$f":"'Base Professeur'!$S$10","v":0},null,null,null,{"$f":"'Base Professeur'!$V$10","v":0},{"$f":"'Base Professeur'!$W$10","v":0},{"$f":"'Base Professeur'!$X$10","v":0},{"$f":"'Base Professeur'!$Y$10","v":11},{"$f":"'Base Professeur'!$Z$10","v":0},null,null,null,{"$f":"'Base Professeur'!$AC$10","v":0},{"$f":"'Base Professeur'!$AD$10","v":0},{"$f":"'Base Professeur'!$AE$10","v":0},{"$f":"'Base Professeur'!$AF$10","v":17},{"$f":"'Base Professeur'!$AG$10","v":0}]
[null,{"$f":"'Base Professeur'!$H$11","v":"Spectateur"},{"$f":"'Base Professeur'!$I$11","v":"Ricane et n'observe pas"},{"$f":"'Base Professeur'!$J$11","v":"Bavardages et observation imprécise"},{"$f":"'Base Professeur'!$K$11","v":"Respecte et Observation précise"},{"$f":"'Base Professeur'!$L$11","v":"Apprécie et Conseil constructif"},"Partiellement","Dépassé",null,{"$f":"'Base Professeur'!$O$11","v":0},{"$f":"'Base Professeur'!$P$11","v":0},{"$f":"'Base Professeur'!$Q$11","v":0},{"$f":"'Base Professeur'!$R$11","v":0},{"$f":"'Base Professeur'!$S$11","v":6},null,null,null,{"$f":"'Base Professeur'!$V$11","v":0},{"$f":"'Base Professeur'!$W$11","v":0},{"$f":"'Base Professeur'!$X$11","v":0},{"$f":"'Base Professeur'!$Y$11","v":0},{"$f":"'Base Professeur'!$Z$11","v":12},null,null,null,{"$f":"'Base Professeur'!$AC$11","v":0},{"$f":"'Base Professeur'!$AD$11","v":0},{"$f":"'Base Professeur'!$AE$11","v":0},{"$f":"'Base Professeur'!$AF$11","v":0},{"$f":"'Base Professeur'!$AG$11","v":18}]
[]
[null,{"$f":"'Base Professeur'!C6","v":"Yacine"},null,null,null,null,null,null,null,{"$f":"B12","v":"Yacine"},null,null,null,null,null,null,null,{"$f":"J12","v":"Yacine"},null,null,null,null,null,null,null,{"$f":"R12","v":"Yacine"}]
[null,{"$f":"'Base Professeur'!$G$4","v":"Danse"},null,null,null,null,null,null,null,{"$f":"'Base Professeur'!$N$4","v":"Course d'Orientation"},null,null,null,null,null,null,null,{"$f":"'Base Professeur'!$U$4","v":"Musculation"},null,null,null,null,null,null,null,{"$f":"'Base Professeur'!$AB$4","v":"Demi-Fond"}]
[null,{"$f":"'Base Professeur'!$H$5","v":"Objectifs"},{"$f":"'Base Professeur'!$I$5","v":"Non Atteint"},{"$f":"'Base Professeur'!$J$5","v":"Partiellement"},{"$f":"'Base Professeur'!$K$5","v":"Atteint"},{"$f":"'Base Professeur'!$L$5","v":"Dépassé"},"1er Auto-    Positionnement ","2ème Auto- Positionnement",null,{"$f":"'Base Professeur'!$O$5","v":"Objectifs"},{"$f":"'Base Professeur'!$P$5","v":"Non Atteint"},{"$f":"'Base Professeur'!$Q$5","v":"Partiellement"},{"$f":"'Base Professeur'!$R$5","v":"Atteint"},{"$f":"'Base Professeur'!$S$5","v":"Dépassé"},"1er Auto-    Positionnement ","2ème Auto- Positionnement",null,{"$f":"'Base Professeur'!$V$5","v":"Objectifs"},{"$f":"'Base Professeur'!$W$5","v":"Non Atteint"},{"$f":"'Base Professeur'!X15","v":0},{"$f":"'Base Professeur'!$Y$5","v":"Atteint"},{"$f":"'Base Professeur'!$Z$5","v":"Dépassé"},"1er Auto-    Positionnement ","2ème Auto- Positionnement",null,{"$f":"'Base Professeur'!$AC$5","v":"Objectifs"},{"$f":"'Base Professeur'!$AD$5","v":"Non Atteint"},{"$f":"'Base Professeur'!$AE$5","v":"Partiellement"},{"$f":"'Base Professeur'!$AF$5","v":"Atteint"},{"$f":"'Base Professeur'!$AG$5","v":"Dépassé"},"1er Auto-    Positionnement ","2ème Auto- Positionnement"]
[null,{"$f":"'Base Professeur'!$H$6","v":"Chorégraphe acteur"},{"$f":"'Base Professeur'!$I$6","v":"Apporte peu au groupe, peu déchange, gêne. Numérique mal ou pas utilisé"},{"$f":"'Base Professeur'!$J$6","v":"Participe ponctuellement.             Peu de numérique "},{"$f":"'Base Professeur'!$K$6","v":"Actif, participe pour plus-value.            Numérique utilisé"},{"$f":"'Base Professeur'!$L$6","v":"Fort de propositions, constructifs. Numérique en plus-value"},"Non Atteint","Partiellement",null,{"$f":"'Base Professeur'!$O$6","v":0},{"$f":"'Base Professeur'!$P$6","v":0},{"$f":"'Base Professeur'!$Q$6","v":0},{"$f":"'Base Professeur'!$R$6","v":0},{"$f":"'Base Professeur'!$S$6","v":0},null,null,null,{"$f":"'Base Professeur'!$V$6","v":0},{"$f":"'Base Professeur'!$W$6","v":0},{"$f":"'Base Professeur'!$X$6","v":0},{"$f":"'Base Professeur'!$Y$6","v":0},{"$f":"'Base Professeur'!$Z$6","v":0},null,null,null,{"$f":"'Base Professeur'!$AC$6","v":0},{"$f":"'Base Professeur'!$AD$6","v":0},{"$f":"'Base Professeur'!$AE$6","v":0},{"$f":"'Base Professeur'!$AF$6","v":0},{"$f":"'Base Professeur'!$AG$6","v":0}]
[null,{"$f":"'Base Professeur'!$H$7","v":"Danseur volontaire"},{"$f":"'Base Professeur'!$I$7","v":"Danse dans son coin, aucuns liens avec les autres danseurs"},{"$f":"'Base Professeur'!$J$7","v":"Hésite, se réfère aux autres danseurs"},{"$f":"'Base Professeur'!$K$7","v":"Concentré à danser"},{"$f":"'Base Professeur'!$L$7","v":"Vit sa danse"},"Atteint","Dépassé",null,{"$f":"'Base Professeur'!$O$7","v":2},{"$f":"'Base Professeur'!$P$7","v":0},{"$f":"'Base Professeur'!$Q$7","v":0},{"$f":"'Base Professeur'!$R$7","v":0},{"$f":"'Base Professeur'!$S$7","v":0},null,null,null,{"$f":"'Base Professeur'!$V$7","v":8},{"$f":"'Base Professeur'!$W$7","v":0},{"$f":"'Base Professeur'!$X$7","v":0},{"$f":"'Base Professeur'!$Y$7","v":0},{"$f":"'Base Professeur'!$Z$7","v":0},null,null,null,{"$f":"'Base Professeur'!$AC$7","v":14},{"$f":"'Base Professeur'!$AD$7","v":0},{"$f":"'Base Professeur'!$AE$7","v":0},{"$f":"'Base Professeur'!$AF$7","v":0},{"$f":"'Base Professeur'!$AG$7","v":0}]
[null,{"$f":"'Base Professeur'!$H$8","v":"Danseur acteur"},{"$f":"'Base Professeur'!$I$8","v":"Beaucoup d’hésitations, gestes parasites, rire, regard au sol …"},{"$f":"'Base Professeur'!$J$8","v":"Gestuelle connue. Quelques hésitations ou gestes parasites"},{"$f":"'Base Professeur'!$K$8","v":"Gestuelle précise. Aucunes hésitations ou gestes parasites"},{"$f":"'Base Professeur'!$L$8","v":"Gestuelle très précise. Aucunes erreurs"},"Partiellement","Atteint",null,{"$f":"'Base Professeur'!$O$8","v":0},{"$f":"'Base Professeur'!$P$8","v":3},{"$f":"'Base Professeur'!$Q$8","v":0},{"$f":"'Base Professeur'!$R$8","v":0},{"$f":"'Base Professeur'!$S$8","v":0},null,null,null,{"$f":"'Base Professeur'!$V$8","v":0},{"$f":"'Base Professeur'!$W$8","v":9},{"$f":"'Base Professeur'!$X$8","v":0},{"$f":"'Base Professeur'!$Y$8","v":0},{"$f":"'Base Professeur'!$Z$8","v":0},null,null,null,{"$f":"'Base Professeur'!$AC$8","v":0},{"$f":"'Base Professeur'!$AD$8","v":15},{"$f":"'Base Professeur'!$AE$8","v":0},{"$f":"'Base Professeur'!$AF$8","v":0},{"$f":"'Base Professeur'!$AG$8","v":0}]
[null,{"$f":"'Base Professeur'!$H$9","v":"Prestation de groupe finalisée"},{"$f":"'Base Professeur'!$I$9","v":"Manque deux exigences et +"},{"$f":"'Base Professeur'!$J$9","v":"Manque une exigence"},{"$f":"'Base Professeur'!$K$9","v":"Toutes les exigences"},{"$f":"'Base Professeur'!$L$9","v":"Toutes exigences et relation au thème"},"Partiellement","Atteint",null,{"$f":"'Base Professeur'!$O$9","v":0},{"$f":"'Base Professeur'!$P$9","v":0},{"$f":"'Base Professeur'!$Q$9","v":4},{"$f":"'Base Professeur'!$R$9","v":0},{"$f":"'Base Professeur'!$S$9","v":0},null,null,null,{"$f":"'Base Professeur'!$V$9","v":0},{"$f":"'Base Professeur'!$W$9","v":0},{"$f":"'Base Professeur'!$X$9","v":10},{"$f":"'Base Professeur'!$Y$9","v":0},{"$f":"'Base Professeur'!$Z$9","v":0},null,null,null,{"$f":"'Base Professeur'!$AC$9","v":0},{"$f":"'Base Professeur'!$AD$9","v":0},{"$f":"'Base Professeur'!$AE$9","v":16},{"$f":"'Base Professeur'!$AF$9","v":0},{"$f":"'Base Professeur'!$AG$9","v":0}]
[null,{"$f":"'Base Professeur'!$H$10","v":"Échauffement"},{"$f":"'Base Professeur'!$I$10","v":"Echauffement Oublié"},{"$f":"'Base Professeur'!$J$10","v":"Echauffement Baclé"},{"$f":"'Base Professeur'!$K$10","v":"Echauffement Bien Exécuté"},{"$f":"'Base Professeur'!$L$10","v":"Echauffement Bien Exécuté et Guidé"},"Partiellement","Dépassé",null,{"$f":"'Base Professeur'!$O$10","v":0},{"$f":"'Base Professeur'!$P$10","v":0},{"$f":"'Base Professeur'!$Q$10","v":0},{"$f":"'Base Professeur'!$R$10","v":5},{"$f":"'Base Professeur'!$S$10","v":0},null,null,null,{"$f":"'Base Professeur'!$V$10","v":0},{"$f":"'Base Professeur'!$W$10","v":0},{"$f":"'Base Professeur'!$X$10","v":0},{"$f":"'Base Professeur'!$Y$10","v":11},{"$f":"'Base Professeur'!$Z$10","v":0},null,null,null,{"$f":"'Base Professeur'!$AC$10","v":0},{"$f":"'Base Professeur'!$AD$10","v":0},{"$f":"'Base Professeur'!$AE$10","v":0},{"$f":"'Base Professeur'!$AF$10","v":17},{"$f":"'Base Professeur'!$AG$10","v":0}]
[null,{"$f":"'Base Professeur'!$H$11","v":"Spectateur"},{"$f":"'Base Professeur'!$I$11","v":"Ricane et n'observe pas"},{"$f":"'Base Professeur'!$J$11","v":"Bavardages et observation imprécise"},{"$f":"'Base Professeur'!$K$11","v":"Respecte et Observation précise"},{"$f":"'Base Professeur'!$L$11","v":"Apprécie et Conseil constructif"},"Non Atteint","Partiellement",null,{"$f":"'Base Professeur'!$O$11","v":0},{"$f":"'Base Professeur'!$P$11","v":0},{"$f":"'Base Professeur'!$Q$11","v":0},{"$f":"'Base Professeur'!$R$11","v":0},{"$f":"'Base Professeur'!$S$11","v":6},null,null,null,{"$f":"'Base Professeur'!$V$11","v":0},{"$f":"'Base Professeur'!$W$11","v":0},{"$f":"'Base Professeur'!$X$11","v":0},{"$f":"'Base Professeur'!$Y$11","v":0},{"$f":"'Base Professeur'!$Z$11","v":12},null,null,null,{"$f":"'Base Professeur'!$AC$11","v":0},{"$f":"'Base Professeur'!$AD$11","v":0},{"$f":"'Base Professeur'!$AE$11","v":0},{"$f":"'Base Professeur'!$AF$11","v":0},{"$f":"'Base Professeur'!$AG$11","v":18}]
[]
[null,{"$f":"'Base Professeur'!C7","v":"Ludivine"},null,null,null,null,null,null,null,{"$f":"B22","v":"Ludivine"},null,null,null,null,null,null,null,{"$f":"J22","v":"Ludivine"},null,null,null,null,null,null,null,{"$f":"R22","v":"Ludivine"}]
[null,{"$f":"'Base Professeur'!$G$4","v":"Danse"},null,null,null,null,null,null,null,{"$f":"'Base Professeur'!$N$4","v":"Course d'Orientation"},null,null,null,null,null,null,null,{"$f":"'Base Professeur'!$U$4","v":"Musculation"},null,null,null,null,null,null,null,{"$f":"'Base Professeur'!$AB$4","v":"Demi-Fond"}]
[null,{"$f":"'Base Professeur'!$H$5","v":"Objectifs"},{"$f":"'Base Professeur'!$I$5","v":"Non Atteint"},{"$f":"'Base Professeur'!$J$5","v":"Partiellement"},{"$f":"'Base Professeur'!$K$5","v":"Atteint"},{"$f":"'Base Professeur'!$L$5","v":"Dépassé"},"1er Auto-    Positionnement ","2ème Auto- Positionnement",null,{"$f":"'Base Professeur'!$O$5","v":"Objectifs"},{"$f":"'Base Professeur'!$P$5","v":"Non Atteint"},{"$f":"'Base Professeur'!$Q$5","v":"Partiellement"},{"$f":"'Base Professeur'!$R$5","v":"Atteint"},{"$f":"'Base Professeur'!$S$5","v":"Dépassé"},"1er Auto-    Positionnement ","2ème Auto- Positionnement",null,{"$f":"'Base Professeur'!$V$5","v":"Objectifs"},{"$f":"'Base Professeur'!$W$5","v":"Non Atteint"},{"$f":"'Base Professeur'!X25","v":0},{"$f":"'Base Professeur'!$Y$5","v":"Atteint"},{"$f":"'Base Professeur'!$Z$5","v":"Dépassé"},"1er Auto-    Positionnement ","2ème Auto- Positionnement",null,{"$f":"'Base Professeur'!$AC$5","v":"Objectifs"},{"$f":"'Base Professeur'!$AD$5","v":"Non Atteint"},{"$f":"'Base Professeur'!$AE$5","v":"Partiellement"},{"$f":"'Base Professeur'!$AF$5","v":"Atteint"},{"$f":"'Base Professeur'!$AG$5","v":"Dépassé"},"1er Auto-    Positionnement ","2ème Auto- Positionnement"]
[null,{"$f":"'Base Professeur'!$H$6","v":"Chorégraphe acteur"},{"$f":"'Base Professeur'!$I$6","v":"Apporte peu au groupe, peu déchange, gêne. Numérique mal ou pas utilisé"},{"$f":"'Base Professeur'!$J$6","v":"Participe ponctuellement.             Peu de numérique "},{"$f":"'Base Professeur'!$K$6","v":"Actif, participe pour plus-value.            Numérique utilisé"},{"$f":"'Base Professeur'!$L$6","v":"Fort de propositions, constructifs. Numérique en plus-value"},null,null,null,{"$f":"'Base Professeur'!$O$6","v":0},{"$f":"'Base Professeur'!$P$6","v":0},{"$f":"'Base Professeur'!$Q$6","v":0},{"$f":"'Base Professeur'!$R$6","v":0},{"$f":"'Base Professeur'!$S$6","v":0},null,null,null,{"$f":"'Base Professeur'!$V$6","v":0},{"$f":"'Base Professeur'!$W$6","v":0},{"$f":"'Base Professeur'!$X$6","v":0},{"$f":"'Base Professeur'!$Y$6","v":0},{"$f":"'Base Professeur'!$Z$6","v":0},null,null,null,{"$f":"'Base Professeur'!$AC$6","v":0},{"$f":"'Base Professeur'!$AD$6","v":0},{"$f":"'Base Professeur'!$AE$6","v":0},{"$f":"'Base Professeur'!$AF$6","v":0},{"$f":"'Base Professeur'!$AG$6","v":0}]
[null,{"$f":"'Base Professeur'!$H$7","v":"Danseur volontaire"},{"$f":"'Base Professeur'!$I$7","v":"Danse dans son coin, aucuns liens avec les autres danseurs"},{"$f":"'Base Professeur'!$J$7","v":"Hésite, se réfère aux autres danseurs"},{"$f":"'Base Professeur'!$K$7","v":"Concentré à danser"},{"$f":"'Base Professeur'!$L$7","v":"Vit sa danse"},null,null,null,{"$f":"'Base Professeur'!$O$7","v":2},{"$f":"'Base Professeur'!$P$7","v":0},{"$f":"'Base Professeur'!$Q$7","v":0},{"$f":"'Base Professeur'!$R$7","v":0},{"$f":"'Base Professeur'!$S$7","v":0},null,null,null,{"$f":"'Base Professeur'!$V$7","v":8},{"$f":"'Base Professeur'!$W$7","v":0},{"$f":"'Base Professeur'!$X$7","v":0},{"$f":"'Base Professeur'!$Y$7","v":0},{"$f":"'Base Professeur'!$Z$7","v":0},null,null,null,{"$f":"'Base Professeur'!$AC$7","v":14},{"$f":"'Base Professeur'!$AD$7","v":0},{"$f":"'Base Professeur'!$AE$7","v":0},{"$f":"'Base Professeur'!$AF$7","v":0},{"$f":"'Base Professeur'!$AG$7","v":0}]
[null,{"$f":"'Base Professeur'!$H$8","v":"Danseur acteur"},{"$f":"'Base Professeur'!$I$8","v":"Beaucoup d’hésitations, gestes parasites, rire, regard au sol …"},{"$f":"'Base Professeur'!$J$8","v":"Gestuelle connue. Quelques hésitations ou gestes parasites"},{"$f":"'Base Professeur'!$K$8","v":"Gestuelle précise. Aucunes hésitations ou gestes parasites"},{"$f":"'Base Professeur'!$L$8","v":"Gestuelle très précise. Aucunes erreurs"},null,null,null,{"$f":"'Base Professeur'!$O$8","v":0},{"$f":"'Base Professeur'!$P$8","v":3},{"$f":"'Base Professeur'!$Q$8","v":0},{"$f":"'Base Professeur'!$R$8","v":0},{"$f":"'Base Professeur'!$S$8","v":0},null,null,null,{"$f":"'Base Professeur'!$V$8","v":0},{"$f":"'Base Professeur'!$W$8","v":9},{"$f":"'Base Professeur'!$X$8","v":0},{"$f":"'Base Professeur'!$Y$8","v":0},{"$f":"'Base Professeur'!$Z$8","v":0},null,null,null,{"$f":"'Base Professeur'!$AC$8","v":0},{"$f":"'Base Professeur'!$AD$8","v":15},{"$f":"'Base Professeur'!$AE$8","v":0},{"$f":"'Base Professeur'!$AF$8","v":0},{"$f":"'Base Professeur'!$AG$8","v":0}]
[null,{"$f":"'Base Professeur'!$H$9","v":"Prestation de groupe finalisée"},{"$f":"'Base Professeur'!$I$9","v":"Manque deux exigences et +"},{"$f":"'Base Professeur'!$J$9","v":"Manque une exigence"},{"$f":"'Base Professeur'!$K$9","v":"Toutes les exigences"},{"$f":"'Base Professeur'!$L$9","v":"Toutes exigences et relation au thème"},null,null,null,{"$f":"'Base Professeur'!$O$9","v":0},{"$f":"'Base Professeur'!$P$9","v":0},{"$f":"'Base Professeur'!$Q$9","v":4},{"$f":"'Base Professeur'!$R$9","v":0},{"$f":"'Base Professeur'!$S$9","v":0},null,null,null,{"$f":"'Base Professeur'!$V$9","v":0},{"$f":"'Base Professeur'!$W$9","v":0},{"$f":"'Base Professeur'!$X$9","v":10},{"$f":"'Base Professeur'!$Y$9","v":0},{"$f":"'Base Professeur'!$Z$9","v":0},null,null,null,{"$f":"'Base Professeur'!$AC$9","v":0},{"$f":"'Base Professeur'!$AD$9","v":0},{"$f":"'Base Professeur'!$AE$9","v":16},{"$f":"'Base Professeur'!$AF$9","v":0},{"$f":"'Base Professeur'!$AG$9","v":0}]
[null,{"$f":"'Base Professeur'!$H$10","v":"Échauffement"},{"$f":"'Base Professeur'!$I$10","v":"Echauffement Oublié"},{"$f":"'Base Professeur'!$J$10","v":"Echauffement Baclé"},{"$f":"'Base Professeur'!$K$10","v":"Echauffement Bien Exécuté"},{"$f":"'Base Professeur'!$L$10","v":"Echauffement Bien Exécuté et Guidé"},null,null,null,{"$f":"'Base Professeur'!$O$10","v":0},{"$f":"'Base Professeur'!$P$10","v":0},{"$f":"'Base Professeur'!$Q$10","v":0},{"$f":"'Base Professeur'!$R$10","v":5},{"$f":"'Base Professeur'!$S$10","v":0},null,null,null,{"$f":"'Base Professeur'!$V$10","v":0},{"$f":"'Base Professeur'!$W$10","v":0},{"$f":"'Base Professeur'!$X$10","v":0},{"$f":"'Base Professeur'!$Y$10","v":11},{"$f":"'Base Professeur'!$Z$10","v":0},null,null,null,{"$f":"'Base Professeur'!$AC$10","v":0},{"$f":"'Base Professeur'!$AD$10","v":0},{"$f":"'Base Professeur'!$AE$10","v":0},{"$f":"'Base Professeur'!$AF$10","v":17},{"$f":"'Base Professeur'!$AG$10","v":0}]
[null,{"$f":"'Base Professeur'!$H$11","v":"Spectateur"},{"$f":"'Base Professeur'!$I$11","v":"Ricane et n'observe pas"},{"$f":"'Base Professeur'!$J$11","v":"Bavardages et observation imprécise"},{"$f":"'Base Professeur'!$K$11","v":"Respecte et Observation précise"},{"$f":"'Base Professeur'!$L$11","v":"Apprécie et Conseil constructif"},null,null,null,{"$f":"'Base Professeur'!$O$11","v":0},{"$f":"'Base Professeur'!$P$11","v":0},{"$f":"'Base Professeur'!$Q$11","v":0},{"$f":"'Base Professeur'!$R$11","v":0},{"$f":"'Base Professeur'!$S$11","v":6},null,null,null,{"$f":"'Base Professeur'!$V$11","v":0},{"$f":"'Base Professeur'!$W$11","v":0},{"$f":"'Base Professeur'!$X$11","v":0},{"$f":"'Base Professeur'!$Y$11","v":0},{"$f":"'Base Professeur'!$Z$11","v":12},null,null,null,{"$f":"'Base Professeur'!$AC$11","v":0},{"$f":"'Base Professeur'!$AD$11","v":0},{"$f":"'Base Professeur'!$AE$11","v":0},{"$f":"'Base Professeur'!$AF$11","v":0},{"$f":"'Base Professeur'!$AG$11","v":18}]
[]
[null,{"$f":"'Base Professeur'!C8","v":"Nouceiba"},null,null,null,null,null,null,null,{"$f":"B32","v":"Nouceiba"},null,null,null,null,null,null,null,{"$f":"J32","v":"Nouceiba"},null,null,null,null,null,null,null,{"$f":"R32","v":"Nouceiba"}]
[null,{"$f":"'Base Professeur'!$G$4","v":"Danse"},null,null,null,null,null,null,null,{"$f":"'Base Professeur'!$N$4","v":"Course d'Orientation"},null,null,null,null,null,null,null,{"$f":"'Base Professeur'!$U$4","v":"Musculation"},null,null,null,null,null,null,null,{"$f":"'Base Professeur'!$AB$4","v":"Demi-Fond"}]
[null,{"$f":"'Base Professeur'!$H$5","v":"Objectifs"},{"$f":"'Base Professeur'!$I$5","v":"Non Atteint"},{"$f":"'Base Professeur'!$J$5","v":"Partiellement"},{"$f":"'Base Professeur'!$K$5","v":"Atteint"},{"$f":"'Base Professeur'!$L$5","v":"Dépassé"},"1er Auto-    Positionnement ","2ème Auto- Positionnement",null,{"$f":"'Base Professeur'!$O$5","v":"Objectifs"},{"$f":"'Base Professeur'!$P$5","v":"Non Atteint"},{"$f":"'Base Professeur'!$Q$5","v":"Partiellement"},{"$f":"'Base Professeur'!$R$5","v":"Atteint"},{"$f":"'Base Professeur'!$S$5","v":"Dépassé"},"1er Auto-    Positionnement ","2ème Auto- Positionnement",null,{"$f":"'Base Professeur'!$V$5","v":"Objectifs"},{"$f":"'Base Professeur'!$W$5","v":"Non Atteint"},{"$f":"'Base Professeur'!X35","v":0},{"$f":"'Base Professeur'!$Y$5","v":"Atteint"},{"$f":"'Base Professeur'!$Z$5","v":"Dépassé"},"1er Auto-    Positionnement ","2ème Auto- Positionnement",null,{"$f":"'Base Professeur'!$AC$5","v":"Objectifs"},{"$f":"'Base Professeur'!$AD$5","v":"Non Atteint"},{"$f":"'Base Professeur'!$AE$5","v":"Partiellement"},{"$f":"'Base Professeur'!$AF$5","v":"Atteint"},{"$f":"'Base Professeur'!$AG$5","v":"Dépassé"},"1er Auto-    Positionnement ","2ème Auto- Positionnement"]
[null,{"$f":"'Base Professeur'!$H$6","v":"Chorégraphe acteur"},{"$f":"'Base Professeur'!$I$6","v":"Apporte peu au groupe, peu déchange, gêne. Numérique mal ou pas utilisé"},{"$f":"'Base Professeur'!$J$6","v":"Participe ponctuellement.             Peu de numérique "},{"$f":"'Base Professeur'!$K$6","v":"Actif, participe pour plus-value.            Numérique utilisé"},{"$f":"'Base Professeur'!$L$6","v":"Fort de propositions, constructifs. Numérique en plus-value"},null,null,null,{"$f":"'Base Professeur'!$O$6","v":0},{"$f":"'Base Professeur'!$P$6","v":0},{"$f":"'Base Professeur'!$Q$6","v":0},{"$f":"'Base Professeur'!$R$6","v":0},{"$f":"'Base Professeur'!$S$6","v":0},null,null,null,{"$f":"'Base Professeur'!$V$6","v":0},{"$f":"'Base Professeur'!$W$6","v":0},{"$f":"'Base Professeur'!$X$6","v":0},{"$f":"'Base Professeur'!$Y$6","v":0},{"$f":"'Base Professeur'!$Z$6","v":0},null,null,null,{"$f":"'Base Professeur'!$AC$6","v":0},{"$f":"'Base Professeur'!$AD$6","v":0},{"$f":"'Base Professeur'!$AE$6","v":0},{"$f":"'Base Professeur'!$AF$6","v":0},{"$f":"'Base Professeur'!$AG$6","v":0}]
[null,{"$f":"'Base Professeur'!$H$7","v":"Danseur volontaire"},{"$f":"'Base Professeur'!$I$7","v":"Danse dans son coin, aucuns liens avec les autres danseurs"},{"$f":"'Base Professeur'!$J$7","v":"Hésite, se réfère aux autres danseurs"},{"$f":"'Base Professeur'!$K$7","v":"Concentré à danser"},{"$f":"'Base Professeur'!$L$7","v":"Vit sa danse"},null,null,null,{"$f":"'Base Professeur'!$O$7","v":2},{"$f":"'Base Professeur'!$P$7","v":0},{"$f":"'Base Professeur'!$Q$7","v":0},{"$f":"'Base Professeur'!$R$7","v":0},{"$f":"'Base Professeur'!$S$7","v":0},null,null,null,{"$f":"'Base Professeur'!$V$7","v":8},{"$f":"'Base Professeur'!$W$7","v":0},{"$f":"'Base Professeur'!$X$7","v":0},{"$f":"'Base Professeur'!$Y$7","v":0},{"$f":"'Base Professeur'!$Z$7","v":0},null,null,null,{"$f":"'Base Professeur'!$AC$7","v":14},{"$f":"'Base Professeur'!$AD$7","v":0},{"$f":"'Base Professeur'!$AE$7","v":0},{"$f":"'Base Professeur'!$AF$7","v":0},{"$f":"'Base Professeur'!$AG$7","v":0}]
[null,{"$f":"'Base Professeur'!$H$8","v":"Danseur acteur"},{"$f":"'Base Professeur'!$I$8","v":"Beaucoup d’hésitations, gestes parasites, rire, regard au sol …"},{"$f":"'Base Professeur'!$J$8","v":"Gestuelle connue. Quelques hésitations ou gestes parasites"},{"$f":"'Base Professeur'!$K$8","v":"Gestuelle précise. Aucunes hésitations ou gestes parasites"},{"$f":"'Base Professeur'!$L$8","v":"Gestuelle très précise. Aucunes erreurs"},null,null,null,{"$f":"'Base Professeur'!$O$8","v":0},{"$f":"'Base Professeur'!$P$8","v":3},{"$f":"'Base Professeur'!$Q$8","v":0},{"$f":"'Base Professeur'!$R$8","v":0},{"$f":"'Base Professeur'!$S$8","v":0},null,null,null,{"$f":"'Base Professeur'!$V$8","v":0},{"$f":"'Base Professeur'!$W$8","v":9},{"$f":"'Base Professeur'!$X$8","v":0},{"$f":"'Base Professeur'!$Y$8","v":0},{"$f":"'Base Professeur'!$Z$8","v":0},null,null,null,{"$f":"'Base Professeur'!$AC$8","v":0},{"$f":"'Base Professeur'!$AD$8","v":15},{"$f":"'Base Professeur'!$AE$8","v":0},{"$f":"'Base Professeur'!$AF$8","v":0},{"$f":"'Base Professeur'!$AG$8","v":0}]
[null,{"$f":"'Base Professeur'!$H$9","v":"Prestation de groupe finalisée"},{"$f":"'Base Professeur'!$I$9","v":"Manque deux exigences et +"},{"$f":"'Base Professeur'!$J$9","v":"Manque une exigence"},{"$f":"'Base Professeur'!$K$9","v":"Toutes les exigences"},{"$f":"'Base Professeur'!$L$9","v":"Toutes exigences et relation au thème"},null,null,null,{"$f":"'Base Professeur'!$O$9","v":0},{"$f":"'Base Professeur'!$P$9","v":0},{"$f":"'Base Professeur'!$Q$9","v":4},{"$f":"'Base Professeur'!$R$9","v":0},{"$f":"'Base Professeur'!$S$9","v":0},null,null,null,{"$f":"'Base Professeur'!$V$9","v":0},{"$f":"'Base Professeur'!$W$9","v":0},{"$f":"'Base Professeur'!$X$9","v":10},{"$f":"'Base Professeur'!$Y$9","v":0},{"$f":"'Base Professeur'!$Z$9","v":0},null,null,null,{"$f":"'Base Professeur'!$AC$9","v":0},{"$f":"'Base Professeur'!$AD$9","v":0},{"$f":"'Base Professeur'!$AE$9","v":16},{"$f":"'Base Professeur'!$AF$9","v":0},{"$f":"'Base Professeur'!$AG$9","v":0}]
[null,{"$f":"'Base Professeur'!$H$10","v":"Échauffement"},{"$f":"'Base Professeur'!$I$10","v":"Echauffement Oublié"},{"$f":"'Base Professeur'!$J$10","v":"Echauffement Baclé"},{"$f":"'Base Professeur'!$K$10","v":"Echauffement Bien Exécuté"},{"$f":"'Base Professeur'!$L$10","v":"Echauffement Bien Exécuté et Guidé"},null,null,null,{"$f":"'Base Professeur'!$O$10","v":0},{"$f":"'Base Professeur'!$P$10","v":0},{"$f":"'Base Professeur'!$Q$10","v":0},{"$f":"'Base Professeur'!$R$10","v":5},{"$f":"'Base Professeur'!$S$10","v":0},null,null,null,{"$f":"'Base Professeur'!$V$10","v":0},{"$f":"'Base Professeur'!$W$10","v":0},{"$f":"'Base Professeur'!$X$10","v":0},{"$f":"'Base Professeur'!$Y$10","v":11},{"$f":"'Base Professeur'!$Z$10","v":0},null,null,null,{"$f":"'Base Professeur'!$AC$10","v":0},{"$f":"'Base Professeur'!$AD$10","v":0},{"$f":"'Base Professeur'!$AE$10","v":0},{"$f":"'Base Professeur'!$AF$10","v":17},{"$f":"'Base Professeur'!$AG$10","v":0}]
[null,{"$f":"'Base Professeur'!$H$11","v":"Spectateur"},{"$f":"'Base Professeur'!$I$11","v":"Ricane et n'observe pas"},{"$f":"'Base Professeur'!$J$11","v":"Bavardages et observation imprécise"},{"$f":"'Base Professeur'!$K$11","v":"Respecte et Observation précise"},{"$f":"'Base Professeur'!$L$11","v":"Apprécie et Conseil constructif"},null,null,null,{"$f":"'Base Professeur'!$O$11","v":0},{"$f":"'Base Professeur'!$P$11","v":0},{"$f":"'Base Professeur'!$Q$11","v":0},{"$f":"'Base Professeur'!$R$11","v":0},{"$f":"'Base Professeur'!$S$11","v":6},null,null,null,{"$f":"'Base Professeur'!$V$11","v":0},{"$f":"'Base Professeur'!$W$11","v":0},{"$f":"'Base Professeur'!$X$11","v":0},{"$f":"'Base Professeur'!$Y$11","v":0},{"$f":"'Base Professeur'!$Z$11","v":12},null,null,null,{"$f":"'Base Professeur'!$AC$11","v":0},{"$f":"'Base Professeur'!$AD$11","v":0},{"$f":"'Base Professeur'!$AE$11","v":0},{"$f":"'Base Professeur'!$AF$11","v":0},{"$f":"'Base Professeur'!$AG$11","v":18}]
[]
[null,{"$f":"'Base Professeur'!C9","v":"Tanem"},null,null,null,null,null,null,null,{"$f":"B42","v":"Tanem"},null,null,null,null,null,null,null,{"$f":"J42","v":"Tanem"},null,null,null,null,null,null,null,{"$f":"R42","v":"Tanem"}]
[null,{"$f":"'Base Professeur'!$G$4","v":"Danse"},null,null,null,null,null,null,null,{"$f":"'Base Professeur'!$N$4","v":"Course d'Orientation"},null,null,null,null,null,null,null,{"$f":"'Base Professeur'!$U$4","v":"Musculation"},null,null,null,null,null,null,null,{"$f":"'Base Professeur'!$AB$4","v":"Demi-Fond"}]
[null,{"$f":"'Base Professeur'!$H$5","v":"Objectifs"},{"$f":"'Base Professeur'!$I$5","v":"Non Atteint"},{"$f":"'Base Professeur'!$J$5","v":"Partiellement"},{"$f":"'Base Professeur'!$K$5","v":"Atteint"},{"$f":"'Base Professeur'!$L$5","v":"Dépassé"},"1er Auto-    Positionnement ","2ème Auto- Positionnement",null,{"$f":"'Base Professeur'!$O$5","v":"Objectifs"},{"$f":"'Base Professeur'!$P$5","v":"Non Atteint"},{"$f":"'Base Professeur'!$Q$5","v":"Partiellement"},{"$f":"'Base Professeur'!$R$5","v":"Atteint"},{"$f":"'Base Professeur'!$S$5","v":"Dépassé"},"1er Auto-    Positionnement ","2ème Auto- Positionnement",null,{"$f":"'Base Professeur'!$V$5","v":"Objectifs"},{"$f":"'Base Professeur'!$W$5","v":"Non Atteint"},{"$f":"'Base Professeur'!X45","v":0},{"$f":"'Base Professeur'!$Y$5","v":"Atteint"},{"$f":"'Base Professeur'!$Z$5","v":"Dépassé"},"1er Auto-    Positionnement ","2ème Auto- Positionnement",null,{"$f":"'Base Professeur'!$AC$5","v":"Objectifs"},{"$f":"'Base Professeur'!$AD$5","v":"Non Atteint"},{"$f":"'Base Professeur'!$AE$5","v":"Partiellement"},{"$f":"'Base Professeur'!$AF$5","v":"Atteint"},{"$f":"'Base Professeur'!$AG$5","v":"Dépassé"},"1er Auto-    Positionnement ","2ème Auto- Positionnement"]
[null,{"$f":"'Base Professeur'!$H$6","v":"Chorégraphe acteur"},{"$f":"'Base Professeur'!$I$6","v":"Apporte peu au groupe, peu déchange, gêne. Numérique mal ou pas utilisé"},{"$f":"'Base Professeur'!$J$6","v":"Participe ponctuellement.             Peu de numérique "},{"$f":"'Base Professeur'!$K$6","v":"Actif, participe pour plus-value.            Numérique utilisé"},{"$f":"'Base Professeur'!$L$6","v":"Fort de propositions, constructifs. Numérique en plus-value"},null,null,null,{"$f":"'Base Professeur'!$O$6","v":0},{"$f":"'Base Professeur'!$P$6","v":0},{"$f":"'Base Professeur'!$Q$6","v":0},{"$f":"'Base Professeur'!$R$6","v":0},{"$f":"'Base Professeur'!$S$6","v":0},null,null,null,{"$f":"'Base Professeur'!$V$6","v":0},{"$f":"'Base Professeur'!$W$6","v":0},{"$f":"'Base Professeur'!$X$6","v":0},{"$f":"'Base Professeur'!$Y$6","v":0},{"$f":"'Base Professeur'!$Z$6","v":0},null,null,null,{"$f":"'Base Professeur'!$AC$6","v":0},{"$f":"'Base Professeur'!$AD$6","v":0},{"$f":"'Base Professeur'!$AE$6","v":0},{"$f":"'Base Professeur'!$AF$6","v":0},{"$f":"'Base Professeur'!$AG$6","v":0}]
[null,{"$f":"'Base Professeur'!$H$7","v":"Danseur volontaire"},{"$f":"'Base Professeur'!$I$7","v":"Danse dans son coin, aucuns liens avec les autres danseurs"},{"$f":"'Base Professeur'!$J$7","v":"Hésite, se réfère aux autres danseurs"},{"$f":"'Base Professeur'!$K$7","v":"Concentré à danser"},{"$f":"'Base Professeur'!$L$7","v":"Vit sa danse"},null,null,null,{"$f":"'Base Professeur'!$O$7","v":2},{"$f":"'Base Professeur'!$P$7","v":0},{"$f":"'Base Professeur'!$Q$7","v":0},{"$f":"'Base Professeur'!$R$7","v":0},{"$f":"'Base Professeur'!$S$7","v":0},null,null,null,{"$f":"'Base Professeur'!$V$7","v":8},{"$f":"'Base Professeur'!$W$7","v":0},{"$f":"'Base Professeur'!$X$7","v":0},{"$f":"'Base Professeur'!$Y$7","v":0},{"$f":"'Base Professeur'!$Z$7","v":0},null,null,null,{"$f":"'Base Professeur'!$AC$7","v":14},{"$f":"'Base Professeur'!$AD$7","v":0},{"$f":"'Base Professeur'!$AE$7","v":0},{"$f":"'Base Professeur'!$AF$7","v":0},{"$f":"'Base Professeur'!$AG$7","v":0}]
[null,{"$f":"'Base Professeur'!$H$8","v":"Danseur acteur"},{"$f":"'Base Professeur'!$I$8","v":"Beaucoup d’hésitations, gestes parasites, rire, regard au sol …"},{"$f":"'Base Professeur'!$J$8","v":"Gestuelle connue. Quelques hésitations ou gestes parasites"},{"$f":"'Base Professeur'!$K$8","v":"Gestuelle précise. Aucunes hésitations ou gestes parasites"},{"$f":"'Base Professeur'!$L$8","v":"Gestuelle très précise. Aucunes erreurs"},null,null,null,{"$f":"'Base Professeur'!$O$8","v":0},{"$f":"'Base Professeur'!$P$8","v":3},{"$f":"'Base Professeur'!$Q$8","v":0},{"$f":"'Base Professeur'!$R$8","v":0},{"$f":"'Base Professeur'!$S$8","v":0},null,null,null,{"$f":"'Base Professeur'!$V$8","v":0},{"$f":"'Base Professeur'!$W$8","v":9},{"$f":"'Base Professeur'!$X$8","v":0},{"$f":"'Base Professeur'!$Y$8","v":0},{"$f":"'Base Professeur'!$Z$8","v":0},null,null,null,{"$f":"'Base Professeur'!$AC$8","v":0},{"$f":"'Base Professeur'!$AD$8","v":15},{"$f":"'Base Professeur'!$AE$8","v":0},{"$f":"'Base Professeur'!$AF$8","v":0},{"$f":"'Base Professeur'!$AG$8","v":0}]
[null,{"$f":"'Base Professeur'!$H$9","v":"Prestation de groupe finalisée"},{"$f":"'Base Professeur'!$I$9","v":"Manque deux exigences et +"},{"$f":"'Base Professeur'!$J$9","v":"Manque une exigence"},{"$f":"'Base Professeur'!$K$9","v":"Toutes les exigences"},{"$f":"'Base Professeur'!$L$9","v":"Toutes exigences et relation au thème"},null,null,null,{"$f":"'Base Professeur'!$O$9","v":0},{"$f":"'Base Professeur'!$P$9","v":0},{"$f":"'Base Professeur'!$Q$9","v":4},{"$f":"'Base Professeur'!$R$9","v":0},{"$f":"'Base Professeur'!$S$9","v":0},null,null,null,{"$f":"'Base Professeur'!$V$9","v":0},{"$f":"'Base Professeur'!$W$9","v":0},{"$f":"'Base Professeur'!$X$9","v":10},{"$f":"'Base Professeur'!$Y$9","v":0},{"$f":"'Base Professeur'!$Z$9","v":0},null,null,null,{"$f":"'Base Professeur'!$AC$9","v":0},{"$f":"'Base Professeur'!$AD$9","v":0},{"$f":"'Base Professeur'!$AE$9","v":16},{"$f":"'Base Professeur'!$AF$9","v":0},{"$f":"'Base Professeur'!$AG$9","v":0}]
[null,{"$f":"'Base Professeur'!$H$10","v":"Échauffement"},{"$f":"'Base Professeur'!$I$10","v":"Echauffement Oublié"},{"$f":"'Base Professeur'!$J$10","v":"Echauffement Baclé"},{"$f":"'Base Professeur'!$K$10","v":"Echauffement Bien Exécuté"},{"$f":"'Base Professeur'!$L$10","v":"Echauffement Bien Exécuté et Guidé"},null,null,null,{"$f":"'Base Professeur'!$O$10","v":0},{"$f":"'Base Professeur'!$P$10","v":0},{"$f":"'Base Professeur'!$Q$10","v":0},{"$f":"'Base Professeur'!$R$10","v":5},{"$f":"'Base Professeur'!$S$10","v":0},null,null,null,{"$f":"'Base Professeur'!$V$10","v":0},{"$f":"'Base Professeur'!$W$10","v":0},{"$f":"'Base Professeur'!$X$10","v":0},{"$f":"'Base Professeur'!$Y$10","v":11},{"$f":"'Base Professeur'!$Z$10","v":0},null,null,null,{"$f":"'Base Professeur'!$AC$10","v":0},{"$f":"'Base Professeur'!$AD$10","v":0},{"$f":"'Base Professeur'!$AE$10","v":0},{"$f":"'Base Professeur'!$AF$10","v":17},{"$f":"'Base Professeur'!$AG$10","v":0}]
[null,{"$f":"'Base Professeur'!$H$11","v":"Spectateur"},{"$f":"'Base Professeur'!$I$11","v":"Ricane et n'observe pas"},{"$f":"'Base Professeur'!$J$11","v":"Bavardages et observation imprécise"},{"$f":"'Base Professeur'!$K$11","v":"Respecte et Observation précise"},{"$f":"'Base Professeur'!$L$11","v":"Apprécie et Conseil constructif"},null,null,null,{"$f":"'Base Professeur'!$O$11","v":0},{"$f":"'Base Professeur'!$P$11","v":0},{"$f":"'Base Professeur'!$Q$11","v":0},{"$f":"'Base Professeur'!$R$11","v":0},{"$f":"'Base Professeur'!$S$11","v":6},null,null,null,{"$f":"'Base Professeur'!$V$11","v":0},{"$f":"'Base Professeur'!$W$11","v":0},{"$f":"'Base Professeur'!$X$11","v":0},{"$f":"'Base Professeur'!$Y$11","v":0},{"$f":"'Base Professeur'!$Z$11","v":12},null,null,null,{"$f":"'Base Professeur'!$AC$11","v":0},{"$f":"'Base Professeur'!$AD$11","v":0},{"$f":"'Base Professeur'!$AE$11","v":0},{"$f":"'Base Professeur'!$AF$11","v":0},{"$f":"'Base Professeur'!$AG$11","v":18}]
[]
[null,{"$f":"'Base Professeur'!C10","v":"Rémi"},null,null,null,null,null,null,null,{"$f":"B52","v":"Rémi"},null,null,null,null,null,null,null,{"$f":"J52","v":"Rémi"},null,null,null,null,null,null,null,{"$f":"R52","v":"Rémi"}]
[null,{"$f":"'Base Professeur'!$G$4","v":"Danse"},null,null,null,null,null,null,null,{"$f":"'Base Professeur'!$N$4","v":"Course d'Orientation"},null,null,null,null,null,null,null,{"$f":"'Base Professeur'!$U$4","v":"Musculation"},null,null,null,null,null,null,null,{"$f":"'Base Professeur'!$AB$4","v":"Demi-Fond"}]
[null,{"$f":"'Base Professeur'!$H$5","v":"Objectifs"},{"$f":"'Base Professeur'!$I$5","v":"Non Atteint"},{"$f":"'Base Professeur'!$J$5","v":"Partiellement"},{"$f":"'Base Professeur'!$K$5","v":"Atteint"},{"$f":"'Base Professeur'!$L$5","v":"Dépassé"},"1er Auto-    Positionnement ","2ème Auto- Positionnement",null,{"$f":"'Base Professeur'!$O$5","v":"Objectifs"},{"$f":"'Base Professeur'!$P$5","v":"Non Atteint"},{"$f":"'Base Professeur'!$Q$5","v":"Partiellement"},{"$f":"'Base Professeur'!$R$5","v":"Atteint"},{"$f":"'Base Professeur'!$S$5","v":"Dépassé"},"1er Auto-    Positionnement ","2ème Auto- Positionnement",null,{"$f":"'Base Professeur'!$V$5","v":"Objectifs"},{"$f":"'Base Professeur'!$W$5","v":"Non Atteint"},{"$f":"'Base Professeur'!X55","v":0},{"$f":"'Base Professeur'!$Y$5","v":"Atteint"},{"$f":"'Base Professeur'!$Z$5","v":"Dépassé"},"1er Auto-    Positionnement ","2ème Auto- Positionnement",null,{"$f":"'Base Professeur'!$AC$5","v":"Objectifs"},{"$f":"'Base Professeur'!$AD$5","v":"Non Atteint"},{"$f":"'Base Professeur'!$AE$5","v":"Partiellement"},{"$f":"'Base Professeur'!$AF$5","v":"Atteint"},{"$f":"'Base Professeur'!$AG$5","v":"Dépassé"},"1er Auto-    Positionnement ","2ème Auto- Positionnement"]
[null,{"$f":"'Base Professeur'!$H$6","v":"Chorégraphe acteur"},{"$f":"'Base Professeur'!$I$6","v":"Apporte peu au groupe, peu déchange, gêne. Numérique mal ou pas utilisé"},{"$f":"'Base Professeur'!$J$6","v":"Participe ponctuellement.             Peu de numérique "},{"$f":"'Base Professeur'!$K$6","v":"Actif, participe pour plus-value.            Numérique utilisé"},{"$f":"'Base Professeur'!$L$6","v":"Fort de propositions, constructifs. Numérique en plus-value"},null,null,null,{"$f":"'Base Professeur'!$O$6","v":0},{"$f":"'Base Professeur'!$P$6","v":0},{"$f":"'Base Professeur'!$Q$6","v":0},{"$f":"'Base Professeur'!$R$6","v":0},{"$f":"'Base Professeur'!$S$6","v":0},null,null,null,{"$f":"'Base Professeur'!$V$6","v":0},{"$f":"'Base Professeur'!$W$6","v":0},{"$f":"'Base Professeur'!$X$6","v":0},{"$f":"'Base Professeur'!$Y$6","v":0},{"$f":"'Base Professeur'!$Z$6","v":0},null,null,null,{"$f":"'Base Professeur'!$AC$6","v":0},{"$f":"'Base Professeur'!$AD$6","v":0},{"$f":"'Base Professeur'!$AE$6","v":0},{"$f":"'Base Professeur'!$AF$6","v":0},{"$f":"'Base Professeur'!$AG$6","v":0}]
[null,{"$f":"'Base Professeur'!$H$7","v":"Danseur volontaire"},{"$f":"'Base Professeur'!$I$7","v":"Danse dans son coin, aucuns liens avec les autres danseurs"},{"$f":"'Base Professeur'!$J$7","v":"Hésite, se réfère aux autres danseurs"},{"$f":"'Base Professeur'!$K$7","v":"Concentré à danser"},{"$f":"'Base Professeur'!$L$7","v":"Vit sa danse"},null,null,null,{"$f":"'Base Professeur'!$O$7","v":2},{"$f":"'Base Professeur'!$P$7","v":0},{"$f":"'Base Professeur'!$Q$7","v":0},{"$f":"'Base Professeur'!$R$7","v":0},{"$f":"'Base Professeur'!$S$7","v":0},null,null,null,{"$f":"'Base Professeur'!$V$7","v":8},{"$f":"'Base Professeur'!$W$7","v":0},{"$f":"'Base Professeur'!$X$7","v":0},{"$f":"'Base Professeur'!$Y$7","v":0},{"$f":"'Base Professeur'!$Z$7","v":0},null,null,null,{"$f":"'Base Professeur'!$AC$7","v":14},{"$f":"'Base Professeur'!$AD$7","v":0},{"$f":"'Base Professeur'!$AE$7","v":0},{"$f":"'Base Professeur'!$AF$7","v":0},{"$f":"'Base Professeur'!$AG$7","v":0}]
[null,{"$f":"'Base Professeur'!$H$8","v":"Danseur acteur"},{"$f":"'Base Professeur'!$I$8","v":"Beaucoup d’hésitations, gestes parasites, rire, regard au sol …"},{"$f":"'Base Professeur'!$J$8","v":"Gestuelle connue. Quelques hésitations ou gestes parasites"},{"$f":"'Base Professeur'!$K$8","v":"Gestuelle précise. Aucunes hésitations ou gestes parasites"},{"$f":"'Base Professeur'!$L$8","v":"Gestuelle très précise. Aucunes erreurs"},null,null,null,{"$f":"'Base Professeur'!$O$8","v":0},{"$f":"'Base Professeur'!$P$8","v":3},{"$f":"'Base Professeur'!$Q$8","v":0},{"$f":"'Base Professeur'!$R$8","v":0},{"$f":"'Base Professeur'!$S$8","v":0},null,null,null,{"$f":"'Base Professeur'!$V$8","v":0},{"$f":"'Base Professeur'!$W$8","v":9},{"$f":"'Base Professeur'!$X$8","v":0},{"$f":"'Base Professeur'!$Y$8","v":0},{"$f":"'Base Professeur'!$Z$8","v":0},null,null,null,{"$f":"'Base Professeur'!$AC$8","v":0},{"$f":"'Base Professeur'!$AD$8","v":15},{"$f":"'Base Professeur'!$AE$8","v":0},{"$f":"'Base Professeur'!$AF$8","v":0},{"$f":"'Base Professeur'!$AG$8","v":0}]
[null,{"$f":"'Base Professeur'!$H$9","v":"Prestation de groupe finalisée"},{"$f":"'Base Professeur'!$I$9","v":"Manque deux exigences et +"},{"$f":"'Base Professeur'!$J$9","v":"Manque une exigence"},{"$f":"'Base Professeur'!$K$9","v":"Toutes les exigences"},{"$f":"'Base Professeur'!$L$9","v":"Toutes exigences et relation au thème"},null,null,null,{"$f":"'Base Professeur'!$O$9","v":0},{"$f":"'Base Professeur'!$P$9","v":0},{"$f":"'Base Professeur'!$Q$9","v":4},{"$f":"'Base Professeur'!$R$9","v":0},{"$f":"'Base Professeur'!$S$9","v":0},null,null,null,{"$f":"'Base Professeur'!$V$9","v":0},{"$f":"'Base Professeur'!$W$9","v":0},{"$f":"'Base Professeur'!$X$9","v":10},{"$f":"'Base Professeur'!$Y$9","v":0},{"$f":"'Base Professeur'!$Z$9","v":0},null,null,null,{"$f":"'Base Professeur'!$AC$9","v":0},{"$f":"'Base Professeur'!$AD$9","v":0},{"$f":"'Base Professeur'!$AE$9","v":16},{"$f":"'Base Professeur'!$AF$9","v":0},{"$f":"'Base Professeur'!$AG$9","v":0}]
[null,{"$f":"'Base Professeur'!$H$10","v":"Échauffement"},{"$f":"'Base Professeur'!$I$10","v":"Echauffement Oublié"},{"$f":"'Base Professeur'!$J$10","v":"Echauffement Baclé"},{"$f":"'Base Professeur'!$K$10","v":"Echauffement Bien Exécuté"},{"$f":"'Base Professeur'!$L$10","v":"Echauffement Bien Exécuté et Guidé"},null,null,null,{"$f":"'Base Professeur'!$O$10","v":0},{"$f":"'Base Professeur'!$P$10","v":0},{"$f":"'Base Professeur'!$Q$10","v":0},{"$f":"'Base Professeur'!$R$10","v":5},{"$f":"'Base Professeur'!$S$10","v":0},null,null,null,{"$f":"'Base Professeur'!$V$10","v":0},{"$f":"'Base Professeur'!$W$10","v":0},{"$f":"'Base Professeur'!$X$10","v":0},{"$f":"'Base Professeur'!$Y$10","v":11},{"$f":"'Base Professeur'!$Z$10","v":0},null,null,null,{"$f":"'Base Professeur'!$AC$10","v":0},{"$f":"'Base Professeur'!$AD$10","v":0},{"$f":"'Base Professeur'!$AE$10","v":0},{"$f":"'Base Professeur'!$AF$10","v":17},{"$f":"'Base Professeur'!$AG$10","v":0}]
[null,{"$f":"'Base Professeur'!$H$11","v":"Spectateur"},{"$f":"'Base Professeur'!$I$11","v":"Ricane et n'observe pas"},{"$f":"'Base Professeur'!$J$11","v":"Bavardages et observation imprécise"},{"$f":"'Base Professeur'!$K$11","v":"Respecte et Observation précise"},{"$f":"'Base Professeur'!$L$11","v":"Apprécie et Conseil constructif"},null,null,null,{"$f":"'Base Professeur'!$O$11","v":0},{"$f":"'Base Professeur'!$P$11","v":0},{"$f":"'Base Professeur'!$Q$11","v":0},{"$f":"'Base Professeur'!$R$11","v":0},{"$f":"'Base Professeur'!$S$11","v":6},null,null,null,{"$f":"'Base Professeur'!$V$11","v":0},{"$f":"'Base Professeur'!$W$11","v":0},{"$f":"'Base Professeur'!$X$11","v":0},{"$f":"'Base Professeur'!$Y$11","v":0},{"$f":"'Base Professeur'!$Z$11","v":12},null,null,null,{"$f":"'Base Professeur'!$AC$11","v":0},{"$f":"'Base Professeur'!$AD$11","v":0},{"$f":"'Base Professeur'!$AE$11","v":0},{"$f":"'Base Professeur'!$AF$11","v":0},{"$f":"'Base Professeur'!$AG$11","v":18}]
[]
[null,{"$f":"'Base Professeur'!C11","v":"Léo"},null,null,null,null,null,null,null,{"$f":"B62","v":"Léo"},null,null,null,null,null,null,null,{"$f":"J62","v":"Léo"},null,null,null,null,null,null,null,{"$f":"R62","v":"Léo"}]
[null,{"$f":"'Base Professeur'!$G$4","v":"Danse"},null,null,null,null,null,null,null,{"$f":"'Base Professeur'!$N$4","v":"Course d'Orientation"},null,null,null,null,null,null,null,{"$f":"'Base Professeur'!$U$4","v":"Musculation"},null,null,null,null,null,null,null,{"$f":"'Base Professeur'!$AB$4","v":"Demi-Fond"}]
[null,{"$f":"'Base Professeur'!$H$5","v":"Objectifs"},{"$f":"'Base Professeur'!$I$5","v":"Non Atteint"},{"$f":"'Base Professeur'!$J$5","v":"Partiellement"},{"$f":"'Base Professeur'!$K$5","v":"Atteint"},{"$f":"'Base Professeur'!$L$5","v":"Dépassé"},"1er Auto-    Positionnement ","2ème Auto- Positionnement",null,{"$f":"'Base Professeur'!$O$5","v":"Objectifs"},{"$f":"'Base Professeur'!$P$5","v":"Non Atteint"},{"$f":"'Base Professeur'!$Q$5","v":"Partiellement"},{"$f":"'Base Professeur'!$R$5","v":"Atteint"},{"$f":"'Base Professeur'!$S$5","v":"Dépassé"},"1er Auto-    Positionnement ","2ème Auto- Positionnement",null,{"$f":"'Base Professeur'!$V$5","v":"Objectifs"},{"$f":"'Base Professeur'!$W$5","v":"Non Atteint"},{"$f":"'Base Professeur'!X65","v":0},{"$f":"'Base Professeur'!$Y$5","v":"Atteint"},{"$f":"'Base Professeur'!$Z$5","v":"Dépassé"},"1er Auto-    Positionnement ","2ème Auto- Positionnement",null,{"$f":"'Base Professeur'!$AC$5","v":"Objectifs"},{"$f":"'Base Professeur'!$AD$5","v":"Non Atteint"},{"$f":"'Base Professeur'!$AE$5","v":"Partiellement"},{"$f":"'Base Professeur'!$AF$5","v":"Atteint"},{"$f":"'Base Professeur'!$AG$5","v":"Dépassé"},"1er Auto-    Positionnement ","2ème Auto- Positionnement"]
[null,{"$f":"'Base Professeur'!$H$6","v":"Chorégraphe acteur"},{"$f":"'Base Professeur'!$I$6","v":"Apporte peu au groupe, peu déchange, gêne. Numérique mal ou pas utilisé"},{"$f":"'Base Professeur'!$J$6","v":"Participe ponctuellement.             Peu de numérique "},{"$f":"'Base Professeur'!$K$6","v":"Actif, participe pour plus-value.            Numérique utilisé"},{"$f":"'Base Professeur'!$L$6","v":"Fort de propositions, constructifs. Numérique en plus-value"},null,null,null,{"$f":"'Base Professeur'!$O$6","v":0},{"$f":"'Base Professeur'!$P$6","v":0},{"$f":"'Base Professeur'!$Q$6","v":0},{"$f":"'Base Professeur'!$R$6","v":0},{"$f":"'Base Professeur'!$S$6","v":0},null,null,null,{"$f":"'Base Professeur'!$V$6","v":0},{"$f":"'Base Professeur'!$W$6","v":0},{"$f":"'Base Professeur'!$X$6","v":0},{"$f":"'Base Professeur'!$Y$6","v":0},{"$f":"'Base Professeur'!$Z$6","v":0},null,null,null,{"$f":"'Base Professeur'!$AC$6","v":0},{"$f":"'Base Professeur'!$AD$6","v":0},{"$f":"'Base Professeur'!$AE$6","v":0},{"$f":"'Base Professeur'!$AF$6","v":0},{"$f":"'Base Professeur'!$AG$6","v":0}]
[null,{"$f":"'Base Professeur'!$H$7","v":"Danseur volontaire"},{"$f":"'Base Professeur'!$I$7","v":"Danse dans son coin, aucuns liens avec les autres danseurs"},{"$f":"'Base Professeur'!$J$7","v":"Hésite, se réfère aux autres danseurs"},{"$f":"'Base Professeur'!$K$7","v":"Concentré à danser"},{"$f":"'Base Professeur'!$L$7","v":"Vit sa danse"},null,null,null,{"$f":"'Base Professeur'!$O$7","v":2},{"$f":"'Base Professeur'!$P$7","v":0},{"$f":"'Base Professeur'!$Q$7","v":0},{"$f":"'Base Professeur'!$R$7","v":0},{"$f":"'Base Professeur'!$S$7","v":0},null,null,null,{"$f":"'Base Professeur'!$V$7","v":8},{"$f":"'Base Professeur'!$W$7","v":0},{"$f":"'Base Professeur'!$X$7","v":0},{"$f":"'Base Professeur'!$Y$7","v":0},{"$f":"'Base Professeur'!$Z$7","v":0},null,null,null,{"$f":"'Base Professeur'!$AC$7","v":14},{"$f":"'Base Professeur'!$AD$7","v":0},{"$f":"'Base Professeur'!$AE$7","v":0},{"$f":"'Base Professeur'!$AF$7","v":0},{"$f":"'Base Professeur'!$AG$7","v":0}]
[null,{"$f":"'Base Professeur'!$H$8","v":"Danseur acteur"},{"$f":"'Base Professeur'!$I$8","v":"Beaucoup d’hésitations, gestes parasites, rire, regard au sol …"},{"$f":"'Base Professeur'!$J$8","v":"Gestuelle connue. Quelques hésitations ou gestes parasites"},{"$f":"'Base Professeur'!$K$8","v":"Gestuelle précise. Aucunes hésitations ou gestes parasites"},{"$f":"'Base Professeur'!$L$8","v":"Gestuelle très précise. Aucunes erreurs"},null,null,null,{"$f":"'Base Professeur'!$O$8","v":0},{"$f":"'Base Professeur'!$P$8","v":3},{"$f":"'Base Professeur'!$Q$8","v":0},{"$f":"'Base Professeur'!$R$8","v":0},{"$f":"'Base Professeur'!$S$8","v":0},null,null,null,{"$f":"'Base Professeur'!$V$8","v":0},{"$f":"'Base Professeur'!$W$8","v":9},{"$f":"'Base Professeur'!$X$8","v":0},{"$f":"'Base Professeur'!$Y$8","v":0},{"$f":"'Base Professeur'!$Z$8","v":0},null,null,null,{"$f":"'Base Professeur'!$AC$8","v":0},{"$f":"'Base Professeur'!$AD$8","v":15},{"$f":"'Base Professeur'!$AE$8","v":0},{"$f":"'Base Professeur'!$AF$8","v":0},{"$f":"'Base Professeur'!$AG$8","v":0}]
[null,{"$f":"'Base Professeur'!$H$9","v":"Prestation de groupe finalisée"},{"$f":"'Base Professeur'!$I$9","v":"Manque deux exigences et +"},{"$f":"'Base Professeur'!$J$9","v":"Manque une exigence"},{"$f":"'Base Professeur'!$K$9","v":"Toutes les exigences"},{"$f":"'Base Professeur'!$L$9","v":"Toutes exigences et relation au thème"},null,null,null,{"$f":"'Base Professeur'!$O$9","v":0},{"$f":"'Base Professeur'!$P$9","v":0},{"$f":"'Base Professeur'!$Q$9","v":4},{"$f":"'Base Professeur'!$R$9","v":0},{"$f":"'Base Professeur'!$S$9","v":0},null,null,null,{"$f":"'Base Professeur'!$V$9","v":0},{"$f":"'Base Professeur'!$W$9","v":0},{"$f":"'Base Professeur'!$X$9","v":10},{"$f":"'Base Professeur'!$Y$9","v":0},{"$f":"'Base Professeur'!$Z$9","v":0},null,null,null,{"$f":"'Base Professeur'!$AC$9","v":0},{"$f":"'Base Professeur'!$AD$9","v":0},{"$f":"'Base Professeur'!$AE$9","v":16},{"$f":"'Base Professeur'!$AF$9","v":0},{"$f":"'Base Professeur'!$AG$9","v":0}]
[null,{"$f":"'Base Professeur'!$H$10","v":"Échauffement"},{"$f":"'Base Professeur'!$I$10","v":"Echauffement Oublié"},{"$f":"'Base Professeur'!$J$10","v":"Echauffement Baclé"},{"$f":"'Base Professeur'!$K$10","v":"Echauffement Bien Exécuté"},{"$f":"'Base Professeur'!$L$10","v":"Echauffement Bien Exécuté et Guidé"},null,null,null,{"$f":"'Base Professeur'!$O$10","v":0},{"$f":"'Base Professeur'!$P$10","v":0},{"$f":"'Base Professeur'!$Q$10","v":0},{"$f":"'Base Professeur'!$R$10","v":5},{"$f":"'Base Professeur'!$S$10","v":0},null,null,null,{"$f":"'Base Professeur'!$V$10","v":0},{"$f":"'Base Professeur'!$W$10","v":0},{"$f":"'Base Professeur'!$X$10","v":0},{"$f":"'Base Professeur'!$Y$10","v":11},{"$f":"'Base Professeur'!$Z$10","v":0},null,null,null,{"$f":"'Base Professeur'!$AC$10","v":0},{"$f":"'Base Professeur'!$AD$10","v":0},{"$f":"'Base Professeur'!$AE$10","v":0},{"$f":"'Base Professeur'!$AF$10","v":17},{"$f":"'Base Professeur'!$AG$10","v":0}]
[null,{"$f":"'Base Professeur'!$H$11","v":"Spectateur"},{"$f":"'Base Professeur'!$I$11","v":"Ricane et n'observe pas"},{"$f":"'Base Professeur'!$J$11","v":"Bavardages et observation imprécise"},{"$f":"'Base Professeur'!$K$11","v":"Respecte et Observation précise"},{"$f":"'Base Professeur'!$L$11","v":"Apprécie et Conseil constructif"},null,null,null,{"$f":"'Base Professeur'!$O$11","v":0},{"$f":"'Base Professeur'!$P$11","v":0},{"$f":"'Base Professeur'!$Q$11","v":0},{"$f":"'Base Professeur'!$R$11","v":0},{"$f":"'Base Professeur'!$S$11","v":6},null,null,null,{"$f":"'Base Professeur'!$V$11","v":0},{"$f":"'Base Professeur'!$W$11","v":0},{"$f":"'Base Professeur'!$X$11","v":0},{"$f":"'Base Professeur'!$Y$11","v":0},{"$f":"'Base Professeur'!$Z$11","v":12},null,null,null,{"$f":"'Base Professeur'!$AC$11","v":0},{"$f":"'Base Professeur'!$AD$11","v":0},{"$f":"'Base Professeur'!$AE$11","v":0},{"$f":"'Base Professeur'!$AF$11","v":0},{"$f":"'Base Professeur'!$AG$11","v":18}]
[]
[null,{"$f":"'Base Professeur'!C12","v":"Zoé"},null,null,null,null,null,null,null,{"$f":"B72","v":"Zoé"},null,null,null,null,null,null,null,{"$f":"J72","v":"Zoé"},null,null,null,null,null,null,null,{"$f":"R72","v":"Zoé"}]
[null,{"$f":"'Base Professeur'!$G$4","v":"Danse"},null,null,null,null,null,null,null,{"$f":"'Base Professeur'!$N$4","v":"Course d'Orientation"},null,null,null,null,null,null,null,{"$f":"'Base Professeur'!$U$4","v":"Musculation"},null,null,null,null,null,null,null,{"$f":"'Base Professeur'!$AB$4","v":"Demi-Fond"}]
[null,{"$f":"'Base Professeur'!$H$5","v":"Objectifs"},{"$f":"'Base Professeur'!$I$5","v":"Non Atteint"},{"$f":"'Base Professeur'!$J$5","v":"Partiellement"},{"$f":"'Base Professeur'!$K$5","v":"Atteint"},{"$f":"'Base Professeur'!$L$5","v":"Dépassé"},"1er Auto-    Positionnement ","2ème Auto- Positionnement",null,{"$f":"'Base Professeur'!$O$5","v":"Objectifs"},{"$f":"'Base Professeur'!$P$5","v":"Non Atteint"},{"$f":"'Base Professeur'!$Q$5","v":"Partiellement"},{"$f":"'Base Professeur'!$R$5","v":"Atteint"},{"$f":"'Base Professeur'!$S$5","v":"Dépassé"},"1er Auto-    Positionnement ","2ème Auto- Positionnement",null,{"$f":"'Base Professeur'!$V$5","v":"Objectifs"},{"$f":"'Base Professeur'!$W$5","v":"Non Atteint"},{"$f":"'Base Professeur'!X75","v":0},{"$f":"'Base Professeur'!$Y$5","v":"Atteint"},{"$f":"'Base Professeur'!$Z$5","v":"Dépassé"},"1er Auto-    Positionnement ","2ème Auto- Positionnement",null,{"$f":"'Base Professeur'!$AC$5","v":"Objectifs"},{"$f":"'Base Professeur'!$AD$5","v":"Non Atteint"},{"$f":"'Base Professeur'!$AE$5","v":"Partiellement"},{"$f":"'Base Professeur'!$AF$5","v":"Atteint"},{"$f":"'Base Professeur'!$AG$5","v":"Dépassé"},"1er Auto-    Positionnement ","2ème Auto- Positionnement"]
[null,{"$f":"'Base Professeur'!$H$6","v":"Chorégraphe acteur"},{"$f":"'Base Professeur'!$I$6","v":"Apporte peu au groupe, peu déchange, gêne. Numérique mal ou pas utilisé"},{"$f":"'Base Professeur'!$J$6","v":"Participe ponctuellement.             Peu de numérique "},{"$f":"'Base Professeur'!$K$6","v":"Actif, participe pour plus-value.            Numérique utilisé"},{"$f":"'Base Professeur'!$L$6","v":"Fort de propositions, constructifs. Numérique en plus-value"},null,null,null,{"$f":"'Base Professeur'!$O$6","v":0},{"$f":"'Base Professeur'!$P$6","v":0},{"$f":"'Base Professeur'!$Q$6","v":0},{"$f":"'Base Professeur'!$R$6","v":0},{"$f":"'Base Professeur'!$S$6","v":0},null,null,null,{"$f":"'Base Professeur'!$V$6","v":0},{"$f":"'Base Professeur'!$W$6","v":0},{"$f":"'Base Professeur'!$X$6","v":0},{"$f":"'Base Professeur'!$Y$6","v":0},{"$f":"'Base Professeur'!$Z$6","v":0},null,null,null,{"$f":"'Base Professeur'!$AC$6","v":0},{"$f":"'Base Professeur'!$AD$6","v":0},{"$f":"'Base Professeur'!$AE$6","v":0},{"$f":"'Base Professeur'!$AF$6","v":0},{"$f":"'Base Professeur'!$AG$6","v":0}]
[null,{"$f":"'Base Professeur'!$H$7","v":"Danseur volontaire"},{"$f":"'Base Professeur'!$I$7","v":"Danse dans son coin, aucuns liens avec les autres danseurs"},{"$f":"'Base Professeur'!$J$7","v":"Hésite, se réfère aux autres danseurs"},{"$f":"'Base Professeur'!$K$7","v":"Concentré à danser"},{"$f":"'Base Professeur'!$L$7","v":"Vit sa danse"},null,null,null,{"$f":"'Base Professeur'!$O$7","v":2},{"$f":"'Base Professeur'!$P$7","v":0},{"$f":"'Base Professeur'!$Q$7","v":0},{"$f":"'Base Professeur'!$R$7","v":0},{"$f":"'Base Professeur'!$S$7","v":0},null,null,null,{"$f":"'Base Professeur'!$V$7","v":8},{"$f":"'Base Professeur'!$W$7","v":0},{"$f":"'Base Professeur'!$X$7","v":0},{"$f":"'Base Professeur'!$Y$7","v":0},{"$f":"'Base Professeur'!$Z$7","v":0},null,null,null,{"$f":"'Base Professeur'!$AC$7","v":14},{"$f":"'Base Professeur'!$AD$7","v":0},{"$f":"'Base Professeur'!$AE$7","v":0},{"$f":"'Base Professeur'!$AF$7","v":0},{"$f":"'Base Professeur'!$AG$7","v":0}]
[null,{"$f":"'Base Professeur'!$H$8","v":"Danseur acteur"},{"$f":"'Base Professeur'!$I$8","v":"Beaucoup d’hésitations, gestes parasites, rire, regard au sol …"},{"$f":"'Base Professeur'!$J$8","v":"Gestuelle connue. Quelques hésitations ou gestes parasites"},{"$f":"'Base Professeur'!$K$8","v":"Gestuelle précise. Aucunes hésitations ou gestes parasites"},{"$f":"'Base Professeur'!$L$8","v":"Gestuelle très précise. Aucunes erreurs"},null,null,null,{"$f":"'Base Professeur'!$O$8","v":0},{"$f":"'Base Professeur'!$P$8","v":3},{"$f":"'Base Professeur'!$Q$8","v":0},{"$f":"'Base Professeur'!$R$8","v":0},{"$f":"'Base Professeur'!$S$8","v":0},null,null,null,{"$f":"'Base Professeur'!$V$8","v":0},{"$f":"'Base Professeur'!$W$8","v":9},{"$f":"'Base Professeur'!$X$8","v":0},{"$f":"'Base Professeur'!$Y$8","v":0},{"$f":"'Base Professeur'!$Z$8","v":0},null,null,null,{"$f":"'Base Professeur'!$AC$8","v":0},{"$f":"'Base Professeur'!$AD$8","v":15},{"$f":"'Base Professeur'!$AE$8","v":0},{"$f":"'Base Professeur'!$AF$8","v":0},{"$f":"'Base Professeur'!$AG$8","v":0}]
[null,{"$f":"'Base Professeur'!$H$9","v":"Prestation de groupe finalisée"},{"$f":"'Base Professeur'!$I$9","v":"Manque deux exigences et +"},{"$f":"'Base Professeur'!$J$9","v":"Manque une exigence"},{"$f":"'Base Professeur'!$K$9","v":"Toutes les exigences"},{"$f":"'Base Professeur'!$L$9","v":"Toutes exigences et relation au thème"},null,null,null,{"$f":"'Base Professeur'!$O$9","v":0},{"$f":"'Base Professeur'!$P$9","v":0},{"$f":"'Base Professeur'!$Q$9","v":4},{"$f":"'Base Professeur'!$R$9","v":0},{"$f":"'Base Professeur'!$S$9","v":0},null,null,null,{"$f":"'Base Professeur'!$V$9","v":0},{"$f":"'Base Professeur'!$W$9","v":0},{"$f":"'Base Professeur'!$X$9","v":10},{"$f":"'Base Professeur'!$Y$9","v":0},{"$f":"'Base Professeur'!$Z$9","v":0},null,null,null,{"$f":"'Base Professeur'!$AC$9","v":0},{"$f":"'Base Professeur'!$AD$9","v":0},{"$f":"'Base Professeur'!$AE$9","v":16},{"$f":"'Base Professeur'!$AF$9","v":0},{"$f":"'Base Professeur'!$AG$9","v":0}]
[null,{"$f":"'Base Professeur'!$H$10","v":"Échauffement"},{"$f":"'Base Professeur'!$I$10","v":"Echauffement Oublié"},{"$f":"'Base Professeur'!$J$10","v":"Echauffement Baclé"},{"$f":"'Base Professeur'!$K$10","v":"Echauffement Bien Exécuté"},{"$f":"'Base Professeur'!$L$10","v":"Echauffement Bien Exécuté et Guidé"},null,null,null,{"$f":"'Base Professeur'!$O$10","v":0},{"$f":"'Base Professeur'!$P$10","v":0},{"$f":"'Base Professeur'!$Q$10","v":0},{"$f":"'Base Professeur'!$R$10","v":5},{"$f":"'Base Professeur'!$S$10","v":0},null,null,null,{"$f":"'Base Professeur'!$V$10","v":0},{"$f":"'Base Professeur'!$W$10","v":0},{"$f":"'Base Professeur'!$X$10","v":0},{"$f":"'Base Professeur'!$Y$10","v":11},{"$f":"'Base Professeur'!$Z$10","v":0},null,null,null,{"$f":"'Base Professeur'!$AC$10","v":0},{"$f":"'Base Professeur'!$AD$10","v":0},{"$f":"'Base Professeur'!$AE$10","v":0},{"$f":"'Base Professeur'!$AF$10","v":17},{"$f":"'Base Professeur'!$AG$10","v":0}]
[null,{"$f":"'Base Professeur'!$H$11","v":"Spectateur"},{"$f":"'Base Professeur'!$I$11","v":"Ricane et n'observe pas"},{"$f":"'Base Professeur'!$J$11","v":"Bavardages et observation imprécise"},{"$f":"'Base Professeur'!$K$11","v":"Respecte et Observation précise"},{"$f":"'Base Professeur'!$L$11","v":"Apprécie et Conseil constructif"},null,null,null,{"$f":"'Base Professeur'!$O$11","v":0},{"$f":"'Base Professeur'!$P$11","v":0},{"$f":"'Base Professeur'!$Q$11","v":0},{"$f":"'Base Professeur'!$R$11","v":0},{"$f":"'Base Professeur'!$S$11","v":6},null,null,null,{"$f":"'Base Professeur'!$V$11","v":0},{"$f":"'Base Professeur'!$W$11","v":0},{"$f":"'Base Professeur'!$X$11","v":0},{"$f":"'Base Professeur'!$Y$11","v":0},{"$f":"'Base Professeur'!$Z$11","v":12},null,null,null,{"$f":"'Base Professeur'!$AC$11","v":0},{"$f":"'Base Professeur'!$AD$11","v":0},{"$f":"'Base Professeur'!$AE$11","v":0},{"$f":"'Base Professeur'!$AF$11","v":0},{"$f":"'Base Professeur'!$AG$11","v":18}]
[]
[null,{"$f":"'Base Professeur'!C13","v":"Elliot"},null,null,null,null,null,null,null,{"$f":"B82","v":"Elliot"},null,null,null,null,null,null,null,{"$f":"J82","v":"Elliot"},null,null,null,null,null,null,null,{"$f":"R82","v":"Elliot"}]
[null,{"$f":"'Base Professeur'!$G$4","v":"Danse"},null,null,null,null,null,null,null,{"$f":"'Base Professeur'!$N$4","v":"Course d'Orientation"},null,null,null,null,null,null,null,{"$f":"'Base Professeur'!$U$4","v":"Musculation"},null,null,null,null,null,null,null,{"$f":"'Base Professeur'!$AB$4","v":"Demi-Fond"}]
[null,{"$f":"'Base Professeur'!$H$5","v":"Objectifs"},{"$f":"'Base Professeur'!$I$5","v":"Non Atteint"},{"$f":"'Base Professeur'!$J$5","v":"Partiellement"},{"$f":"'Base Professeur'!$K$5","v":"Atteint"},{"$f":"'Base Professeur'!$L$5","v":"Dépassé"},"1er Auto-    Positionnement ","2ème Auto- Positionnement",null,{"$f":"'Base Professeur'!$O$5","v":"Objectifs"},{"$f":"'Base Professeur'!$P$5","v":"Non Atteint"},{"$f":"'Base Professeur'!$Q$5","v":"Partiellement"},{"$f":"'Base Professeur'!$R$5","v":"Atteint"},{"$f":"'Base Professeur'!$S$5","v":"Dépassé"},"1er Auto-    Positionnement ","2ème Auto- Positionnement",null,{"$f":"'Base Professeur'!$V$5","v":"Objectifs"},{"$f":"'Base Professeur'!$W$5","v":"Non Atteint"},{"$f":"'Base Professeur'!X85","v":0},{"$f":"'Base Professeur'!$Y$5","v":"Atteint"},{"$f":"'Base Professeur'!$Z$5","v":"Dépassé"},"1er Auto-    Positionnement ","2ème Auto- Positionnement",null,{"$f":"'Base Professeur'!$AC$5","v":"Objectifs"},{"$f":"'Base Professeur'!$AD$5","v":"Non Atteint"},{"$f":"'Base Professeur'!$AE$5","v":"Partiellement"},{"$f":"'Base Professeur'!$AF$5","v":"Atteint"},{"$f":"'Base Professeur'!$AG$5","v":"Dépassé"},"1er Auto-    Positionnement ","2ème Auto- Positionnement"]
[null,{"$f":"'Base Professeur'!$H$6","v":"Chorégraphe acteur"},{"$f":"'Base Professeur'!$I$6","v":"Apporte peu au groupe, peu déchange, gêne. Numérique mal ou pas utilisé"},{"$f":"'Base Professeur'!$J$6","v":"Participe ponctuellement.             Peu de numérique "},{"$f":"'Base Professeur'!$K$6","v":"Actif, participe pour plus-value.            Numérique utilisé"},{"$f":"'Base Professeur'!$L$6","v":"Fort de propositions, constructifs. Numérique en plus-value"},null,null,null,{"$f":"'Base Professeur'!$O$6","v":0},{"$f":"'Base Professeur'!$P$6","v":0},{"$f":"'Base Professeur'!$Q$6","v":0},{"$f":"'Base Professeur'!$R$6","v":0},{"$f":"'Base Professeur'!$S$6","v":0},null,null,null,{"$f":"'Base Professeur'!$V$6","v":0},{"$f":"'Base Professeur'!$W$6","v":0},{"$f":"'Base Professeur'!$X$6","v":0},{"$f":"'Base Professeur'!$Y$6","v":0},{"$f":"'Base Professeur'!$Z$6","v":0},null,null,null,{"$f":"'Base Professeur'!$AC$6","v":0},{"$f":"'Base Professeur'!$AD$6","v":0},{"$f":"'Base Professeur'!$AE$6","v":0},{"$f":"'Base Professeur'!$AF$6","v":0},{"$f":"'Base Professeur'!$AG$6","v":0}]
[null,{"$f":"'Base Professeur'!$H$7","v":"Danseur volontaire"},{"$f":"'Base Professeur'!$I$7","v":"Danse dans son coin, aucuns liens avec les autres danseurs"},{"$f":"'Base Professeur'!$J$7","v":"Hésite, se réfère aux autres danseurs"},{"$f":"'Base Professeur'!$K$7","v":"Concentré à danser"},{"$f":"'Base Professeur'!$L$7","v":"Vit sa danse"},null,null,null,{"$f":"'Base Professeur'!$O$7","v":2},{"$f":"'Base Professeur'!$P$7","v":0},{"$f":"'Base Professeur'!$Q$7","v":0},{"$f":"'Base Professeur'!$R$7","v":0},{"$f":"'Base Professeur'!$S$7","v":0},null,null,null,{"$f":"'Base Professeur'!$V$7","v":8},{"$f":"'Base Professeur'!$W$7","v":0},{"$f":"'Base Professeur'!$X$7","v":0},{"$f":"'Base Professeur'!$Y$7","v":0},{"$f":"'Base Professeur'!$Z$7","v":0},null,null,null,{"$f":"'Base Professeur'!$AC$7","v":14},{"$f":"'Base Professeur'!$AD$7","v":0},{"$f":"'Base Professeur'!$AE$7","v":0},{"$f":"'Base Professeur'!$AF$7","v":0},{"$f":"'Base Professeur'!$AG$7","v":0}]
[null,{"$f":"'Base Professeur'!$H$8","v":"Danseur acteur"},{"$f":"'Base Professeur'!$I$8","v":"Beaucoup d’hésitations, gestes parasites, rire, regard au sol …"},{"$f":"'Base Professeur'!$J$8","v":"Gestuelle connue. Quelques hésitations ou gestes parasites"},{"$f":"'Base Professeur'!$K$8","v":"Gestuelle précise. Aucunes hésitations ou gestes parasites"},{"$f":"'Base Professeur'!$L$8","v":"Gestuelle très précise. Aucunes erreurs"},null,null,null,{"$f":"'Base Professeur'!$O$8","v":0},{"$f":"'Base Professeur'!$P$8","v":3},{"$f":"'Base Professeur'!$Q$8","v":0},{"$f":"'Base Professeur'!$R$8","v":0},{"$f":"'Base Professeur'!$S$8","v":0},null,null,null,{"$f":"'Base Professeur'!$V$8","v":0},{"$f":"'Base Professeur'!$W$8","v":9},{"$f":"'Base Professeur'!$X$8","v":0},{"$f":"'Base Professeur'!$Y$8","v":0},{"$f":"'Base Professeur'!$Z$8","v":0},null,null,null,{"$f":"'Base Professeur'!$AC$8","v":0},{"$f":"'Base Professeur'!$AD$8","v":15},{"$f":"'Base Professeur'!$AE$8","v":0},{"$f":"'Base Professeur'!$AF$8","v":0},{"$f":"'Base Professeur'!$AG$8","v":0}]
[null,{"$f":"'Base Professeur'!$H$9","v":"Prestation de groupe finalisée"},{"$f":"'Base Professeur'!$I$9","v":"Manque deux exigences et +"},{"$f":"'Base Professeur'!$J$9","v":"Manque une exigence"},{"$f":"'Base Professeur'!$K$9","v":"Toutes les exigences"},{"$f":"'Base Professeur'!$L$9","v":"Toutes exigences et relation au thème"},null,null,null,{"$f":"'Base Professeur'!$O$9","v":0},{"$f":"'Base Professeur'!$P$9","v":0},{"$f":"'Base Professeur'!$Q$9","v":4},{"$f":"'Base Professeur'!$R$9","v":0},{"$f":"'Base Professeur'!$S$9","v":0},null,null,null,{"$f":"'Base Professeur'!$V$9","v":0},{"$f":"'Base Professeur'!$W$9","v":0},{"$f":"'Base Professeur'!$X$9","v":10},{"$f":"'Base Professeur'!$Y$9","v":0},{"$f":"'Base Professeur'!$Z$9","v":0},null,null,null,{"$f":"'Base Professeur'!$AC$9","v":0},{"$f":"'Base Professeur'!$AD$9","v":0},{"$f":"'Base Professeur'!$AE$9","v":16},{"$f":"'Base Professeur'!$AF$9","v":0},{"$f":"'Base Professeur'!$AG$9","v":0}]
[null,{"$f":"'Base Professeur'!$H$10","v":"Échauffement"},{"$f":"'Base Professeur'!$I$10","v":"Echauffement Oublié"},{"$f":"'Base Professeur'!$J$10","v":"Echauffement Baclé"},{"$f":"'Base Professeur'!$K$10","v":"Echauffement Bien Exécuté"},{"$f":"'Base Professeur'!$L$10","v":"Echauffement Bien Exécuté et Guidé"},null,null,null,{"$f":"'Base Professeur'!$O$10","v":0},{"$f":"'Base Professeur'!$P$10","v":0},{"$f":"'Base Professeur'!$Q$10","v":0},{"$f":"'Base Professeur'!$R$10","v":5},{"$f":"'Base Professeur'!$S$10","v":0},null,null,null,{"$f":"'Base Professeur'!$V$10","v":0},{"$f":"'Base Professeur'!$W$10","v":0},{"$f":"'Base Professeur'!$X$10","v":0},{"$f":"'Base Professeur'!$Y$10","v":11},{"$f":"'Base Professeur'!$Z$10","v":0},null,null,null,{"$f":"'Base Professeur'!$AC$10","v":0},{"$f":"'Base Professeur'!$AD$10","v":0},{"$f":"'Base Professeur'!$AE$10","v":0},{"$f":"'Base Professeur'!$AF$10","v":17},{"$f":"'Base Professeur'!$AG$10","v":0}]
[null,{"$f":"'Base Professeur'!$H$11","v":"Spectateur"},{"$f":"'Base Professeur'!$I$11","v":"Ricane et n'observe pas"},{"$f":"'Base Professeur'!$J$11","v":"Bavardages et observation imprécise"},{"$f":"'Base Professeur'!$K$11","v":"Respecte et Observation précise"},{"$f":"'Base Professeur'!$L$11","v":"Apprécie et Conseil constructif"},null,null,null,{"$f":"'Base Professeur'!$O$11","v":0},{"$f":"'Base Professeur'!$P$11","v":0},{"$f":"'Base Professeur'!$Q$11","v":0},{"$f":"'Base Professeur'!$R$11","v":0},{"$f":"'Base Professeur'!$S$11","v":6},null,null,null,{"$f":"'Base Professeur'!$V$11","v":0},{"$f":"'Base Professeur'!$W$11","v":0},{"$f":"'Base Professeur'!$X$11","v":0},{"$f":"'Base Professeur'!$Y$11","v":0},{"$f":"'Base Professeur'!$Z$11","v":12},null,null,null,{"$f":"'Base Professeur'!$AC$11","v":0},{"$f":"'Base Professeur'!$AD$11","v":0},{"$f":"'Base Professeur'!$AE$11","v":0},{"$f":"'Base Professeur'!$AF$11","v":0},{"$f":"'Base Professeur'!$AG$11","v":18}]
[]
[null,{"$f":"'Base Professeur'!C14","v":"Sophia"},null,null,null,null,null,null,null,{"$f":"B92","v":"Sophia"},null,null,null,null,null,null,null,{"$f":"J92","v":"Sophia"},null,null,null,null,null,null,null,{"$f":"R92","v":"Sophia"}]
[null,{"$f":"'Base Professeur'!$G$4","v":"Danse"},null,null,null,null,null,null,null,{"$f":"'Base Professeur'!$N$4","v":"Course d'Orientation"},null,null,null,null,null,null,null,{"$f":"'Base Professeur'!$U$4","v":"Musculation"},null,null,null,null,null,null,null,{"$f":"'Base Professeur'!$AB$4","v":"Demi-Fond"}]
[null,{"$f":"'Base Professeur'!$H$5","v":"Objectifs"},{"$f":"'Base Professeur'!$I$5","v":"Non Atteint"},{"$f":"'Base Professeur'!$J$5","v":"Partiellement"},{"$f":"'Base Professeur'!$K$5","v":"Atteint"},{"$f":"'Base Professeur'!$L$5","v":"Dépassé"},"1er Auto-    Positionnement ","2ème Auto- Positionnement",null,{"$f":"'Base Professeur'!$O$5","v":"Objectifs"},{"$f":"'Base Professeur'!$P$5","v":"Non Atteint"},{"$f":"'Base Professeur'!$Q$5","v":"Partiellement"},{"$f":"'Base Professeur'!$R$5","v":"Atteint"},{"$f":"'Base Professeur'!$S$5","v":"Dépassé"},"1er Auto-    Positionnement ","2ème Auto- Positionnement",null,{"$f":"'Base Professeur'!$V$5","v":"Objectifs"},{"$f":"'Base Professeur'!$W$5","v":"Non Atteint"},{"$f":"'Base Professeur'!X95","v":0},{"$f":"'Base Professeur'!$Y$5","v":"Atteint"},{"$f":"'Base Professeur'!$Z$5","v":"Dépassé"},"1er Auto-    Positionnement ","2ème Auto- Positionnement",null,{"$f":"'Base Professeur'!$AC$5","v":"Objectifs"},{"$f":"'Base Professeur'!$AD$5","v":"Non Atteint"},{"$f":"'Base Professeur'!$AE$5","v":"Partiellement"},{"$f":"'Base Professeur'!$AF$5","v":"Atteint"},{"$f":"'Base Professeur'!$AG$5","v":"Dépassé"},"1er Auto-    Positionnement ","2ème Auto- Positionnement"]
[null,{"$f":"'Base Professeur'!$H$6","v":"Chorégraphe acteur"},{"$f":"'Base Professeur'!$I$6","v":"Apporte peu au groupe, peu déchange, gêne. Numérique mal ou pas utilisé"},{"$f":"'Base Professeur'!$J$6","v":"Participe ponctuellement.             Peu de numérique "},{"$f":"'Base Professeur'!$K$6","v":"Actif, participe pour plus-value.            Numérique utilisé"},{"$f":"'Base Professeur'!$L$6","v":"Fort de propositions, constructifs. Numérique en plus-value"},null,null,null,{"$f":"'Base Professeur'!$O$6","v":0},{"$f":"'Base Professeur'!$P$6","v":0},{"$f":"'Base Professeur'!$Q$6","v":0},{"$f":"'Base Professeur'!$R$6","v":0},{"$f":"'Base Professeur'!$S$6","v":0},null,null,null,{"$f":"'Base Professeur'!$V$6","v":0},{"$f":"'Base Professeur'!$W$6","v":0},{"$f":"'Base Professeur'!$X$6","v":0},{"$f":"'Base Professeur'!$Y$6","v":0},{"$f":"'Base Professeur'!$Z$6","v":0},null,null,null,{"$f":"'Base Professeur'!$AC$6","v":0},{"$f":"'Base Professeur'!$AD$6","v":0},{"$f":"'Base Professeur'!$AE$6","v":0},{"$f":"'Base Professeur'!$AF$6","v":0},{"$f":"'Base Professeur'!$AG$6","v":0}]
[null,{"$f":"'Base Professeur'!$H$7","v":"Danseur volontaire"},{"$f":"'Base Professeur'!$I$7","v":"Danse dans son coin, aucuns liens avec les autres danseurs"},{"$f":"'Base Professeur'!$J$7","v":"Hésite, se réfère aux autres danseurs"},{"$f":"'Base Professeur'!$K$7","v":"Concentré à danser"},{"$f":"'Base Professeur'!$L$7","v":"Vit sa danse"},null,null,null,{"$f":"'Base Professeur'!$O$7","v":2},{"$f":"'Base Professeur'!$P$7","v":0},{"$f":"'Base Professeur'!$Q$7","v":0},{"$f":"'Base Professeur'!$R$7","v":0},{"$f":"'Base Professeur'!$S$7","v":0},null,null,null,{"$f":"'Base Professeur'!$V$7","v":8},{"$f":"'Base Professeur'!$W$7","v":0},{"$f":"'Base Professeur'!$X$7","v":0},{"$f":"'Base Professeur'!$Y$7","v":0},{"$f":"'Base Professeur'!$Z$7","v":0},null,null,null,{"$f":"'Base Professeur'!$AC$7","v":14},{"$f":"'Base Professeur'!$AD$7","v":0},{"$f":"'Base Professeur'!$AE$7","v":0},{"$f":"'Base Professeur'!$AF$7","v":0},{"$f":"'Base Professeur'!$AG$7","v":0}]
[null,{"$f":"'Base Professeur'!$H$8","v":"Danseur acteur"},{"$f":"'Base Professeur'!$I$8","v":"Beaucoup d’hésitations, gestes parasites, rire, regard au sol …"},{"$f":"'Base Professeur'!$J$8","v":"Gestuelle connue. Quelques hésitations ou gestes parasites"},{"$f":"'Base Professeur'!$K$8","v":"Gestuelle précise. Aucunes hésitations ou gestes parasites"},{"$f":"'Base Professeur'!$L$8","v":"Gestuelle très précise. Aucunes erreurs"},null,null,null,{"$f":"'Base Professeur'!$O$8","v":0},{"$f":"'Base Professeur'!$P$8","v":3},{"$f":"'Base Professeur'!$Q$8","v":0},{"$f":"'Base Professeur'!$R$8","v":0},{"$f":"'Base Professeur'!$S$8","v":0},null,null,null,{"$f":"'Base Professeur'!$V$8","v":0},{"$f":"'Base Professeur'!$W$8","v":9},{"$f":"'Base Professeur'!$X$8","v":0},{"$f":"'Base Professeur'!$Y$8","v":0},{"$f":"'Base Professeur'!$Z$8","v":0},null,null,null,{"$f":"'Base Professeur'!$AC$8","v":0},{"$f":"'Base Professeur'!$AD$8","v":15},{"$f":"'Base Professeur'!$AE$8","v":0},{"$f":"'Base Professeur'!$AF$8","v":0},{"$f":"'Base Professeur'!$AG$8","v":0}]
[null,{"$f":"'Base Professeur'!$H$9","v":"Prestation de groupe finalisée"},{"$f":"'Base Professeur'!$I$9","v":"Manque deux exigences et +"},{"$f":"'Base Professeur'!$J$9","v":"Manque une exigence"},{"$f":"'Base Professeur'!$K$9","v":"Toutes les exigences"},{"$f":"'Base Professeur'!$L$9","v":"Toutes exigences et relation au thème"},null,null,null,{"$f":"'Base Professeur'!$O$9","v":0},{"$f":"'Base Professeur'!$P$9","v":0},{"$f":"'Base Professeur'!$Q$9","v":4},{"$f":"'Base Professeur'!$R$9","v":0},{"$f":"'Base Professeur'!$S$9","v":0},null,null,null,{"$f":"'Base Professeur'!$V$9","v":0},{"$f":"'Base Professeur'!$W$9","v":0},{"$f":"'Base Professeur'!$X$9","v":10},{"$f":"'Base Professeur'!$Y$9","v":0},{"$f":"'Base Professeur'!$Z$9","v":0},null,null,null,{"$f":"'Base Professeur'!$AC$9","v":0},{"$f":"'Base Professeur'!$AD$9","v":0},{"$f":"'Base Professeur'!$AE$9","v":16},{"$f":"'Base Professeur'!$AF$9","v":0},{"$f":"'Base Professeur'!$AG$9","v":0}]
[null,{"$f":"'Base Professeur'!$H$10","v":"Échauffement"},{"$f":"'Base Professeur'!$I$10","v":"Echauffement Oublié"},{"$f":"'Base Professeur'!$J$10","v":"Echauffement Baclé"},{"$f":"'Base Professeur'!$K$10","v":"Echauffement Bien Exécuté"},{"$f":"'Base Professeur'!$L$10","v":"Echauffement Bien Exécuté et Guidé"},null,null,null,{"$f":"'Base Professeur'!$O$10","v":0},{"$f":"'Base Professeur'!$P$10","v":0},{"$f":"'Base Professeur'!$Q$10","v":0},{"$f":"'Base Professeur'!$R$10","v":5},{"$f":"'Base Professeur'!$S$10","v":0},null,null,null,{"$f":"'Base Professeur'!$V$10","v":0},{"$f":"'Base Professeur'!$W$10","v":0},{"$f":"'Base Professeur'!$X$10","v":0},{"$f":"'Base Professeur'!$Y$10","v":11},{"$f":"'Base Professeur'!$Z$10","v":0},null,null,null,{"$f":"'Base Professeur'!$AC$10","v":0},{"$f":"'Base Professeur'!$AD$10","v":0},{"$f":"'Base Professeur'!$AE$10","v":0},{"$f":"'Base Professeur'!$AF$10","v":17},{"$f":"'Base Professeur'!$AG$10","v":0}]
[null,{"$f":"'Base Professeur'!$H$11","v":"Spectateur"},{"$f":"'Base Professeur'!$I$11","v":"Ricane et n'observe pas"},{"$f":"'Base Professeur'!$J$11","v":"Bavardages et observation imprécise"},{"$f":"'Base Professeur'!$K$11","v":"Respecte et Observation précise"},{"$f":"'Base Professeur'!$L$11","v":"Apprécie et Conseil constructif"},null,null,null,{"$f":"'Base Professeur'!$O$11","v":0},{"$f":"'Base Professeur'!$P$11","v":0},{"$f":"'Base Professeur'!$Q$11","v":0},{"$f":"'Base Professeur'!$R$11","v":0},{"$f":"'Base Professeur'!$S$11","v":6},null,null,null,{"$f":"'Base Professeur'!$V$11","v":0},{"$f":"'Base Professeur'!$W$11","v":0},{"$f":"'Base Professeur'!$X$11","v":0},{"$f":"'Base Professeur'!$Y$11","v":0},{"$f":"'Base Professeur'!$Z$11","v":12},null,null,null,{"$f":"'Base Professeur'!$AC$11","v":0},{"$f":"'Base Professeur'!$AD$11","v":0},{"$f":"'Base Professeur'!$AE$11","v":0},{"$f":"'Base Professeur'!$AF$11","v":0},{"$f":"'Base Professeur'!$AG$11","v":18}]
[]
[null,{"$f":"'Base Professeur'!C15","v":"Léa"},null,null,null,null,null,null,null,{"$f":"B102","v":"Léa"},null,null,null,null,null,null,null,{"$f":"J102","v":"Léa"},null,null,null,null,null,null,null,{"$f":"R102","v":"Léa"}]
[null,{"$f":"'Base Professeur'!$G$4","v":"Danse"},null,null,null,null,null,null,null,{"$f":"'Base Professeur'!$N$4","v":"Course d'Orientation"},null,null,null,null,null,null,null,{"$f":"'Base Professeur'!$U$4","v":"Musculation"},null,null,null,null,null,null,null,{"$f":"'Base Professeur'!$AB$4","v":"Demi-Fond"}]
[null,{"$f":"'Base Professeur'!$H$5","v":"Objectifs"},{"$f":"'Base Professeur'!$I$5","v":"Non Atteint"},{"$f":"'Base Professeur'!$J$5","v":"Partiellement"},{"$f":"'Base Professeur'!$K$5","v":"Atteint"},{"$f":"'Base Professeur'!$L$5","v":"Dépassé"},"1er Auto-    Positionnement ","2ème Auto- Positionnement",null,{"$f":"'Base Professeur'!$O$5","v":"Objectifs"},{"$f":"'Base Professeur'!$P$5","v":"Non Atteint"},{"$f":"'Base Professeur'!$Q$5","v":"Partiellement"},{"$f":"'Base Professeur'!$R$5","v":"Atteint"},{"$f":"'Base Professeur'!$S$5","v":"Dépassé"},"1er Auto-    Positionnement ","2ème Auto- Positionnement",null,{"$f":"'Base Professeur'!$V$5","v":"Objectifs"},{"$f":"'Base Professeur'!$W$5","v":"Non Atteint"},{"$f":"'Base Professeur'!X105","v":0},{"$f":"'Base Professeur'!$Y$5","v":"Atteint"},{"$f":"'Base Professeur'!$Z$5","v":"Dépassé"},"1er Auto-    Positionnement ","2ème Auto- Positionnement",null,{"$f":"'Base Professeur'!$AC$5","v":"Objectifs"},{"$f":"'Base Professeur'!$AD$5","v":"Non Atteint"},{"$f":"'Base Professeur'!$AE$5","v":"Partiellement"},{"$f":"'Base Professeur'!$AF$5","v":"Atteint"},{"$f":"'Base Professeur'!$AG$5","v":"Dépassé"},"1er Auto-    Positionnement ","2ème Auto- Positionnement"]
[null,{"$f":"'Base Professeur'!$H$6","v":"Chorégraphe acteur"},{"$f":"'Base Professeur'!$I$6","v":"Apporte peu au groupe, peu déchange, gêne. Numérique mal ou pas utilisé"},{"$f":"'Base Professeur'!$J$6","v":"Participe ponctuellement.             Peu de numérique "},{"$f":"'Base Professeur'!$K$6","v":"Actif, participe pour plus-value.            Numérique utilisé"},{"$f":"'Base Professeur'!$L$6","v":"Fort de propositions, constructifs. Numérique en plus-value"},null,null,null,{"$f":"'Base Professeur'!$O$6","v":0},{"$f":"'Base Professeur'!$P$6","v":0},{"$f":"'Base Professeur'!$Q$6","v":0},{"$f":"'Base Professeur'!$R$6","v":0},{"$f":"'Base Professeur'!$S$6","v":0},null,null,null,{"$f":"'Base Professeur'!$V$6","v":0},{"$f":"'Base Professeur'!$W$6","v":0},{"$f":"'Base Professeur'!$X$6","v":0},{"$f":"'Base Professeur'!$Y$6","v":0},{"$f":"'Base Professeur'!$Z$6","v":0},null,null,null,{"$f":"'Base Professeur'!$AC$6","v":0},{"$f":"'Base Professeur'!$AD$6","v":0},{"$f":"'Base Professeur'!$AE$6","v":0},{"$f":"'Base Professeur'!$AF$6","v":0},{"$f":"'Base Professeur'!$AG$6","v":0}]
[null,{"$f":"'Base Professeur'!$H$7","v":"Danseur volontaire"},{"$f":"'Base Professeur'!$I$7","v":"Danse dans son coin, aucuns liens avec les autres danseurs"},{"$f":"'Base Professeur'!$J$7","v":"Hésite, se réfère aux autres danseurs"},{"$f":"'Base Professeur'!$K$7","v":"Concentré à danser"},{"$f":"'Base Professeur'!$L$7","v":"Vit sa danse"},null,null,null,{"$f":"'Base Professeur'!$O$7","v":2},{"$f":"'Base Professeur'!$P$7","v":0},{"$f":"'Base Professeur'!$Q$7","v":0},{"$f":"'Base Professeur'!$R$7","v":0},{"$f":"'Base Professeur'!$S$7","v":0},null,null,null,{"$f":"'Base Professeur'!$V$7","v":8},{"$f":"'Base Professeur'!$W$7","v":0},{"$f":"'Base Professeur'!$X$7","v":0},{"$f":"'Base Professeur'!$Y$7","v":0},{"$f":"'Base Professeur'!$Z$7","v":0},null,null,null,{"$f":"'Base Professeur'!$AC$7","v":14},{"$f":"'Base Professeur'!$AD$7","v":0},{"$f":"'Base Professeur'!$AE$7","v":0},{"$f":"'Base Professeur'!$AF$7","v":0},{"$f":"'Base Professeur'!$AG$7","v":0}]
[null,{"$f":"'Base Professeur'!$H$8","v":"Danseur acteur"},{"$f":"'Base Professeur'!$I$8","v":"Beaucoup d’hésitations, gestes parasites, rire, regard au sol …"},{"$f":"'Base Professeur'!$J$8","v":"Gestuelle connue. Quelques hésitations ou gestes parasites"},{"$f":"'Base Professeur'!$K$8","v":"Gestuelle précise. Aucunes hésitations ou gestes parasites"},{"$f":"'Base Professeur'!$L$8","v":"Gestuelle très précise. Aucunes erreurs"},null,null,null,{"$f":"'Base Professeur'!$O$8","v":0},{"$f":"'Base Professeur'!$P$8","v":3},{"$f":"'Base Professeur'!$Q$8","v":0},{"$f":"'Base Professeur'!$R$8","v":0},{"$f":"'Base Professeur'!$S$8","v":0},null,null,null,{"$f":"'Base Professeur'!$V$8","v":0},{"$f":"'Base Professeur'!$W$8","v":9},{"$f":"'Base Professeur'!$X$8","v":0},{"$f":"'Base Professeur'!$Y$8","v":0},{"$f":"'Base Professeur'!$Z$8","v":0},null,null,null,{"$f":"'Base Professeur'!$AC$8","v":0},{"$f":"'Base Professeur'!$AD$8","v":15},{"$f":"'Base Professeur'!$AE$8","v":0},{"$f":"'Base Professeur'!$AF$8","v":0},{"$f":"'Base Professeur'!$AG$8","v":0}]
[null,{"$f":"'Base Professeur'!$H$9","v":"Prestation de groupe finalisée"},{"$f":"'Base Professeur'!$I$9","v":"Manque deux exigences et +"},{"$f":"'Base Professeur'!$J$9","v":"Manque une exigence"},{"$f":"'Base Professeur'!$K$9","v":"Toutes les exigences"},{"$f":"'Base Professeur'!$L$9","v":"Toutes exigences et relation au thème"},null,null,null,{"$f":"'Base Professeur'!$O$9","v":0},{"$f":"'Base Professeur'!$P$9","v":0},{"$f":"'Base Professeur'!$Q$9","v":4},{"$f":"'Base Professeur'!$R$9","v":0},{"$f":"'Base Professeur'!$S$9","v":0},null,null,null,{"$f":"'Base Professeur'!$V$9","v":0},{"$f":"'Base Professeur'!$W$9","v":0},{"$f":"'Base Professeur'!$X$9","v":10},{"$f":"'Base Professeur'!$Y$9","v":0},{"$f":"'Base Professeur'!$Z$9","v":0},null,null,null,{"$f":"'Base Professeur'!$AC$9","v":0},{"$f":"'Base Professeur'!$AD$9","v":0},{"$f":"'Base Professeur'!$AE$9","v":16},{"$f":"'Base Professeur'!$AF$9","v":0},{"$f":"'Base Professeur'!$AG$9","v":0}]
[null,{"$f":"'Base Professeur'!$H$10","v":"Échauffement"},{"$f":"'Base Professeur'!$I$10","v":"Echauffement Oublié"},{"$f":"'Base Professeur'!$J$10","v":"Echauffement Baclé"},{"$f":"'Base Professeur'!$K$10","v":"Echauffement Bien Exécuté"},{"$f":"'Base Professeur'!$L$10","v":"Echauffement Bien Exécuté et Guidé"},null,null,null,{"$f":"'Base Professeur'!$O$10","v":0},{"$f":"'Base Professeur'!$P$10","v":0},{"$f":"'Base Professeur'!$Q$10","v":0},{"$f":"'Base Professeur'!$R$10","v":5},{"$f":"'Base Professeur'!$S$10","v":0},null,null,null,{"$f":"'Base Professeur'!$V$10","v":0},{"$f":"'Base Professeur'!$W$10","v":0},{"$f":"'Base Professeur'!$X$10","v":0},{"$f":"'Base Professeur'!$Y$10","v":11},{"$f":"'Base Professeur'!$Z$10","v":0},null,null,null,{"$f":"'Base Professeur'!$AC$10","v":0},{"$f":"'Base Professeur'!$AD$10","v":0},{"$f":"'Base Professeur'!$AE$10","v":0},{"$f":"'Base Professeur'!$AF$10","v":17},{"$f":"'Base Professeur'!$AG$10","v":0}]
[null,{"$f":"'Base Professeur'!$H$11","v":"Spectateur"},{"$f":"'Base Professeur'!$I$11","v":"Ricane et n'observe pas"},{"$f":"'Base Professeur'!$J$11","v":"Bavardages et observation imprécise"},{"$f":"'Base Professeur'!$K$11","v":"Respecte et Observation précise"},{"$f":"'Base Professeur'!$L$11","v":"Apprécie et Conseil constructif"},null,null,null,{"$f":"'Base Professeur'!$O$11","v":0},{"$f":"'Base Professeur'!$P$11","v":0},{"$f":"'Base Professeur'!$Q$11","v":0},{"$f":"'Base Professeur'!$R$11","v":0},{"$f":"'Base Professeur'!$S$11","v":6},null,null,null,{"$f":"'Base Professeur'!$V$11","v":0},{"$f":"'Base Professeur'!$W$11","v":0},{"$f":"'Base Professeur'!$X$11","v":0},{"$f":"'Base Professeur'!$Y$11","v":0},{"$f":"'Base Professeur'!$Z$11","v":12},null,null,null,{"$f":"'Base Professeur'!$AC$11","v":0},{"$f":"'Base Professeur'!$AD$11","v":0},{"$f":"'Base Professeur'!$AE$11","v":0},{"$f":"'Base Professeur'!$AF$11","v":0},{"$f":"'Base Professeur'!$AG$11","v":18}]
[]
[null,{"$f":"'Base Professeur'!C16","v":"Eliza"},null,null,null,null,null,null,null,{"$f":"B112","v":"Eliza"},null,null,null,null,null,null,null,{"$f":"J112","v":"Eliza"},null,null,null,null,null,null,null,{"$f":"R112","v":"Eliza"}]
[null,{"$f":"'Base Professeur'!$G$4","v":"Danse"},null,null,null,null,null,null,null,{"$f":"'Base Professeur'!$N$4","v":"Course d'Orientation"},null,null,null,null,null,null,null,{"$f":"'Base Professeur'!$U$4","v":"Musculation"},null,null,null,null,null,null,null,{"$f":"'Base Professeur'!$AB$4","v":"Demi-Fond"}]
[null,{"$f":"'Base Professeur'!$H$5","v":"Objectifs"},{"$f":"'Base Professeur'!$I$5","v":"Non Atteint"},{"$f":"'Base Professeur'!$J$5","v":"Partiellement"},{"$f":"'Base Professeur'!$K$5","v":"Atteint"},{"$f":"'Base Professeur'!$L$5","v":"Dépassé"},"1er Auto-    Positionnement ","2ème Auto- Positionnement",null,{"$f":"'Base Professeur'!$O$5","v":"Objectifs"},{"$f":"'Base Professeur'!$P$5","v":"Non Atteint"},{"$f":"'Base Professeur'!$Q$5","v":"Partiellement"},{"$f":"'Base Professeur'!$R$5","v":"Atteint"},{"$f":"'Base Professeur'!$S$5","v":"Dépassé"},"1er Auto-    Positionnement ","2ème Auto- Positionnement",null,{"$f":"'Base Professeur'!$V$5","v":"Objectifs"},{"$f":"'Base Professeur'!$W$5","v":"Non Atteint"},{"$f":"'Base Professeur'!X115","v":0},{"$f":"'Base Professeur'!$Y$5","v":"Atteint"},{"$f":"'Base Professeur'!$Z$5","v":"Dépassé"},"1er Auto-    Positionnement ","2ème Auto- Positionnement",null,{"$f":"'Base Professeur'!$AC$5","v":"Objectifs"},{"$f":"'Base Professeur'!$AD$5","v":"Non Atteint"},{"$f":"'Base Professeur'!$AE$5","v":"Partiellement"},{"$f":"'Base Professeur'!$AF$5","v":"Atteint"},{"$f":"'Base Professeur'!$AG$5","v":"Dépassé"},"1er Auto-    Positionnement ","2ème Auto- Positionnement"]
[null,{"$f":"'Base Professeur'!$H$6","v":"Chorégraphe acteur"},{"$f":"'Base Professeur'!$I$6","v":"Apporte peu au groupe, peu déchange, gêne. Numérique mal ou pas utilisé"},{"$f":"'Base Professeur'!$J$6","v":"Participe ponctuellement.             Peu de numérique "},{"$f":"'Base Professeur'!$K$6","v":"Actif, participe pour plus-value.            Numérique utilisé"},{"$f":"'Base Professeur'!$L$6","v":"Fort de propositions, constructifs. Numérique en plus-value"},null,null,null,{"$f":"'Base Professeur'!$O$6","v":0},{"$f":"'Base Professeur'!$P$6","v":0},{"$f":"'Base Professeur'!$Q$6","v":0},{"$f":"'Base Professeur'!$R$6","v":0},{"$f":"'Base Professeur'!$S$6","v":0},null,null,null,{"$f":"'Base Professeur'!$V$6","v":0},{"$f":"'Base Professeur'!$W$6","v":0},{"$f":"'Base Professeur'!$X$6","v":0},{"$f":"'Base Professeur'!$Y$6","v":0},{"$f":"'Base Professeur'!$Z$6","v":0},null,null,null,{"$f":"'Base Professeur'!$AC$6","v":0},{"$f":"'Base Professeur'!$AD$6","v":0},{"$f":"'Base Professeur'!$AE$6","v":0},{"$f":"'Base Professeur'!$AF$6","v":0},{"$f":"'Base Professeur'!$AG$6","v":0}]
[null,{"$f":"'Base Professeur'!$H$7","v":"Danseur volontaire"},{"$f":"'Base Professeur'!$I$7","v":"Danse dans son coin, aucuns liens avec les autres danseurs"},{"$f":"'Base Professeur'!$J$7","v":"Hésite, se réfère aux autres danseurs"},{"$f":"'Base Professeur'!$K$7","v":"Concentré à danser"},{"$f":"'Base Professeur'!$L$7","v":"Vit sa danse"},null,null,null,{"$f":"'Base Professeur'!$O$7","v":2},{"$f":"'Base Professeur'!$P$7","v":0},{"$f":"'Base Professeur'!$Q$7","v":0},{"$f":"'Base Professeur'!$R$7","v":0},{"$f":"'Base Professeur'!$S$7","v":0},null,null,null,{"$f":"'Base Professeur'!$V$7","v":8},{"$f":"'Base Professeur'!$W$7","v":0},{"$f":"'Base Professeur'!$X$7","v":0},{"$f":"'Base Professeur'!$Y$7","v":0},{"$f":"'Base Professeur'!$Z$7","v":0},null,null,null,{"$f":"'Base Professeur'!$AC$7","v":14},{"$f":"'Base Professeur'!$AD$7","v":0},{"$f":"'Base Professeur'!$AE$7","v":0},{"$f":"'Base Professeur'!$AF$7","v":0},{"$f":"'Base Professeur'!$AG$7","v":0}]
[null,{"$f":"'Base Professeur'!$H$8","v":"Danseur acteur"},{"$f":"'Base Professeur'!$I$8","v":"Beaucoup d’hésitations, gestes parasites, rire, regard au sol …"},{"$f":"'Base Professeur'!$J$8","v":"Gestuelle connue. Quelques hésitations ou gestes parasites"},{"$f":"'Base Professeur'!$K$8","v":"Gestuelle précise. Aucunes hésitations ou gestes parasites"},{"$f":"'Base Professeur'!$L$8","v":"Gestuelle très précise. Aucunes erreurs"},null,null,null,{"$f":"'Base Professeur'!$O$8","v":0},{"$f":"'Base Professeur'!$P$8","v":3},{"$f":"'Base Professeur'!$Q$8","v":0},{"$f":"'Base Professeur'!$R$8","v":0},{"$f":"'Base Professeur'!$S$8","v":0},null,null,null,{"$f":"'Base Professeur'!$V$8","v":0},{"$f":"'Base Professeur'!$W$8","v":9},{"$f":"'Base Professeur'!$X$8","v":0},{"$f":"'Base Professeur'!$Y$8","v":0},{"$f":"'Base Professeur'!$Z$8","v":0},null,null,null,{"$f":"'Base Professeur'!$AC$8","v":0},{"$f":"'Base Professeur'!$AD$8","v":15},{"$f":"'Base Professeur'!$AE$8","v":0},{"$f":"'Base Professeur'!$AF$8","v":0},{"$f":"'Base Professeur'!$AG$8","v":0}]
[null,{"$f":"'Base Professeur'!$H$9","v":"Prestation de groupe finalisée"},{"$f":"'Base Professeur'!$I$9","v":"Manque deux exigences et +"},{"$f":"'Base Professeur'!$J$9","v":"Manque une exigence"},{"$f":"'Base Professeur'!$K$9","v":"Toutes les exigences"},{"$f":"'Base Professeur'!$L$9","v":"Toutes exigences et relation au thème"},null,null,null,{"$f":"'Base Professeur'!$O$9","v":0},{"$f":"'Base Professeur'!$P$9","v":0},{"$f":"'Base Professeur'!$Q$9","v":4},{"$f":"'Base Professeur'!$R$9","v":0},{"$f":"'Base Professeur'!$S$9","v":0},null,null,null,{"$f":"'Base Professeur'!$V$9","v":0},{"$f":"'Base Professeur'!$W$9","v":0},{"$f":"'Base Professeur'!$X$9","v":10},{"$f":"'Base Professeur'!$Y$9","v":0},{"$f":"'Base Professeur'!$Z$9","v":0},null,null,null,{"$f":"'Base Professeur'!$AC$9","v":0},{"$f":"'Base Professeur'!$AD$9","v":0},{"$f":"'Base Professeur'!$AE$9","v":16},{"$f":"'Base Professeur'!$AF$9","v":0},{"$f":"'Base Professeur'!$AG$9","v":0}]
[null,{"$f":"'Base Professeur'!$H$10","v":"Échauffement"},{"$f":"'Base Professeur'!$I$10","v":"Echauffement Oublié"},{"$f":"'Base Professeur'!$J$10","v":"Echauffement Baclé"},{"$f":"'Base Professeur'!$K$10","v":"Echauffement Bien Exécuté"},{"$f":"'Base Professeur'!$L$10","v":"Echauffement Bien Exécuté et Guidé"},null,null,null,{"$f":"'Base Professeur'!$O$10","v":0},{"$f":"'Base Professeur'!$P$10","v":0},{"$f":"'Base Professeur'!$Q$10","v":0},{"$f":"'Base Professeur'!$R$10","v":5},{"$f":"'Base Professeur'!$S$10","v":0},null,null,null,{"$f":"'Base Professeur'!$V$10","v":0},{"$f":"'Base Professeur'!$W$10","v":0},{"$f":"'Base Professeur'!$X$10","v":0},{"$f":"'Base Professeur'!$Y$10","v":11},{"$f":"'Base Professeur'!$Z$10","v":0},null,null,null,{"$f":"'Base Professeur'!$AC$10","v":0},{"$f":"'Base Professeur'!$AD$10","v":0},{"$f":"'Base Professeur'!$AE$10","v":0},{"$f":"'Base Professeur'!$AF$10","v":17},{"$f":"'Base Professeur'!$AG$10","v":0}]
[null,{"$f":"'Base Professeur'!$H$11","v":"Spectateur"},{"$f":"'Base Professeur'!$I$11","v":"Ricane et n'observe pas"},{"$f":"'Base Professeur'!$J$11","v":"Bavardages et observation imprécise"},{"$f":"'Base Professeur'!$K$11","v":"Respecte et Observation précise"},{"$f":"'Base Professeur'!$L$11","v":"Apprécie et Conseil constructif"},null,null,null,{"$f":"'Base Professeur'!$O$11","v":0},{"$f":"'Base Professeur'!$P$11","v":0},{"$f":"'Base Professeur'!$Q$11","v":0},{"$f":"'Base Professeur'!$R$11","v":0},{"$f":"'Base Professeur'!$S$11","v":6},null,null,null,{"$f":"'Base Professeur'!$V$11","v":0},{"$f":"'Base Professeur'!$W$11","v":0},{"$f":"'Base Professeur'!$X$11","v":0},{"$f":"'Base Professeur'!$Y$11","v":0},{"$f":"'Base Professeur'!$Z$11","v":12},null,null,null,{"$f":"'Base Professeur'!$AC$11","v":0},{"$f":"'Base Professeur'!$AD$11","v":0},{"$f":"'Base Professeur'!$AE$11","v":0},{"$f":"'Base Professeur'!$AF$11","v":0},{"$f":"'Base Professeur'!$AG$11","v":18}]
[]
[null,{"$f":"'Base Professeur'!C17","v":"Mathis"},null,null,null,null,null,null,null,{"$f":"B122","v":"Mathis"},null,null,null,null,null,null,null,{"$f":"J122","v":"Mathis"},null,null,null,null,null,null,null,{"$f":"R122","v":"Mathis"}]
[null,{"$f":"'Base Professeur'!$G$4","v":"Danse"},null,null,null,null,null,null,null,{"$f":"'Base Professeur'!$N$4","v":"Course d'Orientation"},null,null,null,null,null,null,null,{"$f":"'Base Professeur'!$U$4","v":"Musculation"},null,null,null,null,null,null,null,{"$f":"'Base Professeur'!$AB$4","v":"Demi-Fond"}]
[null,{"$f":"'Base Professeur'!$H$5","v":"Objectifs"},{"$f":"'Base Professeur'!$I$5","v":"Non Atteint"},{"$f":"'Base Professeur'!$J$5","v":"Partiellement"},{"$f":"'Base Professeur'!$K$5","v":"Atteint"},{"$f":"'Base Professeur'!$L$5","v":"Dépassé"},"1er Auto-    Positionnement ","2ème Auto- Positionnement",null,{"$f":"'Base Professeur'!$O$5","v":"Objectifs"},{"$f":"'Base Professeur'!$P$5","v":"Non Atteint"},{"$f":"'Base Professeur'!$Q$5","v":"Partiellement"},{"$f":"'Base Professeur'!$R$5","v":"Atteint"},{"$f":"'Base Professeur'!$S$5","v":"Dépassé"},"1er Auto-    Positionnement ","2ème Auto- Positionnement",null,{"$f":"'Base Professeur'!$V$5","v":"Objectifs"},{"$f":"'Base Professeur'!$W$5","v":"Non Atteint"},{"$f":"'Base Professeur'!X125","v":0},{"$f":"'Base Professeur'!$Y$5","v":"Atteint"},{"$f":"'Base Professeur'!$Z$5","v":"Dépassé"},"1er Auto-    Positionnement ","2ème Auto- Positionnement",null,{"$f":"'Base Professeur'!$AC$5","v":"Objectifs"},{"$f":"'Base Professeur'!$AD$5","v":"Non Atteint"},{"$f":"'Base Professeur'!$AE$5","v":"Partiellement"},{"$f":"'Base Professeur'!$AF$5","v":"Atteint"},{"$f":"'Base Professeur'!$AG$5","v":"Dépassé"},"1er Auto-    Positionnement ","2ème Auto- Positionnement"]
[null,{"$f":"'Base Professeur'!$H$6","v":"Chorégraphe acteur"},{"$f":"'Base Professeur'!$I$6","v":"Apporte peu au groupe, peu déchange, gêne. Numérique mal ou pas utilisé"},{"$f":"'Base Professeur'!$J$6","v":"Participe ponctuellement.             Peu de numérique "},{"$f":"'Base Professeur'!$K$6","v":"Actif, participe pour plus-value.            Numérique utilisé"},{"$f":"'Base Professeur'!$L$6","v":"Fort de propositions, constructifs. Numérique en plus-value"},null,null,null,{"$f":"'Base Professeur'!$O$6","v":0},{"$f":"'Base Professeur'!$P$6","v":0},{"$f":"'Base Professeur'!$Q$6","v":0},{"$f":"'Base Professeur'!$R$6","v":0},{"$f":"'Base Professeur'!$S$6","v":0},null,null,null,{"$f":"'Base Professeur'!$V$6","v":0},{"$f":"'Base Professeur'!$W$6","v":0},{"$f":"'Base Professeur'!$X$6","v":0},{"$f":"'Base Professeur'!$Y$6","v":0},{"$f":"'Base Professeur'!$Z$6","v":0},null,null,null,{"$f":"'Base Professeur'!$AC$6","v":0},{"$f":"'Base Professeur'!$AD$6","v":0},{"$f":"'Base Professeur'!$AE$6","v":0},{"$f":"'Base Professeur'!$AF$6","v":0},{"$f":"'Base Professeur'!$AG$6","v":0}]
[null,{"$f":"'Base Professeur'!$H$7","v":"Danseur volontaire"},{"$f":"'Base Professeur'!$I$7","v":"Danse dans son coin, aucuns liens avec les autres danseurs"},{"$f":"'Base Professeur'!$J$7","v":"Hésite, se réfère aux autres danseurs"},{"$f":"'Base Professeur'!$K$7","v":"Concentré à danser"},{"$f":"'Base Professeur'!$L$7","v":"Vit sa danse"},null,null,null,{"$f":"'Base Professeur'!$O$7","v":2},{"$f":"'Base Professeur'!$P$7","v":0},{"$f":"'Base Professeur'!$Q$7","v":0},{"$f":"'Base Professeur'!$R$7","v":0},{"$f":"'Base Professeur'!$S$7","v":0},null,null,null,{"$f":"'Base Professeur'!$V$7","v":8},{"$f":"'Base Professeur'!$W$7","v":0},{"$f":"'Base Professeur'!$X$7","v":0},{"$f":"'Base Professeur'!$Y$7","v":0},{"$f":"'Base Professeur'!$Z$7","v":0},null,null,null,{"$f":"'Base Professeur'!$AC$7","v":14},{"$f":"'Base Professeur'!$AD$7","v":0},{"$f":"'Base Professeur'!$AE$7","v":0},{"$f":"'Base Professeur'!$AF$7","v":0},{"$f":"'Base Professeur'!$AG$7","v":0}]
[null,{"$f":"'Base Professeur'!$H$8","v":"Danseur acteur"},{"$f":"'Base Professeur'!$I$8","v":"Beaucoup d’hésitations, gestes parasites, rire, regard au sol …"},{"$f":"'Base Professeur'!$J$8","v":"Gestuelle connue. Quelques hésitations ou gestes parasites"},{"$f":"'Base Professeur'!$K$8","v":"Gestuelle précise. Aucunes hésitations ou gestes parasites"},{"$f":"'Base Professeur'!$L$8","v":"Gestuelle très précise. Aucunes erreurs"},null,null,null,{"$f":"'Base Professeur'!$O$8","v":0},{"$f":"'Base Professeur'!$P$8","v":3},{"$f":"'Base Professeur'!$Q$8","v":0},{"$f":"'Base Professeur'!$R$8","v":0},{"$f":"'Base Professeur'!$S$8","v":0},null,null,null,{"$f":"'Base Professeur'!$V$8","v":0},{"$f":"'Base Professeur'!$W$8","v":9},{"$f":"'Base Professeur'!$X$8","v":0},{"$f":"'Base Professeur'!$Y$8","v":0},{"$f":"'Base Professeur'!$Z$8","v":0},null,null,null,{"$f":"'Base Professeur'!$AC$8","v":0},{"$f":"'Base Professeur'!$AD$8","v":15},{"$f":"'Base Professeur'!$AE$8","v":0},{"$f":"'Base Professeur'!$AF$8","v":0},{"$f":"'Base Professeur'!$AG$8","v":0}]
[null,{"$f":"'Base Professeur'!$H$9","v":"Prestation de groupe finalisée"},{"$f":"'Base Professeur'!$I$9","v":"Manque deux exigences et +"},{"$f":"'Base Professeur'!$J$9","v":"Manque une exigence"},{"$f":"'Base Professeur'!$K$9","v":"Toutes les exigences"},{"$f":"'Base Professeur'!$L$9","v":"Toutes exigences et relation au thème"},null,null,null,{"$f":"'Base Professeur'!$O$9","v":0},{"$f":"'Base Professeur'!$P$9","v":0},{"$f":"'Base Professeur'!$Q$9","v":4},{"$f":"'Base Professeur'!$R$9","v":0},{"$f":"'Base Professeur'!$S$9","v":0},null,null,null,{"$f":"'Base Professeur'!$V$9","v":0},{"$f":"'Base Professeur'!$W$9","v":0},{"$f":"'Base Professeur'!$X$9","v":10},{"$f":"'Base Professeur'!$Y$9","v":0},{"$f":"'Base Professeur'!$Z$9","v":0},null,null,null,{"$f":"'Base Professeur'!$AC$9","v":0},{"$f":"'Base Professeur'!$AD$9","v":0},{"$f":"'Base Professeur'!$AE$9","v":16},{"$f":"'Base Professeur'!$AF$9","v":0},{"$f":"'Base Professeur'!$AG$9","v":0}]
[null,{"$f":"'Base Professeur'!$H$10","v":"Échauffement"},{"$f":"'Base Professeur'!$I$10","v":"Echauffement Oublié"},{"$f":"'Base Professeur'!$J$10","v":"Echauffement Baclé"},{"$f":"'Base Professeur'!$K$10","v":"Echauffement Bien Exécuté"},{"$f":"'Base Professeur'!$L$10","v":"Echauffement Bien Exécuté et Guidé"},null,null,null,{"$f":"'Base Professeur'!$O$10","v":0},{"$f":"'Base Professeur'!$P$10","v":0},{"$f":"'Base Professeur'!$Q$10","v":0},{"$f":"'Base Professeur'!$R$10","v":5},{"$f":"'Base Professeur'!$S$10","v":0},null,null,null,{"$f":"'Base Professeur'!$V$10","v":0},{"$f":"'Base Professeur'!$W$10","v":0},{"$f":"'Base Professeur'!$X$10","v":0},{"$f":"'Base Professeur'!$Y$10","v":11},{"$f":"'Base Professeur'!$Z$10","v":0},null,null,null,{"$f":"'Base Professeur'!$AC$10","v":0},{"$f":"'Base Professeur'!$AD$10","v":0},{"$f":"'Base Professeur'!$AE$10","v":0},{"$f":"'Base Professeur'!$AF$10","v":17},{"$f":"'Base Professeur'!$AG$10","v":0}]
[null,{"$f":"'Base Professeur'!$H$11","v":"Spectateur"},{"$f":"'Base Professeur'!$I$11","v":"Ricane et n'observe pas"},{"$f":"'Base Professeur'!$J$11","v":"Bavardages et observation imprécise"},{"$f":"'Base Professeur'!$K$11","v":"Respecte et Observation précise"},{"$f":"'Base Professeur'!$L$11","v":"Apprécie et Conseil constructif"},null,null,null,{"$f":"'Base Professeur'!$O$11","v":0},{"$f":"'Base Professeur'!$P$11","v":0},{"$f":"'Base Professeur'!$Q$11","v":0},{"$f":"'Base Professeur'!$R$11","v":0},{"$f":"'Base Professeur'!$S$11","v":6},null,null,null,{"$f":"'Base Professeur'!$V$11","v":0},{"$f":"'Base Professeur'!$W$11","v":0},{"$f":"'Base Professeur'!$X$11","v":0},{"$f":"'Base Professeur'!$Y$11","v":0},{"$f":"'Base Professeur'!$Z$11","v":12},null,null,null,{"$f":"'Base Professeur'!$AC$11","v":0},{"$f":"'Base Professeur'!$AD$11","v":0},{"$f":"'Base Professeur'!$AE$11","v":0},{"$f":"'Base Professeur'!$AF$11","v":0},{"$f":"'Base Professeur'!$AG$11","v":18}]
[]
[null,{"$f":"'Base Professeur'!C18","v":"Camille"},null,null,null,null,null,null,null,{"$f":"B132","v":"Camille"},null,null,null,null,null,null,null,{"$f":"J132","v":"Camille"},null,null,null,null,null,null,null,{"$f":"R132","v":"Camille"}]
[null,{"$f":"'Base Professeur'!$G$4","v":"Danse"},null,null,null,null,null,null,null,{"$f":"'Base Professeur'!$N$4","v":"Course d'Orientation"},null,null,null,null,null,null,null,{"$f":"'Base Professeur'!$U$4","v":"Musculation"},null,null,null,null,null,null,null,{"$f":"'Base Professeur'!$AB$4","v":"Demi-Fond"}]
[null,{"$f":"'Base Professeur'!$H$5","v":"Objectifs"},{"$f":"'Base Professeur'!$I$5","v":"Non Atteint"},{"$f":"'Base Professeur'!$J$5","v":"Partiellement"},{"$f":"'Base Professeur'!$K$5","v":"Atteint"},{"$f":"'Base Professeur'!$L$5","v":"Dépassé"},"1er Auto-    Positionnement ","2ème Auto- Positionnement",null,{"$f":"'Base Professeur'!$O$5","v":"Objectifs"},{"$f":"'Base Professeur'!$P$5","v":"Non Atteint"},{"$f":"'Base Professeur'!$Q$5","v":"Partiellement"},{"$f":"'Base Professeur'!$R$5","v":"Atteint"},{"$f":"'Base Professeur'!$S$5","v":"Dépassé"},"1er Auto-    Positionnement ","2ème Auto- Positionnement",null,{"$f":"'Base Professeur'!$V$5","v":"Objectifs"},{"$f":"'Base Professeur'!$W$5","v":"Non Atteint"},{"$f":"'Base Professeur'!X135","v":0},{"$f":"'Base Professeur'!$Y$5","v":"Atteint"},{"$f":"'Base Professeur'!$Z$5","v":"Dépassé"},"1er Auto-    Positionnement ","2ème Auto- Positionnement",null,{"$f":"'Base Professeur'!$AC$5","v":"Objectifs"},{"$f":"'Base Professeur'!$AD$5","v":"Non Atteint"},{"$f":"'Base Professeur'!$AE$5","v":"Partiellement"},{"$f":"'Base Professeur'!$AF$5","v":"Atteint"},{"$f":"'Base Professeur'!$AG$5","v":"Dépassé"},"1er Auto-    Positionnement ","2ème Auto- Positionnement"]
[null,{"$f":"'Base Professeur'!$H$6","v":"Chorégraphe acteur"},{"$f":"'Base Professeur'!$I$6","v":"Apporte peu au groupe, peu déchange, gêne. Numérique mal ou pas utilisé"},{"$f":"'Base Professeur'!$J$6","v":"Participe ponctuellement.             Peu de numérique "},{"$f":"'Base Professeur'!$K$6","v":"Actif, participe pour plus-value.            Numérique utilisé"},{"$f":"'Base Professeur'!$L$6","v":"Fort de propositions, constructifs. Numérique en plus-value"},null,null,null,{"$f":"'Base Professeur'!$O$6","v":0},{"$f":"'Base Professeur'!$P$6","v":0},{"$f":"'Base Professeur'!$Q$6","v":0},{"$f":"'Base Professeur'!$R$6","v":0},{"$f":"'Base Professeur'!$S$6","v":0},null,null,null,{"$f":"'Base Professeur'!$V$6","v":0},{"$f":"'Base Professeur'!$W$6","v":0},{"$f":"'Base Professeur'!$X$6","v":0},{"$f":"'Base Professeur'!$Y$6","v":0},{"$f":"'Base Professeur'!$Z$6","v":0},null,null,null,{"$f":"'Base Professeur'!$AC$6","v":0},{"$f":"'Base Professeur'!$AD$6","v":0},{"$f":"'Base Professeur'!$AE$6","v":0},{"$f":"'Base Professeur'!$AF$6","v":0},{"$f":"'Base Professeur'!$AG$6","v":0}]
[null,{"$f":"'Base Professeur'!$H$7","v":"Danseur volontaire"},{"$f":"'Base Professeur'!$I$7","v":"Danse dans son coin, aucuns liens avec les autres danseurs"},{"$f":"'Base Professeur'!$J$7","v":"Hésite, se réfère aux autres danseurs"},{"$f":"'Base Professeur'!$K$7","v":"Concentré à danser"},{"$f":"'Base Professeur'!$L$7","v":"Vit sa danse"},null,null,null,{"$f":"'Base Professeur'!$O$7","v":2},{"$f":"'Base Professeur'!$P$7","v":0},{"$f":"'Base Professeur'!$Q$7","v":0},{"$f":"'Base Professeur'!$R$7","v":0},{"$f":"'Base Professeur'!$S$7","v":0},null,null,null,{"$f":"'Base Professeur'!$V$7","v":8},{"$f":"'Base Professeur'!$W$7","v":0},{"$f":"'Base Professeur'!$X$7","v":0},{"$f":"'Base Professeur'!$Y$7","v":0},{"$f":"'Base Professeur'!$Z$7","v":0},null,null,null,{"$f":"'Base Professeur'!$AC$7","v":14},{"$f":"'Base Professeur'!$AD$7","v":0},{"$f":"'Base Professeur'!$AE$7","v":0},{"$f":"'Base Professeur'!$AF$7","v":0},{"$f":"'Base Professeur'!$AG$7","v":0}]
[null,{"$f":"'Base Professeur'!$H$8","v":"Danseur acteur"},{"$f":"'Base Professeur'!$I$8","v":"Beaucoup d’hésitations, gestes parasites, rire, regard au sol …"},{"$f":"'Base Professeur'!$J$8","v":"Gestuelle connue. Quelques hésitations ou gestes parasites"},{"$f":"'Base Professeur'!$K$8","v":"Gestuelle précise. Aucunes hésitations ou gestes parasites"},{"$f":"'Base Professeur'!$L$8","v":"Gestuelle très précise. Aucunes erreurs"},null,null,null,{"$f":"'Base Professeur'!$O$8","v":0},{"$f":"'Base Professeur'!$P$8","v":3},{"$f":"'Base Professeur'!$Q$8","v":0},{"$f":"'Base Professeur'!$R$8","v":0},{"$f":"'Base Professeur'!$S$8","v":0},null,null,null,{"$f":"'Base Professeur'!$V$8","v":0},{"$f":"'Base Professeur'!$W$8","v":9},{"$f":"'Base Professeur'!$X$8","v":0},{"$f":"'Base Professeur'!$Y$8","v":0},{"$f":"'Base Professeur'!$Z$8","v":0},null,null,null,{"$f":"'Base Professeur'!$AC$8","v":0},{"$f":"'Base Professeur'!$AD$8","v":15},{"$f":"'Base Professeur'!$AE$8","v":0},{"$f":"'Base Professeur'!$AF$8","v":0},{"$f":"'Base Professeur'!$AG$8","v":0}]
[null,{"$f":"'Base Professeur'!$H$9","v":"Prestation de groupe finalisée"},{"$f":"'Base Professeur'!$I$9","v":"Manque deux exigences et +"},{"$f":"'Base Professeur'!$J$9","v":"Manque une exigence"},{"$f":"'Base Professeur'!$K$9","v":"Toutes les exigences"},{"$f":"'Base Professeur'!$L$9","v":"Toutes exigences et relation au thème"},null,null,null,{"$f":"'Base Professeur'!$O$9","v":0},{"$f":"'Base Professeur'!$P$9","v":0},{"$f":"'Base Professeur'!$Q$9","v":4},{"$f":"'Base Professeur'!$R$9","v":0},{"$f":"'Base Professeur'!$S$9","v":0},null,null,null,{"$f":"'Base Professeur'!$V$9","v":0},{"$f":"'Base Professeur'!$W$9","v":0},{"$f":"'Base Professeur'!$X$9","v":10},{"$f":"'Base Professeur'!$Y$9","v":0},{"$f":"'Base Professeur'!$Z$9","v":0},null,null,null,{"$f":"'Base Professeur'!$AC$9","v":0},{"$f":"'Base Professeur'!$AD$9","v":0},{"$f":"'Base Professeur'!$AE$9","v":16},{"$f":"'Base Professeur'!$AF$9","v":0},{"$f":"'Base Professeur'!$AG$9","v":0}]
[null,{"$f":"'Base Professeur'!$H$10","v":"Échauffement"},{"$f":"'Base Professeur'!$I$10","v":"Echauffement Oublié"},{"$f":"'Base Professeur'!$J$10","v":"Echauffement Baclé"},{"$f":"'Base Professeur'!$K$10","v":"Echauffement Bien Exécuté"},{"$f":"'Base Professeur'!$L$10","v":"Echauffement Bien Exécuté et Guidé"},null,null,null,{"$f":"'Base Professeur'!$O$10","v":0},{"$f":"'Base Professeur'!$P$10","v":0},{"$f":"'Base Professeur'!$Q$10","v":0},{"$f":"'Base Professeur'!$R$10","v":5},{"$f":"'Base Professeur'!$S$10","v":0},null,null,null,{"$f":"'Base Professeur'!$V$10","v":0},{"$f":"'Base Professeur'!$W$10","v":0},{"$f":"'Base Professeur'!$X$10","v":0},{"$f":"'Base Professeur'!$Y$10","v":11},{"$f":"'Base Professeur'!$Z$10","v":0},null,null,null,{"$f":"'Base Professeur'!$AC$10","v":0},{"$f":"'Base Professeur'!$AD$10","v":0},{"$f":"'Base Professeur'!$AE$10","v":0},{"$f":"'Base Professeur'!$AF$10","v":17},{"$f":"'Base Professeur'!$AG$10","v":0}]
[null,{"$f":"'Base Professeur'!$H$11","v":"Spectateur"},{"$f":"'Base Professeur'!$I$11","v":"Ricane et n'observe pas"},{"$f":"'Base Professeur'!$J$11","v":"Bavardages et observation imprécise"},{"$f":"'Base Professeur'!$K$11","v":"Respecte et Observation précise"},{"$f":"'Base Professeur'!$L$11","v":"Apprécie et Conseil constructif"},null,null,null,{"$f":"'Base Professeur'!$O$11","v":0},{"$f":"'Base Professeur'!$P$11","v":0},{"$f":"'Base Professeur'!$Q$11","v":0},{"$f":"'Base Professeur'!$R$11","v":0},{"$f":"'Base Professeur'!$S$11","v":6},null,null,null,{"$f":"'Base Professeur'!$V$11","v":0},{"$f":"'Base Professeur'!$W$11","v":0},{"$f":"'Base Professeur'!$X$11","v":0},{"$f":"'Base Professeur'!$Y$11","v":0},{"$f":"'Base Professeur'!$Z$11","v":12},null,null,null,{"$f":"'Base Professeur'!$AC$11","v":0},{"$f":"'Base Professeur'!$AD$11","v":0},{"$f":"'Base Professeur'!$AE$11","v":0},{"$f":"'Base Professeur'!$AF$11","v":0},{"$f":"'Base Professeur'!$AG$11","v":18}]
[]
[null,{"$f":"'Base Professeur'!C19","v":"Azra"},null,null,null,null,null,null,null,{"$f":"B142","v":"Azra"},null,null,null,null,null,null,null,{"$f":"J142","v":"Azra"},null,null,null,null,null,null,null,{"$f":"R142","v":"Azra"}]
[null,{"$f":"'Base Professeur'!$G$4","v":"Danse"},null,null,null,null,null,null,null,{"$f":"'Base Professeur'!$N$4","v":"Course d'Orientation"},null,null,null,null,null,null,null,{"$f":"'Base Professeur'!$U$4","v":"Musculation"},null,null,null,null,null,null,null,{"$f":"'Base Professeur'!$AB$4","v":"Demi-Fond"}]
[null,{"$f":"'Base Professeur'!$H$5","v":"Objectifs"},{"$f":"'Base Professeur'!$I$5","v":"Non Atteint"},{"$f":"'Base Professeur'!$J$5","v":"Partiellement"},{"$f":"'Base Professeur'!$K$5","v":"Atteint"},{"$f":"'Base Professeur'!$L$5","v":"Dépassé"},"1er Auto-    Positionnement ","2ème Auto- Positionnement",null,{"$f":"'Base Professeur'!$O$5","v":"Objectifs"},{"$f":"'Base Professeur'!$P$5","v":"Non Atteint"},{"$f":"'Base Professeur'!$Q$5","v":"Partiellement"},{"$f":"'Base Professeur'!$R$5","v":"Atteint"},{"$f":"'Base Professeur'!$S$5","v":"Dépassé"},"1er Auto-    Positionnement ","2ème Auto- Positionnement",null,{"$f":"'Base Professeur'!$V$5","v":"Objectifs"},{"$f":"'Base Professeur'!$W$5","v":"Non Atteint"},{"$f":"'Base Professeur'!X145","v":0},{"$f":"'Base Professeur'!$Y$5","v":"Atteint"},{"$f":"'Base Professeur'!$Z$5","v":"Dépassé"},"1er Auto-    Positionnement ","2ème Auto- Positionnement",null,{"$f":"'Base Professeur'!$AC$5","v":"Objectifs"},{"$f":"'Base Professeur'!$AD$5","v":"Non Atteint"},{"$f":"'Base Professeur'!$AE$5","v":"Partiellement"},{"$f":"'Base Professeur'!$AF$5","v":"Atteint"},{"$f":"'Base Professeur'!$AG$5","v":"Dépassé"},"1er Auto-    Positionnement ","2ème Auto- Positionnement"]
[null,{"$f":"'Base Professeur'!$H$6","v":"Chorégraphe acteur"},{"$f":"'Base Professeur'!$I$6","v":"Apporte peu au groupe, peu déchange, gêne. Numérique mal ou pas utilisé"},{"$f":"'Base Professeur'!$J$6","v":"Participe ponctuellement.             Peu de numérique "},{"$f":"'Base Professeur'!$K$6","v":"Actif, participe pour plus-value.            Numérique utilisé"},{"$f":"'Base Professeur'!$L$6","v":"Fort de propositions, constructifs. Numérique en plus-value"},null,null,null,{"$f":"'Base Professeur'!$O$6","v":0},{"$f":"'Base Professeur'!$P$6","v":0},{"$f":"'Base Professeur'!$Q$6","v":0},{"$f":"'Base Professeur'!$R$6","v":0},{"$f":"'Base Professeur'!$S$6","v":0},null,null,null,{"$f":"'Base Professeur'!$V$6","v":0},{"$f":"'Base Professeur'!$W$6","v":0},{"$f":"'Base Professeur'!$X$6","v":0},{"$f":"'Base Professeur'!$Y$6","v":0},{"$f":"'Base Professeur'!$Z$6","v":0},null,null,null,{"$f":"'Base Professeur'!$AC$6","v":0},{"$f":"'Base Professeur'!$AD$6","v":0},{"$f":"'Base Professeur'!$AE$6","v":0},{"$f":"'Base Professeur'!$AF$6","v":0},{"$f":"'Base Professeur'!$AG$6","v":0}]
[null,{"$f":"'Base Professeur'!$H$7","v":"Danseur volontaire"},{"$f":"'Base Professeur'!$I$7","v":"Danse dans son coin, aucuns liens avec les autres danseurs"},{"$f":"'Base Professeur'!$J$7","v":"Hésite, se réfère aux autres danseurs"},{"$f":"'Base Professeur'!$K$7","v":"Concentré à danser"},{"$f":"'Base Professeur'!$L$7","v":"Vit sa danse"},null,null,null,{"$f":"'Base Professeur'!$O$7","v":2},{"$f":"'Base Professeur'!$P$7","v":0},{"$f":"'Base Professeur'!$Q$7","v":0},{"$f":"'Base Professeur'!$R$7","v":0},{"$f":"'Base Professeur'!$S$7","v":0},null,null,null,{"$f":"'Base Professeur'!$V$7","v":8},{"$f":"'Base Professeur'!$W$7","v":0},{"$f":"'Base Professeur'!$X$7","v":0},{"$f":"'Base Professeur'!$Y$7","v":0},{"$f":"'Base Professeur'!$Z$7","v":0},null,null,null,{"$f":"'Base Professeur'!$AC$7","v":14},{"$f":"'Base Professeur'!$AD$7","v":0},{"$f":"'Base Professeur'!$AE$7","v":0},{"$f":"'Base Professeur'!$AF$7","v":0},{"$f":"'Base Professeur'!$AG$7","v":0}]
[null,{"$f":"'Base Professeur'!$H$8","v":"Danseur acteur"},{"$f":"'Base Professeur'!$I$8","v":"Beaucoup d’hésitations, gestes parasites, rire, regard au sol …"},{"$f":"'Base Professeur'!$J$8","v":"Gestuelle connue. Quelques hésitations ou gestes parasites"},{"$f":"'Base Professeur'!$K$8","v":"Gestuelle précise. Aucunes hésitations ou gestes parasites"},{"$f":"'Base Professeur'!$L$8","v":"Gestuelle très précise. Aucunes erreurs"},null,null,null,{"$f":"'Base Professeur'!$O$8","v":0},{"$f":"'Base Professeur'!$P$8","v":3},{"$f":"'Base Professeur'!$Q$8","v":0},{"$f":"'Base Professeur'!$R$8","v":0},{"$f":"'Base Professeur'!$S$8","v":0},null,null,null,{"$f":"'Base Professeur'!$V$8","v":0},{"$f":"'Base Professeur'!$W$8","v":9},{"$f":"'Base Professeur'!$X$8","v":0},{"$f":"'Base Professeur'!$Y$8","v":0},{"$f":"'Base Professeur'!$Z$8","v":0},null,null,null,{"$f":"'Base Professeur'!$AC$8","v":0},{"$f":"'Base Professeur'!$AD$8","v":15},{"$f":"'Base Professeur'!$AE$8","v":0},{"$f":"'Base Professeur'!$AF$8","v":0},{"$f":"'Base Professeur'!$AG$8","v":0}]
[null,{"$f":"'Base Professeur'!$H$9","v":"Prestation de groupe finalisée"},{"$f":"'Base Professeur'!$I$9","v":"Manque deux exigences et +"},{"$f":"'Base Professeur'!$J$9","v":"Manque une exigence"},{"$f":"'Base Professeur'!$K$9","v":"Toutes les exigences"},{"$f":"'Base Professeur'!$L$9","v":"Toutes exigences et relation au thème"},null,null,null,{"$f":"'Base Professeur'!$O$9","v":0},{"$f":"'Base Professeur'!$P$9","v":0},{"$f":"'Base Professeur'!$Q$9","v":4},{"$f":"'Base Professeur'!$R$9","v":0},{"$f":"'Base Professeur'!$S$9","v":0},null,null,null,{"$f":"'Base Professeur'!$V$9","v":0},{"$f":"'Base Professeur'!$W$9","v":0},{"$f":"'Base Professeur'!$X$9","v":10},{"$f":"'Base Professeur'!$Y$9","v":0},{"$f":"'Base Professeur'!$Z$9","v":0},null,null,null,{"$f":"'Base Professeur'!$AC$9","v":0},{"$f":"'Base Professeur'!$AD$9","v":0},{"$f":"'Base Professeur'!$AE$9","v":16},{"$f":"'Base Professeur'!$AF$9","v":0},{"$f":"'Base Professeur'!$AG$9","v":0}]
[null,{"$f":"'Base Professeur'!$H$10","v":"Échauffement"},{"$f":"'Base Professeur'!$I$10","v":"Echauffement Oublié"},{"$f":"'Base Professeur'!$J$10","v":"Echauffement Baclé"},{"$f":"'Base Professeur'!$K$10","v":"Echauffement Bien Exécuté"},{"$f":"'Base Professeur'!$L$10","v":"Echauffement Bien Exécuté et Guidé"},null,null,null,{"$f":"'Base Professeur'!$O$10","v":0},{"$f":"'Base Professeur'!$P$10","v":0},{"$f":"'Base Professeur'!$Q$10","v":0},{"$f":"'Base Professeur'!$R$10","v":5},{"$f":"'Base Professeur'!$S$10","v":0},null,null,null,{"$f":"'Base Professeur'!$V$10","v":0},{"$f":"'Base Professeur'!$W$10","v":0},{"$f":"'Base Professeur'!$X$10","v":0},{"$f":"'Base Professeur'!$Y$10","v":11},{"$f":"'Base Professeur'!$Z$10","v":0},null,null,null,{"$f":"'Base Professeur'!$AC$10","v":0},{"$f":"'Base Professeur'!$AD$10","v":0},{"$f":"'Base Professeur'!$AE$10","v":0},{"$f":"'Base Professeur'!$AF$10","v":17},{"$f":"'Base Professeur'!$AG$10","v":0}]
[null,{"$f":"'Base Professeur'!$H$11","v":"Spectateur"},{"$f":"'Base Professeur'!$I$11","v":"Ricane et n'observe pas"},{"$f":"'Base Professeur'!$J$11","v":"Bavardages et observation imprécise"},{"$f":"'Base Professeur'!$K$11","v":"Respecte et Observation précise"},{"$f":"'Base Professeur'!$L$11","v":"Apprécie et Conseil constructif"},null,null,null,{"$f":"'Base Professeur'!$O$11","v":0},{"$f":"'Base Professeur'!$P$11","v":0},{"$f":"'Base Professeur'!$Q$11","v":0},{"$f":"'Base Professeur'!$R$11","v":0},{"$f":"'Base Professeur'!$S$11","v":6},null,null,null,{"$f":"'Base Professeur'!$V$11","v":0},{"$f":"'Base Professeur'!$W$11","v":0},{"$f":"'Base Professeur'!$X$11","v":0},{"$f":"'Base Professeur'!$Y$11","v":0},{"$f":"'Base Professeur'!$Z$11","v":12},null,null,null,{"$f":"'Base Professeur'!$AC$11","v":0},{"$f":"'Base Professeur'!$AD$11","v":0},{"$f":"'Base Professeur'!$AE$11","v":0},{"$f":"'Base Professeur'!$AF$11","v":0},{"$f":"'Base Professeur'!$AG$11","v":18}]
[]
[null,{"$f":"'Base Professeur'!C20","v":"Téoman"},null,null,null,null,null,null,null,{"$f":"B152","v":"Téoman"},null,null,null,null,null,null,null,{"$f":"J152","v":"Téoman"},null,null,null,null,null,null,null,{"$f":"R152","v":"Téoman"}]
[null,{"$f":"'Base Professeur'!$G$4","v":"Danse"},null,null,null,null,null,null,null,{"$f":"'Base Professeur'!$N$4","v":"Course d'Orientation"},null,null,null,null,null,null,null,{"$f":"'Base Professeur'!$U$4","v":"Musculation"},null,null,null,null,null,null,null,{"$f":"'Base Professeur'!$AB$4","v":"Demi-Fond"}]
[null,{"$f":"'Base Professeur'!$H$5","v":"Objectifs"},{"$f":"'Base Professeur'!$I$5","v":"Non Atteint"},{"$f":"'Base Professeur'!$J$5","v":"Partiellement"},{"$f":"'Base Professeur'!$K$5","v":"Atteint"},{"$f":"'Base Professeur'!$L$5","v":"Dépassé"},"1er Auto-    Positionnement ","2ème Auto- Positionnement",null,{"$f":"'Base Professeur'!$O$5","v":"Objectifs"},{"$f":"'Base Professeur'!$P$5","v":"Non Atteint"},{"$f":"'Base Professeur'!$Q$5","v":"Partiellement"},{"$f":"'Base Professeur'!$R$5","v":"Atteint"},{"$f":"'Base Professeur'!$S$5","v":"Dépassé"},"1er Auto-    Positionnement ","2ème Auto- Positionnement",null,{"$f":"'Base Professeur'!$V$5","v":"Objectifs"},{"$f":"'Base Professeur'!$W$5","v":"Non Atteint"},{"$f":"'Base Professeur'!X155","v":0},{"$f":"'Base Professeur'!$Y$5","v":"Atteint"},{"$f":"'Base Professeur'!$Z$5","v":"Dépassé"},"1er Auto-    Positionnement ","2ème Auto- Positionnement",null,{"$f":"'Base Professeur'!$AC$5","v":"Objectifs"},{"$f":"'Base Professeur'!$AD$5","v":"Non Atteint"},{"$f":"'Base Professeur'!$AE$5","v":"Partiellement"},{"$f":"'Base Professeur'!$AF$5","v":"Atteint"},{"$f":"'Base Professeur'!$AG$5","v":"Dépassé"},"1er Auto-    Positionnement ","2ème Auto- Positionnement"]
[null,{"$f":"'Base Professeur'!$H$6","v":"Chorégraphe acteur"},{"$f":"'Base Professeur'!$I$6","v":"Apporte peu au groupe, peu déchange, gêne. Numérique mal ou pas utilisé"},{"$f":"'Base Professeur'!$J$6","v":"Participe ponctuellement.             Peu de numérique "},{"$f":"'Base Professeur'!$K$6","v":"Actif, participe pour plus-value.            Numérique utilisé"},{"$f":"'Base Professeur'!$L$6","v":"Fort de propositions, constructifs. Numérique en plus-value"},null,null,null,{"$f":"'Base Professeur'!$O$6","v":0},{"$f":"'Base Professeur'!$P$6","v":0},{"$f":"'Base Professeur'!$Q$6","v":0},{"$f":"'Base Professeur'!$R$6","v":0},{"$f":"'Base Professeur'!$S$6","v":0},null,null,null,{"$f":"'Base Professeur'!$V$6","v":0},{"$f":"'Base Professeur'!$W$6","v":0},{"$f":"'Base Professeur'!$X$6","v":0},{"$f":"'Base Professeur'!$Y$6","v":0},{"$f":"'Base Professeur'!$Z$6","v":0},null,null,null,{"$f":"'Base Professeur'!$AC$6","v":0},{"$f":"'Base Professeur'!$AD$6","v":0},{"$f":"'Base Professeur'!$AE$6","v":0},{"$f":"'Base Professeur'!$AF$6","v":0},{"$f":"'Base Professeur'!$AG$6","v":0}]
[null,{"$f":"'Base Professeur'!$H$7","v":"Danseur volontaire"},{"$f":"'Base Professeur'!$I$7","v":"Danse dans son coin, aucuns liens avec les autres danseurs"},{"$f":"'Base Professeur'!$J$7","v":"Hésite, se réfère aux autres danseurs"},{"$f":"'Base Professeur'!$K$7","v":"Concentré à danser"},{"$f":"'Base Professeur'!$L$7","v":"Vit sa danse"},null,null,null,{"$f":"'Base Professeur'!$O$7","v":2},{"$f":"'Base Professeur'!$P$7","v":0},{"$f":"'Base Professeur'!$Q$7","v":0},{"$f":"'Base Professeur'!$R$7","v":0},{"$f":"'Base Professeur'!$S$7","v":0},null,null,null,{"$f":"'Base Professeur'!$V$7","v":8},{"$f":"'Base Professeur'!$W$7","v":0},{"$f":"'Base Professeur'!$X$7","v":0},{"$f":"'Base Professeur'!$Y$7","v":0},{"$f":"'Base Professeur'!$Z$7","v":0},null,null,null,{"$f":"'Base Professeur'!$AC$7","v":14},{"$f":"'Base Professeur'!$AD$7","v":0},{"$f":"'Base Professeur'!$AE$7","v":0},{"$f":"'Base Professeur'!$AF$7","v":0},{"$f":"'Base Professeur'!$AG$7","v":0}]
[null,{"$f":"'Base Professeur'!$H$8","v":"Danseur acteur"},{"$f":"'Base Professeur'!$I$8","v":"Beaucoup d’hésitations, gestes parasites, rire, regard au sol …"},{"$f":"'Base Professeur'!$J$8","v":"Gestuelle connue. Quelques hésitations ou gestes parasites"},{"$f":"'Base Professeur'!$K$8","v":"Gestuelle précise. Aucunes hésitations ou gestes parasites"},{"$f":"'Base Professeur'!$L$8","v":"Gestuelle très précise. Aucunes erreurs"},null,null,null,{"$f":"'Base Professeur'!$O$8","v":0},{"$f":"'Base Professeur'!$P$8","v":3},{"$f":"'Base Professeur'!$Q$8","v":0},{"$f":"'Base Professeur'!$R$8","v":0},{"$f":"'Base Professeur'!$S$8","v":0},null,null,null,{"$f":"'Base Professeur'!$V$8","v":0},{"$f":"'Base Professeur'!$W$8","v":9},{"$f":"'Base Professeur'!$X$8","v":0},{"$f":"'Base Professeur'!$Y$8","v":0},{"$f":"'Base Professeur'!$Z$8","v":0},null,null,null,{"$f":"'Base Professeur'!$AC$8","v":0},{"$f":"'Base Professeur'!$AD$8","v":15},{"$f":"'Base Professeur'!$AE$8","v":0},{"$f":"'Base Professeur'!$AF$8","v":0},{"$f":"'Base Professeur'!$AG$8","v":0}]
[null,{"$f":"'Base Professeur'!$H$9","v":"Prestation de groupe finalisée"},{"$f":"'Base Professeur'!$I$9","v":"Manque deux exigences et +"},{"$f":"'Base Professeur'!$J$9","v":"Manque une exigence"},{"$f":"'Base Professeur'!$K$9","v":"Toutes les exigences"},{"$f":"'Base Professeur'!$L$9","v":"Toutes exigences et relation au thème"},null,null,null,{"$f":"'Base Professeur'!$O$9","v":0},{"$f":"'Base Professeur'!$P$9","v":0},{"$f":"'Base Professeur'!$Q$9","v":4},{"$f":"'Base Professeur'!$R$9","v":0},{"$f":"'Base Professeur'!$S$9","v":0},null,null,null,{"$f":"'Base Professeur'!$V$9","v":0},{"$f":"'Base Professeur'!$W$9","v":0},{"$f":"'Base Professeur'!$X$9","v":10},{"$f":"'Base Professeur'!$Y$9","v":0},{"$f":"'Base Professeur'!$Z$9","v":0},null,null,null,{"$f":"'Base Professeur'!$AC$9","v":0},{"$f":"'Base Professeur'!$AD$9","v":0},{"$f":"'Base Professeur'!$AE$9","v":16},{"$f":"'Base Professeur'!$AF$9","v":0},{"$f":"'Base Professeur'!$AG$9","v":0}]
[null,{"$f":"'Base Professeur'!$H$10","v":"Échauffement"},{"$f":"'Base Professeur'!$I$10","v":"Echauffement Oublié"},{"$f":"'Base Professeur'!$J$10","v":"Echauffement Baclé"},{"$f":"'Base Professeur'!$K$10","v":"Echauffement Bien Exécuté"},{"$f":"'Base Professeur'!$L$10","v":"Echauffement Bien Exécuté et Guidé"},null,null,null,{"$f":"'Base Professeur'!$O$10","v":0},{"$f":"'Base Professeur'!$P$10","v":0},{"$f":"'Base Professeur'!$Q$10","v":0},{"$f":"'Base Professeur'!$R$10","v":5},{"$f":"'Base Professeur'!$S$10","v":0},null,null,null,{"$f":"'Base Professeur'!$V$10","v":0},{"$f":"'Base Professeur'!$W$10","v":0},{"$f":"'Base Professeur'!$X$10","v":0},{"$f":"'Base Professeur'!$Y$10","v":11},{"$f":"'Base Professeur'!$Z$10","v":0},null,null,null,{"$f":"'Base Professeur'!$AC$10","v":0},{"$f":"'Base Professeur'!$AD$10","v":0},{"$f":"'Base Professeur'!$AE$10","v":0},{"$f":"'Base Professeur'!$AF$10","v":17},{"$f":"'Base Professeur'!$AG$10","v":0}]
[null,{"$f":"'Base Professeur'!$H$11","v":"Spectateur"},{"$f":"'Base Professeur'!$I$11","v":"Ricane et n'observe pas"},{"$f":"'Base Professeur'!$J$11","v":"Bavardages et observation imprécise"},{"$f":"'Base Professeur'!$K$11","v":"Respecte et Observation précise"},{"$f":"'Base Professeur'!$L$11","v":"Apprécie et Conseil constructif"},null,null,null,{"$f":"'Base Professeur'!$O$11","v":0},{"$f":"'Base Professeur'!$P$11","v":0},{"$f":"'Base Professeur'!$Q$11","v":0},{"$f":"'Base Professeur'!$R$11","v":0},{"$f":"'Base Professeur'!$S$11","v":6},null,null,null,{"$f":"'Base Professeur'!$V$11","v":0},{"$f":"'Base Professeur'!$W$11","v":0},{"$f":"'Base Professeur'!$X$11","v":0},{"$f":"'Base Professeur'!$Y$11","v":0},{"$f":"'Base Professeur'!$Z$11","v":12},null,null,null,{"$f":"'Base Professeur'!$AC$11","v":0},{"$f":"'Base Professeur'!$AD$11","v":0},{"$f":"'Base Professeur'!$AE$11","v":0},{"$f":"'Base Professeur'!$AF$11","v":0},{"$f":"'Base Professeur'!$AG$11","v":18}]
[]
[null,{"$f":"'Base Professeur'!C21","v":"Emirkan"},null,null,null,null,null,null,null,{"$f":"B162","v":"Emirkan"},null,null,null,null,null,null,null,{"$f":"J162","v":"Emirkan"},null,null,null,null,null,null,null,{"$f":"R162","v":"Emirkan"}]
[null,{"$f":"'Base Professeur'!$G$4","v":"Danse"},null,null,null,null,null,null,null,{"$f":"'Base Professeur'!$N$4","v":"Course d'Orientation"},null,null,null,null,null,null,null,{"$f":"'Base Professeur'!$U$4","v":"Musculation"},null,null,null,null,null,null,null,{"$f":"'Base Professeur'!$AB$4","v":"Demi-Fond"}]
[null,{"$f":"'Base Professeur'!$H$5","v":"Objectifs"},{"$f":"'Base Professeur'!$I$5","v":"Non Atteint"},{"$f":"'Base Professeur'!$J$5","v":"Partiellement"},{"$f":"'Base Professeur'!$K$5","v":"Atteint"},{"$f":"'Base Professeur'!$L$5","v":"Dépassé"},"1er Auto-    Positionnement ","2ème Auto- Positionnement",null,{"$f":"'Base Professeur'!$O$5","v":"Objectifs"},{"$f":"'Base Professeur'!$P$5","v":"Non Atteint"},{"$f":"'Base Professeur'!$Q$5","v":"Partiellement"},{"$f":"'Base Professeur'!$R$5","v":"Atteint"},{"$f":"'Base Professeur'!$S$5","v":"Dépassé"},"1er Auto-    Positionnement ","2ème Auto- Positionnement",null,{"$f":"'Base Professeur'!$V$5","v":"Objectifs"},{"$f":"'Base Professeur'!$W$5","v":"Non Atteint"},{"$f":"'Base Professeur'!X165","v":0},{"$f":"'Base Professeur'!$Y$5","v":"Atteint"},{"$f":"'Base Professeur'!$Z$5","v":"Dépassé"},"1er Auto-    Positionnement ","2ème Auto- Positionnement",null,{"$f":"'Base Professeur'!$AC$5","v":"Objectifs"},{"$f":"'Base Professeur'!$AD$5","v":"Non Atteint"},{"$f":"'Base Professeur'!$AE$5","v":"Partiellement"},{"$f":"'Base Professeur'!$AF$5","v":"Atteint"},{"$f":"'Base Professeur'!$AG$5","v":"Dépassé"},"1er Auto-    Positionnement ","2ème Auto- Positionnement"]
[null,{"$f":"'Base Professeur'!$H$6","v":"Chorégraphe acteur"},{"$f":"'Base Professeur'!$I$6","v":"Apporte peu au groupe, peu déchange, gêne. Numérique mal ou pas utilisé"},{"$f":"'Base Professeur'!$J$6","v":"Participe ponctuellement.             Peu de numérique "},{"$f":"'Base Professeur'!$K$6","v":"Actif, participe pour plus-value.            Numérique utilisé"},{"$f":"'Base Professeur'!$L$6","v":"Fort de propositions, constructifs. Numérique en plus-value"},null,null,null,{"$f":"'Base Professeur'!$O$6","v":0},{"$f":"'Base Professeur'!$P$6","v":0},{"$f":"'Base Professeur'!$Q$6","v":0},{"$f":"'Base Professeur'!$R$6","v":0},{"$f":"'Base Professeur'!$S$6","v":0},null,null,null,{"$f":"'Base Professeur'!$V$6","v":0},{"$f":"'Base Professeur'!$W$6","v":0},{"$f":"'Base Professeur'!$X$6","v":0},{"$f":"'Base Professeur'!$Y$6","v":0},{"$f":"'Base Professeur'!$Z$6","v":0},null,null,null,{"$f":"'Base Professeur'!$AC$6","v":0},{"$f":"'Base Professeur'!$AD$6","v":0},{"$f":"'Base Professeur'!$AE$6","v":0},{"$f":"'Base Professeur'!$AF$6","v":0},{"$f":"'Base Professeur'!$AG$6","v":0}]
[null,{"$f":"'Base Professeur'!$H$7","v":"Danseur volontaire"},{"$f":"'Base Professeur'!$I$7","v":"Danse dans son coin, aucuns liens avec les autres danseurs"},{"$f":"'Base Professeur'!$J$7","v":"Hésite, se réfère aux autres danseurs"},{"$f":"'Base Professeur'!$K$7","v":"Concentré à danser"},{"$f":"'Base Professeur'!$L$7","v":"Vit sa danse"},null,null,null,{"$f":"'Base Professeur'!$O$7","v":2},{"$f":"'Base Professeur'!$P$7","v":0},{"$f":"'Base Professeur'!$Q$7","v":0},{"$f":"'Base Professeur'!$R$7","v":0},{"$f":"'Base Professeur'!$S$7","v":0},null,null,null,{"$f":"'Base Professeur'!$V$7","v":8},{"$f":"'Base Professeur'!$W$7","v":0},{"$f":"'Base Professeur'!$X$7","v":0},{"$f":"'Base Professeur'!$Y$7","v":0},{"$f":"'Base Professeur'!$Z$7","v":0},null,null,null,{"$f":"'Base Professeur'!$AC$7","v":14},{"$f":"'Base Professeur'!$AD$7","v":0},{"$f":"'Base Professeur'!$AE$7","v":0},{"$f":"'Base Professeur'!$AF$7","v":0},{"$f":"'Base Professeur'!$AG$7","v":0}]
[null,{"$f":"'Base Professeur'!$H$8","v":"Danseur acteur"},{"$f":"'Base Professeur'!$I$8","v":"Beaucoup d’hésitations, gestes parasites, rire, regard au sol …"},{"$f":"'Base Professeur'!$J$8","v":"Gestuelle connue. Quelques hésitations ou gestes parasites"},{"$f":"'Base Professeur'!$K$8","v":"Gestuelle précise. Aucunes hésitations ou gestes parasites"},{"$f":"'Base Professeur'!$L$8","v":"Gestuelle très précise. Aucunes erreurs"},null,null,null,{"$f":"'Base Professeur'!$O$8","v":0},{"$f":"'Base Professeur'!$P$8","v":3},{"$f":"'Base Professeur'!$Q$8","v":0},{"$f":"'Base Professeur'!$R$8","v":0},{"$f":"'Base Professeur'!$S$8","v":0},null,null,null,{"$f":"'Base Professeur'!$V$8","v":0},{"$f":"'Base Professeur'!$W$8","v":9},{"$f":"'Base Professeur'!$X$8","v":0},{"$f":"'Base Professeur'!$Y$8","v":0},{"$f":"'Base Professeur'!$Z$8","v":0},null,null,null,{"$f":"'Base Professeur'!$AC$8","v":0},{"$f":"'Base Professeur'!$AD$8","v":15},{"$f":"'Base Professeur'!$AE$8","v":0},{"$f":"'Base Professeur'!$AF$8","v":0},{"$f":"'Base Professeur'!$AG$8","v":0}]
[null,{"$f":"'Base Professeur'!$H$9","v":"Prestation de groupe finalisée"},{"$f":"'Base Professeur'!$I$9","v":"Manque deux exigences et +"},{"$f":"'Base Professeur'!$J$9","v":"Manque une exigence"},{"$f":"'Base Professeur'!$K$9","v":"Toutes les exigences"},{"$f":"'Base Professeur'!$L$9","v":"Toutes exigences et relation au thème"},null,null,null,{"$f":"'Base Professeur'!$O$9","v":0},{"$f":"'Base Professeur'!$P$9","v":0},{"$f":"'Base Professeur'!$Q$9","v":4},{"$f":"'Base Professeur'!$R$9","v":0},{"$f":"'Base Professeur'!$S$9","v":0},null,null,null,{"$f":"'Base Professeur'!$V$9","v":0},{"$f":"'Base Professeur'!$W$9","v":0},{"$f":"'Base Professeur'!$X$9","v":10},{"$f":"'Base Professeur'!$Y$9","v":0},{"$f":"'Base Professeur'!$Z$9","v":0},null,null,null,{"$f":"'Base Professeur'!$AC$9","v":0},{"$f":"'Base Professeur'!$AD$9","v":0},{"$f":"'Base Professeur'!$AE$9","v":16},{"$f":"'Base Professeur'!$AF$9","v":0},{"$f":"'Base Professeur'!$AG$9","v":0}]
[null,{"$f":"'Base Professeur'!$H$10","v":"Échauffement"},{"$f":"'Base Professeur'!$I$10","v":"Echauffement Oublié"},{"$f":"'Base Professeur'!$J$10","v":"Echauffement Baclé"},{"$f":"'Base Professeur'!$K$10","v":"Echauffement Bien Exécuté"},{"$f":"'Base Professeur'!$L$10","v":"Echauffement Bien Exécuté et Guidé"},null,null,null,{"$f":"'Base Professeur'!$O$10","v":0},{"$f":"'Base Professeur'!$P$10","v":0},{"$f":"'Base Professeur'!$Q$10","v":0},{"$f":"'Base Professeur'!$R$10","v":5},{"$f":"'Base Professeur'!$S$10","v":0},null,null,null,{"$f":"'Base Professeur'!$V$10","v":0},{"$f":"'Base Professeur'!$W$10","v":0},{"$f":"'Base Professeur'!$X$10","v":0},{"$f":"'Base Professeur'!$Y$10","v":11},{"$f":"'Base Professeur'!$Z$10","v":0},null,null,null,{"$f":"'Base Professeur'!$AC$10","v":0},{"$f":"'Base Professeur'!$AD$10","v":0},{"$f":"'Base Professeur'!$AE$10","v":0},{"$f":"'Base Professeur'!$AF$10","v":17},{"$f":"'Base Professeur'!$AG$10","v":0}]
[null,{"$f":"'Base Professeur'!$H$11","v":"Spectateur"},{"$f":"'Base Professeur'!$I$11","v":"Ricane et n'observe pas"},{"$f":"'Base Professeur'!$J$11","v":"Bavardages et observation imprécise"},{"$f":"'Base Professeur'!$K$11","v":"Respecte et Observation précise"},{"$f":"'Base Professeur'!$L$11","v":"Apprécie et Conseil constructif"},null,null,null,{"$f":"'Base Professeur'!$O$11","v":0},{"$f":"'Base Professeur'!$P$11","v":0},{"$f":"'Base Professeur'!$Q$11","v":0},{"$f":"'Base Professeur'!$R$11","v":0},{"$f":"'Base Professeur'!$S$11","v":6},null,null,null,{"$f":"'Base Professeur'!$V$11","v":0},{"$f":"'Base Professeur'!$W$11","v":0},{"$f":"'Base Professeur'!$X$11","v":0},{"$f":"'Base Professeur'!$Y$11","v":0},{"$f":"'Base Professeur'!$Z$11","v":12},null,null,null,{"$f":"'Base Professeur'!$AC$11","v":0},{"$f":"'Base Professeur'!$AD$11","v":0},{"$f":"'Base Professeur'!$AE$11","v":0},{"$f":"'Base Professeur'!$AF$11","v":0},{"$f":"'Base Professeur'!$AG$11","v":18}]
[]
[null,{"$f":"'Base Professeur'!C22","v":"Mohamed-Ali"},null,null,null,null,null,null,null,{"$f":"B172","v":"Mohamed-Ali"},null,null,null,null,null,null,null,{"$f":"J172","v":"Mohamed-Ali"},null,null,null,null,null,null,null,{"$f":"R172","v":"Mohamed-Ali"}]
[null,{"$f":"'Base Professeur'!$G$4","v":"Danse"},null,null,null,null,null,null,null,{"$f":"'Base Professeur'!$N$4","v":"Course d'Orientation"},null,null,null,null,null,null,null,{"$f":"'Base Professeur'!$U$4","v":"Musculation"},null,null,null,null,null,null,null,{"$f":"'Base Professeur'!$AB$4","v":"Demi-Fond"}]
[null,{"$f":"'Base Professeur'!$H$5","v":"Objectifs"},{"$f":"'Base Professeur'!$I$5","v":"Non Atteint"},{"$f":"'Base Professeur'!$J$5","v":"Partiellement"},{"$f":"'Base Professeur'!$K$5","v":"Atteint"},{"$f":"'Base Professeur'!$L$5","v":"Dépassé"},"1er Auto-    Positionnement ","2ème Auto- Positionnement",null,{"$f":"'Base Professeur'!$O$5","v":"Objectifs"},{"$f":"'Base Professeur'!$P$5","v":"Non Atteint"},{"$f":"'Base Professeur'!$Q$5","v":"Partiellement"},{"$f":"'Base Professeur'!$R$5","v":"Atteint"},{"$f":"'Base Professeur'!$S$5","v":"Dépassé"},"1er Auto-    Positionnement ","2ème Auto- Positionnement",null,{"$f":"'Base Professeur'!$V$5","v":"Objectifs"},{"$f":"'Base Professeur'!$W$5","v":"Non Atteint"},{"$f":"'Base Professeur'!X175","v":0},{"$f":"'Base Professeur'!$Y$5","v":"Atteint"},{"$f":"'Base Professeur'!$Z$5","v":"Dépassé"},"1er Auto-    Positionnement ","2ème Auto- Positionnement",null,{"$f":"'Base Professeur'!$AC$5","v":"Objectifs"},{"$f":"'Base Professeur'!$AD$5","v":"Non Atteint"},{"$f":"'Base Professeur'!$AE$5","v":"Partiellement"},{"$f":"'Base Professeur'!$AF$5","v":"Atteint"},{"$f":"'Base Professeur'!$AG$5","v":"Dépassé"},"1er Auto-    Positionnement ","2ème Auto- Positionnement"]
[null,{"$f":"'Base Professeur'!$H$6","v":"Chorégraphe acteur"},{"$f":"'Base Professeur'!$I$6","v":"Apporte peu au groupe, peu déchange, gêne. Numérique mal ou pas utilisé"},{"$f":"'Base Professeur'!$J$6","v":"Participe ponctuellement.             Peu de numérique "},{"$f":"'Base Professeur'!$K$6","v":"Actif, participe pour plus-value.            Numérique utilisé"},{"$f":"'Base Professeur'!$L$6","v":"Fort de propositions, constructifs. Numérique en plus-value"},null,null,null,{"$f":"'Base Professeur'!$O$6","v":0},{"$f":"'Base Professeur'!$P$6","v":0},{"$f":"'Base Professeur'!$Q$6","v":0},{"$f":"'Base Professeur'!$R$6","v":0},{"$f":"'Base Professeur'!$S$6","v":0},null,null,null,{"$f":"'Base Professeur'!$V$6","v":0},{"$f":"'Base Professeur'!$W$6","v":0},{"$f":"'Base Professeur'!$X$6","v":0},{"$f":"'Base Professeur'!$Y$6","v":0},{"$f":"'Base Professeur'!$Z$6","v":0},null,null,null,{"$f":"'Base Professeur'!$AC$6","v":0},{"$f":"'Base Professeur'!$AD$6","v":0},{"$f":"'Base Professeur'!$AE$6","v":0},{"$f":"'Base Professeur'!$AF$6","v":0},{"$f":"'Base Professeur'!$AG$6","v":0}]
[null,{"$f":"'Base Professeur'!$H$7","v":"Danseur volontaire"},{"$f":"'Base Professeur'!$I$7","v":"Danse dans son coin, aucuns liens avec les autres danseurs"},{"$f":"'Base Professeur'!$J$7","v":"Hésite, se réfère aux autres danseurs"},{"$f":"'Base Professeur'!$K$7","v":"Concentré à danser"},{"$f":"'Base Professeur'!$L$7","v":"Vit sa danse"},null,null,null,{"$f":"'Base Professeur'!$O$7","v":2},{"$f":"'Base Professeur'!$P$7","v":0},{"$f":"'Base Professeur'!$Q$7","v":0},{"$f":"'Base Professeur'!$R$7","v":0},{"$f":"'Base Professeur'!$S$7","v":0},null,null,null,{"$f":"'Base Professeur'!$V$7","v":8},{"$f":"'Base Professeur'!$W$7","v":0},{"$f":"'Base Professeur'!$X$7","v":0},{"$f":"'Base Professeur'!$Y$7","v":0},{"$f":"'Base Professeur'!$Z$7","v":0},null,null,null,{"$f":"'Base Professeur'!$AC$7","v":14},{"$f":"'Base Professeur'!$AD$7","v":0},{"$f":"'Base Professeur'!$AE$7","v":0},{"$f":"'Base Professeur'!$AF$7","v":0},{"$f":"'Base Professeur'!$AG$7","v":0}]
[null,{"$f":"'Base Professeur'!$H$8","v":"Danseur acteur"},{"$f":"'Base Professeur'!$I$8","v":"Beaucoup d’hésitations, gestes parasites, rire, regard au sol …"},{"$f":"'Base Professeur'!$J$8","v":"Gestuelle connue. Quelques hésitations ou gestes parasites"},{"$f":"'Base Professeur'!$K$8","v":"Gestuelle précise. Aucunes hésitations ou gestes parasites"},{"$f":"'Base Professeur'!$L$8","v":"Gestuelle très précise. Aucunes erreurs"},null,null,null,{"$f":"'Base Professeur'!$O$8","v":0},{"$f":"'Base Professeur'!$P$8","v":3},{"$f":"'Base Professeur'!$Q$8","v":0},{"$f":"'Base Professeur'!$R$8","v":0},{"$f":"'Base Professeur'!$S$8","v":0},null,null,null,{"$f":"'Base Professeur'!$V$8","v":0},{"$f":"'Base Professeur'!$W$8","v":9},{"$f":"'Base Professeur'!$X$8","v":0},{"$f":"'Base Professeur'!$Y$8","v":0},{"$f":"'Base Professeur'!$Z$8","v":0},null,null,null,{"$f":"'Base Professeur'!$AC$8","v":0},{"$f":"'Base Professeur'!$AD$8","v":15},{"$f":"'Base Professeur'!$AE$8","v":0},{"$f":"'Base Professeur'!$AF$8","v":0},{"$f":"'Base Professeur'!$AG$8","v":0}]
[null,{"$f":"'Base Professeur'!$H$9","v":"Prestation de groupe finalisée"},{"$f":"'Base Professeur'!$I$9","v":"Manque deux exigences et +"},{"$f":"'Base Professeur'!$J$9","v":"Manque une exigence"},{"$f":"'Base Professeur'!$K$9","v":"Toutes les exigences"},{"$f":"'Base Professeur'!$L$9","v":"Toutes exigences et relation au thème"},null,null,null,{"$f":"'Base Professeur'!$O$9","v":0},{"$f":"'Base Professeur'!$P$9","v":0},{"$f":"'Base Professeur'!$Q$9","v":4},{"$f":"'Base Professeur'!$R$9","v":0},{"$f":"'Base Professeur'!$S$9","v":0},null,null,null,{"$f":"'Base Professeur'!$V$9","v":0},{"$f":"'Base Professeur'!$W$9","v":0},{"$f":"'Base Professeur'!$X$9","v":10},{"$f":"'Base Professeur'!$Y$9","v":0},{"$f":"'Base Professeur'!$Z$9","v":0},null,null,null,{"$f":"'Base Professeur'!$AC$9","v":0},{"$f":"'Base Professeur'!$AD$9","v":0},{"$f":"'Base Professeur'!$AE$9","v":16},{"$f":"'Base Professeur'!$AF$9","v":0},{"$f":"'Base Professeur'!$AG$9","v":0}]
[null,{"$f":"'Base Professeur'!$H$10","v":"Échauffement"},{"$f":"'Base Professeur'!$I$10","v":"Echauffement Oublié"},{"$f":"'Base Professeur'!$J$10","v":"Echauffement Baclé"},{"$f":"'Base Professeur'!$K$10","v":"Echauffement Bien Exécuté"},{"$f":"'Base Professeur'!$L$10","v":"Echauffement Bien Exécuté et Guidé"},null,null,null,{"$f":"'Base Professeur'!$O$10","v":0},{"$f":"'Base Professeur'!$P$10","v":0},{"$f":"'Base Professeur'!$Q$10","v":0},{"$f":"'Base Professeur'!$R$10","v":5},{"$f":"'Base Professeur'!$S$10","v":0},null,null,null,{"$f":"'Base Professeur'!$V$10","v":0},{"$f":"'Base Professeur'!$W$10","v":0},{"$f":"'Base Professeur'!$X$10","v":0},{"$f":"'Base Professeur'!$Y$10","v":11},{"$f":"'Base Professeur'!$Z$10","v":0},null,null,null,{"$f":"'Base Professeur'!$AC$10","v":0},{"$f":"'Base Professeur'!$AD$10","v":0},{"$f":"'Base Professeur'!$AE$10","v":0},{"$f":"'Base Professeur'!$AF$10","v":17},{"$f":"'Base Professeur'!$AG$10","v":0}]
[null,{"$f":"'Base Professeur'!$H$11","v":"Spectateur"},{"$f":"'Base Professeur'!$I$11","v":"Ricane et n'observe pas"},{"$f":"'Base Professeur'!$J$11","v":"Bavardages et observation imprécise"},{"$f":"'Base Professeur'!$K$11","v":"Respecte et Observation précise"},{"$f":"'Base Professeur'!$L$11","v":"Apprécie et Conseil constructif"},null,null,null,{"$f":"'Base Professeur'!$O$11","v":0},{"$f":"'Base Professeur'!$P$11","v":0},{"$f":"'Base Professeur'!$Q$11","v":0},{"$f":"'Base Professeur'!$R$11","v":0},{"$f":"'Base Professeur'!$S$11","v":6},null,null,null,{"$f":"'Base Professeur'!$V$11","v":0},{"$f":"'Base Professeur'!$W$11","v":0},{"$f":"'Base Professeur'!$X$11","v":0},{"$f":"'Base Professeur'!$Y$11","v":0},{"$f":"'Base Professeur'!$Z$11","v":12},null,null,null,{"$f":"'Base Professeur'!$AC$11","v":0},{"$f":"'Base Professeur'!$AD$11","v":0},{"$f":"'Base Professeur'!$AE$11","v":0},{"$f":"'Base Professeur'!$AF$11","v":0},{"$f":"'Base Professeur'!$AG$11","v":18}]
[]
[null,{"$f":"'Base Professeur'!C23","v":"Keyran"},null,null,null,null,null,null,null,{"$f":"B182","v":"Keyran"},null,null,null,null,null,null,null,{"$f":"J182","v":"Keyran"},null,null,null,null,null,null,null,{"$f":"R182","v":"Keyran"}]
[null,{"$f":"'Base Professeur'!$G$4","v":"Danse"},null,null,null,null,null,null,null,{"$f":"'Base Professeur'!$N$4","v":"Course d'Orientation"},null,null,null,null,null,null,null,{"$f":"'Base Professeur'!$U$4","v":"Musculation"},null,null,null,null,null,null,null,{"$f":"'Base Professeur'!$AB$4","v":"Demi-Fond"}]
[null,{"$f":"'Base Professeur'!$H$5","v":"Objectifs"},{"$f":"'Base Professeur'!$I$5","v":"Non Atteint"},{"$f":"'Base Professeur'!$J$5","v":"Partiellement"},{"$f":"'Base Professeur'!$K$5","v":"Atteint"},{"$f":"'Base Professeur'!$L$5","v":"Dépassé"},"1er Auto-    Positionnement ","2ème Auto- Positionnement",null,{"$f":"'Base Professeur'!$O$5","v":"Objectifs"},{"$f":"'Base Professeur'!$P$5","v":"Non Atteint"},{"$f":"'Base Professeur'!$Q$5","v":"Partiellement"},{"$f":"'Base Professeur'!$R$5","v":"Atteint"},{"$f":"'Base Professeur'!$S$5","v":"Dépassé"},"1er Auto-    Positionnement ","2ème Auto- Positionnement",null,{"$f":"'Base Professeur'!$V$5","v":"Objectifs"},{"$f":"'Base Professeur'!$W$5","v":"Non Atteint"},{"$f":"'Base Professeur'!X185","v":0},{"$f":"'Base Professeur'!$Y$5","v":"Atteint"},{"$f":"'Base Professeur'!$Z$5","v":"Dépassé"},"1er Auto-    Positionnement ","2ème Auto- Positionnement",null,{"$f":"'Base Professeur'!$AC$5","v":"Objectifs"},{"$f":"'Base Professeur'!$AD$5","v":"Non Atteint"},{"$f":"'Base Professeur'!$AE$5","v":"Partiellement"},{"$f":"'Base Professeur'!$AF$5","v":"Atteint"},{"$f":"'Base Professeur'!$AG$5","v":"Dépassé"},"1er Auto-    Positionnement ","2ème Auto- Positionnement"]
[null,{"$f":"'Base Professeur'!$H$6","v":"Chorégraphe acteur"},{"$f":"'Base Professeur'!$I$6","v":"Apporte peu au groupe, peu déchange, gêne. Numérique mal ou pas utilisé"},{"$f":"'Base Professeur'!$J$6","v":"Participe ponctuellement.             Peu de numérique "},{"$f":"'Base Professeur'!$K$6","v":"Actif, participe pour plus-value.            Numérique utilisé"},{"$f":"'Base Professeur'!$L$6","v":"Fort de propositions, constructifs. Numérique en plus-value"},null,null,null,{"$f":"'Base Professeur'!$O$6","v":0},{"$f":"'Base Professeur'!$P$6","v":0},{"$f":"'Base Professeur'!$Q$6","v":0},{"$f":"'Base Professeur'!$R$6","v":0},{"$f":"'Base Professeur'!$S$6","v":0},null,null,null,{"$f":"'Base Professeur'!$V$6","v":0},{"$f":"'Base Professeur'!$W$6","v":0},{"$f":"'Base Professeur'!$X$6","v":0},{"$f":"'Base Professeur'!$Y$6","v":0},{"$f":"'Base Professeur'!$Z$6","v":0},null,null,null,{"$f":"'Base Professeur'!$AC$6","v":0},{"$f":"'Base Professeur'!$AD$6","v":0},{"$f":"'Base Professeur'!$AE$6","v":0},{"$f":"'Base Professeur'!$AF$6","v":0},{"$f":"'Base Professeur'!$AG$6","v":0}]
[null,{"$f":"'Base Professeur'!$H$7","v":"Danseur volontaire"},{"$f":"'Base Professeur'!$I$7","v":"Danse dans son coin, aucuns liens avec les autres danseurs"},{"$f":"'Base Professeur'!$J$7","v":"Hésite, se réfère aux autres danseurs"},{"$f":"'Base Professeur'!$K$7","v":"Concentré à danser"},{"$f":"'Base Professeur'!$L$7","v":"Vit sa danse"},null,null,null,{"$f":"'Base Professeur'!$O$7","v":2},{"$f":"'Base Professeur'!$P$7","v":0},{"$f":"'Base Professeur'!$Q$7","v":0},{"$f":"'Base Professeur'!$R$7","v":0},{"$f":"'Base Professeur'!$S$7","v":0},null,null,null,{"$f":"'Base Professeur'!$V$7","v":8},{"$f":"'Base Professeur'!$W$7","v":0},{"$f":"'Base Professeur'!$X$7","v":0},{"$f":"'Base Professeur'!$Y$7","v":0},{"$f":"'Base Professeur'!$Z$7","v":0},null,null,null,{"$f":"'Base Professeur'!$AC$7","v":14},{"$f":"'Base Professeur'!$AD$7","v":0},{"$f":"'Base Professeur'!$AE$7","v":0},{"$f":"'Base Professeur'!$AF$7","v":0},{"$f":"'Base Professeur'!$AG$7","v":0}]
[null,{"$f":"'Base Professeur'!$H$8","v":"Danseur acteur"},{"$f":"'Base Professeur'!$I$8","v":"Beaucoup d’hésitations, gestes parasites, rire, regard au sol …"},{"$f":"'Base Professeur'!$J$8","v":"Gestuelle connue. Quelques hésitations ou gestes parasites"},{"$f":"'Base Professeur'!$K$8","v":"Gestuelle précise. Aucunes hésitations ou gestes parasites"},{"$f":"'Base Professeur'!$L$8","v":"Gestuelle très précise. Aucunes erreurs"},null,null,null,{"$f":"'Base Professeur'!$O$8","v":0},{"$f":"'Base Professeur'!$P$8","v":3},{"$f":"'Base Professeur'!$Q$8","v":0},{"$f":"'Base Professeur'!$R$8","v":0},{"$f":"'Base Professeur'!$S$8","v":0},null,null,null,{"$f":"'Base Professeur'!$V$8","v":0},{"$f":"'Base Professeur'!$W$8","v":9},{"$f":"'Base Professeur'!$X$8","v":0},{"$f":"'Base Professeur'!$Y$8","v":0},{"$f":"'Base Professeur'!$Z$8","v":0},null,null,null,{"$f":"'Base Professeur'!$AC$8","v":0},{"$f":"'Base Professeur'!$AD$8","v":15},{"$f":"'Base Professeur'!$AE$8","v":0},{"$f":"'Base Professeur'!$AF$8","v":0},{"$f":"'Base Professeur'!$AG$8","v":0}]
[null,{"$f":"'Base Professeur'!$H$9","v":"Prestation de groupe finalisée"},{"$f":"'Base Professeur'!$I$9","v":"Manque deux exigences et +"},{"$f":"'Base Professeur'!$J$9","v":"Manque une exigence"},{"$f":"'Base Professeur'!$K$9","v":"Toutes les exigences"},{"$f":"'Base Professeur'!$L$9","v":"Toutes exigences et relation au thème"},null,null,null,{"$f":"'Base Professeur'!$O$9","v":0},{"$f":"'Base Professeur'!$P$9","v":0},{"$f":"'Base Professeur'!$Q$9","v":4},{"$f":"'Base Professeur'!$R$9","v":0},{"$f":"'Base Professeur'!$S$9","v":0},null,null,null,{"$f":"'Base Professeur'!$V$9","v":0},{"$f":"'Base Professeur'!$W$9","v":0},{"$f":"'Base Professeur'!$X$9","v":10},{"$f":"'Base Professeur'!$Y$9","v":0},{"$f":"'Base Professeur'!$Z$9","v":0},null,null,null,{"$f":"'Base Professeur'!$AC$9","v":0},{"$f":"'Base Professeur'!$AD$9","v":0},{"$f":"'Base Professeur'!$AE$9","v":16},{"$f":"'Base Professeur'!$AF$9","v":0},{"$f":"'Base Professeur'!$AG$9","v":0}]
[null,{"$f":"'Base Professeur'!$H$10","v":"Échauffement"},{"$f":"'Base Professeur'!$I$10","v":"Echauffement Oublié"},{"$f":"'Base Professeur'!$J$10","v":"Echauffement Baclé"},{"$f":"'Base Professeur'!$K$10","v":"Echauffement Bien Exécuté"},{"$f":"'Base Professeur'!$L$10","v":"Echauffement Bien Exécuté et Guidé"},null,null,null,{"$f":"'Base Professeur'!$O$10","v":0},{"$f":"'Base Professeur'!$P$10","v":0},{"$f":"'Base Professeur'!$Q$10","v":0},{"$f":"'Base Professeur'!$R$10","v":5},{"$f":"'Base Professeur'!$S$10","v":0},null,null,null,{"$f":"'Base Professeur'!$V$10","v":0},{"$f":"'Base Professeur'!$W$10","v":0},{"$f":"'Base Professeur'!$X$10","v":0},{"$f":"'Base Professeur'!$Y$10","v":11},{"$f":"'Base Professeur'!$Z$10","v":0},null,null,null,{"$f":"'Base Professeur'!$AC$10","v":0},{"$f":"'Base Professeur'!$AD$10","v":0},{"$f":"'Base Professeur'!$AE$10","v":0},{"$f":"'Base Professeur'!$AF$10","v":17},{"$f":"'Base Professeur'!$AG$10","v":0}]
[null,{"$f":"'Base Professeur'!$H$11","v":"Spectateur"},{"$f":"'Base Professeur'!$I$11","v":"Ricane et n'observe pas"},{"$f":"'Base Professeur'!$J$11","v":"Bavardages et observation imprécise"},{"$f":"'Base Professeur'!$K$11","v":"Respecte et Observation précise"},{"$f":"'Base Professeur'!$L$11","v":"Apprécie et Conseil constructif"},null,null,null,{"$f":"'Base Professeur'!$O$11","v":0},{"$f":"'Base Professeur'!$P$11","v":0},{"$f":"'Base Professeur'!$Q$11","v":0},{"$f":"'Base Professeur'!$R$11","v":0},{"$f":"'Base Professeur'!$S$11","v":6},null,null,null,{"$f":"'Base Professeur'!$V$11","v":0},{"$f":"'Base Professeur'!$W$11","v":0},{"$f":"'Base Professeur'!$X$11","v":0},{"$f":"'Base Professeur'!$Y$11","v":0},{"$f":"'Base Professeur'!$Z$11","v":12},null,null,null,{"$f":"'Base Professeur'!$AC$11","v":0},{"$f":"'Base Professeur'!$AD$11","v":0},{"$f":"'Base Professeur'!$AE$11","v":0},{"$f":"'Base Professeur'!$AF$11","v":0},{"$f":"'Base Professeur'!$AG$11","v":18}]
[]
[null,{"$f":"'Base Professeur'!C24","v":"Anne"},null,null,null,null,null,null,null,{"$f":"B192","v":"Anne"},null,null,null,null,null,null,null,{"$f":"J192","v":"Anne"},null,null,null,null,null,null,null,{"$f":"R192","v":"Anne"}]
[null,{"$f":"'Base Professeur'!$G$4","v":"Danse"},null,null,null,null,null,null,null,{"$f":"'Base Professeur'!$N$4","v":"Course d'Orientation"},null,null,null,null,null,null,null,{"$f":"'Base Professeur'!$U$4","v":"Musculation"},null,null,null,null,null,null,null,{"$f":"'Base Professeur'!$AB$4","v":"Demi-Fond"}]
[null,{"$f":"'Base Professeur'!$H$5","v":"Objectifs"},{"$f":"'Base Professeur'!$I$5","v":"Non Atteint"},{"$f":"'Base Professeur'!$J$5","v":"Partiellement"},{"$f":"'Base Professeur'!$K$5","v":"Atteint"},{"$f":"'Base Professeur'!$L$5","v":"Dépassé"},"1er Auto-    Positionnement ","2ème Auto- Positionnement",null,{"$f":"'Base Professeur'!$O$5","v":"Objectifs"},{"$f":"'Base Professeur'!$P$5","v":"Non Atteint"},{"$f":"'Base Professeur'!$Q$5","v":"Partiellement"},{"$f":"'Base Professeur'!$R$5","v":"Atteint"},{"$f":"'Base Professeur'!$S$5","v":"Dépassé"},"1er Auto-    Positionnement ","2ème Auto- Positionnement",null,{"$f":"'Base Professeur'!$V$5","v":"Objectifs"},{"$f":"'Base Professeur'!$W$5","v":"Non Atteint"},{"$f":"'Base Professeur'!X195","v":0},{"$f":"'Base Professeur'!$Y$5","v":"Atteint"},{"$f":"'Base Professeur'!$Z$5","v":"Dépassé"},"1er Auto-    Positionnement ","2ème Auto- Positionnement",null,{"$f":"'Base Professeur'!$AC$5","v":"Objectifs"},{"$f":"'Base Professeur'!$AD$5","v":"Non Atteint"},{"$f":"'Base Professeur'!$AE$5","v":"Partiellement"},{"$f":"'Base Professeur'!$AF$5","v":"Atteint"},{"$f":"'Base Professeur'!$AG$5","v":"Dépassé"},"1er Auto-    Positionnement ","2ème Auto- Positionnement"]
[null,{"$f":"'Base Professeur'!$H$6","v":"Chorégraphe acteur"},{"$f":"'Base Professeur'!$I$6","v":"Apporte peu au groupe, peu déchange, gêne. Numérique mal ou pas utilisé"},{"$f":"'Base Professeur'!$J$6","v":"Participe ponctuellement.             Peu de numérique "},{"$f":"'Base Professeur'!$K$6","v":"Actif, participe pour plus-value.            Numérique utilisé"},{"$f":"'Base Professeur'!$L$6","v":"Fort de propositions, constructifs. Numérique en plus-value"},null,null,null,{"$f":"'Base Professeur'!$O$6","v":0},{"$f":"'Base Professeur'!$P$6","v":0},{"$f":"'Base Professeur'!$Q$6","v":0},{"$f":"'Base Professeur'!$R$6","v":0},{"$f":"'Base Professeur'!$S$6","v":0},null,null,null,{"$f":"'Base Professeur'!$V$6","v":0},{"$f":"'Base Professeur'!$W$6","v":0},{"$f":"'Base Professeur'!$X$6","v":0},{"$f":"'Base Professeur'!$Y$6","v":0},{"$f":"'Base Professeur'!$Z$6","v":0},null,null,null,{"$f":"'Base Professeur'!$AC$6","v":0},{"$f":"'Base Professeur'!$AD$6","v":0},{"$f":"'Base Professeur'!$AE$6","v":0},{"$f":"'Base Professeur'!$AF$6","v":0},{"$f":"'Base Professeur'!$AG$6","v":0}]
[null,{"$f":"'Base Professeur'!$H$7","v":"Danseur volontaire"},{"$f":"'Base Professeur'!$I$7","v":"Danse dans son coin, aucuns liens avec les autres danseurs"},{"$f":"'Base Professeur'!$J$7","v":"Hésite, se réfère aux autres danseurs"},{"$f":"'Base Professeur'!$K$7","v":"Concentré à danser"},{"$f":"'Base Professeur'!$L$7","v":"Vit sa danse"},null,null,null,{"$f":"'Base Professeur'!$O$7","v":2},{"$f":"'Base Professeur'!$P$7","v":0},{"$f":"'Base Professeur'!$Q$7","v":0},{"$f":"'Base Professeur'!$R$7","v":0},{"$f":"'Base Professeur'!$S$7","v":0},null,null,null,{"$f":"'Base Professeur'!$V$7","v":8},{"$f":"'Base Professeur'!$W$7","v":0},{"$f":"'Base Professeur'!$X$7","v":0},{"$f":"'Base Professeur'!$Y$7","v":0},{"$f":"'Base Professeur'!$Z$7","v":0},null,null,null,{"$f":"'Base Professeur'!$AC$7","v":14},{"$f":"'Base Professeur'!$AD$7","v":0},{"$f":"'Base Professeur'!$AE$7","v":0},{"$f":"'Base Professeur'!$AF$7","v":0},{"$f":"'Base Professeur'!$AG$7","v":0}]
[null,{"$f":"'Base Professeur'!$H$8","v":"Danseur acteur"},{"$f":"'Base Professeur'!$I$8","v":"Beaucoup d’hésitations, gestes parasites, rire, regard au sol …"},{"$f":"'Base Professeur'!$J$8","v":"Gestuelle connue. Quelques hésitations ou gestes parasites"},{"$f":"'Base Professeur'!$K$8","v":"Gestuelle précise. Aucunes hésitations ou gestes parasites"},{"$f":"'Base Professeur'!$L$8","v":"Gestuelle très précise. Aucunes erreurs"},null,null,null,{"$f":"'Base Professeur'!$O$8","v":0},{"$f":"'Base Professeur'!$P$8","v":3},{"$f":"'Base Professeur'!$Q$8","v":0},{"$f":"'Base Professeur'!$R$8","v":0},{"$f":"'Base Professeur'!$S$8","v":0},null,null,null,{"$f":"'Base Professeur'!$V$8","v":0},{"$f":"'Base Professeur'!$W$8","v":9},{"$f":"'Base Professeur'!$X$8","v":0},{"$f":"'Base Professeur'!$Y$8","v":0},{"$f":"'Base Professeur'!$Z$8","v":0},null,null,null,{"$f":"'Base Professeur'!$AC$8","v":0},{"$f":"'Base Professeur'!$AD$8","v":15},{"$f":"'Base Professeur'!$AE$8","v":0},{"$f":"'Base Professeur'!$AF$8","v":0},{"$f":"'Base Professeur'!$AG$8","v":0}]
[null,{"$f":"'Base Professeur'!$H$9","v":"Prestation de groupe finalisée"},{"$f":"'Base Professeur'!$I$9","v":"Manque deux exigences et +"},{"$f":"'Base Professeur'!$J$9","v":"Manque une exigence"},{"$f":"'Base Professeur'!$K$9","v":"Toutes les exigences"},{"$f":"'Base Professeur'!$L$9","v":"Toutes exigences et relation au thème"},null,null,null,{"$f":"'Base Professeur'!$O$9","v":0},{"$f":"'Base Professeur'!$P$9","v":0},{"$f":"'Base Professeur'!$Q$9","v":4},{"$f":"'Base Professeur'!$R$9","v":0},{"$f":"'Base Professeur'!$S$9","v":0},null,null,null,{"$f":"'Base Professeur'!$V$9","v":0},{"$f":"'Base Professeur'!$W$9","v":0},{"$f":"'Base Professeur'!$X$9","v":10},{"$f":"'Base Professeur'!$Y$9","v":0},{"$f":"'Base Professeur'!$Z$9","v":0},null,null,null,{"$f":"'Base Professeur'!$AC$9","v":0},{"$f":"'Base Professeur'!$AD$9","v":0},{"$f":"'Base Professeur'!$AE$9","v":16},{"$f":"'Base Professeur'!$AF$9","v":0},{"$f":"'Base Professeur'!$AG$9","v":0}]
[null,{"$f":"'Base Professeur'!$H$10","v":"Échauffement"},{"$f":"'Base Professeur'!$I$10","v":"Echauffement Oublié"},{"$f":"'Base Professeur'!$J$10","v":"Echauffement Baclé"},{"$f":"'Base Professeur'!$K$10","v":"Echauffement Bien Exécuté"},{"$f":"'Base Professeur'!$L$10","v":"Echauffement Bien Exécuté et Guidé"},null,null,null,{"$f":"'Base Professeur'!$O$10","v":0},{"$f":"'Base Professeur'!$P$10","v":0},{"$f":"'Base Professeur'!$Q$10","v":0},{"$f":"'Base Professeur'!$R$10","v":5},{"$f":"'Base Professeur'!$S$10","v":0},null,null,null,{"$f":"'Base Professeur'!$V$10","v":0},{"$f":"'Base Professeur'!$W$10","v":0},{"$f":"'Base Professeur'!$X$10","v":0},{"$f":"'Base Professeur'!$Y$10","v":11},{"$f":"'Base Professeur'!$Z$10","v":0},null,null,null,{"$f":"'Base Professeur'!$AC$10","v":0},{"$f":"'Base Professeur'!$AD$10","v":0},{"$f":"'Base Professeur'!$AE$10","v":0},{"$f":"'Base Professeur'!$AF$10","v":17},{"$f":"'Base Professeur'!$AG$10","v":0}]
[null,{"$f":"'Base Professeur'!$H$11","v":"Spectateur"},{"$f":"'Base Professeur'!$I$11","v":"Ricane et n'observe pas"},{"$f":"'Base Professeur'!$J$11","v":"Bavardages et observation imprécise"},{"$f":"'Base Professeur'!$K$11","v":"Respecte et Observation précise"},{"$f":"'Base Professeur'!$L$11","v":"Apprécie et Conseil constructif"},null,null,null,{"$f":"'Base Professeur'!$O$11","v":0},{"$f":"'Base Professeur'!$P$11","v":0},{"$f":"'Base Professeur'!$Q$11","v":0},{"$f":"'Base Professeur'!$R$11","v":0},{"$f":"'Base Professeur'!$S$11","v":6},null,null,null,{"$f":"'Base Professeur'!$V$11","v":0},{"$f":"'Base Professeur'!$W$11","v":0},{"$f":"'Base Professeur'!$X$11","v":0},{"$f":"'Base Professeur'!$Y$11","v":0},{"$f":"'Base Professeur'!$Z$11","v":12},null,null,null,{"$f":"'Base Professeur'!$AC$11","v":0},{"$f":"'Base Professeur'!$AD$11","v":0},{"$f":"'Base Professeur'!$AE$11","v":0},{"$f":"'Base Professeur'!$AF$11","v":0},{"$f":"'Base Professeur'!$AG$11","v":18}]
[]
[null,{"$f":"'Base Professeur'!C25","v":"Louise"},null,null,null,null,null,null,null,{"$f":"B202","v":"Louise"},null,null,null,null,null,null,null,{"$f":"J202","v":"Louise"},null,null,null,null,null,null,null,{"$f":"R202","v":"Louise"}]
[null,{"$f":"'Base Professeur'!$G$4","v":"Danse"},null,null,null,null,null,null,null,{"$f":"'Base Professeur'!$N$4","v":"Course d'Orientation"},null,null,null,null,null,null,null,{"$f":"'Base Professeur'!$U$4","v":"Musculation"},null,null,null,null,null,null,null,{"$f":"'Base Professeur'!$AB$4","v":"Demi-Fond"}]
[null,{"$f":"'Base Professeur'!$H$5","v":"Objectifs"},{"$f":"'Base Professeur'!$I$5","v":"Non Atteint"},{"$f":"'Base Professeur'!$J$5","v":"Partiellement"},{"$f":"'Base Professeur'!$K$5","v":"Atteint"},{"$f":"'Base Professeur'!$L$5","v":"Dépassé"},"1er Auto-    Positionnement ","2ème Auto- Positionnement",null,{"$f":"'Base Professeur'!$O$5","v":"Objectifs"},{"$f":"'Base Professeur'!$P$5","v":"Non Atteint"},{"$f":"'Base Professeur'!$Q$5","v":"Partiellement"},{"$f":"'Base Professeur'!$R$5","v":"Atteint"},{"$f":"'Base Professeur'!$S$5","v":"Dépassé"},"1er Auto-    Positionnement ","2ème Auto- Positionnement",null,{"$f":"'Base Professeur'!$V$5","v":"Objectifs"},{"$f":"'Base Professeur'!$W$5","v":"Non Atteint"},{"$f":"'Base Professeur'!X205","v":0},{"$f":"'Base Professeur'!$Y$5","v":"Atteint"},{"$f":"'Base Professeur'!$Z$5","v":"Dépassé"},"1er Auto-    Positionnement ","2ème Auto- Positionnement",null,{"$f":"'Base Professeur'!$AC$5","v":"Objectifs"},{"$f":"'Base Professeur'!$AD$5","v":"Non Atteint"},{"$f":"'Base Professeur'!$AE$5","v":"Partiellement"},{"$f":"'Base Professeur'!$AF$5","v":"Atteint"},{"$f":"'Base Professeur'!$AG$5","v":"Dépassé"},"1er Auto-    Positionnement ","2ème Auto- Positionnement"]
[null,{"$f":"'Base Professeur'!$H$6","v":"Chorégraphe acteur"},{"$f":"'Base Professeur'!$I$6","v":"Apporte peu au groupe, peu déchange, gêne. Numérique mal ou pas utilisé"},{"$f":"'Base Professeur'!$J$6","v":"Participe ponctuellement.             Peu de numérique "},{"$f":"'Base Professeur'!$K$6","v":"Actif, participe pour plus-value.            Numérique utilisé"},{"$f":"'Base Professeur'!$L$6","v":"Fort de propositions, constructifs. Numérique en plus-value"},null,null,null,{"$f":"'Base Professeur'!$O$6","v":0},{"$f":"'Base Professeur'!$P$6","v":0},{"$f":"'Base Professeur'!$Q$6","v":0},{"$f":"'Base Professeur'!$R$6","v":0},{"$f":"'Base Professeur'!$S$6","v":0},null,null,null,{"$f":"'Base Professeur'!$V$6","v":0},{"$f":"'Base Professeur'!$W$6","v":0},{"$f":"'Base Professeur'!$X$6","v":0},{"$f":"'Base Professeur'!$Y$6","v":0},{"$f":"'Base Professeur'!$Z$6","v":0},null,null,null,{"$f":"'Base Professeur'!$AC$6","v":0},{"$f":"'Base Professeur'!$AD$6","v":0},{"$f":"'Base Professeur'!$AE$6","v":0},{"$f":"'Base Professeur'!$AF$6","v":0},{"$f":"'Base Professeur'!$AG$6","v":0}]
[null,{"$f":"'Base Professeur'!$H$7","v":"Danseur volontaire"},{"$f":"'Base Professeur'!$I$7","v":"Danse dans son coin, aucuns liens avec les autres danseurs"},{"$f":"'Base Professeur'!$J$7","v":"Hésite, se réfère aux autres danseurs"},{"$f":"'Base Professeur'!$K$7","v":"Concentré à danser"},{"$f":"'Base Professeur'!$L$7","v":"Vit sa danse"},null,null,null,{"$f":"'Base Professeur'!$O$7","v":2},{"$f":"'Base Professeur'!$P$7","v":0},{"$f":"'Base Professeur'!$Q$7","v":0},{"$f":"'Base Professeur'!$R$7","v":0},{"$f":"'Base Professeur'!$S$7","v":0},null,null,null,{"$f":"'Base Professeur'!$V$7","v":8},{"$f":"'Base Professeur'!$W$7","v":0},{"$f":"'Base Professeur'!$X$7","v":0},{"$f":"'Base Professeur'!$Y$7","v":0},{"$f":"'Base Professeur'!$Z$7","v":0},null,null,null,{"$f":"'Base Professeur'!$AC$7","v":14},{"$f":"'Base Professeur'!$AD$7","v":0},{"$f":"'Base Professeur'!$AE$7","v":0},{"$f":"'Base Professeur'!$AF$7","v":0},{"$f":"'Base Professeur'!$AG$7","v":0}]
[null,{"$f":"'Base Professeur'!$H$8","v":"Danseur acteur"},{"$f":"'Base Professeur'!$I$8","v":"Beaucoup d’hésitations, gestes parasites, rire, regard au sol …"},{"$f":"'Base Professeur'!$J$8","v":"Gestuelle connue. Quelques hésitations ou gestes parasites"},{"$f":"'Base Professeur'!$K$8","v":"Gestuelle précise. Aucunes hésitations ou gestes parasites"},{"$f":"'Base Professeur'!$L$8","v":"Gestuelle très précise. Aucunes erreurs"},null,null,null,{"$f":"'Base Professeur'!$O$8","v":0},{"$f":"'Base Professeur'!$P$8","v":3},{"$f":"'Base Professeur'!$Q$8","v":0},{"$f":"'Base Professeur'!$R$8","v":0},{"$f":"'Base Professeur'!$S$8","v":0},null,null,null,{"$f":"'Base Professeur'!$V$8","v":0},{"$f":"'Base Professeur'!$W$8","v":9},{"$f":"'Base Professeur'!$X$8","v":0},{"$f":"'Base Professeur'!$Y$8","v":0},{"$f":"'Base Professeur'!$Z$8","v":0},null,null,null,{"$f":"'Base Professeur'!$AC$8","v":0},{"$f":"'Base Professeur'!$AD$8","v":15},{"$f":"'Base Professeur'!$AE$8","v":0},{"$f":"'Base Professeur'!$AF$8","v":0},{"$f":"'Base Professeur'!$AG$8","v":0}]
[null,{"$f":"'Base Professeur'!$H$9","v":"Prestation de groupe finalisée"},{"$f":"'Base Professeur'!$I$9","v":"Manque deux exigences et +"},{"$f":"'Base Professeur'!$J$9","v":"Manque une exigence"},{"$f":"'Base Professeur'!$K$9","v":"Toutes les exigences"},{"$f":"'Base Professeur'!$L$9","v":"Toutes exigences et relation au thème"},null,null,null,{"$f":"'Base Professeur'!$O$9","v":0},{"$f":"'Base Professeur'!$P$9","v":0},{"$f":"'Base Professeur'!$Q$9","v":4},{"$f":"'Base Professeur'!$R$9","v":0},{"$f":"'Base Professeur'!$S$9","v":0},null,null,null,{"$f":"'Base Professeur'!$V$9","v":0},{"$f":"'Base Professeur'!$W$9","v":0},{"$f":"'Base Professeur'!$X$9","v":10},{"$f":"'Base Professeur'!$Y$9","v":0},{"$f":"'Base Professeur'!$Z$9","v":0},null,null,null,{"$f":"'Base Professeur'!$AC$9","v":0},{"$f":"'Base Professeur'!$AD$9","v":0},{"$f":"'Base Professeur'!$AE$9","v":16},{"$f":"'Base Professeur'!$AF$9","v":0},{"$f":"'Base Professeur'!$AG$9","v":0}]
[null,{"$f":"'Base Professeur'!$H$10","v":"Échauffement"},{"$f":"'Base Professeur'!$I$10","v":"Echauffement Oublié"},{"$f":"'Base Professeur'!$J$10","v":"Echauffement Baclé"},{"$f":"'Base Professeur'!$K$10","v":"Echauffement Bien Exécuté"},{"$f":"'Base Professeur'!$L$10","v":"Echauffement Bien Exécuté et Guidé"},null,null,null,{"$f":"'Base Professeur'!$O$10","v":0},{"$f":"'Base Professeur'!$P$10","v":0},{"$f":"'Base Professeur'!$Q$10","v":0},{"$f":"'Base Professeur'!$R$10","v":5},{"$f":"'Base Professeur'!$S$10","v":0},null,null,null,{"$f":"'Base Professeur'!$V$10","v":0},{"$f":"'Base Professeur'!$W$10","v":0},{"$f":"'Base Professeur'!$X$10","v":0},{"$f":"'Base Professeur'!$Y$10","v":11},{"$f":"'Base Professeur'!$Z$10","v":0},null,null,null,{"$f":"'Base Professeur'!$AC$10","v":0},{"$f":"'Base Professeur'!$AD$10","v":0},{"$f":"'Base Professeur'!$AE$10","v":0},{"$f":"'Base Professeur'!$AF$10","v":17},{"$f":"'Base Professeur'!$AG$10","v":0}]
[null,{"$f":"'Base Professeur'!$H$11","v":"Spectateur"},{"$f":"'Base Professeur'!$I$11","v":"Ricane et n'observe pas"},{"$f":"'Base Professeur'!$J$11","v":"Bavardages et observation imprécise"},{"$f":"'Base Professeur'!$K$11","v":"Respecte et Observation précise"},{"$f":"'Base Professeur'!$L$11","v":"Apprécie et Conseil constructif"},null,null,null,{"$f":"'Base Professeur'!$O$11","v":0},{"$f":"'Base Professeur'!$P$11","v":0},{"$f":"'Base Professeur'!$Q$11","v":0},{"$f":"'Base Professeur'!$R$11","v":0},{"$f":"'Base Professeur'!$S$11","v":6},null,null,null,{"$f":"'Base Professeur'!$V$11","v":0},{"$f":"'Base Professeur'!$W$11","v":0},{"$f":"'Base Professeur'!$X$11","v":0},{"$f":"'Base Professeur'!$Y$11","v":0},{"$f":"'Base Professeur'!$Z$11","v":12},null,null,null,{"$f":"'Base Professeur'!$AC$11","v":0},{"$f":"'Base Professeur'!$AD$11","v":0},{"$f":"'Base Professeur'!$AE$11","v":0},{"$f":"'Base Professeur'!$AF$11","v":0},{"$f":"'Base Professeur'!$AG$11","v":18}]
[]
[null,{"$f":"'Base Professeur'!C26","v":"Colin"},null,null,null,null,null,null,null,{"$f":"B212","v":"Colin"},null,null,null,null,null,null,null,{"$f":"J212","v":"Colin"},null,null,null,null,null,null,null,{"$f":"R212","v":"Colin"}]
[null,{"$f":"'Base Professeur'!$G$4","v":"Danse"},null,null,null,null,null,null,null,{"$f":"'Base Professeur'!$N$4","v":"Course d'Orientation"},null,null,null,null,null,null,null,{"$f":"'Base Professeur'!$U$4","v":"Musculation"},null,null,null,null,null,null,null,{"$f":"'Base Professeur'!$AB$4","v":"Demi-Fond"}]
[null,{"$f":"'Base Professeur'!$H$5","v":"Objectifs"},{"$f":"'Base Professeur'!$I$5","v":"Non Atteint"},{"$f":"'Base Professeur'!$J$5","v":"Partiellement"},{"$f":"'Base Professeur'!$K$5","v":"Atteint"},{"$f":"'Base Professeur'!$L$5","v":"Dépassé"},"1er Auto-    Positionnement ","2ème Auto- Positionnement",null,{"$f":"'Base Professeur'!$O$5","v":"Objectifs"},{"$f":"'Base Professeur'!$P$5","v":"Non Atteint"},{"$f":"'Base Professeur'!$Q$5","v":"Partiellement"},{"$f":"'Base Professeur'!$R$5","v":"Atteint"},{"$f":"'Base Professeur'!$S$5","v":"Dépassé"},"1er Auto-    Positionnement ","2ème Auto- Positionnement",null,{"$f":"'Base Professeur'!$V$5","v":"Objectifs"},{"$f":"'Base Professeur'!$W$5","v":"Non Atteint"},{"$f":"'Base Professeur'!X215","v":0},{"$f":"'Base Professeur'!$Y$5","v":"Atteint"},{"$f":"'Base Professeur'!$Z$5","v":"Dépassé"},"1er Auto-    Positionnement ","2ème Auto- Positionnement",null,{"$f":"'Base Professeur'!$AC$5","v":"Objectifs"},{"$f":"'Base Professeur'!$AD$5","v":"Non Atteint"},{"$f":"'Base Professeur'!$AE$5","v":"Partiellement"},{"$f":"'Base Professeur'!$AF$5","v":"Atteint"},{"$f":"'Base Professeur'!$AG$5","v":"Dépassé"},"1er Auto-    Positionnement ","2ème Auto- Positionnement"]
[null,{"$f":"'Base Professeur'!$H$6","v":"Chorégraphe acteur"},{"$f":"'Base Professeur'!$I$6","v":"Apporte peu au groupe, peu déchange, gêne. Numérique mal ou pas utilisé"},{"$f":"'Base Professeur'!$J$6","v":"Participe ponctuellement.             Peu de numérique "},{"$f":"'Base Professeur'!$K$6","v":"Actif, participe pour plus-value.            Numérique utilisé"},{"$f":"'Base Professeur'!$L$6","v":"Fort de propositions, constructifs. Numérique en plus-value"},null,null,null,{"$f":"'Base Professeur'!$O$6","v":0},{"$f":"'Base Professeur'!$P$6","v":0},{"$f":"'Base Professeur'!$Q$6","v":0},{"$f":"'Base Professeur'!$R$6","v":0},{"$f":"'Base Professeur'!$S$6","v":0},null,null,null,{"$f":"'Base Professeur'!$V$6","v":0},{"$f":"'Base Professeur'!$W$6","v":0},{"$f":"'Base Professeur'!$X$6","v":0},{"$f":"'Base Professeur'!$Y$6","v":0},{"$f":"'Base Professeur'!$Z$6","v":0},null,null,null,{"$f":"'Base Professeur'!$AC$6","v":0},{"$f":"'Base Professeur'!$AD$6","v":0},{"$f":"'Base Professeur'!$AE$6","v":0},{"$f":"'Base Professeur'!$AF$6","v":0},{"$f":"'Base Professeur'!$AG$6","v":0}]
[null,{"$f":"'Base Professeur'!$H$7","v":"Danseur volontaire"},{"$f":"'Base Professeur'!$I$7","v":"Danse dans son coin, aucuns liens avec les autres danseurs"},{"$f":"'Base Professeur'!$J$7","v":"Hésite, se réfère aux autres danseurs"},{"$f":"'Base Professeur'!$K$7","v":"Concentré à danser"},{"$f":"'Base Professeur'!$L$7","v":"Vit sa danse"},null,null,null,{"$f":"'Base Professeur'!$O$7","v":2},{"$f":"'Base Professeur'!$P$7","v":0},{"$f":"'Base Professeur'!$Q$7","v":0},{"$f":"'Base Professeur'!$R$7","v":0},{"$f":"'Base Professeur'!$S$7","v":0},null,null,null,{"$f":"'Base Professeur'!$V$7","v":8},{"$f":"'Base Professeur'!$W$7","v":0},{"$f":"'Base Professeur'!$X$7","v":0},{"$f":"'Base Professeur'!$Y$7","v":0},{"$f":"'Base Professeur'!$Z$7","v":0},null,null,null,{"$f":"'Base Professeur'!$AC$7","v":14},{"$f":"'Base Professeur'!$AD$7","v":0},{"$f":"'Base Professeur'!$AE$7","v":0},{"$f":"'Base Professeur'!$AF$7","v":0},{"$f":"'Base Professeur'!$AG$7","v":0}]
[null,{"$f":"'Base Professeur'!$H$8","v":"Danseur acteur"},{"$f":"'Base Professeur'!$I$8","v":"Beaucoup d’hésitations, gestes parasites, rire, regard au sol …"},{"$f":"'Base Professeur'!$J$8","v":"Gestuelle connue. Quelques hésitations ou gestes parasites"},{"$f":"'Base Professeur'!$K$8","v":"Gestuelle précise. Aucunes hésitations ou gestes parasites"},{"$f":"'Base Professeur'!$L$8","v":"Gestuelle très précise. Aucunes erreurs"},null,null,null,{"$f":"'Base Professeur'!$O$8","v":0},{"$f":"'Base Professeur'!$P$8","v":3},{"$f":"'Base Professeur'!$Q$8","v":0},{"$f":"'Base Professeur'!$R$8","v":0},{"$f":"'Base Professeur'!$S$8","v":0},null,null,null,{"$f":"'Base Professeur'!$V$8","v":0},{"$f":"'Base Professeur'!$W$8","v":9},{"$f":"'Base Professeur'!$X$8","v":0},{"$f":"'Base Professeur'!$Y$8","v":0},{"$f":"'Base Professeur'!$Z$8","v":0},null,null,null,{"$f":"'Base Professeur'!$AC$8","v":0},{"$f":"'Base Professeur'!$AD$8","v":15},{"$f":"'Base Professeur'!$AE$8","v":0},{"$f":"'Base Professeur'!$AF$8","v":0},{"$f":"'Base Professeur'!$AG$8","v":0}]
[null,{"$f":"'Base Professeur'!$H$9","v":"Prestation de groupe finalisée"},{"$f":"'Base Professeur'!$I$9","v":"Manque deux exigences et +"},{"$f":"'Base Professeur'!$J$9","v":"Manque une exigence"},{"$f":"'Base Professeur'!$K$9","v":"Toutes les exigences"},{"$f":"'Base Professeur'!$L$9","v":"Toutes exigences et relation au thème"},null,null,null,{"$f":"'Base Professeur'!$O$9","v":0},{"$f":"'Base Professeur'!$P$9","v":0},{"$f":"'Base Professeur'!$Q$9","v":4},{"$f":"'Base Professeur'!$R$9","v":0},{"$f":"'Base Professeur'!$S$9","v":0},null,null,null,{"$f":"'Base Professeur'!$V$9","v":0},{"$f":"'Base Professeur'!$W$9","v":0},{"$f":"'Base Professeur'!$X$9","v":10},{"$f":"'Base Professeur'!$Y$9","v":0},{"$f":"'Base Professeur'!$Z$9","v":0},null,null,null,{"$f":"'Base Professeur'!$AC$9","v":0},{"$f":"'Base Professeur'!$AD$9","v":0},{"$f":"'Base Professeur'!$AE$9","v":16},{"$f":"'Base Professeur'!$AF$9","v":0},{"$f":"'Base Professeur'!$AG$9","v":0}]
[null,{"$f":"'Base Professeur'!$H$10","v":"Échauffement"},{"$f":"'Base Professeur'!$I$10","v":"Echauffement Oublié"},{"$f":"'Base Professeur'!$J$10","v":"Echauffement Baclé"},{"$f":"'Base Professeur'!$K$10","v":"Echauffement Bien Exécuté"},{"$f":"'Base Professeur'!$L$10","v":"Echauffement Bien Exécuté et Guidé"},null,null,null,{"$f":"'Base Professeur'!$O$10","v":0},{"$f":"'Base Professeur'!$P$10","v":0},{"$f":"'Base Professeur'!$Q$10","v":0},{"$f":"'Base Professeur'!$R$10","v":5},{"$f":"'Base Professeur'!$S$10","v":0},null,null,null,{"$f":"'Base Professeur'!$V$10","v":0},{"$f":"'Base Professeur'!$W$10","v":0},{"$f":"'Base Professeur'!$X$10","v":0},{"$f":"'Base Professeur'!$Y$10","v":11},{"$f":"'Base Professeur'!$Z$10","v":0},null,null,null,{"$f":"'Base Professeur'!$AC$10","v":0},{"$f":"'Base Professeur'!$AD$10","v":0},{"$f":"'Base Professeur'!$AE$10","v":0},{"$f":"'Base Professeur'!$AF$10","v":17},{"$f":"'Base Professeur'!$AG$10","v":0}]
[null,{"$f":"'Base Professeur'!$H$11","v":"Spectateur"},{"$f":"'Base Professeur'!$I$11","v":"Ricane et n'observe pas"},{"$f":"'Base Professeur'!$J$11","v":"Bavardages et observation imprécise"},{"$f":"'Base Professeur'!$K$11","v":"Respecte et Observation précise"},{"$f":"'Base Professeur'!$L$11","v":"Apprécie et Conseil constructif"},null,null,null,{"$f":"'Base Professeur'!$O$11","v":0},{"$f":"'Base Professeur'!$P$11","v":0},{"$f":"'Base Professeur'!$Q$11","v":0},{"$f":"'Base Professeur'!$R$11","v":0},{"$f":"'Base Professeur'!$S$11","v":6},null,null,null,{"$f":"'Base Professeur'!$V$11","v":0},{"$f":"'Base Professeur'!$W$11","v":0},{"$f":"'Base Professeur'!$X$11","v":0},{"$f":"'Base Professeur'!$Y$11","v":0},{"$f":"'Base Professeur'!$Z$11","v":12},null,null,null,{"$f":"'Base Professeur'!$AC$11","v":0},{"$f":"'Base Professeur'!$AD$11","v":0},{"$f":"'Base Professeur'!$AE$11","v":0},{"$f":"'Base Professeur'!$AF$11","v":0},{"$f":"'Base Professeur'!$AG$11","v":18}]
[]
[null,{"$f":"'Base Professeur'!C27","v":"Maya"},null,null,null,null,null,null,null,{"$f":"B222","v":"Maya"},null,null,null,null,null,null,null,{"$f":"J222","v":"Maya"},null,null,null,null,null,null,null,{"$f":"R222","v":"Maya"}]
[null,{"$f":"'Base Professeur'!$G$4","v":"Danse"},null,null,null,null,null,null,null,{"$f":"'Base Professeur'!$N$4","v":"Course d'Orientation"},null,null,null,null,null,null,null,{"$f":"'Base Professeur'!$U$4","v":"Musculation"},null,null,null,null,null,null,null,{"$f":"'Base Professeur'!$AB$4","v":"Demi-Fond"}]
[null,{"$f":"'Base Professeur'!$H$5","v":"Objectifs"},{"$f":"'Base Professeur'!$I$5","v":"Non Atteint"},{"$f":"'Base Professeur'!$J$5","v":"Partiellement"},{"$f":"'Base Professeur'!$K$5","v":"Atteint"},{"$f":"'Base Professeur'!$L$5","v":"Dépassé"},"1er Auto-    Positionnement ","2ème Auto- Positionnement",null,{"$f":"'Base Professeur'!$O$5","v":"Objectifs"},{"$f":"'Base Professeur'!$P$5","v":"Non Atteint"},{"$f":"'Base Professeur'!$Q$5","v":"Partiellement"},{"$f":"'Base Professeur'!$R$5","v":"Atteint"},{"$f":"'Base Professeur'!$S$5","v":"Dépassé"},"1er Auto-    Positionnement ","2ème Auto- Positionnement",null,{"$f":"'Base Professeur'!$V$5","v":"Objectifs"},{"$f":"'Base Professeur'!$W$5","v":"Non Atteint"},{"$f":"'Base Professeur'!X225","v":0},{"$f":"'Base Professeur'!$Y$5","v":"Atteint"},{"$f":"'Base Professeur'!$Z$5","v":"Dépassé"},"1er Auto-    Positionnement ","2ème Auto- Positionnement",null,{"$f":"'Base Professeur'!$AC$5","v":"Objectifs"},{"$f":"'Base Professeur'!$AD$5","v":"Non Atteint"},{"$f":"'Base Professeur'!$AE$5","v":"Partiellement"},{"$f":"'Base Professeur'!$AF$5","v":"Atteint"},{"$f":"'Base Professeur'!$AG$5","v":"Dépassé"},"1er Auto-    Positionnement ","2ème Auto- Positionnement"]
[null,{"$f":"'Base Professeur'!$H$6","v":"Chorégraphe acteur"},{"$f":"'Base Professeur'!$I$6","v":"Apporte peu au groupe, peu déchange, gêne. Numérique mal ou pas utilisé"},{"$f":"'Base Professeur'!$J$6","v":"Participe ponctuellement.             Peu de numérique "},{"$f":"'Base Professeur'!$K$6","v":"Actif, participe pour plus-value.            Numérique utilisé"},{"$f":"'Base Professeur'!$L$6","v":"Fort de propositions, constructifs. Numérique en plus-value"},null,null,null,{"$f":"'Base Professeur'!$O$6","v":0},{"$f":"'Base Professeur'!$P$6","v":0},{"$f":"'Base Professeur'!$Q$6","v":0},{"$f":"'Base Professeur'!$R$6","v":0},{"$f":"'Base Professeur'!$S$6","v":0},null,null,null,{"$f":"'Base Professeur'!$V$6","v":0},{"$f":"'Base Professeur'!$W$6","v":0},{"$f":"'Base Professeur'!$X$6","v":0},{"$f":"'Base Professeur'!$Y$6","v":0},{"$f":"'Base Professeur'!$Z$6","v":0},null,null,null,{"$f":"'Base Professeur'!$AC$6","v":0},{"$f":"'Base Professeur'!$AD$6","v":0},{"$f":"'Base Professeur'!$AE$6","v":0},{"$f":"'Base Professeur'!$AF$6","v":0},{"$f":"'Base Professeur'!$AG$6","v":0}]
[null,{"$f":"'Base Professeur'!$H$7","v":"Danseur volontaire"},{"$f":"'Base Professeur'!$I$7","v":"Danse dans son coin, aucuns liens avec les autres danseurs"},{"$f":"'Base Professeur'!$J$7","v":"Hésite, se réfère aux autres danseurs"},{"$f":"'Base Professeur'!$K$7","v":"Concentré à danser"},{"$f":"'Base Professeur'!$L$7","v":"Vit sa danse"},null,null,null,{"$f":"'Base Professeur'!$O$7","v":2},{"$f":"'Base Professeur'!$P$7","v":0},{"$f":"'Base Professeur'!$Q$7","v":0},{"$f":"'Base Professeur'!$R$7","v":0},{"$f":"'Base Professeur'!$S$7","v":0},null,null,null,{"$f":"'Base Professeur'!$V$7","v":8},{"$f":"'Base Professeur'!$W$7","v":0},{"$f":"'Base Professeur'!$X$7","v":0},{"$f":"'Base Professeur'!$Y$7","v":0},{"$f":"'Base Professeur'!$Z$7","v":0},null,null,null,{"$f":"'Base Professeur'!$AC$7","v":14},{"$f":"'Base Professeur'!$AD$7","v":0},{"$f":"'Base Professeur'!$AE$7","v":0},{"$f":"'Base Professeur'!$AF$7","v":0},{"$f":"'Base Professeur'!$AG$7","v":0}]
[null,{"$f":"'Base Professeur'!$H$8","v":"Danseur acteur"},{"$f":"'Base Professeur'!$I$8","v":"Beaucoup d’hésitations, gestes parasites, rire, regard au sol …"},{"$f":"'Base Professeur'!$J$8","v":"Gestuelle connue. Quelques hésitations ou gestes parasites"},{"$f":"'Base Professeur'!$K$8","v":"Gestuelle précise. Aucunes hésitations ou gestes parasites"},{"$f":"'Base Professeur'!$L$8","v":"Gestuelle très précise. Aucunes erreurs"},null,null,null,{"$f":"'Base Professeur'!$O$8","v":0},{"$f":"'Base Professeur'!$P$8","v":3},{"$f":"'Base Professeur'!$Q$8","v":0},{"$f":"'Base Professeur'!$R$8","v":0},{"$f":"'Base Professeur'!$S$8","v":0},null,null,null,{"$f":"'Base Professeur'!$V$8","v":0},{"$f":"'Base Professeur'!$W$8","v":9},{"$f":"'Base Professeur'!$X$8","v":0},{"$f":"'Base Professeur'!$Y$8","v":0},{"$f":"'Base Professeur'!$Z$8","v":0},null,null,null,{"$f":"'Base Professeur'!$AC$8","v":0},{"$f":"'Base Professeur'!$AD$8","v":15},{"$f":"'Base Professeur'!$AE$8","v":0},{"$f":"'Base Professeur'!$AF$8","v":0},{"$f":"'Base Professeur'!$AG$8","v":0}]
[null,{"$f":"'Base Professeur'!$H$9","v":"Prestation de groupe finalisée"},{"$f":"'Base Professeur'!$I$9","v":"Manque deux exigences et +"},{"$f":"'Base Professeur'!$J$9","v":"Manque une exigence"},{"$f":"'Base Professeur'!$K$9","v":"Toutes les exigences"},{"$f":"'Base Professeur'!$L$9","v":"Toutes exigences et relation au thème"},null,null,null,{"$f":"'Base Professeur'!$O$9","v":0},{"$f":"'Base Professeur'!$P$9","v":0},{"$f":"'Base Professeur'!$Q$9","v":4},{"$f":"'Base Professeur'!$R$9","v":0},{"$f":"'Base Professeur'!$S$9","v":0},null,null,null,{"$f":"'Base Professeur'!$V$9","v":0},{"$f":"'Base Professeur'!$W$9","v":0},{"$f":"'Base Professeur'!$X$9","v":10},{"$f":"'Base Professeur'!$Y$9","v":0},{"$f":"'Base Professeur'!$Z$9","v":0},null,null,null,{"$f":"'Base Professeur'!$AC$9","v":0},{"$f":"'Base Professeur'!$AD$9","v":0},{"$f":"'Base Professeur'!$AE$9","v":16},{"$f":"'Base Professeur'!$AF$9","v":0},{"$f":"'Base Professeur'!$AG$9","v":0}]
[null,{"$f":"'Base Professeur'!$H$10","v":"Échauffement"},{"$f":"'Base Professeur'!$I$10","v":"Echauffement Oublié"},{"$f":"'Base Professeur'!$J$10","v":"Echauffement Baclé"},{"$f":"'Base Professeur'!$K$10","v":"Echauffement Bien Exécuté"},{"$f":"'Base Professeur'!$L$10","v":"Echauffement Bien Exécuté et Guidé"},null,null,null,{"$f":"'Base Professeur'!$O$10","v":0},{"$f":"'Base Professeur'!$P$10","v":0},{"$f":"'Base Professeur'!$Q$10","v":0},{"$f":"'Base Professeur'!$R$10","v":5},{"$f":"'Base Professeur'!$S$10","v":0},null,null,null,{"$f":"'Base Professeur'!$V$10","v":0},{"$f":"'Base Professeur'!$W$10","v":0},{"$f":"'Base Professeur'!$X$10","v":0},{"$f":"'Base Professeur'!$Y$10","v":11},{"$f":"'Base Professeur'!$Z$10","v":0},null,null,null,{"$f":"'Base Professeur'!$AC$10","v":0},{"$f":"'Base Professeur'!$AD$10","v":0},{"$f":"'Base Professeur'!$AE$10","v":0},{"$f":"'Base Professeur'!$AF$10","v":17},{"$f":"'Base Professeur'!$AG$10","v":0}]
[null,{"$f":"'Base Professeur'!$H$11","v":"Spectateur"},{"$f":"'Base Professeur'!$I$11","v":"Ricane et n'observe pas"},{"$f":"'Base Professeur'!$J$11","v":"Bavardages et observation imprécise"},{"$f":"'Base Professeur'!$K$11","v":"Respecte et Observation précise"},{"$f":"'Base Professeur'!$L$11","v":"Apprécie et Conseil constructif"},null,null,null,{"$f":"'Base Professeur'!$O$11","v":0},{"$f":"'Base Professeur'!$P$11","v":0},{"$f":"'Base Professeur'!$Q$11","v":0},{"$f":"'Base Professeur'!$R$11","v":0},{"$f":"'Base Professeur'!$S$11","v":6},null,null,null,{"$f":"'Base Professeur'!$V$11","v":0},{"$f":"'Base Professeur'!$W$11","v":0},{"$f":"'Base Professeur'!$X$11","v":0},{"$f":"'Base Professeur'!$Y$11","v":0},{"$f":"'Base Professeur'!$Z$11","v":12},null,null,null,{"$f":"'Base Professeur'!$AC$11","v":0},{"$f":"'Base Professeur'!$AD$11","v":0},{"$f":"'Base Professeur'!$AE$11","v":0},{"$f":"'Base Professeur'!$AF$11","v":0},{"$f":"'Base Professeur'!$AG$11","v":18}]
[]
[null,{"$f":"'Base Professeur'!C28","v":"Enzo"},null,null,null,null,null,null,null,{"$f":"B232","v":"Enzo"},null,null,null,null,null,null,null,{"$f":"J232","v":"Enzo"},null,null,null,null,null,null,null,{"$f":"R232","v":"Enzo"}]
[null,{"$f":"'Base Professeur'!$G$4","v":"Danse"},null,null,null,null,null,null,null,{"$f":"'Base Professeur'!$N$4","v":"Course d'Orientation"},null,null,null,null,null,null,null,{"$f":"'Base Professeur'!$U$4","v":"Musculation"},null,null,null,null,null,null,null,{"$f":"'Base Professeur'!$AB$4","v":"Demi-Fond"}]
[null,{"$f":"'Base Professeur'!$H$5","v":"Objectifs"},{"$f":"'Base Professeur'!$I$5","v":"Non Atteint"},{"$f":"'Base Professeur'!$J$5","v":"Partiellement"},{"$f":"'Base Professeur'!$K$5","v":"Atteint"},{"$f":"'Base Professeur'!$L$5","v":"Dépassé"},"1er Auto-    Positionnement ","2ème Auto- Positionnement",null,{"$f":"'Base Professeur'!$O$5","v":"Objectifs"},{"$f":"'Base Professeur'!$P$5","v":"Non Atteint"},{"$f":"'Base Professeur'!$Q$5","v":"Partiellement"},{"$f":"'Base Professeur'!$R$5","v":"Atteint"},{"$f":"'Base Professeur'!$S$5","v":"Dépassé"},"1er Auto-    Positionnement ","2ème Auto- Positionnement",null,{"$f":"'Base Professeur'!$V$5","v":"Objectifs"},{"$f":"'Base Professeur'!$W$5","v":"Non Atteint"},{"$f":"'Base Professeur'!X235","v":0},{"$f":"'Base Professeur'!$Y$5","v":"Atteint"},{"$f":"'Base Professeur'!$Z$5","v":"Dépassé"},"1er Auto-    Positionnement ","2ème Auto- Positionnement",null,{"$f":"'Base Professeur'!$AC$5","v":"Objectifs"},{"$f":"'Base Professeur'!$AD$5","v":"Non Atteint"},{"$f":"'Base Professeur'!$AE$5","v":"Partiellement"},{"$f":"'Base Professeur'!$AF$5","v":"Atteint"},{"$f":"'Base Professeur'!$AG$5","v":"Dépassé"},"1er Auto-    Positionnement ","2ème Auto- Positionnement"]
[null,{"$f":"'Base Professeur'!$H$6","v":"Chorégraphe acteur"},{"$f":"'Base Professeur'!$I$6","v":"Apporte peu au groupe, peu déchange, gêne. Numérique mal ou pas utilisé"},{"$f":"'Base Professeur'!$J$6","v":"Participe ponctuellement.             Peu de numérique "},{"$f":"'Base Professeur'!$K$6","v":"Actif, participe pour plus-value.            Numérique utilisé"},{"$f":"'Base Professeur'!$L$6","v":"Fort de propositions, constructifs. Numérique en plus-value"},null,null,null,{"$f":"'Base Professeur'!$O$6","v":0},{"$f":"'Base Professeur'!$P$6","v":0},{"$f":"'Base Professeur'!$Q$6","v":0},{"$f":"'Base Professeur'!$R$6","v":0},{"$f":"'Base Professeur'!$S$6","v":0},null,null,null,{"$f":"'Base Professeur'!$V$6","v":0},{"$f":"'Base Professeur'!$W$6","v":0},{"$f":"'Base Professeur'!$X$6","v":0},{"$f":"'Base Professeur'!$Y$6","v":0},{"$f":"'Base Professeur'!$Z$6","v":0},null,null,null,{"$f":"'Base Professeur'!$AC$6","v":0},{"$f":"'Base Professeur'!$AD$6","v":0},{"$f":"'Base Professeur'!$AE$6","v":0},{"$f":"'Base Professeur'!$AF$6","v":0},{"$f":"'Base Professeur'!$AG$6","v":0}]
[null,{"$f":"'Base Professeur'!$H$7","v":"Danseur volontaire"},{"$f":"'Base Professeur'!$I$7","v":"Danse dans son coin, aucuns liens avec les autres danseurs"},{"$f":"'Base Professeur'!$J$7","v":"Hésite, se réfère aux autres danseurs"},{"$f":"'Base Professeur'!$K$7","v":"Concentré à danser"},{"$f":"'Base Professeur'!$L$7","v":"Vit sa danse"},null,null,null,{"$f":"'Base Professeur'!$O$7","v":2},{"$f":"'Base Professeur'!$P$7","v":0},{"$f":"'Base Professeur'!$Q$7","v":0},{"$f":"'Base Professeur'!$R$7","v":0},{"$f":"'Base Professeur'!$S$7","v":0},null,null,null,{"$f":"'Base Professeur'!$V$7","v":8},{"$f":"'Base Professeur'!$W$7","v":0},{"$f":"'Base Professeur'!$X$7","v":0},{"$f":"'Base Professeur'!$Y$7","v":0},{"$f":"'Base Professeur'!$Z$7","v":0},null,null,null,{"$f":"'Base Professeur'!$AC$7","v":14},{"$f":"'Base Professeur'!$AD$7","v":0},{"$f":"'Base Professeur'!$AE$7","v":0},{"$f":"'Base Professeur'!$AF$7","v":0},{"$f":"'Base Professeur'!$AG$7","v":0}]
[null,{"$f":"'Base Professeur'!$H$8","v":"Danseur acteur"},{"$f":"'Base Professeur'!$I$8","v":"Beaucoup d’hésitations, gestes parasites, rire, regard au sol …"},{"$f":"'Base Professeur'!$J$8","v":"Gestuelle connue. Quelques hésitations ou gestes parasites"},{"$f":"'Base Professeur'!$K$8","v":"Gestuelle précise. Aucunes hésitations ou gestes parasites"},{"$f":"'Base Professeur'!$L$8","v":"Gestuelle très précise. Aucunes erreurs"},null,null,null,{"$f":"'Base Professeur'!$O$8","v":0},{"$f":"'Base Professeur'!$P$8","v":3},{"$f":"'Base Professeur'!$Q$8","v":0},{"$f":"'Base Professeur'!$R$8","v":0},{"$f":"'Base Professeur'!$S$8","v":0},null,null,null,{"$f":"'Base Professeur'!$V$8","v":0},{"$f":"'Base Professeur'!$W$8","v":9},{"$f":"'Base Professeur'!$X$8","v":0},{"$f":"'Base Professeur'!$Y$8","v":0},{"$f":"'Base Professeur'!$Z$8","v":0},null,null,null,{"$f":"'Base Professeur'!$AC$8","v":0},{"$f":"'Base Professeur'!$AD$8","v":15},{"$f":"'Base Professeur'!$AE$8","v":0},{"$f":"'Base Professeur'!$AF$8","v":0},{"$f":"'Base Professeur'!$AG$8","v":0}]
[null,{"$f":"'Base Professeur'!$H$9","v":"Prestation de groupe finalisée"},{"$f":"'Base Professeur'!$I$9","v":"Manque deux exigences et +"},{"$f":"'Base Professeur'!$J$9","v":"Manque une exigence"},{"$f":"'Base Professeur'!$K$9","v":"Toutes les exigences"},{"$f":"'Base Professeur'!$L$9","v":"Toutes exigences et relation au thème"},null,null,null,{"$f":"'Base Professeur'!$O$9","v":0},{"$f":"'Base Professeur'!$P$9","v":0},{"$f":"'Base Professeur'!$Q$9","v":4},{"$f":"'Base Professeur'!$R$9","v":0},{"$f":"'Base Professeur'!$S$9","v":0},null,null,null,{"$f":"'Base Professeur'!$V$9","v":0},{"$f":"'Base Professeur'!$W$9","v":0},{"$f":"'Base Professeur'!$X$9","v":10},{"$f":"'Base Professeur'!$Y$9","v":0},{"$f":"'Base Professeur'!$Z$9","v":0},null,null,null,{"$f":"'Base Professeur'!$AC$9","v":0},{"$f":"'Base Professeur'!$AD$9","v":0},{"$f":"'Base Professeur'!$AE$9","v":16},{"$f":"'Base Professeur'!$AF$9","v":0},{"$f":"'Base Professeur'!$AG$9","v":0}]
[null,{"$f":"'Base Professeur'!$H$10","v":"Échauffement"},{"$f":"'Base Professeur'!$I$10","v":"Echauffement Oublié"},{"$f":"'Base Professeur'!$J$10","v":"Echauffement Baclé"},{"$f":"'Base Professeur'!$K$10","v":"Echauffement Bien Exécuté"},{"$f":"'Base Professeur'!$L$10","v":"Echauffement Bien Exécuté et Guidé"},null,null,null,{"$f":"'Base Professeur'!$O$10","v":0},{"$f":"'Base Professeur'!$P$10","v":0},{"$f":"'Base Professeur'!$Q$10","v":0},{"$f":"'Base Professeur'!$R$10","v":5},{"$f":"'Base Professeur'!$S$10","v":0},null,null,null,{"$f":"'Base Professeur'!$V$10","v":0},{"$f":"'Base Professeur'!$W$10","v":0},{"$f":"'Base Professeur'!$X$10","v":0},{"$f":"'Base Professeur'!$Y$10","v":11},{"$f":"'Base Professeur'!$Z$10","v":0},null,null,null,{"$f":"'Base Professeur'!$AC$10","v":0},{"$f":"'Base Professeur'!$AD$10","v":0},{"$f":"'Base Professeur'!$AE$10","v":0},{"$f":"'Base Professeur'!$AF$10","v":17},{"$f":"'Base Professeur'!$AG$10","v":0}]
[null,{"$f":"'Base Professeur'!$H$11","v":"Spectateur"},{"$f":"'Base Professeur'!$I$11","v":"Ricane et n'observe pas"},{"$f":"'Base Professeur'!$J$11","v":"Bavardages et observation imprécise"},{"$f":"'Base Professeur'!$K$11","v":"Respecte et Observation précise"},{"$f":"'Base Professeur'!$L$11","v":"Apprécie et Conseil constructif"},null,null,null,{"$f":"'Base Professeur'!$O$11","v":0},{"$f":"'Base Professeur'!$P$11","v":0},{"$f":"'Base Professeur'!$Q$11","v":0},{"$f":"'Base Professeur'!$R$11","v":0},{"$f":"'Base Professeur'!$S$11","v":6},null,null,null,{"$f":"'Base Professeur'!$V$11","v":0},{"$f":"'Base Professeur'!$W$11","v":0},{"$f":"'Base Professeur'!$X$11","v":0},{"$f":"'Base Professeur'!$Y$11","v":0},{"$f":"'Base Professeur'!$Z$11","v":12},null,null,null,{"$f":"'Base Professeur'!$AC$11","v":0},{"$f":"'Base Professeur'!$AD$11","v":0},{"$f":"'Base Professeur'!$AE$11","v":0},{"$f":"'Base Professeur'!$AF$11","v":0},{"$f":"'Base Professeur'!$AG$11","v":18}]
[]
[null,{"$f":"'Base Professeur'!C29","v":"Elève 1"},null,null,null,null,null,null,null,{"$f":"B242","v":"Elève 1"},null,null,null,null,null,null,null,{"$f":"J242","v":"Elève 1"},null,null,null,null,null,null,null,{"$f":"R242","v":"Elève 1"}]
[null,{"$f":"'Base Professeur'!$G$4","v":"Danse"},null,null,null,null,null,null,null,{"$f":"'Base Professeur'!$N$4","v":"Course d'Orientation"},null,null,null,null,null,null,null,{"$f":"'Base Professeur'!$U$4","v":"Musculation"},null,null,null,null,null,null,null,{"$f":"'Base Professeur'!$AB$4","v":"Demi-Fond"}]
[null,{"$f":"'Base Professeur'!$H$5","v":"Objectifs"},{"$f":"'Base Professeur'!$I$5","v":"Non Atteint"},{"$f":"'Base Professeur'!$J$5","v":"Partiellement"},{"$f":"'Base Professeur'!$K$5","v":"Atteint"},{"$f":"'Base Professeur'!$L$5","v":"Dépassé"},"1er Auto-    Positionnement ","2ème Auto- Positionnement",null,{"$f":"'Base Professeur'!$O$5","v":"Objectifs"},{"$f":"'Base Professeur'!$P$5","v":"Non Atteint"},{"$f":"'Base Professeur'!$Q$5","v":"Partiellement"},{"$f":"'Base Professeur'!$R$5","v":"Atteint"},{"$f":"'Base Professeur'!$S$5","v":"Dépassé"},"1er Auto-    Positionnement ","2ème Auto- Positionnement",null,{"$f":"'Base Professeur'!$V$5","v":"Objectifs"},{"$f":"'Base Professeur'!$W$5","v":"Non Atteint"},{"$f":"'Base Professeur'!X245","v":0},{"$f":"'Base Professeur'!$Y$5","v":"Atteint"},{"$f":"'Base Professeur'!$Z$5","v":"Dépassé"},"1er Auto-    Positionnement ","2ème Auto- Positionnement",null,{"$f":"'Base Professeur'!$AC$5","v":"Objectifs"},{"$f":"'Base Professeur'!$AD$5","v":"Non Atteint"},{"$f":"'Base Professeur'!$AE$5","v":"Partiellement"},{"$f":"'Base Professeur'!$AF$5","v":"Atteint"},{"$f":"'Base Professeur'!$AG$5","v":"Dépassé"},"1er Auto-    Positionnement ","2ème Auto- Positionnement"]
[null,{"$f":"'Base Professeur'!$H$6","v":"Chorégraphe acteur"},{"$f":"'Base Professeur'!$I$6","v":"Apporte peu au groupe, peu déchange, gêne. Numérique mal ou pas utilisé"},{"$f":"'Base Professeur'!$J$6","v":"Participe ponctuellement.             Peu de numérique "},{"$f":"'Base Professeur'!$K$6","v":"Actif, participe pour plus-value.            Numérique utilisé"},{"$f":"'Base Professeur'!$L$6","v":"Fort de propositions, constructifs. Numérique en plus-value"},null,null,null,{"$f":"'Base Professeur'!$O$6","v":0},{"$f":"'Base Professeur'!$P$6","v":0},{"$f":"'Base Professeur'!$Q$6","v":0},{"$f":"'Base Professeur'!$R$6","v":0},{"$f":"'Base Professeur'!$S$6","v":0},null,null,null,{"$f":"'Base Professeur'!$V$6","v":0},{"$f":"'Base Professeur'!$W$6","v":0},{"$f":"'Base Professeur'!$X$6","v":0},{"$f":"'Base Professeur'!$Y$6","v":0},{"$f":"'Base Professeur'!$Z$6","v":0},null,null,null,{"$f":"'Base Professeur'!$AC$6","v":0},{"$f":"'Base Professeur'!$AD$6","v":0},{"$f":"'Base Professeur'!$AE$6","v":0},{"$f":"'Base Professeur'!$AF$6","v":0},{"$f":"'Base Professeur'!$AG$6","v":0}]
[null,{"$f":"'Base Professeur'!$H$7","v":"Danseur volontaire"},{"$f":"'Base Professeur'!$I$7","v":"Danse dans son coin, aucuns liens avec les autres danseurs"},{"$f":"'Base Professeur'!$J$7","v":"Hésite, se réfère aux autres danseurs"},{"$f":"'Base Professeur'!$K$7","v":"Concentré à danser"},{"$f":"'Base Professeur'!$L$7","v":"Vit sa danse"},null,null,null,{"$f":"'Base Professeur'!$O$7","v":2},{"$f":"'Base Professeur'!$P$7","v":0},{"$f":"'Base Professeur'!$Q$7","v":0},{"$f":"'Base Professeur'!$R$7","v":0},{"$f":"'Base Professeur'!$S$7","v":0},null,null,null,{"$f":"'Base Professeur'!$V$7","v":8},{"$f":"'Base Professeur'!$W$7","v":0},{"$f":"'Base Professeur'!$X$7","v":0},{"$f":"'Base Professeur'!$Y$7","v":0},{"$f":"'Base Professeur'!$Z$7","v":0},null,null,null,{"$f":"'Base Professeur'!$AC$7","v":14},{"$f":"'Base Professeur'!$AD$7","v":0},{"$f":"'Base Professeur'!$AE$7","v":0},{"$f":"'Base Professeur'!$AF$7","v":0},{"$f":"'Base Professeur'!$AG$7","v":0}]
[null,{"$f":"'Base Professeur'!$H$8","v":"Danseur acteur"},{"$f":"'Base Professeur'!$I$8","v":"Beaucoup d’hésitations, gestes parasites, rire, regard au sol …"},{"$f":"'Base Professeur'!$J$8","v":"Gestuelle connue. Quelques hésitations ou gestes parasites"},{"$f":"'Base Professeur'!$K$8","v":"Gestuelle précise. Aucunes hésitations ou gestes parasites"},{"$f":"'Base Professeur'!$L$8","v":"Gestuelle très précise. Aucunes erreurs"},null,null,null,{"$f":"'Base Professeur'!$O$8","v":0},{"$f":"'Base Professeur'!$P$8","v":3},{"$f":"'Base Professeur'!$Q$8","v":0},{"$f":"'Base Professeur'!$R$8","v":0},{"$f":"'Base Professeur'!$S$8","v":0},null,null,null,{"$f":"'Base Professeur'!$V$8","v":0},{"$f":"'Base Professeur'!$W$8","v":9},{"$f":"'Base Professeur'!$X$8","v":0},{"$f":"'Base Professeur'!$Y$8","v":0},{"$f":"'Base Professeur'!$Z$8","v":0},null,null,null,{"$f":"'Base Professeur'!$AC$8","v":0},{"$f":"'Base Professeur'!$AD$8","v":15},{"$f":"'Base Professeur'!$AE$8","v":0},{"$f":"'Base Professeur'!$AF$8","v":0},{"$f":"'Base Professeur'!$AG$8","v":0}]
[null,{"$f":"'Base Professeur'!$H$9","v":"Prestation de groupe finalisée"},{"$f":"'Base Professeur'!$I$9","v":"Manque deux exigences et +"},{"$f":"'Base Professeur'!$J$9","v":"Manque une exigence"},{"$f":"'Base Professeur'!$K$9","v":"Toutes les exigences"},{"$f":"'Base Professeur'!$L$9","v":"Toutes exigences et relation au thème"},null,null,null,{"$f":"'Base Professeur'!$O$9","v":0},{"$f":"'Base Professeur'!$P$9","v":0},{"$f":"'Base Professeur'!$Q$9","v":4},{"$f":"'Base Professeur'!$R$9","v":0},{"$f":"'Base Professeur'!$S$9","v":0},null,null,null,{"$f":"'Base Professeur'!$V$9","v":0},{"$f":"'Base Professeur'!$W$9","v":0},{"$f":"'Base Professeur'!$X$9","v":10},{"$f":"'Base Professeur'!$Y$9","v":0},{"$f":"'Base Professeur'!$Z$9","v":0},null,null,null,{"$f":"'Base Professeur'!$AC$9","v":0},{"$f":"'Base Professeur'!$AD$9","v":0},{"$f":"'Base Professeur'!$AE$9","v":16},{"$f":"'Base Professeur'!$AF$9","v":0},{"$f":"'Base Professeur'!$AG$9","v":0}]
[null,{"$f":"'Base Professeur'!$H$10","v":"Échauffement"},{"$f":"'Base Professeur'!$I$10","v":"Echauffement Oublié"},{"$f":"'Base Professeur'!$J$10","v":"Echauffement Baclé"},{"$f":"'Base Professeur'!$K$10","v":"Echauffement Bien Exécuté"},{"$f":"'Base Professeur'!$L$10","v":"Echauffement Bien Exécuté et Guidé"},null,null,null,{"$f":"'Base Professeur'!$O$10","v":0},{"$f":"'Base Professeur'!$P$10","v":0},{"$f":"'Base Professeur'!$Q$10","v":0},{"$f":"'Base Professeur'!$R$10","v":5},{"$f":"'Base Professeur'!$S$10","v":0},null,null,null,{"$f":"'Base Professeur'!$V$10","v":0},{"$f":"'Base Professeur'!$W$10","v":0},{"$f":"'Base Professeur'!$X$10","v":0},{"$f":"'Base Professeur'!$Y$10","v":11},{"$f":"'Base Professeur'!$Z$10","v":0},null,null,null,{"$f":"'Base Professeur'!$AC$10","v":0},{"$f":"'Base Professeur'!$AD$10","v":0},{"$f":"'Base Professeur'!$AE$10","v":0},{"$f":"'Base Professeur'!$AF$10","v":17},{"$f":"'Base Professeur'!$AG$10","v":0}]
[null,{"$f":"'Base Professeur'!$H$11","v":"Spectateur"},{"$f":"'Base Professeur'!$I$11","v":"Ricane et n'observe pas"},{"$f":"'Base Professeur'!$J$11","v":"Bavardages et observation imprécise"},{"$f":"'Base Professeur'!$K$11","v":"Respecte et Observation précise"},{"$f":"'Base Professeur'!$L$11","v":"Apprécie et Conseil constructif"},null,null,null,{"$f":"'Base Professeur'!$O$11","v":0},{"$f":"'Base Professeur'!$P$11","v":0},{"$f":"'Base Professeur'!$Q$11","v":0},{"$f":"'Base Professeur'!$R$11","v":0},{"$f":"'Base Professeur'!$S$11","v":6},null,null,null,{"$f":"'Base Professeur'!$V$11","v":0},{"$f":"'Base Professeur'!$W$11","v":0},{"$f":"'Base Professeur'!$X$11","v":0},{"$f":"'Base Professeur'!$Y$11","v":0},{"$f":"'Base Professeur'!$Z$11","v":12},null,null,null,{"$f":"'Base Professeur'!$AC$11","v":0},{"$f":"'Base Professeur'!$AD$11","v":0},{"$f":"'Base Professeur'!$AE$11","v":0},{"$f":"'Base Professeur'!$AF$11","v":0},{"$f":"'Base Professeur'!$AG$11","v":18}]
[]
[null,{"$f":"'Base Professeur'!C30","v":2},null,null,null,null,null,null,null,{"$f":"B252","v":2},null,null,null,null,null,null,null,{"$f":"J252","v":2},null,null,null,null,null,null,null,{"$f":"R252","v":2}]
[null,{"$f":"'Base Professeur'!$G$4","v":"Danse"},null,null,null,null,null,null,null,{"$f":"'Base Professeur'!$N$4","v":"Course d'Orientation"},null,null,null,null,null,null,null,{"$f":"'Base Professeur'!$U$4","v":"Musculation"},null,null,null,null,null,null,null,{"$f":"'Base Professeur'!$AB$4","v":"Demi-Fond"}]
[null,{"$f":"'Base Professeur'!$H$5","v":"Objectifs"},{"$f":"'Base Professeur'!$I$5","v":"Non Atteint"},{"$f":"'Base Professeur'!$J$5","v":"Partiellement"},{"$f":"'Base Professeur'!$K$5","v":"Atteint"},{"$f":"'Base Professeur'!$L$5","v":"Dépassé"},"1er Auto-    Positionnement ","2ème Auto- Positionnement",null,{"$f":"'Base Professeur'!$O$5","v":"Objectifs"},{"$f":"'Base Professeur'!$P$5","v":"Non Atteint"},{"$f":"'Base Professeur'!$Q$5","v":"Partiellement"},{"$f":"'Base Professeur'!$R$5","v":"Atteint"},{"$f":"'Base Professeur'!$S$5","v":"Dépassé"},"1er Auto-    Positionnement ","2ème Auto- Positionnement",null,{"$f":"'Base Professeur'!$V$5","v":"Objectifs"},{"$f":"'Base Professeur'!$W$5","v":"Non Atteint"},{"$f":"'Base Professeur'!X255","v":0},{"$f":"'Base Professeur'!$Y$5","v":"Atteint"},{"$f":"'Base Professeur'!$Z$5","v":"Dépassé"},"1er Auto-    Positionnement ","2ème Auto- Positionnement",null,{"$f":"'Base Professeur'!$AC$5","v":"Objectifs"},{"$f":"'Base Professeur'!$AD$5","v":"Non Atteint"},{"$f":"'Base Professeur'!$AE$5","v":"Partiellement"},{"$f":"'Base Professeur'!$AF$5","v":"Atteint"},{"$f":"'Base Professeur'!$AG$5","v":"Dépassé"},"1er Auto-    Positionnement ","2ème Auto- Positionnement"]
[null,{"$f":"'Base Professeur'!$H$6","v":"Chorégraphe acteur"},{"$f":"'Base Professeur'!$I$6","v":"Apporte peu au groupe, peu déchange, gêne. Numérique mal ou pas utilisé"},{"$f":"'Base Professeur'!$J$6","v":"Participe ponctuellement.             Peu de numérique "},{"$f":"'Base Professeur'!$K$6","v":"Actif, participe pour plus-value.            Numérique utilisé"},{"$f":"'Base Professeur'!$L$6","v":"Fort de propositions, constructifs. Numérique en plus-value"},null,null,null,{"$f":"'Base Professeur'!$O$6","v":0},{"$f":"'Base Professeur'!$P$6","v":0},{"$f":"'Base Professeur'!$Q$6","v":0},{"$f":"'Base Professeur'!$R$6","v":0},{"$f":"'Base Professeur'!$S$6","v":0},null,null,null,{"$f":"'Base Professeur'!$V$6","v":0},{"$f":"'Base Professeur'!$W$6","v":0},{"$f":"'Base Professeur'!$X$6","v":0},{"$f":"'Base Professeur'!$Y$6","v":0},{"$f":"'Base Professeur'!$Z$6","v":0},null,null,null,{"$f":"'Base Professeur'!$AC$6","v":0},{"$f":"'Base Professeur'!$AD$6","v":0},{"$f":"'Base Professeur'!$AE$6","v":0},{"$f":"'Base Professeur'!$AF$6","v":0},{"$f":"'Base Professeur'!$AG$6","v":0}]
[null,{"$f":"'Base Professeur'!$H$7","v":"Danseur volontaire"},{"$f":"'Base Professeur'!$I$7","v":"Danse dans son coin, aucuns liens avec les autres danseurs"},{"$f":"'Base Professeur'!$J$7","v":"Hésite, se réfère aux autres danseurs"},{"$f":"'Base Professeur'!$K$7","v":"Concentré à danser"},{"$f":"'Base Professeur'!$L$7","v":"Vit sa danse"},null,null,null,{"$f":"'Base Professeur'!$O$7","v":2},{"$f":"'Base Professeur'!$P$7","v":0},{"$f":"'Base Professeur'!$Q$7","v":0},{"$f":"'Base Professeur'!$R$7","v":0},{"$f":"'Base Professeur'!$S$7","v":0},null,null,null,{"$f":"'Base Professeur'!$V$7","v":8},{"$f":"'Base Professeur'!$W$7","v":0},{"$f":"'Base Professeur'!$X$7","v":0},{"$f":"'Base Professeur'!$Y$7","v":0},{"$f":"'Base Professeur'!$Z$7","v":0},null,null,null,{"$f":"'Base Professeur'!$AC$7","v":14},{"$f":"'Base Professeur'!$AD$7","v":0},{"$f":"'Base Professeur'!$AE$7","v":0},{"$f":"'Base Professeur'!$AF$7","v":0},{"$f":"'Base Professeur'!$AG$7","v":0}]
[null,{"$f":"'Base Professeur'!$H$8","v":"Danseur acteur"},{"$f":"'Base Professeur'!$I$8","v":"Beaucoup d’hésitations, gestes parasites, rire, regard au sol …"},{"$f":"'Base Professeur'!$J$8","v":"Gestuelle connue. Quelques hésitations ou gestes parasites"},{"$f":"'Base Professeur'!$K$8","v":"Gestuelle précise. Aucunes hésitations ou gestes parasites"},{"$f":"'Base Professeur'!$L$8","v":"Gestuelle très précise. Aucunes erreurs"},null,null,null,{"$f":"'Base Professeur'!$O$8","v":0},{"$f":"'Base Professeur'!$P$8","v":3},{"$f":"'Base Professeur'!$Q$8","v":0},{"$f":"'Base Professeur'!$R$8","v":0},{"$f":"'Base Professeur'!$S$8","v":0},null,null,null,{"$f":"'Base Professeur'!$V$8","v":0},{"$f":"'Base Professeur'!$W$8","v":9},{"$f":"'Base Professeur'!$X$8","v":0},{"$f":"'Base Professeur'!$Y$8","v":0},{"$f":"'Base Professeur'!$Z$8","v":0},null,null,null,{"$f":"'Base Professeur'!$AC$8","v":0},{"$f":"'Base Professeur'!$AD$8","v":15},{"$f":"'Base Professeur'!$AE$8","v":0},{"$f":"'Base Professeur'!$AF$8","v":0},{"$f":"'Base Professeur'!$AG$8","v":0}]
[null,{"$f":"'Base Professeur'!$H$9","v":"Prestation de groupe finalisée"},{"$f":"'Base Professeur'!$I$9","v":"Manque deux exigences et +"},{"$f":"'Base Professeur'!$J$9","v":"Manque une exigence"},{"$f":"'Base Professeur'!$K$9","v":"Toutes les exigences"},{"$f":"'Base Professeur'!$L$9","v":"Toutes exigences et relation au thème"},null,null,null,{"$f":"'Base Professeur'!$O$9","v":0},{"$f":"'Base Professeur'!$P$9","v":0},{"$f":"'Base Professeur'!$Q$9","v":4},{"$f":"'Base Professeur'!$R$9","v":0},{"$f":"'Base Professeur'!$S$9","v":0},null,null,null,{"$f":"'Base Professeur'!$V$9","v":0},{"$f":"'Base Professeur'!$W$9","v":0},{"$f":"'Base Professeur'!$X$9","v":10},{"$f":"'Base Professeur'!$Y$9","v":0},{"$f":"'Base Professeur'!$Z$9","v":0},null,null,null,{"$f":"'Base Professeur'!$AC$9","v":0},{"$f":"'Base Professeur'!$AD$9","v":0},{"$f":"'Base Professeur'!$AE$9","v":16},{"$f":"'Base Professeur'!$AF$9","v":0},{"$f":"'Base Professeur'!$AG$9","v":0}]
[null,{"$f":"'Base Professeur'!$H$10","v":"Échauffement"},{"$f":"'Base Professeur'!$I$10","v":"Echauffement Oublié"},{"$f":"'Base Professeur'!$J$10","v":"Echauffement Baclé"},{"$f":"'Base Professeur'!$K$10","v":"Echauffement Bien Exécuté"},{"$f":"'Base Professeur'!$L$10","v":"Echauffement Bien Exécuté et Guidé"},null,null,null,{"$f":"'Base Professeur'!$O$10","v":0},{"$f":"'Base Professeur'!$P$10","v":0},{"$f":"'Base Professeur'!$Q$10","v":0},{"$f":"'Base Professeur'!$R$10","v":5},{"$f":"'Base Professeur'!$S$10","v":0},null,null,null,{"$f":"'Base Professeur'!$V$10","v":0},{"$f":"'Base Professeur'!$W$10","v":0},{"$f":"'Base Professeur'!$X$10","v":0},{"$f":"'Base Professeur'!$Y$10","v":11},{"$f":"'Base Professeur'!$Z$10","v":0},null,null,null,{"$f":"'Base Professeur'!$AC$10","v":0},{"$f":"'Base Professeur'!$AD$10","v":0},{"$f":"'Base Professeur'!$AE$10","v":0},{"$f":"'Base Professeur'!$AF$10","v":17},{"$f":"'Base Professeur'!$AG$10","v":0}]
[null,{"$f":"'Base Professeur'!$H$11","v":"Spectateur"},{"$f":"'Base Professeur'!$I$11","v":"Ricane et n'observe pas"},{"$f":"'Base Professeur'!$J$11","v":"Bavardages et observation imprécise"},{"$f":"'Base Professeur'!$K$11","v":"Respecte et Observation précise"},{"$f":"'Base Professeur'!$L$11","v":"Apprécie et Conseil constructif"},null,null,null,{"$f":"'Base Professeur'!$O$11","v":0},{"$f":"'Base Professeur'!$P$11","v":0},{"$f":"'Base Professeur'!$Q$11","v":0},{"$f":"'Base Professeur'!$R$11","v":0},{"$f":"'Base Professeur'!$S$11","v":6},null,null,null,{"$f":"'Base Professeur'!$V$11","v":0},{"$f":"'Base Professeur'!$W$11","v":0},{"$f":"'Base Professeur'!$X$11","v":0},{"$f":"'Base Professeur'!$Y$11","v":0},{"$f":"'Base Professeur'!$Z$11","v":12},null,null,null,{"$f":"'Base Professeur'!$AC$11","v":0},{"$f":"'Base Professeur'!$AD$11","v":0},{"$f":"'Base Professeur'!$AE$11","v":0},{"$f":"'Base Professeur'!$AF$11","v":0},{"$f":"'Base Professeur'!$AG$11","v":18}]
[]
[null,{"$f":"'Base Professeur'!C31","v":3},null,null,null,null,null,null,null,{"$f":"B262","v":3},null,null,null,null,null,null,null,{"$f":"J262","v":3},null,null,null,null,null,null,null,{"$f":"R262","v":3}]
[null,{"$f":"'Base Professeur'!$G$4","v":"Danse"},null,null,null,null,null,null,null,{"$f":"'Base Professeur'!$N$4","v":"Course d'Orientation"},null,null,null,null,null,null,null,{"$f":"'Base Professeur'!$U$4","v":"Musculation"},null,null,null,null,null,null,null,{"$f":"'Base Professeur'!$AB$4","v":"Demi-Fond"}]
[null,{"$f":"'Base Professeur'!$H$5","v":"Objectifs"},{"$f":"'Base Professeur'!$I$5","v":"Non Atteint"},{"$f":"'Base Professeur'!$J$5","v":"Partiellement"},{"$f":"'Base Professeur'!$K$5","v":"Atteint"},{"$f":"'Base Professeur'!$L$5","v":"Dépassé"},"1er Auto-    Positionnement ","2ème Auto- Positionnement",null,{"$f":"'Base Professeur'!$O$5","v":"Objectifs"},{"$f":"'Base Professeur'!$P$5","v":"Non Atteint"},{"$f":"'Base Professeur'!$Q$5","v":"Partiellement"},{"$f":"'Base Professeur'!$R$5","v":"Atteint"},{"$f":"'Base Professeur'!$S$5","v":"Dépassé"},"1er Auto-    Positionnement ","2ème Auto- Positionnement",null,{"$f":"'Base Professeur'!$V$5","v":"Objectifs"},{"$f":"'Base Professeur'!$W$5","v":"Non Atteint"},{"$f":"'Base Professeur'!X265","v":0},{"$f":"'Base Professeur'!$Y$5","v":"Atteint"},{"$f":"'Base Professeur'!$Z$5","v":"Dépassé"},"1er Auto-    Positionnement ","2ème Auto- Positionnement",null,{"$f":"'Base Professeur'!$AC$5","v":"Objectifs"},{"$f":"'Base Professeur'!$AD$5","v":"Non Atteint"},{"$f":"'Base Professeur'!$AE$5","v":"Partiellement"},{"$f":"'Base Professeur'!$AF$5","v":"Atteint"},{"$f":"'Base Professeur'!$AG$5","v":"Dépassé"},"1er Auto-    Positionnement ","2ème Auto- Positionnement"]
[null,{"$f":"'Base Professeur'!$H$6","v":"Chorégraphe acteur"},{"$f":"'Base Professeur'!$I$6","v":"Apporte peu au groupe, peu déchange, gêne. Numérique mal ou pas utilisé"},{"$f":"'Base Professeur'!$J$6","v":"Participe ponctuellement.             Peu de numérique "},{"$f":"'Base Professeur'!$K$6","v":"Actif, participe pour plus-value.            Numérique utilisé"},{"$f":"'Base Professeur'!$L$6","v":"Fort de propositions, constructifs. Numérique en plus-value"},null,null,null,{"$f":"'Base Professeur'!$O$6","v":0},{"$f":"'Base Professeur'!$P$6","v":0},{"$f":"'Base Professeur'!$Q$6","v":0},{"$f":"'Base Professeur'!$R$6","v":0},{"$f":"'Base Professeur'!$S$6","v":0},null,null,null,{"$f":"'Base Professeur'!$V$6","v":0},{"$f":"'Base Professeur'!$W$6","v":0},{"$f":"'Base Professeur'!$X$6","v":0},{"$f":"'Base Professeur'!$Y$6","v":0},{"$f":"'Base Professeur'!$Z$6","v":0},null,null,null,{"$f":"'Base Professeur'!$AC$6","v":0},{"$f":"'Base Professeur'!$AD$6","v":0},{"$f":"'Base Professeur'!$AE$6","v":0},{"$f":"'Base Professeur'!$AF$6","v":0},{"$f":"'Base Professeur'!$AG$6","v":0}]
[null,{"$f":"'Base Professeur'!$H$7","v":"Danseur volontaire"},{"$f":"'Base Professeur'!$I$7","v":"Danse dans son coin, aucuns liens avec les autres danseurs"},{"$f":"'Base Professeur'!$J$7","v":"Hésite, se réfère aux autres danseurs"},{"$f":"'Base Professeur'!$K$7","v":"Concentré à danser"},{"$f":"'Base Professeur'!$L$7","v":"Vit sa danse"},null,null,null,{"$f":"'Base Professeur'!$O$7","v":2},{"$f":"'Base Professeur'!$P$7","v":0},{"$f":"'Base Professeur'!$Q$7","v":0},{"$f":"'Base Professeur'!$R$7","v":0},{"$f":"'Base Professeur'!$S$7","v":0},null,null,null,{"$f":"'Base Professeur'!$V$7","v":8},{"$f":"'Base Professeur'!$W$7","v":0},{"$f":"'Base Professeur'!$X$7","v":0},{"$f":"'Base Professeur'!$Y$7","v":0},{"$f":"'Base Professeur'!$Z$7","v":0},null,null,null,{"$f":"'Base Professeur'!$AC$7","v":14},{"$f":"'Base Professeur'!$AD$7","v":0},{"$f":"'Base Professeur'!$AE$7","v":0},{"$f":"'Base Professeur'!$AF$7","v":0},{"$f":"'Base Professeur'!$AG$7","v":0}]
[null,{"$f":"'Base Professeur'!$H$8","v":"Danseur acteur"},{"$f":"'Base Professeur'!$I$8","v":"Beaucoup d’hésitations, gestes parasites, rire, regard au sol …"},{"$f":"'Base Professeur'!$J$8","v":"Gestuelle connue. Quelques hésitations ou gestes parasites"},{"$f":"'Base Professeur'!$K$8","v":"Gestuelle précise. Aucunes hésitations ou gestes parasites"},{"$f":"'Base Professeur'!$L$8","v":"Gestuelle très précise. Aucunes erreurs"},null,null,null,{"$f":"'Base Professeur'!$O$8","v":0},{"$f":"'Base Professeur'!$P$8","v":3},{"$f":"'Base Professeur'!$Q$8","v":0},{"$f":"'Base Professeur'!$R$8","v":0},{"$f":"'Base Professeur'!$S$8","v":0},null,null,null,{"$f":"'Base Professeur'!$V$8","v":0},{"$f":"'Base Professeur'!$W$8","v":9},{"$f":"'Base Professeur'!$X$8","v":0},{"$f":"'Base Professeur'!$Y$8","v":0},{"$f":"'Base Professeur'!$Z$8","v":0},null,null,null,{"$f":"'Base Professeur'!$AC$8","v":0},{"$f":"'Base Professeur'!$AD$8","v":15},{"$f":"'Base Professeur'!$AE$8","v":0},{"$f":"'Base Professeur'!$AF$8","v":0},{"$f":"'Base Professeur'!$AG$8","v":0}]
[null,{"$f":"'Base Professeur'!$H$9","v":"Prestation de groupe finalisée"},{"$f":"'Base Professeur'!$I$9","v":"Manque deux exigences et +"},{"$f":"'Base Professeur'!$J$9","v":"Manque une exigence"},{"$f":"'Base Professeur'!$K$9","v":"Toutes les exigences"},{"$f":"'Base Professeur'!$L$9","v":"Toutes exigences et relation au thème"},null,null,null,{"$f":"'Base Professeur'!$O$9","v":0},{"$f":"'Base Professeur'!$P$9","v":0},{"$f":"'Base Professeur'!$Q$9","v":4},{"$f":"'Base Professeur'!$R$9","v":0},{"$f":"'Base Professeur'!$S$9","v":0},null,null,null,{"$f":"'Base Professeur'!$V$9","v":0},{"$f":"'Base Professeur'!$W$9","v":0},{"$f":"'Base Professeur'!$X$9","v":10},{"$f":"'Base Professeur'!$Y$9","v":0},{"$f":"'Base Professeur'!$Z$9","v":0},null,null,null,{"$f":"'Base Professeur'!$AC$9","v":0},{"$f":"'Base Professeur'!$AD$9","v":0},{"$f":"'Base Professeur'!$AE$9","v":16},{"$f":"'Base Professeur'!$AF$9","v":0},{"$f":"'Base Professeur'!$AG$9","v":0}]
[null,{"$f":"'Base Professeur'!$H$10","v":"Échauffement"},{"$f":"'Base Professeur'!$I$10","v":"Echauffement Oublié"},{"$f":"'Base Professeur'!$J$10","v":"Echauffement Baclé"},{"$f":"'Base Professeur'!$K$10","v":"Echauffement Bien Exécuté"},{"$f":"'Base Professeur'!$L$10","v":"Echauffement Bien Exécuté et Guidé"},null,null,null,{"$f":"'Base Professeur'!$O$10","v":0},{"$f":"'Base Professeur'!$P$10","v":0},{"$f":"'Base Professeur'!$Q$10","v":0},{"$f":"'Base Professeur'!$R$10","v":5},{"$f":"'Base Professeur'!$S$10","v":0},null,null,null,{"$f":"'Base Professeur'!$V$10","v":0},{"$f":"'Base Professeur'!$W$10","v":0},{"$f":"'Base Professeur'!$X$10","v":0},{"$f":"'Base Professeur'!$Y$10","v":11},{"$f":"'Base Professeur'!$Z$10","v":0},null,null,null,{"$f":"'Base Professeur'!$AC$10","v":0},{"$f":"'Base Professeur'!$AD$10","v":0},{"$f":"'Base Professeur'!$AE$10","v":0},{"$f":"'Base Professeur'!$AF$10","v":17},{"$f":"'Base Professeur'!$AG$10","v":0}]
[null,{"$f":"'Base Professeur'!$H$11","v":"Spectateur"},{"$f":"'Base Professeur'!$I$11","v":"Ricane et n'observe pas"},{"$f":"'Base Professeur'!$J$11","v":"Bavardages et observation imprécise"},{"$f":"'Base Professeur'!$K$11","v":"Respecte et Observation précise"},{"$f":"'Base Professeur'!$L$11","v":"Apprécie et Conseil constructif"},null,null,null,{"$f":"'Base Professeur'!$O$11","v":0},{"$f":"'Base Professeur'!$P$11","v":0},{"$f":"'Base Professeur'!$Q$11","v":0},{"$f":"'Base Professeur'!$R$11","v":0},{"$f":"'Base Professeur'!$S$11","v":6},null,null,null,{"$f":"'Base Professeur'!$V$11","v":0},{"$f":"'Base Professeur'!$W$11","v":0},{"$f":"'Base Professeur'!$X$11","v":0},{"$f":"'Base Professeur'!$Y$11","v":0},{"$f":"'Base Professeur'!$Z$11","v":12},null,null,null,{"$f":"'Base Professeur'!$AC$11","v":0},{"$f":"'Base Professeur'!$AD$11","v":0},{"$f":"'Base Professeur'!$AE$11","v":0},{"$f":"'Base Professeur'!$AF$11","v":0},{"$f":"'Base Professeur'!$AG$11","v":18}]
[]
[null,{"$f":"'Base Professeur'!C32","v":4},null,null,null,null,null,null,null,{"$f":"B272","v":4},null,null,null,null,null,null,null,{"$f":"J272","v":4},null,null,null,null,null,null,null,{"$f":"R272","v":4}]
[null,{"$f":"'Base Professeur'!$G$4","v":"Danse"},null,null,null,null,null,null,null,{"$f":"'Base Professeur'!$N$4","v":"Course d'Orientation"},null,null,null,null,null,null,null,{"$f":"'Base Professeur'!$U$4","v":"Musculation"},null,null,null,null,null,null,null,{"$f":"'Base Professeur'!$AB$4","v":"Demi-Fond"}]
[null,{"$f":"'Base Professeur'!$H$5","v":"Objectifs"},{"$f":"'Base Professeur'!$I$5","v":"Non Atteint"},{"$f":"'Base Professeur'!$J$5","v":"Partiellement"},{"$f":"'Base Professeur'!$K$5","v":"Atteint"},{"$f":"'Base Professeur'!$L$5","v":"Dépassé"},"1er Auto-    Positionnement ","2ème Auto- Positionnement",null,{"$f":"'Base Professeur'!$O$5","v":"Objectifs"},{"$f":"'Base Professeur'!$P$5","v":"Non Atteint"},{"$f":"'Base Professeur'!$Q$5","v":"Partiellement"},{"$f":"'Base Professeur'!$R$5","v":"Atteint"},{"$f":"'Base Professeur'!$S$5","v":"Dépassé"},"1er Auto-    Positionnement ","2ème Auto- Positionnement",null,{"$f":"'Base Professeur'!$V$5","v":"Objectifs"},{"$f":"'Base Professeur'!$W$5","v":"Non Atteint"},{"$f":"'Base Professeur'!X275","v":0},{"$f":"'Base Professeur'!$Y$5","v":"Atteint"},{"$f":"'Base Professeur'!$Z$5","v":"Dépassé"},"1er Auto-    Positionnement ","2ème Auto- Positionnement",null,{"$f":"'Base Professeur'!$AC$5","v":"Objectifs"},{"$f":"'Base Professeur'!$AD$5","v":"Non Atteint"},{"$f":"'Base Professeur'!$AE$5","v":"Partiellement"},{"$f":"'Base Professeur'!$AF$5","v":"Atteint"},{"$f":"'Base Professeur'!$AG$5","v":"Dépassé"},"1er Auto-    Positionnement ","2ème Auto- Positionnement"]
[null,{"$f":"'Base Professeur'!$H$6","v":"Chorégraphe acteur"},{"$f":"'Base Professeur'!$I$6","v":"Apporte peu au groupe, peu déchange, gêne. Numérique mal ou pas utilisé"},{"$f":"'Base Professeur'!$J$6","v":"Participe ponctuellement.             Peu de numérique "},{"$f":"'Base Professeur'!$K$6","v":"Actif, participe pour plus-value.            Numérique utilisé"},{"$f":"'Base Professeur'!$L$6","v":"Fort de propositions, constructifs. Numérique en plus-value"},null,null,null,{"$f":"'Base Professeur'!$O$6","v":0},{"$f":"'Base Professeur'!$P$6","v":0},{"$f":"'Base Professeur'!$Q$6","v":0},{"$f":"'Base Professeur'!$R$6","v":0},{"$f":"'Base Professeur'!$S$6","v":0},null,null,null,{"$f":"'Base Professeur'!$V$6","v":0},{"$f":"'Base Professeur'!$W$6","v":0},{"$f":"'Base Professeur'!$X$6","v":0},{"$f":"'Base Professeur'!$Y$6","v":0},{"$f":"'Base Professeur'!$Z$6","v":0},null,null,null,{"$f":"'Base Professeur'!$AC$6","v":0},{"$f":"'Base Professeur'!$AD$6","v":0},{"$f":"'Base Professeur'!$AE$6","v":0},{"$f":"'Base Professeur'!$AF$6","v":0},{"$f":"'Base Professeur'!$AG$6","v":0}]
[null,{"$f":"'Base Professeur'!$H$7","v":"Danseur volontaire"},{"$f":"'Base Professeur'!$I$7","v":"Danse dans son coin, aucuns liens avec les autres danseurs"},{"$f":"'Base Professeur'!$J$7","v":"Hésite, se réfère aux autres danseurs"},{"$f":"'Base Professeur'!$K$7","v":"Concentré à danser"},{"$f":"'Base Professeur'!$L$7","v":"Vit sa danse"},null,null,null,{"$f":"'Base Professeur'!$O$7","v":2},{"$f":"'Base Professeur'!$P$7","v":0},{"$f":"'Base Professeur'!$Q$7","v":0},{"$f":"'Base Professeur'!$R$7","v":0},{"$f":"'Base Professeur'!$S$7","v":0},null,null,null,{"$f":"'Base Professeur'!$V$7","v":8},{"$f":"'Base Professeur'!$W$7","v":0},{"$f":"'Base Professeur'!$X$7","v":0},{"$f":"'Base Professeur'!$Y$7","v":0},{"$f":"'Base Professeur'!$Z$7","v":0},null,null,null,{"$f":"'Base Professeur'!$AC$7","v":14},{"$f":"'Base Professeur'!$AD$7","v":0},{"$f":"'Base Professeur'!$AE$7","v":0},{"$f":"'Base Professeur'!$AF$7","v":0},{"$f":"'Base Professeur'!$AG$7","v":0}]
[null,{"$f":"'Base Professeur'!$H$8","v":"Danseur acteur"},{"$f":"'Base Professeur'!$I$8","v":"Beaucoup d’hésitations, gestes parasites, rire, regard au sol …"},{"$f":"'Base Professeur'!$J$8","v":"Gestuelle connue. Quelques hésitations ou gestes parasites"},{"$f":"'Base Professeur'!$K$8","v":"Gestuelle précise. Aucunes hésitations ou gestes parasites"},{"$f":"'Base Professeur'!$L$8","v":"Gestuelle très précise. Aucunes erreurs"},null,null,null,{"$f":"'Base Professeur'!$O$8","v":0},{"$f":"'Base Professeur'!$P$8","v":3},{"$f":"'Base Professeur'!$Q$8","v":0},{"$f":"'Base Professeur'!$R$8","v":0},{"$f":"'Base Professeur'!$S$8","v":0},null,null,null,{"$f":"'Base Professeur'!$V$8","v":0},{"$f":"'Base Professeur'!$W$8","v":9},{"$f":"'Base Professeur'!$X$8","v":0},{"$f":"'Base Professeur'!$Y$8","v":0},{"$f":"'Base Professeur'!$Z$8","v":0},null,null,null,{"$f":"'Base Professeur'!$AC$8","v":0},{"$f":"'Base Professeur'!$AD$8","v":15},{"$f":"'Base Professeur'!$AE$8","v":0},{"$f":"'Base Professeur'!$AF$8","v":0},{"$f":"'Base Professeur'!$AG$8","v":0}]
[null,{"$f":"'Base Professeur'!$H$9","v":"Prestation de groupe finalisée"},{"$f":"'Base Professeur'!$I$9","v":"Manque deux exigences et +"},{"$f":"'Base Professeur'!$J$9","v":"Manque une exigence"},{"$f":"'Base Professeur'!$K$9","v":"Toutes les exigences"},{"$f":"'Base Professeur'!$L$9","v":"Toutes exigences et relation au thème"},null,null,null,{"$f":"'Base Professeur'!$O$9","v":0},{"$f":"'Base Professeur'!$P$9","v":0},{"$f":"'Base Professeur'!$Q$9","v":4},{"$f":"'Base Professeur'!$R$9","v":0},{"$f":"'Base Professeur'!$S$9","v":0},null,null,null,{"$f":"'Base Professeur'!$V$9","v":0},{"$f":"'Base Professeur'!$W$9","v":0},{"$f":"'Base Professeur'!$X$9","v":10},{"$f":"'Base Professeur'!$Y$9","v":0},{"$f":"'Base Professeur'!$Z$9","v":0},null,null,null,{"$f":"'Base Professeur'!$AC$9","v":0},{"$f":"'Base Professeur'!$AD$9","v":0},{"$f":"'Base Professeur'!$AE$9","v":16},{"$f":"'Base Professeur'!$AF$9","v":0},{"$f":"'Base Professeur'!$AG$9","v":0}]
[null,{"$f":"'Base Professeur'!$H$10","v":"Échauffement"},{"$f":"'Base Professeur'!$I$10","v":"Echauffement Oublié"},{"$f":"'Base Professeur'!$J$10","v":"Echauffement Baclé"},{"$f":"'Base Professeur'!$K$10","v":"Echauffement Bien Exécuté"},{"$f":"'Base Professeur'!$L$10","v":"Echauffement Bien Exécuté et Guidé"},null,null,null,{"$f":"'Base Professeur'!$O$10","v":0},{"$f":"'Base Professeur'!$P$10","v":0},{"$f":"'Base Professeur'!$Q$10","v":0},{"$f":"'Base Professeur'!$R$10","v":5},{"$f":"'Base Professeur'!$S$10","v":0},null,null,null,{"$f":"'Base Professeur'!$V$10","v":0},{"$f":"'Base Professeur'!$W$10","v":0},{"$f":"'Base Professeur'!$X$10","v":0},{"$f":"'Base Professeur'!$Y$10","v":11},{"$f":"'Base Professeur'!$Z$10","v":0},null,null,null,{"$f":"'Base Professeur'!$AC$10","v":0},{"$f":"'Base Professeur'!$AD$10","v":0},{"$f":"'Base Professeur'!$AE$10","v":0},{"$f":"'Base Professeur'!$AF$10","v":17},{"$f":"'Base Professeur'!$AG$10","v":0}]
[null,{"$f":"'Base Professeur'!$H$11","v":"Spectateur"},{"$f":"'Base Professeur'!$I$11","v":"Ricane et n'observe pas"},{"$f":"'Base Professeur'!$J$11","v":"Bavardages et observation imprécise"},{"$f":"'Base Professeur'!$K$11","v":"Respecte et Observation précise"},{"$f":"'Base Professeur'!$L$11","v":"Apprécie et Conseil constructif"},null,null,null,{"$f":"'Base Professeur'!$O$11","v":0},{"$f":"'Base Professeur'!$P$11","v":0},{"$f":"'Base Professeur'!$Q$11","v":0},{"$f":"'Base Professeur'!$R$11","v":0},{"$f":"'Base Professeur'!$S$11","v":6},null,null,null,{"$f":"'Base Professeur'!$V$11","v":0},{"$f":"'Base Professeur'!$W$11","v":0},{"$f":"'Base Professeur'!$X$11","v":0},{"$f":"'Base Professeur'!$Y$11","v":0},{"$f":"'Base Professeur'!$Z$11","v":12},null,null,null,{"$f":"'Base Professeur'!$AC$11","v":0},{"$f":"'Base Professeur'!$AD$11","v":0},{"$f":"'Base Professeur'!$AE$11","v":0},{"$f":"'Base Professeur'!$AF$11","v":0},{"$f":"'Base Professeur'!$AG$11","v":18}]
[]
[null,{"$f":"'Base Professeur'!C33","v":5},null,null,null,null,null,null,null,{"$f":"B282","v":5},null,null,null,null,null,null,null,{"$f":"J282","v":5},null,null,null,null,null,null,null,{"$f":"R282","v":5}]
[null,{"$f":"'Base Professeur'!$G$4","v":"Danse"},null,null,null,null,null,null,null,{"$f":"'Base Professeur'!$N$4","v":"Course d'Orientation"},null,null,null,null,null,null,null,{"$f":"'Base Professeur'!$U$4","v":"Musculation"},null,null,null,null,null,null,null,{"$f":"'Base Professeur'!$AB$4","v":"Demi-Fond"}]
[null,{"$f":"'Base Professeur'!$H$5","v":"Objectifs"},{"$f":"'Base Professeur'!$I$5","v":"Non Atteint"},{"$f":"'Base Professeur'!$J$5","v":"Partiellement"},{"$f":"'Base Professeur'!$K$5","v":"Atteint"},{"$f":"'Base Professeur'!$L$5","v":"Dépassé"},"1er Auto-    Positionnement ","2ème Auto- Positionnement",null,{"$f":"'Base Professeur'!$O$5","v":"Objectifs"},{"$f":"'Base Professeur'!$P$5","v":"Non Atteint"},{"$f":"'Base Professeur'!$Q$5","v":"Partiellement"},{"$f":"'Base Professeur'!$R$5","v":"Atteint"},{"$f":"'Base Professeur'!$S$5","v":"Dépassé"},"1er Auto-    Positionnement ","2ème Auto- Positionnement",null,{"$f":"'Base Professeur'!$V$5","v":"Objectifs"},{"$f":"'Base Professeur'!$W$5","v":"Non Atteint"},{"$f":"'Base Professeur'!X285","v":0},{"$f":"'Base Professeur'!$Y$5","v":"Atteint"},{"$f":"'Base Professeur'!$Z$5","v":"Dépassé"},"1er Auto-    Positionnement ","2ème Auto- Positionnement",null,{"$f":"'Base Professeur'!$AC$5","v":"Objectifs"},{"$f":"'Base Professeur'!$AD$5","v":"Non Atteint"},{"$f":"'Base Professeur'!$AE$5","v":"Partiellement"},{"$f":"'Base Professeur'!$AF$5","v":"Atteint"},{"$f":"'Base Professeur'!$AG$5","v":"Dépassé"},"1er Auto-    Positionnement ","2ème Auto- Positionnement"]
[null,{"$f":"'Base Professeur'!$H$6","v":"Chorégraphe acteur"},{"$f":"'Base Professeur'!$I$6","v":"Apporte peu au groupe, peu déchange, gêne. Numérique mal ou pas utilisé"},{"$f":"'Base Professeur'!$J$6","v":"Participe ponctuellement.             Peu de numérique "},{"$f":"'Base Professeur'!$K$6","v":"Actif, participe pour plus-value.            Numérique utilisé"},{"$f":"'Base Professeur'!$L$6","v":"Fort de propositions, constructifs. Numérique en plus-value"},null,null,null,{"$f":"'Base Professeur'!$O$6","v":0},{"$f":"'Base Professeur'!$P$6","v":0},{"$f":"'Base Professeur'!$Q$6","v":0},{"$f":"'Base Professeur'!$R$6","v":0},{"$f":"'Base Professeur'!$S$6","v":0},null,null,null,{"$f":"'Base Professeur'!$V$6","v":0},{"$f":"'Base Professeur'!$W$6","v":0},{"$f":"'Base Professeur'!$X$6","v":0},{"$f":"'Base Professeur'!$Y$6","v":0},{"$f":"'Base Professeur'!$Z$6","v":0},null,null,null,{"$f":"'Base Professeur'!$AC$6","v":0},{"$f":"'Base Professeur'!$AD$6","v":0},{"$f":"'Base Professeur'!$AE$6","v":0},{"$f":"'Base Professeur'!$AF$6","v":0},{"$f":"'Base Professeur'!$AG$6","v":0}]
[null,{"$f":"'Base Professeur'!$H$7","v":"Danseur volontaire"},{"$f":"'Base Professeur'!$I$7","v":"Danse dans son coin, aucuns liens avec les autres danseurs"},{"$f":"'Base Professeur'!$J$7","v":"Hésite, se réfère aux autres danseurs"},{"$f":"'Base Professeur'!$K$7","v":"Concentré à danser"},{"$f":"'Base Professeur'!$L$7","v":"Vit sa danse"},null,null,null,{"$f":"'Base Professeur'!$O$7","v":2},{"$f":"'Base Professeur'!$P$7","v":0},{"$f":"'Base Professeur'!$Q$7","v":0},{"$f":"'Base Professeur'!$R$7","v":0},{"$f":"'Base Professeur'!$S$7","v":0},null,null,null,{"$f":"'Base Professeur'!$V$7","v":8},{"$f":"'Base Professeur'!$W$7","v":0},{"$f":"'Base Professeur'!$X$7","v":0},{"$f":"'Base Professeur'!$Y$7","v":0},{"$f":"'Base Professeur'!$Z$7","v":0},null,null,null,{"$f":"'Base Professeur'!$AC$7","v":14},{"$f":"'Base Professeur'!$AD$7","v":0},{"$f":"'Base Professeur'!$AE$7","v":0},{"$f":"'Base Professeur'!$AF$7","v":0},{"$f":"'Base Professeur'!$AG$7","v":0}]
[null,{"$f":"'Base Professeur'!$H$8","v":"Danseur acteur"},{"$f":"'Base Professeur'!$I$8","v":"Beaucoup d’hésitations, gestes parasites, rire, regard au sol …"},{"$f":"'Base Professeur'!$J$8","v":"Gestuelle connue. Quelques hésitations ou gestes parasites"},{"$f":"'Base Professeur'!$K$8","v":"Gestuelle précise. Aucunes hésitations ou gestes parasites"},{"$f":"'Base Professeur'!$L$8","v":"Gestuelle très précise. Aucunes erreurs"},null,null,null,{"$f":"'Base Professeur'!$O$8","v":0},{"$f":"'Base Professeur'!$P$8","v":3},{"$f":"'Base Professeur'!$Q$8","v":0},{"$f":"'Base Professeur'!$R$8","v":0},{"$f":"'Base Professeur'!$S$8","v":0},null,null,null,{"$f":"'Base Professeur'!$V$8","v":0},{"$f":"'Base Professeur'!$W$8","v":9},{"$f":"'Base Professeur'!$X$8","v":0},{"$f":"'Base Professeur'!$Y$8","v":0},{"$f":"'Base Professeur'!$Z$8","v":0},null,null,null,{"$f":"'Base Professeur'!$AC$8","v":0},{"$f":"'Base Professeur'!$AD$8","v":15},{"$f":"'Base Professeur'!$AE$8","v":0},{"$f":"'Base Professeur'!$AF$8","v":0},{"$f":"'Base Professeur'!$AG$8","v":0}]
[null,{"$f":"'Base Professeur'!$H$9","v":"Prestation de groupe finalisée"},{"$f":"'Base Professeur'!$I$9","v":"Manque deux exigences et +"},{"$f":"'Base Professeur'!$J$9","v":"Manque une exigence"},{"$f":"'Base Professeur'!$K$9","v":"Toutes les exigences"},{"$f":"'Base Professeur'!$L$9","v":"Toutes exigences et relation au thème"},null,null,null,{"$f":"'Base Professeur'!$O$9","v":0},{"$f":"'Base Professeur'!$P$9","v":0},{"$f":"'Base Professeur'!$Q$9","v":4},{"$f":"'Base Professeur'!$R$9","v":0},{"$f":"'Base Professeur'!$S$9","v":0},null,null,null,{"$f":"'Base Professeur'!$V$9","v":0},{"$f":"'Base Professeur'!$W$9","v":0},{"$f":"'Base Professeur'!$X$9","v":10},{"$f":"'Base Professeur'!$Y$9","v":0},{"$f":"'Base Professeur'!$Z$9","v":0},null,null,null,{"$f":"'Base Professeur'!$AC$9","v":0},{"$f":"'Base Professeur'!$AD$9","v":0},{"$f":"'Base Professeur'!$AE$9","v":16},{"$f":"'Base Professeur'!$AF$9","v":0},{"$f":"'Base Professeur'!$AG$9","v":0}]
[null,{"$f":"'Base Professeur'!$H$10","v":"Échauffement"},{"$f":"'Base Professeur'!$I$10","v":"Echauffement Oublié"},{"$f":"'Base Professeur'!$J$10","v":"Echauffement Baclé"},{"$f":"'Base Professeur'!$K$10","v":"Echauffement Bien Exécuté"},{"$f":"'Base Professeur'!$L$10","v":"Echauffement Bien Exécuté et Guidé"},null,null,null,{"$f":"'Base Professeur'!$O$10","v":0},{"$f":"'Base Professeur'!$P$10","v":0},{"$f":"'Base Professeur'!$Q$10","v":0},{"$f":"'Base Professeur'!$R$10","v":5},{"$f":"'Base Professeur'!$S$10","v":0},null,null,null,{"$f":"'Base Professeur'!$V$10","v":0},{"$f":"'Base Professeur'!$W$10","v":0},{"$f":"'Base Professeur'!$X$10","v":0},{"$f":"'Base Professeur'!$Y$10","v":11},{"$f":"'Base Professeur'!$Z$10","v":0},null,null,null,{"$f":"'Base Professeur'!$AC$10","v":0},{"$f":"'Base Professeur'!$AD$10","v":0},{"$f":"'Base Professeur'!$AE$10","v":0},{"$f":"'Base Professeur'!$AF$10","v":17},{"$f":"'Base Professeur'!$AG$10","v":0}]
[null,{"$f":"'Base Professeur'!$H$11","v":"Spectateur"},{"$f":"'Base Professeur'!$I$11","v":"Ricane et n'observe pas"},{"$f":"'Base Professeur'!$J$11","v":"Bavardages et observation imprécise"},{"$f":"'Base Professeur'!$K$11","v":"Respecte et Observation précise"},{"$f":"'Base Professeur'!$L$11","v":"Apprécie et Conseil constructif"},null,null,null,{"$f":"'Base Professeur'!$O$11","v":0},{"$f":"'Base Professeur'!$P$11","v":0},{"$f":"'Base Professeur'!$Q$11","v":0},{"$f":"'Base Professeur'!$R$11","v":0},{"$f":"'Base Professeur'!$S$11","v":6},null,null,null,{"$f":"'Base Professeur'!$V$11","v":0},{"$f":"'Base Professeur'!$W$11","v":0},{"$f":"'Base Professeur'!$X$11","v":0},{"$f":"'Base Professeur'!$Y$11","v":0},{"$f":"'Base Professeur'!$Z$11","v":12},null,null,null,{"$f":"'Base Professeur'!$AC$11","v":0},{"$f":"'Base Professeur'!$AD$11","v":0},{"$f":"'Base Professeur'!$AE$11","v":0},{"$f":"'Base Professeur'!$AF$11","v":0},{"$f":"'Base Professeur'!$AG$11","v":18}]
[]
[null,{"$f":"'Base Professeur'!C34","v":6},null,null,null,null,null,null,null,{"$f":"B292","v":6},null,null,null,null,null,null,null,{"$f":"J292","v":6},null,null,null,null,null,null,null,{"$f":"R292","v":6}]
[null,{"$f":"'Base Professeur'!$G$4","v":"Danse"},null,null,null,null,null,null,null,{"$f":"'Base Professeur'!$N$4","v":"Course d'Orientation"},null,null,null,null,null,null,null,{"$f":"'Base Professeur'!$U$4","v":"Musculation"},null,null,null,null,null,null,null,{"$f":"'Base Professeur'!$AB$4","v":"Demi-Fond"}]
[null,{"$f":"'Base Professeur'!$H$5","v":"Objectifs"},{"$f":"'Base Professeur'!$I$5","v":"Non Atteint"},{"$f":"'Base Professeur'!$J$5","v":"Partiellement"},{"$f":"'Base Professeur'!$K$5","v":"Atteint"},{"$f":"'Base Professeur'!$L$5","v":"Dépassé"},"1er Auto-    Positionnement ","2ème Auto- Positionnement",null,{"$f":"'Base Professeur'!$O$5","v":"Objectifs"},{"$f":"'Base Professeur'!$P$5","v":"Non Atteint"},{"$f":"'Base Professeur'!$Q$5","v":"Partiellement"},{"$f":"'Base Professeur'!$R$5","v":"Atteint"},{"$f":"'Base Professeur'!$S$5","v":"Dépassé"},"1er Auto-    Positionnement ","2ème Auto- Positionnement",null,{"$f":"'Base Professeur'!$V$5","v":"Objectifs"},{"$f":"'Base Professeur'!$W$5","v":"Non Atteint"},{"$f":"'Base Professeur'!X295","v":0},{"$f":"'Base Professeur'!$Y$5","v":"Atteint"},{"$f":"'Base Professeur'!$Z$5","v":"Dépassé"},"1er Auto-    Positionnement ","2ème Auto- Positionnement",null,{"$f":"'Base Professeur'!$AC$5","v":"Objectifs"},{"$f":"'Base Professeur'!$AD$5","v":"Non Atteint"},{"$f":"'Base Professeur'!$AE$5","v":"Partiellement"},{"$f":"'Base Professeur'!$AF$5","v":"Atteint"},{"$f":"'Base Professeur'!$AG$5","v":"Dépassé"},"1er Auto-    Positionnement ","2ème Auto- Positionnement"]
[null,{"$f":"'Base Professeur'!$H$6","v":"Chorégraphe acteur"},{"$f":"'Base Professeur'!$I$6","v":"Apporte peu au groupe, peu déchange, gêne. Numérique mal ou pas utilisé"},{"$f":"'Base Professeur'!$J$6","v":"Participe ponctuellement.             Peu de numérique "},{"$f":"'Base Professeur'!$K$6","v":"Actif, participe pour plus-value.            Numérique utilisé"},{"$f":"'Base Professeur'!$L$6","v":"Fort de propositions, constructifs. Numérique en plus-value"},null,null,null,{"$f":"'Base Professeur'!$O$6","v":0},{"$f":"'Base Professeur'!$P$6","v":0},{"$f":"'Base Professeur'!$Q$6","v":0},{"$f":"'Base Professeur'!$R$6","v":0},{"$f":"'Base Professeur'!$S$6","v":0},null,null,null,{"$f":"'Base Professeur'!$V$6","v":0},{"$f":"'Base Professeur'!$W$6","v":0},{"$f":"'Base Professeur'!$X$6","v":0},{"$f":"'Base Professeur'!$Y$6","v":0},{"$f":"'Base Professeur'!$Z$6","v":0},null,null,null,{"$f":"'Base Professeur'!$AC$6","v":0},{"$f":"'Base Professeur'!$AD$6","v":0},{"$f":"'Base Professeur'!$AE$6","v":0},{"$f":"'Base Professeur'!$AF$6","v":0},{"$f":"'Base Professeur'!$AG$6","v":0}]
[null,{"$f":"'Base Professeur'!$H$7","v":"Danseur volontaire"},{"$f":"'Base Professeur'!$I$7","v":"Danse dans son coin, aucuns liens avec les autres danseurs"},{"$f":"'Base Professeur'!$J$7","v":"Hésite, se réfère aux autres danseurs"},{"$f":"'Base Professeur'!$K$7","v":"Concentré à danser"},{"$f":"'Base Professeur'!$L$7","v":"Vit sa danse"},null,null,null,{"$f":"'Base Professeur'!$O$7","v":2},{"$f":"'Base Professeur'!$P$7","v":0},{"$f":"'Base Professeur'!$Q$7","v":0},{"$f":"'Base Professeur'!$R$7","v":0},{"$f":"'Base Professeur'!$S$7","v":0},null,null,null,{"$f":"'Base Professeur'!$V$7","v":8},{"$f":"'Base Professeur'!$W$7","v":0},{"$f":"'Base Professeur'!$X$7","v":0},{"$f":"'Base Professeur'!$Y$7","v":0},{"$f":"'Base Professeur'!$Z$7","v":0},null,null,null,{"$f":"'Base Professeur'!$AC$7","v":14},{"$f":"'Base Professeur'!$AD$7","v":0},{"$f":"'Base Professeur'!$AE$7","v":0},{"$f":"'Base Professeur'!$AF$7","v":0},{"$f":"'Base Professeur'!$AG$7","v":0}]
[null,{"$f":"'Base Professeur'!$H$8","v":"Danseur acteur"},{"$f":"'Base Professeur'!$I$8","v":"Beaucoup d’hésitations, gestes parasites, rire, regard au sol …"},{"$f":"'Base Professeur'!$J$8","v":"Gestuelle connue. Quelques hésitations ou gestes parasites"},{"$f":"'Base Professeur'!$K$8","v":"Gestuelle précise. Aucunes hésitations ou gestes parasites"},{"$f":"'Base Professeur'!$L$8","v":"Gestuelle très précise. Aucunes erreurs"},null,null,null,{"$f":"'Base Professeur'!$O$8","v":0},{"$f":"'Base Professeur'!$P$8","v":3},{"$f":"'Base Professeur'!$Q$8","v":0},{"$f":"'Base Professeur'!$R$8","v":0},{"$f":"'Base Professeur'!$S$8","v":0},null,null,null,{"$f":"'Base Professeur'!$V$8","v":0},{"$f":"'Base Professeur'!$W$8","v":9},{"$f":"'Base Professeur'!$X$8","v":0},{"$f":"'Base Professeur'!$Y$8","v":0},{"$f":"'Base Professeur'!$Z$8","v":0},null,null,null,{"$f":"'Base Professeur'!$AC$8","v":0},{"$f":"'Base Professeur'!$AD$8","v":15},{"$f":"'Base Professeur'!$AE$8","v":0},{"$f":"'Base Professeur'!$AF$8","v":0},{"$f":"'Base Professeur'!$AG$8","v":0}]
[null,{"$f":"'Base Professeur'!$H$9","v":"Prestation de groupe finalisée"},{"$f":"'Base Professeur'!$I$9","v":"Manque deux exigences et +"},{"$f":"'Base Professeur'!$J$9","v":"Manque une exigence"},{"$f":"'Base Professeur'!$K$9","v":"Toutes les exigences"},{"$f":"'Base Professeur'!$L$9","v":"Toutes exigences et relation au thème"},null,null,null,{"$f":"'Base Professeur'!$O$9","v":0},{"$f":"'Base Professeur'!$P$9","v":0},{"$f":"'Base Professeur'!$Q$9","v":4},{"$f":"'Base Professeur'!$R$9","v":0},{"$f":"'Base Professeur'!$S$9","v":0},null,null,null,{"$f":"'Base Professeur'!$V$9","v":0},{"$f":"'Base Professeur'!$W$9","v":0},{"$f":"'Base Professeur'!$X$9","v":10},{"$f":"'Base Professeur'!$Y$9","v":0},{"$f":"'Base Professeur'!$Z$9","v":0},null,null,null,{"$f":"'Base Professeur'!$AC$9","v":0},{"$f":"'Base Professeur'!$AD$9","v":0},{"$f":"'Base Professeur'!$AE$9","v":16},{"$f":"'Base Professeur'!$AF$9","v":0},{"$f":"'Base Professeur'!$AG$9","v":0}]
[null,{"$f":"'Base Professeur'!$H$10","v":"Échauffement"},{"$f":"'Base Professeur'!$I$10","v":"Echauffement Oublié"},{"$f":"'Base Professeur'!$J$10","v":"Echauffement Baclé"},{"$f":"'Base Professeur'!$K$10","v":"Echauffement Bien Exécuté"},{"$f":"'Base Professeur'!$L$10","v":"Echauffement Bien Exécuté et Guidé"},null,null,null,{"$f":"'Base Professeur'!$O$10","v":0},{"$f":"'Base Professeur'!$P$10","v":0},{"$f":"'Base Professeur'!$Q$10","v":0},{"$f":"'Base Professeur'!$R$10","v":5},{"$f":"'Base Professeur'!$S$10","v":0},null,null,null,{"$f":"'Base Professeur'!$V$10","v":0},{"$f":"'Base Professeur'!$W$10","v":0},{"$f":"'Base Professeur'!$X$10","v":0},{"$f":"'Base Professeur'!$Y$10","v":11},{"$f":"'Base Professeur'!$Z$10","v":0},null,null,null,{"$f":"'Base Professeur'!$AC$10","v":0},{"$f":"'Base Professeur'!$AD$10","v":0},{"$f":"'Base Professeur'!$AE$10","v":0},{"$f":"'Base Professeur'!$AF$10","v":17},{"$f":"'Base Professeur'!$AG$10","v":0}]
[null,{"$f":"'Base Professeur'!$H$11","v":"Spectateur"},{"$f":"'Base Professeur'!$I$11","v":"Ricane et n'observe pas"},{"$f":"'Base Professeur'!$J$11","v":"Bavardages et observation imprécise"},{"$f":"'Base Professeur'!$K$11","v":"Respecte et Observation précise"},{"$f":"'Base Professeur'!$L$11","v":"Apprécie et Conseil constructif"},null,null,null,{"$f":"'Base Professeur'!$O$11","v":0},{"$f":"'Base Professeur'!$P$11","v":0},{"$f":"'Base Professeur'!$Q$11","v":0},{"$f":"'Base Professeur'!$R$11","v":0},{"$f":"'Base Professeur'!$S$11","v":6},null,null,null,{"$f":"'Base Professeur'!$V$11","v":0},{"$f":"'Base Professeur'!$W$11","v":0},{"$f":"'Base Professeur'!$X$11","v":0},{"$f":"'Base Professeur'!$Y$11","v":0},{"$f":"'Base Professeur'!$Z$11","v":12},null,null,null,{"$f":"'Base Professeur'!$AC$11","v":0},{"$f":"'Base Professeur'!$AD$11","v":0},{"$f":"'Base Professeur'!$AE$11","v":0},{"$f":"'Base Professeur'!$AF$11","v":0},{"$f":"'Base Professeur'!$AG$11","v":18}]
[]
[null,{"$f":"'Base Professeur'!C35","v":7},null,null,null,null,null,null,null,{"$f":"B302","v":7},null,null,null,null,null,null,null,{"$f":"J302","v":7},null,null,null,null,null,null,null,{"$f":"R302","v":7}]
[null,{"$f":"'Base Professeur'!$G$4","v":"Danse"},null,null,null,null,null,null,null,{"$f":"'Base Professeur'!$N$4","v":"Course d'Orientation"},null,null,null,null,null,null,null,{"$f":"'Base Professeur'!$U$4","v":"Musculation"},null,null,null,null,null,null,null,{"$f":"'Base Professeur'!$AB$4","v":"Demi-Fond"}]
[null,{"$f":"'Base Professeur'!$H$5","v":"Objectifs"},{"$f":"'Base Professeur'!$I$5","v":"Non Atteint"},{"$f":"'Base Professeur'!$J$5","v":"Partiellement"},{"$f":"'Base Professeur'!$K$5","v":"Atteint"},{"$f":"'Base Professeur'!$L$5","v":"Dépassé"},"1er Auto-    Positionnement ","2ème Auto- Positionnement",null,{"$f":"'Base Professeur'!$O$5","v":"Objectifs"},{"$f":"'Base Professeur'!$P$5","v":"Non Atteint"},{"$f":"'Base Professeur'!$Q$5","v":"Partiellement"},{"$f":"'Base Professeur'!$R$5","v":"Atteint"},{"$f":"'Base Professeur'!$S$5","v":"Dépassé"},"1er Auto-    Positionnement ","2ème Auto- Positionnement",null,{"$f":"'Base Professeur'!$V$5","v":"Objectifs"},{"$f":"'Base Professeur'!$W$5","v":"Non Atteint"},{"$f":"'Base Professeur'!X305","v":0},{"$f":"'Base Professeur'!$Y$5","v":"Atteint"},{"$f":"'Base Professeur'!$Z$5","v":"Dépassé"},"1er Auto-    Positionnement ","2ème Auto- Positionnement",null,{"$f":"'Base Professeur'!$AC$5","v":"Objectifs"},{"$f":"'Base Professeur'!$AD$5","v":"Non Atteint"},{"$f":"'Base Professeur'!$AE$5","v":"Partiellement"},{"$f":"'Base Professeur'!$AF$5","v":"Atteint"},{"$f":"'Base Professeur'!$AG$5","v":"Dépassé"},"1er Auto-    Positionnement ","2ème Auto- Positionnement"]
[null,{"$f":"'Base Professeur'!$H$6","v":"Chorégraphe acteur"},{"$f":"'Base Professeur'!$I$6","v":"Apporte peu au groupe, peu déchange, gêne. Numérique mal ou pas utilisé"},{"$f":"'Base Professeur'!$J$6","v":"Participe ponctuellement.             Peu de numérique "},{"$f":"'Base Professeur'!$K$6","v":"Actif, participe pour plus-value.            Numérique utilisé"},{"$f":"'Base Professeur'!$L$6","v":"Fort de propositions, constructifs. Numérique en plus-value"},null,null,null,{"$f":"'Base Professeur'!$O$6","v":0},{"$f":"'Base Professeur'!$P$6","v":0},{"$f":"'Base Professeur'!$Q$6","v":0},{"$f":"'Base Professeur'!$R$6","v":0},{"$f":"'Base Professeur'!$S$6","v":0},null,null,null,{"$f":"'Base Professeur'!$V$6","v":0},{"$f":"'Base Professeur'!$W$6","v":0},{"$f":"'Base Professeur'!$X$6","v":0},{"$f":"'Base Professeur'!$Y$6","v":0},{"$f":"'Base Professeur'!$Z$6","v":0},null,null,null,{"$f":"'Base Professeur'!$AC$6","v":0},{"$f":"'Base Professeur'!$AD$6","v":0},{"$f":"'Base Professeur'!$AE$6","v":0},{"$f":"'Base Professeur'!$AF$6","v":0},{"$f":"'Base Professeur'!$AG$6","v":0}]
[null,{"$f":"'Base Professeur'!$H$7","v":"Danseur volontaire"},{"$f":"'Base Professeur'!$I$7","v":"Danse dans son coin, aucuns liens avec les autres danseurs"},{"$f":"'Base Professeur'!$J$7","v":"Hésite, se réfère aux autres danseurs"},{"$f":"'Base Professeur'!$K$7","v":"Concentré à danser"},{"$f":"'Base Professeur'!$L$7","v":"Vit sa danse"},null,null,null,{"$f":"'Base Professeur'!$O$7","v":2},{"$f":"'Base Professeur'!$P$7","v":0},{"$f":"'Base Professeur'!$Q$7","v":0},{"$f":"'Base Professeur'!$R$7","v":0},{"$f":"'Base Professeur'!$S$7","v":0},null,null,null,{"$f":"'Base Professeur'!$V$7","v":8},{"$f":"'Base Professeur'!$W$7","v":0},{"$f":"'Base Professeur'!$X$7","v":0},{"$f":"'Base Professeur'!$Y$7","v":0},{"$f":"'Base Professeur'!$Z$7","v":0},null,null,null,{"$f":"'Base Professeur'!$AC$7","v":14},{"$f":"'Base Professeur'!$AD$7","v":0},{"$f":"'Base Professeur'!$AE$7","v":0},{"$f":"'Base Professeur'!$AF$7","v":0},{"$f":"'Base Professeur'!$AG$7","v":0}]
[null,{"$f":"'Base Professeur'!$H$8","v":"Danseur acteur"},{"$f":"'Base Professeur'!$I$8","v":"Beaucoup d’hésitations, gestes parasites, rire, regard au sol …"},{"$f":"'Base Professeur'!$J$8","v":"Gestuelle connue. Quelques hésitations ou gestes parasites"},{"$f":"'Base Professeur'!$K$8","v":"Gestuelle précise. Aucunes hésitations ou gestes parasites"},{"$f":"'Base Professeur'!$L$8","v":"Gestuelle très précise. Aucunes erreurs"},null,null,null,{"$f":"'Base Professeur'!$O$8","v":0},{"$f":"'Base Professeur'!$P$8","v":3},{"$f":"'Base Professeur'!$Q$8","v":0},{"$f":"'Base Professeur'!$R$8","v":0},{"$f":"'Base Professeur'!$S$8","v":0},null,null,null,{"$f":"'Base Professeur'!$V$8","v":0},{"$f":"'Base Professeur'!$W$8","v":9},{"$f":"'Base Professeur'!$X$8","v":0},{"$f":"'Base Professeur'!$Y$8","v":0},{"$f":"'Base Professeur'!$Z$8","v":0},null,null,null,{"$f":"'Base Professeur'!$AC$8","v":0},{"$f":"'Base Professeur'!$AD$8","v":15},{"$f":"'Base Professeur'!$AE$8","v":0},{"$f":"'Base Professeur'!$AF$8","v":0},{"$f":"'Base Professeur'!$AG$8","v":0}]
[null,{"$f":"'Base Professeur'!$H$9","v":"Prestation de groupe finalisée"},{"$f":"'Base Professeur'!$I$9","v":"Manque deux exigences et +"},{"$f":"'Base Professeur'!$J$9","v":"Manque une exigence"},{"$f":"'Base Professeur'!$K$9","v":"Toutes les exigences"},{"$f":"'Base Professeur'!$L$9","v":"Toutes exigences et relation au thème"},null,null,null,{"$f":"'Base Professeur'!$O$9","v":0},{"$f":"'Base Professeur'!$P$9","v":0},{"$f":"'Base Professeur'!$Q$9","v":4},{"$f":"'Base Professeur'!$R$9","v":0},{"$f":"'Base Professeur'!$S$9","v":0},null,null,null,{"$f":"'Base Professeur'!$V$9","v":0},{"$f":"'Base Professeur'!$W$9","v":0},{"$f":"'Base Professeur'!$X$9","v":10},{"$f":"'Base Professeur'!$Y$9","v":0},{"$f":"'Base Professeur'!$Z$9","v":0},null,null,null,{"$f":"'Base Professeur'!$AC$9","v":0},{"$f":"'Base Professeur'!$AD$9","v":0},{"$f":"'Base Professeur'!$AE$9","v":16},{"$f":"'Base Professeur'!$AF$9","v":0},{"$f":"'Base Professeur'!$AG$9","v":0}]
[null,{"$f":"'Base Professeur'!$H$10","v":"Échauffement"},{"$f":"'Base Professeur'!$I$10","v":"Echauffement Oublié"},{"$f":"'Base Professeur'!$J$10","v":"Echauffement Baclé"},{"$f":"'Base Professeur'!$K$10","v":"Echauffement Bien Exécuté"},{"$f":"'Base Professeur'!$L$10","v":"Echauffement Bien Exécuté et Guidé"},null,null,null,{"$f":"'Base Professeur'!$O$10","v":0},{"$f":"'Base Professeur'!$P$10","v":0},{"$f":"'Base Professeur'!$Q$10","v":0},{"$f":"'Base Professeur'!$R$10","v":5},{"$f":"'Base Professeur'!$S$10","v":0},null,null,null,{"$f":"'Base Professeur'!$V$10","v":0},{"$f":"'Base Professeur'!$W$10","v":0},{"$f":"'Base Professeur'!$X$10","v":0},{"$f":"'Base Professeur'!$Y$10","v":11},{"$f":"'Base Professeur'!$Z$10","v":0},null,null,null,{"$f":"'Base Professeur'!$AC$10","v":0},{"$f":"'Base Professeur'!$AD$10","v":0},{"$f":"'Base Professeur'!$AE$10","v":0},{"$f":"'Base Professeur'!$AF$10","v":17},{"$f":"'Base Professeur'!$AG$10","v":0}]
[null,{"$f":"'Base Professeur'!$H$11","v":"Spectateur"},{"$f":"'Base Professeur'!$I$11","v":"Ricane et n'observe pas"},{"$f":"'Base Professeur'!$J$11","v":"Bavardages et observation imprécise"},{"$f":"'Base Professeur'!$K$11","v":"Respecte et Observation précise"},{"$f":"'Base Professeur'!$L$11","v":"Apprécie et Conseil constructif"},null,null,null,{"$f":"'Base Professeur'!$O$11","v":0},{"$f":"'Base Professeur'!$P$11","v":0},{"$f":"'Base Professeur'!$Q$11","v":0},{"$f":"'Base Professeur'!$R$11","v":0},{"$f":"'Base Professeur'!$S$11","v":6},null,null,null,{"$f":"'Base Professeur'!$V$11","v":0},{"$f":"'Base Professeur'!$W$11","v":0},{"$f":"'Base Professeur'!$X$11","v":0},{"$f":"'Base Professeur'!$Y$11","v":0},{"$f":"'Base Professeur'!$Z$11","v":12},null,null,null,{"$f":"'Base Professeur'!$AC$11","v":0},{"$f":"'Base Professeur'!$AD$11","v":0},{"$f":"'Base Professeur'!$AE$11","v":0},{"$f":"'Base Professeur'!$AF$11","v":0},{"$f":"'Base Professeur'!$AG$11","v":18}]
[]
[null,{"$f":"'Base Professeur'!C36","v":8},null,null,null,null,null,null,null,{"$f":"B312","v":8},null,null,null,null,null,null,null,{"$f":"J312","v":8},null,null,null,null,null,null,null,{"$f":"R312","v":8}]
[null,{"$f":"'Base Professeur'!$G$4","v":"Danse"},null,null,null,null,null,null,null,{"$f":"'Base Professeur'!$N$4","v":"Course d'Orientation"},null,null,null,null,null,null,null,{"$f":"'Base Professeur'!$U$4","v":"Musculation"},null,null,null,null,null,null,null,{"$f":"'Base Professeur'!$AB$4","v":"Demi-Fond"}]
[null,{"$f":"'Base Professeur'!$H$5","v":"Objectifs"},{"$f":"'Base Professeur'!$I$5","v":"Non Atteint"},{"$f":"'Base Professeur'!$J$5","v":"Partiellement"},{"$f":"'Base Professeur'!$K$5","v":"Atteint"},{"$f":"'Base Professeur'!$L$5","v":"Dépassé"},"1er Auto-    Positionnement ","2ème Auto- Positionnement",null,{"$f":"'Base Professeur'!$O$5","v":"Objectifs"},{"$f":"'Base Professeur'!$P$5","v":"Non Atteint"},{"$f":"'Base Professeur'!$Q$5","v":"Partiellement"},{"$f":"'Base Professeur'!$R$5","v":"Atteint"},{"$f":"'Base Professeur'!$S$5","v":"Dépassé"},"1er Auto-    Positionnement ","2ème Auto- Positionnement",null,{"$f":"'Base Professeur'!$V$5","v":"Objectifs"},{"$f":"'Base Professeur'!$W$5","v":"Non Atteint"},{"$f":"'Base Professeur'!X315","v":0},{"$f":"'Base Professeur'!$Y$5","v":"Atteint"},{"$f":"'Base Professeur'!$Z$5","v":"Dépassé"},"1er Auto-    Positionnement ","2ème Auto- Positionnement",null,{"$f":"'Base Professeur'!$AC$5","v":"Objectifs"},{"$f":"'Base Professeur'!$AD$5","v":"Non Atteint"},{"$f":"'Base Professeur'!$AE$5","v":"Partiellement"},{"$f":"'Base Professeur'!$AF$5","v":"Atteint"},{"$f":"'Base Professeur'!$AG$5","v":"Dépassé"},"1er Auto-    Positionnement ","2ème Auto- Positionnement"]
[null,{"$f":"'Base Professeur'!$H$6","v":"Chorégraphe acteur"},{"$f":"'Base Professeur'!$I$6","v":"Apporte peu au groupe, peu déchange, gêne. Numérique mal ou pas utilisé"},{"$f":"'Base Professeur'!$J$6","v":"Participe ponctuellement.             Peu de numérique "},{"$f":"'Base Professeur'!$K$6","v":"Actif, participe pour plus-value.            Numérique utilisé"},{"$f":"'Base Professeur'!$L$6","v":"Fort de propositions, constructifs. Numérique en plus-value"},null,null,null,{"$f":"'Base Professeur'!$O$6","v":0},{"$f":"'Base Professeur'!$P$6","v":0},{"$f":"'Base Professeur'!$Q$6","v":0},{"$f":"'Base Professeur'!$R$6","v":0},{"$f":"'Base Professeur'!$S$6","v":0},null,null,null,{"$f":"'Base Professeur'!$V$6","v":0},{"$f":"'Base Professeur'!$W$6","v":0},{"$f":"'Base Professeur'!$X$6","v":0},{"$f":"'Base Professeur'!$Y$6","v":0},{"$f":"'Base Professeur'!$Z$6","v":0},null,null,null,{"$f":"'Base Professeur'!$AC$6","v":0},{"$f":"'Base Professeur'!$AD$6","v":0},{"$f":"'Base Professeur'!$AE$6","v":0},{"$f":"'Base Professeur'!$AF$6","v":0},{"$f":"'Base Professeur'!$AG$6","v":0}]
[null,{"$f":"'Base Professeur'!$H$7","v":"Danseur volontaire"},{"$f":"'Base Professeur'!$I$7","v":"Danse dans son coin, aucuns liens avec les autres danseurs"},{"$f":"'Base Professeur'!$J$7","v":"Hésite, se réfère aux autres danseurs"},{"$f":"'Base Professeur'!$K$7","v":"Concentré à danser"},{"$f":"'Base Professeur'!$L$7","v":"Vit sa danse"},null,null,null,{"$f":"'Base Professeur'!$O$7","v":2},{"$f":"'Base Professeur'!$P$7","v":0},{"$f":"'Base Professeur'!$Q$7","v":0},{"$f":"'Base Professeur'!$R$7","v":0},{"$f":"'Base Professeur'!$S$7","v":0},null,null,null,{"$f":"'Base Professeur'!$V$7","v":8},{"$f":"'Base Professeur'!$W$7","v":0},{"$f":"'Base Professeur'!$X$7","v":0},{"$f":"'Base Professeur'!$Y$7","v":0},{"$f":"'Base Professeur'!$Z$7","v":0},null,null,null,{"$f":"'Base Professeur'!$AC$7","v":14},{"$f":"'Base Professeur'!$AD$7","v":0},{"$f":"'Base Professeur'!$AE$7","v":0},{"$f":"'Base Professeur'!$AF$7","v":0},{"$f":"'Base Professeur'!$AG$7","v":0}]
[null,{"$f":"'Base Professeur'!$H$8","v":"Danseur acteur"},{"$f":"'Base Professeur'!$I$8","v":"Beaucoup d’hésitations, gestes parasites, rire, regard au sol …"},{"$f":"'Base Professeur'!$J$8","v":"Gestuelle connue. Quelques hésitations ou gestes parasites"},{"$f":"'Base Professeur'!$K$8","v":"Gestuelle précise. Aucunes hésitations ou gestes parasites"},{"$f":"'Base Professeur'!$L$8","v":"Gestuelle très précise. Aucunes erreurs"},null,null,null,{"$f":"'Base Professeur'!$O$8","v":0},{"$f":"'Base Professeur'!$P$8","v":3},{"$f":"'Base Professeur'!$Q$8","v":0},{"$f":"'Base Professeur'!$R$8","v":0},{"$f":"'Base Professeur'!$S$8","v":0},null,null,null,{"$f":"'Base Professeur'!$V$8","v":0},{"$f":"'Base Professeur'!$W$8","v":9},{"$f":"'Base Professeur'!$X$8","v":0},{"$f":"'Base Professeur'!$Y$8","v":0},{"$f":"'Base Professeur'!$Z$8","v":0},null,null,null,{"$f":"'Base Professeur'!$AC$8","v":0},{"$f":"'Base Professeur'!$AD$8","v":15},{"$f":"'Base Professeur'!$AE$8","v":0},{"$f":"'Base Professeur'!$AF$8","v":0},{"$f":"'Base Professeur'!$AG$8","v":0}]
[null,{"$f":"'Base Professeur'!$H$9","v":"Prestation de groupe finalisée"},{"$f":"'Base Professeur'!$I$9","v":"Manque deux exigences et +"},{"$f":"'Base Professeur'!$J$9","v":"Manque une exigence"},{"$f":"'Base Professeur'!$K$9","v":"Toutes les exigences"},{"$f":"'Base Professeur'!$L$9","v":"Toutes exigences et relation au thème"},null,null,null,{"$f":"'Base Professeur'!$O$9","v":0},{"$f":"'Base Professeur'!$P$9","v":0},{"$f":"'Base Professeur'!$Q$9","v":4},{"$f":"'Base Professeur'!$R$9","v":0},{"$f":"'Base Professeur'!$S$9","v":0},null,null,null,{"$f":"'Base Professeur'!$V$9","v":0},{"$f":"'Base Professeur'!$W$9","v":0},{"$f":"'Base Professeur'!$X$9","v":10},{"$f":"'Base Professeur'!$Y$9","v":0},{"$f":"'Base Professeur'!$Z$9","v":0},null,null,null,{"$f":"'Base Professeur'!$AC$9","v":0},{"$f":"'Base Professeur'!$AD$9","v":0},{"$f":"'Base Professeur'!$AE$9","v":16},{"$f":"'Base Professeur'!$AF$9","v":0},{"$f":"'Base Professeur'!$AG$9","v":0}]
[null,{"$f":"'Base Professeur'!$H$10","v":"Échauffement"},{"$f":"'Base Professeur'!$I$10","v":"Echauffement Oublié"},{"$f":"'Base Professeur'!$J$10","v":"Echauffement Baclé"},{"$f":"'Base Professeur'!$K$10","v":"Echauffement Bien Exécuté"},{"$f":"'Base Professeur'!$L$10","v":"Echauffement Bien Exécuté et Guidé"},null,null,null,{"$f":"'Base Professeur'!$O$10","v":0},{"$f":"'Base Professeur'!$P$10","v":0},{"$f":"'Base Professeur'!$Q$10","v":0},{"$f":"'Base Professeur'!$R$10","v":5},{"$f":"'Base Professeur'!$S$10","v":0},null,null,null,{"$f":"'Base Professeur'!$V$10","v":0},{"$f":"'Base Professeur'!$W$10","v":0},{"$f":"'Base Professeur'!$X$10","v":0},{"$f":"'Base Professeur'!$Y$10","v":11},{"$f":"'Base Professeur'!$Z$10","v":0},null,null,null,{"$f":"'Base Professeur'!$AC$10","v":0},{"$f":"'Base Professeur'!$AD$10","v":0},{"$f":"'Base Professeur'!$AE$10","v":0},{"$f":"'Base Professeur'!$AF$10","v":17},{"$f":"'Base Professeur'!$AG$10","v":0}]
[null,{"$f":"'Base Professeur'!$H$11","v":"Spectateur"},{"$f":"'Base Professeur'!$I$11","v":"Ricane et n'observe pas"},{"$f":"'Base Professeur'!$J$11","v":"Bavardages et observation imprécise"},{"$f":"'Base Professeur'!$K$11","v":"Respecte et Observation précise"},{"$f":"'Base Professeur'!$L$11","v":"Apprécie et Conseil constructif"},null,null,null,{"$f":"'Base Professeur'!$O$11","v":0},{"$f":"'Base Professeur'!$P$11","v":0},{"$f":"'Base Professeur'!$Q$11","v":0},{"$f":"'Base Professeur'!$R$11","v":0},{"$f":"'Base Professeur'!$S$11","v":6},null,null,null,{"$f":"'Base Professeur'!$V$11","v":0},{"$f":"'Base Professeur'!$W$11","v":0},{"$f":"'Base Professeur'!$X$11","v":0},{"$f":"'Base Professeur'!$Y$11","v":0},{"$f":"'Base Professeur'!$Z$11","v":12},null,null,null,{"$f":"'Base Professeur'!$AC$11","v":0},{"$f":"'Base Professeur'!$AD$11","v":0},{"$f":"'Base Professeur'!$AE$11","v":0},{"$f":"'Base Professeur'!$AF$11","v":0},{"$f":"'Base Professeur'!$AG$11","v":18}]
[]
[null,{"$f":"'Base Professeur'!C37","v":9},null,null,null,null,null,null,null,{"$f":"B322","v":9},null,null,null,null,null,null,null,{"$f":"J322","v":9},null,null,null,null,null,null,null,{"$f":"R322","v":9}]
[null,{"$f":"'Base Professeur'!$G$4","v":"Danse"},null,null,null,null,null,null,null,{"$f":"'Base Professeur'!$N$4","v":"Course d'Orientation"},null,null,null,null,null,null,null,{"$f":"'Base Professeur'!$U$4","v":"Musculation"},null,null,null,null,null,null,null,{"$f":"'Base Professeur'!$AB$4","v":"Demi-Fond"}]
[null,{"$f":"'Base Professeur'!$H$5","v":"Objectifs"},{"$f":"'Base Professeur'!$I$5","v":"Non Atteint"},{"$f":"'Base Professeur'!$J$5","v":"Partiellement"},{"$f":"'Base Professeur'!$K$5","v":"Atteint"},{"$f":"'Base Professeur'!$L$5","v":"Dépassé"},"1er Auto-    Positionnement ","2ème Auto- Positionnement",null,{"$f":"'Base Professeur'!$O$5","v":"Objectifs"},{"$f":"'Base Professeur'!$P$5","v":"Non Atteint"},{"$f":"'Base Professeur'!$Q$5","v":"Partiellement"},{"$f":"'Base Professeur'!$R$5","v":"Atteint"},{"$f":"'Base Professeur'!$S$5","v":"Dépassé"},"1er Auto-    Positionnement ","2ème Auto- Positionnement",null,{"$f":"'Base Professeur'!$V$5","v":"Objectifs"},{"$f":"'Base Professeur'!$W$5","v":"Non Atteint"},{"$f":"'Base Professeur'!X325","v":0},{"$f":"'Base Professeur'!$Y$5","v":"Atteint"},{"$f":"'Base Professeur'!$Z$5","v":"Dépassé"},"1er Auto-    Positionnement ","2ème Auto- Positionnement",null,{"$f":"'Base Professeur'!$AC$5","v":"Objectifs"},{"$f":"'Base Professeur'!$AD$5","v":"Non Atteint"},{"$f":"'Base Professeur'!$AE$5","v":"Partiellement"},{"$f":"'Base Professeur'!$AF$5","v":"Atteint"},{"$f":"'Base Professeur'!$AG$5","v":"Dépassé"},"1er Auto-    Positionnement ","2ème Auto- Positionnement"]
[null,{"$f":"'Base Professeur'!$H$6","v":"Chorégraphe acteur"},{"$f":"'Base Professeur'!$I$6","v":"Apporte peu au groupe, peu déchange, gêne. Numérique mal ou pas utilisé"},{"$f":"'Base Professeur'!$J$6","v":"Participe ponctuellement.             Peu de numérique "},{"$f":"'Base Professeur'!$K$6","v":"Actif, participe pour plus-value.            Numérique utilisé"},{"$f":"'Base Professeur'!$L$6","v":"Fort de propositions, constructifs. Numérique en plus-value"},null,null,null,{"$f":"'Base Professeur'!$O$6","v":0},{"$f":"'Base Professeur'!$P$6","v":0},{"$f":"'Base Professeur'!$Q$6","v":0},{"$f":"'Base Professeur'!$R$6","v":0},{"$f":"'Base Professeur'!$S$6","v":0},null,null,null,{"$f":"'Base Professeur'!$V$6","v":0},{"$f":"'Base Professeur'!$W$6","v":0},{"$f":"'Base Professeur'!$X$6","v":0},{"$f":"'Base Professeur'!$Y$6","v":0},{"$f":"'Base Professeur'!$Z$6","v":0},null,null,null,{"$f":"'Base Professeur'!$AC$6","v":0},{"$f":"'Base Professeur'!$AD$6","v":0},{"$f":"'Base Professeur'!$AE$6","v":0},{"$f":"'Base Professeur'!$AF$6","v":0},{"$f":"'Base Professeur'!$AG$6","v":0}]
[null,{"$f":"'Base Professeur'!$H$7","v":"Danseur volontaire"},{"$f":"'Base Professeur'!$I$7","v":"Danse dans son coin, aucuns liens avec les autres danseurs"},{"$f":"'Base Professeur'!$J$7","v":"Hésite, se réfère aux autres danseurs"},{"$f":"'Base Professeur'!$K$7","v":"Concentré à danser"},{"$f":"'Base Professeur'!$L$7","v":"Vit sa danse"},null,null,null,{"$f":"'Base Professeur'!$O$7","v":2},{"$f":"'Base Professeur'!$P$7","v":0},{"$f":"'Base Professeur'!$Q$7","v":0},{"$f":"'Base Professeur'!$R$7","v":0},{"$f":"'Base Professeur'!$S$7","v":0},null,null,null,{"$f":"'Base Professeur'!$V$7","v":8},{"$f":"'Base Professeur'!$W$7","v":0},{"$f":"'Base Professeur'!$X$7","v":0},{"$f":"'Base Professeur'!$Y$7","v":0},{"$f":"'Base Professeur'!$Z$7","v":0},null,null,null,{"$f":"'Base Professeur'!$AC$7","v":14},{"$f":"'Base Professeur'!$AD$7","v":0},{"$f":"'Base Professeur'!$AE$7","v":0},{"$f":"'Base Professeur'!$AF$7","v":0},{"$f":"'Base Professeur'!$AG$7","v":0}]
[null,{"$f":"'Base Professeur'!$H$8","v":"Danseur acteur"},{"$f":"'Base Professeur'!$I$8","v":"Beaucoup d’hésitations, gestes parasites, rire, regard au sol …"},{"$f":"'Base Professeur'!$J$8","v":"Gestuelle connue. Quelques hésitations ou gestes parasites"},{"$f":"'Base Professeur'!$K$8","v":"Gestuelle précise. Aucunes hésitations ou gestes parasites"},{"$f":"'Base Professeur'!$L$8","v":"Gestuelle très précise. Aucunes erreurs"},null,null,null,{"$f":"'Base Professeur'!$O$8","v":0},{"$f":"'Base Professeur'!$P$8","v":3},{"$f":"'Base Professeur'!$Q$8","v":0},{"$f":"'Base Professeur'!$R$8","v":0},{"$f":"'Base Professeur'!$S$8","v":0},null,null,null,{"$f":"'Base Professeur'!$V$8","v":0},{"$f":"'Base Professeur'!$W$8","v":9},{"$f":"'Base Professeur'!$X$8","v":0},{"$f":"'Base Professeur'!$Y$8","v":0},{"$f":"'Base Professeur'!$Z$8","v":0},null,null,null,{"$f":"'Base Professeur'!$AC$8","v":0},{"$f":"'Base Professeur'!$AD$8","v":15},{"$f":"'Base Professeur'!$AE$8","v":0},{"$f":"'Base Professeur'!$AF$8","v":0},{"$f":"'Base Professeur'!$AG$8","v":0}]
[null,{"$f":"'Base Professeur'!$H$9","v":"Prestation de groupe finalisée"},{"$f":"'Base Professeur'!$I$9","v":"Manque deux exigences et +"},{"$f":"'Base Professeur'!$J$9","v":"Manque une exigence"},{"$f":"'Base Professeur'!$K$9","v":"Toutes les exigences"},{"$f":"'Base Professeur'!$L$9","v":"Toutes exigences et relation au thème"},null,null,null,{"$f":"'Base Professeur'!$O$9","v":0},{"$f":"'Base Professeur'!$P$9","v":0},{"$f":"'Base Professeur'!$Q$9","v":4},{"$f":"'Base Professeur'!$R$9","v":0},{"$f":"'Base Professeur'!$S$9","v":0},null,null,null,{"$f":"'Base Professeur'!$V$9","v":0},{"$f":"'Base Professeur'!$W$9","v":0},{"$f":"'Base Professeur'!$X$9","v":10},{"$f":"'Base Professeur'!$Y$9","v":0},{"$f":"'Base Professeur'!$Z$9","v":0},null,null,null,{"$f":"'Base Professeur'!$AC$9","v":0},{"$f":"'Base Professeur'!$AD$9","v":0},{"$f":"'Base Professeur'!$AE$9","v":16},{"$f":"'Base Professeur'!$AF$9","v":0},{"$f":"'Base Professeur'!$AG$9","v":0}]
[null,{"$f":"'Base Professeur'!$H$10","v":"Échauffement"},{"$f":"'Base Professeur'!$I$10","v":"Echauffement Oublié"},{"$f":"'Base Professeur'!$J$10","v":"Echauffement Baclé"},{"$f":"'Base Professeur'!$K$10","v":"Echauffement Bien Exécuté"},{"$f":"'Base Professeur'!$L$10","v":"Echauffement Bien Exécuté et Guidé"},null,null,null,{"$f":"'Base Professeur'!$O$10","v":0},{"$f":"'Base Professeur'!$P$10","v":0},{"$f":"'Base Professeur'!$Q$10","v":0},{"$f":"'Base Professeur'!$R$10","v":5},{"$f":"'Base Professeur'!$S$10","v":0},null,null,null,{"$f":"'Base Professeur'!$V$10","v":0},{"$f":"'Base Professeur'!$W$10","v":0},{"$f":"'Base Professeur'!$X$10","v":0},{"$f":"'Base Professeur'!$Y$10","v":11},{"$f":"'Base Professeur'!$Z$10","v":0},null,null,null,{"$f":"'Base Professeur'!$AC$10","v":0},{"$f":"'Base Professeur'!$AD$10","v":0},{"$f":"'Base Professeur'!$AE$10","v":0},{"$f":"'Base Professeur'!$AF$10","v":17},{"$f":"'Base Professeur'!$AG$10","v":0}]
[null,{"$f":"'Base Professeur'!$H$11","v":"Spectateur"},{"$f":"'Base Professeur'!$I$11","v":"Ricane et n'observe pas"},{"$f":"'Base Professeur'!$J$11","v":"Bavardages et observation imprécise"},{"$f":"'Base Professeur'!$K$11","v":"Respecte et Observation précise"},{"$f":"'Base Professeur'!$L$11","v":"Apprécie et Conseil constructif"},null,null,null,{"$f":"'Base Professeur'!$O$11","v":0},{"$f":"'Base Professeur'!$P$11","v":0},{"$f":"'Base Professeur'!$Q$11","v":0},{"$f":"'Base Professeur'!$R$11","v":0},{"$f":"'Base Professeur'!$S$11","v":6},null,null,null,{"$f":"'Base Professeur'!$V$11","v":0},{"$f":"'Base Professeur'!$W$11","v":0},{"$f":"'Base Professeur'!$X$11","v":0},{"$f":"'Base Professeur'!$Y$11","v":0},{"$f":"'Base Professeur'!$Z$11","v":12},null,null,null,{"$f":"'Base Professeur'!$AC$11","v":0},{"$f":"'Base Professeur'!$AD$11","v":0},{"$f":"'Base Professeur'!$AE$11","v":0},{"$f":"'Base Professeur'!$AF$11","v":0},{"$f":"'Base Professeur'!$AG$11","v":18}]
[]
[null,{"$f":"'Base Professeur'!C38","v":10},null,null,null,null,null,null,null,{"$f":"B332","v":10},null,null,null,null,null,null,null,{"$f":"J332","v":10},null,null,null,null,null,null,null,{"$f":"R332","v":10}]
[null,{"$f":"'Base Professeur'!$G$4","v":"Danse"},null,null,null,null,null,null,null,{"$f":"'Base Professeur'!$N$4","v":"Course d'Orientation"},null,null,null,null,null,null,null,{"$f":"'Base Professeur'!$U$4","v":"Musculation"},null,null,null,null,null,null,null,{"$f":"'Base Professeur'!$AB$4","v":"Demi-Fond"}]
[null,{"$f":"'Base Professeur'!$H$5","v":"Objectifs"},{"$f":"'Base Professeur'!$I$5","v":"Non Atteint"},{"$f":"'Base Professeur'!$J$5","v":"Partiellement"},{"$f":"'Base Professeur'!$K$5","v":"Atteint"},{"$f":"'Base Professeur'!$L$5","v":"Dépassé"},"1er Auto-    Positionnement ","2ème Auto- Positionnement",null,{"$f":"'Base Professeur'!$O$5","v":"Objectifs"},{"$f":"'Base Professeur'!$P$5","v":"Non Atteint"},{"$f":"'Base Professeur'!$Q$5","v":"Partiellement"},{"$f":"'Base Professeur'!$R$5","v":"Atteint"},{"$f":"'Base Professeur'!$S$5","v":"Dépassé"},"1er Auto-    Positionnement ","2ème Auto- Positionnement",null,{"$f":"'Base Professeur'!$V$5","v":"Objectifs"},{"$f":"'Base Professeur'!$W$5","v":"Non Atteint"},{"$f":"'Base Professeur'!X335","v":0},{"$f":"'Base Professeur'!$Y$5","v":"Atteint"},{"$f":"'Base Professeur'!$Z$5","v":"Dépassé"},"1er Auto-    Positionnement ","2ème Auto- Positionnement",null,{"$f":"'Base Professeur'!$AC$5","v":"Objectifs"},{"$f":"'Base Professeur'!$AD$5","v":"Non Atteint"},{"$f":"'Base Professeur'!$AE$5","v":"Partiellement"},{"$f":"'Base Professeur'!$AF$5","v":"Atteint"},{"$f":"'Base Professeur'!$AG$5","v":"Dépassé"},"1er Auto-    Positionnement ","2ème Auto- Positionnement"]
[null,{"$f":"'Base Professeur'!$H$6","v":"Chorégraphe acteur"},{"$f":"'Base Professeur'!$I$6","v":"Apporte peu au groupe, peu déchange, gêne. Numérique mal ou pas utilisé"},{"$f":"'Base Professeur'!$J$6","v":"Participe ponctuellement.             Peu de numérique "},{"$f":"'Base Professeur'!$K$6","v":"Actif, participe pour plus-value.            Numérique utilisé"},{"$f":"'Base Professeur'!$L$6","v":"Fort de propositions, constructifs. Numérique en plus-value"},null,null,null,{"$f":"'Base Professeur'!$O$6","v":0},{"$f":"'Base Professeur'!$P$6","v":0},{"$f":"'Base Professeur'!$Q$6","v":0},{"$f":"'Base Professeur'!$R$6","v":0},{"$f":"'Base Professeur'!$S$6","v":0},null,null,null,{"$f":"'Base Professeur'!$V$6","v":0},{"$f":"'Base Professeur'!$W$6","v":0},{"$f":"'Base Professeur'!$X$6","v":0},{"$f":"'Base Professeur'!$Y$6","v":0},{"$f":"'Base Professeur'!$Z$6","v":0},null,null,null,{"$f":"'Base Professeur'!$AC$6","v":0},{"$f":"'Base Professeur'!$AD$6","v":0},{"$f":"'Base Professeur'!$AE$6","v":0},{"$f":"'Base Professeur'!$AF$6","v":0},{"$f":"'Base Professeur'!$AG$6","v":0}]
[null,{"$f":"'Base Professeur'!$H$7","v":"Danseur volontaire"},{"$f":"'Base Professeur'!$I$7","v":"Danse dans son coin, aucuns liens avec les autres danseurs"},{"$f":"'Base Professeur'!$J$7","v":"Hésite, se réfère aux autres danseurs"},{"$f":"'Base Professeur'!$K$7","v":"Concentré à danser"},{"$f":"'Base Professeur'!$L$7","v":"Vit sa danse"},null,null,null,{"$f":"'Base Professeur'!$O$7","v":2},{"$f":"'Base Professeur'!$P$7","v":0},{"$f":"'Base Professeur'!$Q$7","v":0},{"$f":"'Base Professeur'!$R$7","v":0},{"$f":"'Base Professeur'!$S$7","v":0},null,null,null,{"$f":"'Base Professeur'!$V$7","v":8},{"$f":"'Base Professeur'!$W$7","v":0},{"$f":"'Base Professeur'!$X$7","v":0},{"$f":"'Base Professeur'!$Y$7","v":0},{"$f":"'Base Professeur'!$Z$7","v":0},null,null,null,{"$f":"'Base Professeur'!$AC$7","v":14},{"$f":"'Base Professeur'!$AD$7","v":0},{"$f":"'Base Professeur'!$AE$7","v":0},{"$f":"'Base Professeur'!$AF$7","v":0},{"$f":"'Base Professeur'!$AG$7","v":0}]
[null,{"$f":"'Base Professeur'!$H$8","v":"Danseur acteur"},{"$f":"'Base Professeur'!$I$8","v":"Beaucoup d’hésitations, gestes parasites, rire, regard au sol …"},{"$f":"'Base Professeur'!$J$8","v":"Gestuelle connue. Quelques hésitations ou gestes parasites"},{"$f":"'Base Professeur'!$K$8","v":"Gestuelle précise. Aucunes hésitations ou gestes parasites"},{"$f":"'Base Professeur'!$L$8","v":"Gestuelle très précise. Aucunes erreurs"},null,null,null,{"$f":"'Base Professeur'!$O$8","v":0},{"$f":"'Base Professeur'!$P$8","v":3},{"$f":"'Base Professeur'!$Q$8","v":0},{"$f":"'Base Professeur'!$R$8","v":0},{"$f":"'Base Professeur'!$S$8","v":0},null,null,null,{"$f":"'Base Professeur'!$V$8","v":0},{"$f":"'Base Professeur'!$W$8","v":9},{"$f":"'Base Professeur'!$X$8","v":0},{"$f":"'Base Professeur'!$Y$8","v":0},{"$f":"'Base Professeur'!$Z$8","v":0},null,null,null,{"$f":"'Base Professeur'!$AC$8","v":0},{"$f":"'Base Professeur'!$AD$8","v":15},{"$f":"'Base Professeur'!$AE$8","v":0},{"$f":"'Base Professeur'!$AF$8","v":0},{"$f":"'Base Professeur'!$AG$8","v":0}]
[null,{"$f":"'Base Professeur'!$H$9","v":"Prestation de groupe finalisée"},{"$f":"'Base Professeur'!$I$9","v":"Manque deux exigences et +"},{"$f":"'Base Professeur'!$J$9","v":"Manque une exigence"},{"$f":"'Base Professeur'!$K$9","v":"Toutes les exigences"},{"$f":"'Base Professeur'!$L$9","v":"Toutes exigences et relation au thème"},null,null,null,{"$f":"'Base Professeur'!$O$9","v":0},{"$f":"'Base Professeur'!$P$9","v":0},{"$f":"'Base Professeur'!$Q$9","v":4},{"$f":"'Base Professeur'!$R$9","v":0},{"$f":"'Base Professeur'!$S$9","v":0},null,null,null,{"$f":"'Base Professeur'!$V$9","v":0},{"$f":"'Base Professeur'!$W$9","v":0},{"$f":"'Base Professeur'!$X$9","v":10},{"$f":"'Base Professeur'!$Y$9","v":0},{"$f":"'Base Professeur'!$Z$9","v":0},null,null,null,{"$f":"'Base Professeur'!$AC$9","v":0},{"$f":"'Base Professeur'!$AD$9","v":0},{"$f":"'Base Professeur'!$AE$9","v":16},{"$f":"'Base Professeur'!$AF$9","v":0},{"$f":"'Base Professeur'!$AG$9","v":0}]
[null,{"$f":"'Base Professeur'!$H$10","v":"Échauffement"},{"$f":"'Base Professeur'!$I$10","v":"Echauffement Oublié"},{"$f":"'Base Professeur'!$J$10","v":"Echauffement Baclé"},{"$f":"'Base Professeur'!$K$10","v":"Echauffement Bien Exécuté"},{"$f":"'Base Professeur'!$L$10","v":"Echauffement Bien Exécuté et Guidé"},null,null,null,{"$f":"'Base Professeur'!$O$10","v":0},{"$f":"'Base Professeur'!$P$10","v":0},{"$f":"'Base Professeur'!$Q$10","v":0},{"$f":"'Base Professeur'!$R$10","v":5},{"$f":"'Base Professeur'!$S$10","v":0},null,null,null,{"$f":"'Base Professeur'!$V$10","v":0},{"$f":"'Base Professeur'!$W$10","v":0},{"$f":"'Base Professeur'!$X$10","v":0},{"$f":"'Base Professeur'!$Y$10","v":11},{"$f":"'Base Professeur'!$Z$10","v":0},null,null,null,{"$f":"'Base Professeur'!$AC$10","v":0},{"$f":"'Base Professeur'!$AD$10","v":0},{"$f":"'Base Professeur'!$AE$10","v":0},{"$f":"'Base Professeur'!$AF$10","v":17},{"$f":"'Base Professeur'!$AG$10","v":0}]
[null,{"$f":"'Base Professeur'!$H$11","v":"Spectateur"},{"$f":"'Base Professeur'!$I$11","v":"Ricane et n'observe pas"},{"$f":"'Base Professeur'!$J$11","v":"Bavardages et observation imprécise"},{"$f":"'Base Professeur'!$K$11","v":"Respecte et Observation précise"},{"$f":"'Base Professeur'!$L$11","v":"Apprécie et Conseil constructif"},null,null,null,{"$f":"'Base Professeur'!$O$11","v":0},{"$f":"'Base Professeur'!$P$11","v":0},{"$f":"'Base Professeur'!$Q$11","v":0},{"$f":"'Base Professeur'!$R$11","v":0},{"$f":"'Base Professeur'!$S$11","v":6},null,null,null,{"$f":"'Base Professeur'!$V$11","v":0},{"$f":"'Base Professeur'!$W$11","v":0},{"$f":"'Base Professeur'!$X$11","v":0},{"$f":"'Base Professeur'!$Y$11","v":0},{"$f":"'Base Professeur'!$Z$11","v":12},null,null,null,{"$f":"'Base Professeur'!$AC$11","v":0},{"$f":"'Base Professeur'!$AD$11","v":0},{"$f":"'Base Professeur'!$AE$11","v":0},{"$f":"'Base Professeur'!$AF$11","v":0},{"$f":"'Base Professeur'!$AG$11","v":18}]
[]
[null,{"$f":"'Base Professeur'!C39","v":11},null,null,null,null,null,null,null,{"$f":"B342","v":11},null,null,null,null,null,null,null,{"$f":"J342","v":11},null,null,null,null,null,null,null,{"$f":"R342","v":11}]
[null,{"$f":"'Base Professeur'!$G$4","v":"Danse"},null,null,null,null,null,null,null,{"$f":"'Base Professeur'!$N$4","v":"Course d'Orientation"},null,null,null,null,null,null,null,{"$f":"'Base Professeur'!$U$4","v":"Musculation"},null,null,null,null,null,null,null,{"$f":"'Base Professeur'!$AB$4","v":"Demi-Fond"}]
[null,{"$f":"'Base Professeur'!$H$5","v":"Objectifs"},{"$f":"'Base Professeur'!$I$5","v":"Non Atteint"},{"$f":"'Base Professeur'!$J$5","v":"Partiellement"},{"$f":"'Base Professeur'!$K$5","v":"Atteint"},{"$f":"'Base Professeur'!$L$5","v":"Dépassé"},"1er Auto-    Positionnement ","2ème Auto- Positionnement",null,{"$f":"'Base Professeur'!$O$5","v":"Objectifs"},{"$f":"'Base Professeur'!$P$5","v":"Non Atteint"},{"$f":"'Base Professeur'!$Q$5","v":"Partiellement"},{"$f":"'Base Professeur'!$R$5","v":"Atteint"},{"$f":"'Base Professeur'!$S$5","v":"Dépassé"},"1er Auto-    Positionnement ","2ème Auto- Positionnement",null,{"$f":"'Base Professeur'!$V$5","v":"Objectifs"},{"$f":"'Base Professeur'!$W$5","v":"Non Atteint"},{"$f":"'Base Professeur'!X345","v":0},{"$f":"'Base Professeur'!$Y$5","v":"Atteint"},{"$f":"'Base Professeur'!$Z$5","v":"Dépassé"},"1er Auto-    Positionnement ","2ème Auto- Positionnement",null,{"$f":"'Base Professeur'!$AC$5","v":"Objectifs"},{"$f":"'Base Professeur'!$AD$5","v":"Non Atteint"},{"$f":"'Base Professeur'!$AE$5","v":"Partiellement"},{"$f":"'Base Professeur'!$AF$5","v":"Atteint"},{"$f":"'Base Professeur'!$AG$5","v":"Dépassé"},"1er Auto-    Positionnement ","2ème Auto- Positionnement"]
[null,{"$f":"'Base Professeur'!$H$6","v":"Chorégraphe acteur"},{"$f":"'Base Professeur'!$I$6","v":"Apporte peu au groupe, peu déchange, gêne. Numérique mal ou pas utilisé"},{"$f":"'Base Professeur'!$J$6","v":"Participe ponctuellement.             Peu de numérique "},{"$f":"'Base Professeur'!$K$6","v":"Actif, participe pour plus-value.            Numérique utilisé"},{"$f":"'Base Professeur'!$L$6","v":"Fort de propositions, constructifs. Numérique en plus-value"},null,null,null,{"$f":"'Base Professeur'!$O$6","v":0},{"$f":"'Base Professeur'!$P$6","v":0},{"$f":"'Base Professeur'!$Q$6","v":0},{"$f":"'Base Professeur'!$R$6","v":0},{"$f":"'Base Professeur'!$S$6","v":0},null,null,null,{"$f":"'Base Professeur'!$V$6","v":0},{"$f":"'Base Professeur'!$W$6","v":0},{"$f":"'Base Professeur'!$X$6","v":0},{"$f":"'Base Professeur'!$Y$6","v":0},{"$f":"'Base Professeur'!$Z$6","v":0},null,null,null,{"$f":"'Base Professeur'!$AC$6","v":0},{"$f":"'Base Professeur'!$AD$6","v":0},{"$f":"'Base Professeur'!$AE$6","v":0},{"$f":"'Base Professeur'!$AF$6","v":0},{"$f":"'Base Professeur'!$AG$6","v":0}]
[null,{"$f":"'Base Professeur'!$H$7","v":"Danseur volontaire"},{"$f":"'Base Professeur'!$I$7","v":"Danse dans son coin, aucuns liens avec les autres danseurs"},{"$f":"'Base Professeur'!$J$7","v":"Hésite, se réfère aux autres danseurs"},{"$f":"'Base Professeur'!$K$7","v":"Concentré à danser"},{"$f":"'Base Professeur'!$L$7","v":"Vit sa danse"},null,null,null,{"$f":"'Base Professeur'!$O$7","v":2},{"$f":"'Base Professeur'!$P$7","v":0},{"$f":"'Base Professeur'!$Q$7","v":0},{"$f":"'Base Professeur'!$R$7","v":0},{"$f":"'Base Professeur'!$S$7","v":0},null,null,null,{"$f":"'Base Professeur'!$V$7","v":8},{"$f":"'Base Professeur'!$W$7","v":0},{"$f":"'Base Professeur'!$X$7","v":0},{"$f":"'Base Professeur'!$Y$7","v":0},{"$f":"'Base Professeur'!$Z$7","v":0},null,null,null,{"$f":"'Base Professeur'!$AC$7","v":14},{"$f":"'Base Professeur'!$AD$7","v":0},{"$f":"'Base Professeur'!$AE$7","v":0},{"$f":"'Base Professeur'!$AF$7","v":0},{"$f":"'Base Professeur'!$AG$7","v":0}]
[null,{"$f":"'Base Professeur'!$H$8","v":"Danseur acteur"},{"$f":"'Base Professeur'!$I$8","v":"Beaucoup d’hésitations, gestes parasites, rire, regard au sol …"},{"$f":"'Base Professeur'!$J$8","v":"Gestuelle connue. Quelques hésitations ou gestes parasites"},{"$f":"'Base Professeur'!$K$8","v":"Gestuelle précise. Aucunes hésitations ou gestes parasites"},{"$f":"'Base Professeur'!$L$8","v":"Gestuelle très précise. Aucunes erreurs"},null,null,null,{"$f":"'Base Professeur'!$O$8","v":0},{"$f":"'Base Professeur'!$P$8","v":3},{"$f":"'Base Professeur'!$Q$8","v":0},{"$f":"'Base Professeur'!$R$8","v":0},{"$f":"'Base Professeur'!$S$8","v":0},null,null,null,{"$f":"'Base Professeur'!$V$8","v":0},{"$f":"'Base Professeur'!$W$8","v":9},{"$f":"'Base Professeur'!$X$8","v":0},{"$f":"'Base Professeur'!$Y$8","v":0},{"$f":"'Base Professeur'!$Z$8","v":0},null,null,null,{"$f":"'Base Professeur'!$AC$8","v":0},{"$f":"'Base Professeur'!$AD$8","v":15},{"$f":"'Base Professeur'!$AE$8","v":0},{"$f":"'Base Professeur'!$AF$8","v":0},{"$f":"'Base Professeur'!$AG$8","v":0}]
[null,{"$f":"'Base Professeur'!$H$9","v":"Prestation de groupe finalisée"},{"$f":"'Base Professeur'!$I$9","v":"Manque deux exigences et +"},{"$f":"'Base Professeur'!$J$9","v":"Manque une exigence"},{"$f":"'Base Professeur'!$K$9","v":"Toutes les exigences"},{"$f":"'Base Professeur'!$L$9","v":"Toutes exigences et relation au thème"},null,null,null,{"$f":"'Base Professeur'!$O$9","v":0},{"$f":"'Base Professeur'!$P$9","v":0},{"$f":"'Base Professeur'!$Q$9","v":4},{"$f":"'Base Professeur'!$R$9","v":0},{"$f":"'Base Professeur'!$S$9","v":0},null,null,null,{"$f":"'Base Professeur'!$V$9","v":0},{"$f":"'Base Professeur'!$W$9","v":0},{"$f":"'Base Professeur'!$X$9","v":10},{"$f":"'Base Professeur'!$Y$9","v":0},{"$f":"'Base Professeur'!$Z$9","v":0},null,null,null,{"$f":"'Base Professeur'!$AC$9","v":0},{"$f":"'Base Professeur'!$AD$9","v":0},{"$f":"'Base Professeur'!$AE$9","v":16},{"$f":"'Base Professeur'!$AF$9","v":0},{"$f":"'Base Professeur'!$AG$9","v":0}]
[null,{"$f":"'Base Professeur'!$H$10","v":"Échauffement"},{"$f":"'Base Professeur'!$I$10","v":"Echauffement Oublié"},{"$f":"'Base Professeur'!$J$10","v":"Echauffement Baclé"},{"$f":"'Base Professeur'!$K$10","v":"Echauffement Bien Exécuté"},{"$f":"'Base Professeur'!$L$10","v":"Echauffement Bien Exécuté et Guidé"},null,null,null,{"$f":"'Base Professeur'!$O$10","v":0},{"$f":"'Base Professeur'!$P$10","v":0},{"$f":"'Base Professeur'!$Q$10","v":0},{"$f":"'Base Professeur'!$R$10","v":5},{"$f":"'Base Professeur'!$S$10","v":0},null,null,null,{"$f":"'Base Professeur'!$V$10","v":0},{"$f":"'Base Professeur'!$W$10","v":0},{"$f":"'Base Professeur'!$X$10","v":0},{"$f":"'Base Professeur'!$Y$10","v":11},{"$f":"'Base Professeur'!$Z$10","v":0},null,null,null,{"$f":"'Base Professeur'!$AC$10","v":0},{"$f":"'Base Professeur'!$AD$10","v":0},{"$f":"'Base Professeur'!$AE$10","v":0},{"$f":"'Base Professeur'!$AF$10","v":17},{"$f":"'Base Professeur'!$AG$10","v":0}]
[null,{"$f":"'Base Professeur'!$H$11","v":"Spectateur"},{"$f":"'Base Professeur'!$I$11","v":"Ricane et n'observe pas"},{"$f":"'Base Professeur'!$J$11","v":"Bavardages et observation imprécise"},{"$f":"'Base Professeur'!$K$11","v":"Respecte et Observation précise"},{"$f":"'Base Professeur'!$L$11","v":"Apprécie et Conseil constructif"},null,null,null,{"$f":"'Base Professeur'!$O$11","v":0},{"$f":"'Base Professeur'!$P$11","v":0},{"$f":"'Base Professeur'!$Q$11","v":0},{"$f":"'Base Professeur'!$R$11","v":0},{"$f":"'Base Professeur'!$S$11","v":6},null,null,null,{"$f":"'Base Professeur'!$V$11","v":0},{"$f":"'Base Professeur'!$W$11","v":0},{"$f":"'Base Professeur'!$X$11","v":0},{"$f":"'Base Professeur'!$Y$11","v":0},{"$f":"'Base Professeur'!$Z$11","v":12},null,null,null,{"$f":"'Base Professeur'!$AC$11","v":0},{"$f":"'Base Professeur'!$AD$11","v":0},{"$f":"'Base Professeur'!$AE$11","v":0},{"$f":"'Base Professeur'!$AF$11","v":0},{"$f":"'Base Professeur'!$AG$11","v":18}]

{"sheet":"Résumé Professeur","index":4,"n_rows":41,"n_cols":53,"rows_kept":41,"cut":false,"hidden":false,"merged":[[2,38,2,39],[0,41,0,52],[1,41,1,42],[1,43,1,44],[1,45,1,46],[1,47,1,48],[1,49,1,50],[1,51,1,52],[2,41,2,42],[2,43,2,44],[2,45,2,46],[2,47,2,48],[2,49,2,50],[2,51,2,52],[0,28,0,39],[1,28,1,29],[2,28,2,29],[2,30,2,31],[2,32,2,33],[2,34,2,35],[2,36,2,37],[1,30,1,31],[1,32,1,33],[1,34,1,35],[1,36,1,37],[1,38,1,39],[2,12,2,13],[0,15,0,26],[1,25,1,26],[2,15,2,16],[2,17,2,18],[2,19,2,20],[2,21,2,22],[2,23,2,24],[2,25,2,26],[1,12,1,13],[0,2,0,13],[1,15,1,16],[1,17,1,18],[1,19,1,20],[1,21,1,22],[40,17,44,19],[40,30,44,32],[40,43,44,45],[40,4,44,6],[0,0,2,1],[2,2,2,3],[2,4,2,5],[2,6,2,7],[2,8,2,9],[1,23,1,24],[1,10,1,11],[1,2,1,3],[1,4,1,5],[1,6,1,7],[1,8,1,9],[2,10,2,11]]}
[{"$f":"'Base Professeur'!C4","v":"6ème 4"},null,{"$f":"'Base Professeur'!G4","v":"Danse"},null,null,null,null,null,null,null,null,null,null,null,null,{"$f":"'Base Professeur'!N4","v":"Course d'Orientation"},null,null,null,null,null,null,null,null,null,null,null,null,{"$f":"'Base Professeur'!U4","v":"Musculation"},null,null,null,null,null,null,null,null,null,null,null,null,{"$f":"'Base Professeur'!AB4","v":"Demi-Fond"}]
[null,null,"AFL 1",null,"AFL 2",null,"AFL 3",null,"AFL 4",null,"AFL 5",null,"AFL 6",null,null,"AFL 1",null,"AFL 2",null,"AFL 3",null,"AFL 4",null,"AFL 5",null,"AFL 6",null,null,"AFL 1",null,"AFL 2",null,"AFL 3",null,"AFL 4",null,"AFL 5",null,"AFL 6",null,null,"AFL 1",null,"AFL 2",null,"AFL 3",null,"AFL 4",null,"AFL 5",null,"AFL 6"]
[null,null,{"$f":"'Base Professeur'!H6","v":"Chorégraphe acteur"},null,{"$f":"'Base Professeur'!H7","v":"Danseur volontaire"},null,{"$f":"'Base Professeur'!H8","v":"Danseur acteur"},null,{"$f":"'Base Professeur'!H9","v":"Prestation de groupe finalisée"},null,{"$f":"'Base Professeur'!H10","v":"Échauffement"},null,{"$f":"'Base Professeur'!H11","v":"Spectateur"},null,null,{"$f":"'Base Professeur'!O6","v":0},null,{"$f":"'Base Professeur'!O7","v":2},null,{"$f":"'Base Professeur'!O8","v":0},null,{"$f":"'Base Professeur'!O9","v":0},null,{"$f":"'Base Professeur'!O10","v":0},null,{"$f":"'Base Professeur'!O11","v":0},null,null,{"$f":"'Base Professeur'!V6","v":0},null,{"$f":"'Base Professeur'!V7","v":8},null,{"$f":"'Base Professeur'!V8","v":0},null,{"$f":"'Base Professeur'!V9","v":0},null,{"$f":"'Base Professeur'!V10","v":0},null,{"$f":"'Base Professeur'!V11","v":0},null,null,{"$f":"'Base Professeur'!AC6","v":0},null,{"$f":"'Base Professeur'!AC7","v":14},null,{"$f":"'Base Professeur'!AC8","v":0},null,{"$f":"'Base Professeur'!AC9","v":0},null,{"$f":"'Base Professeur'!AC10","v":0},null,{"$f":"'Base Professeur'!AC11","v":0}]
["NOM","PRÉNOM","Prof","Auto Posi","Prof","Auto Posi","Prof","Auto Posi","Prof","Auto Posi","Prof","Auto Posi","Prof","Auto Posi",null,"Prof","Auto- Pos","Prof","Auto- Pos","Prof","Auto- Pos","Prof","Auto- Pos","Prof","Auto- Pos","Prof","Auto- Pos",null,"Prof","Auto- Pos","Prof","Auto- Pos","Prof","Auto- Pos","Prof","Auto- Pos","Prof","Auto- Pos","Prof","Auto- Pos",null,"Prof","Auto- Pos","Prof","Auto- Pos","Prof","Auto- Pos","Prof","Auto- Pos","Prof","Auto- Pos","Prof","Auto- Pos"]
[{"$f":"'Base Professeur'!B5","v":"Fernot"},{"$f":"'Base Professeur'!C5","v":"Julie"},"Partiellement",{"$f":"IF('Auto-Positionnement'!$H$5=\"\",'Auto-Positionnement'!$G$5,'Auto-Positionnement'!$H$5)","v":"Atteint"},"Partiellement",{"$f":"IF('Auto-Positionnement'!$H$6=\"\",'Auto-Positionnement'!$G$6,'Auto-Positionnement'!$H$6)","v":"Partiellement"},"Atteint",{"$f":"IF('Auto-Positionnement'!$H$7=\"\",'Auto-Positionnement'!$G$7,'Auto-Positionnement'!$H$7)","v":"Partiellement"},"Dépassé",{"$f":"IF('Auto-Positionnement'!$H$8=\"\",'Auto-Positionnement'!$G$8,'Auto-Positionnement'!$H$8)","v":"Dépassé"},"Non Atteint",{"$f":"IF('Auto-Positionnement'!$H$9=\"\",'Auto-Positionnement'!$G$9,'Auto-Positionnement'!$H$9)","v":"Non Atteint"},"Partiellement",{"$f":"IF('Auto-Positionnement'!$H$10=\"\",'Auto-Positionnement'!$G$10,'Auto-Positionnement'!$H$10)","v":"Dépassé"},null,null,{"$f":"IF('Auto-Positionnement'!$P$5=\"\",'Auto-Positionnement'!$O$5,'Auto-Positionnement'!$P$5)","v":0},null,{"$f":"IF('Auto-Positionnement'!$P$6=\"\",'Auto-Positionnement'!$O$6,'Auto-Positionnement'!$P$6)","v":0},null,{"$f":"IF('Auto-Positionnement'!$P$7=\"\",'Auto-Positionnement'!$O$7,'Auto-Positionnement'!$P$7)","v":0},null,{"$f":"IF('Auto-Positionnement'!$P$8=\"\",'Auto-Positionnement'!$O$8,'Auto-Positionnement'!$P$8)","v":0},null,{"$f":"IF('Auto-Positionnement'!$P$9=\"\",'Auto-Positionnement'!$O$9,'Auto-Positionnement'!$P$9)","v":0},null,{"$f":"IF('Auto-Positionnement'!$P$10=\"\",'Auto-Positionnement'!$O$10,'Auto-Positionnement'!$P$10)","v":0},null,null,{"$f":"IF('Auto-Positionnement'!$X$5=\"\",'Auto-Positionnement'!$W$5,'Auto-Positionnement'!$X$5)","v":0},null,{"$f":"IF('Auto-Positionnement'!$X$6=\"\",'Auto-Positionnement'!$W$6,'Auto-Positionnement'!$X$6)","v":0},null,{"$f":"IF('Auto-Positionnement'!$X$7=\"\",'Auto-Positionnement'!$W$7,'Auto-Positionnement'!$X$7)","v":0},null,{"$f":"IF('Auto-Positionnement'!$X$8=\"\",'Auto-Positionnement'!$W$8,'Auto-Positionnement'!$X$8)","v":0},null,{"$f":"IF('Auto-Positionnement'!$X$9=\"\",'Auto-Positionnement'!$W$9,'Auto-Positionnement'!$X$9)","v":0},null,{"$f":"IF('Auto-Positionnement'!$X$10=\"\",'Auto-Positionnement'!$W$10,'Auto-Positionnement'!$X$10)","v":0},null,null,{"$f":"IF('Auto-Positionnement'!$AF$5=\"\",'Auto-Positionnement'!$AE$5,'Auto-Positionnement'!$AF$5)","v":0},null,{"$f":"IF('Auto-Positionnement'!$AF$6=\"\",'Auto-Positionnement'!$AE$6,'Auto-Positionnement'!$AF$6)","v":0},null,{"$f":"IF('Auto-Positionnement'!$AF$7=\"\",'Auto-Positionnement'!$AE$7,'Auto-Positionnement'!$AF$7)","v":0},null,{"$f":"IF('Auto-Positionnement'!$AF$8=\"\",'Auto-Positionnement'!$AE$8,'Auto-Positionnement'!$AF$8)","v":0},null,{"$f":"IF('Auto-Positionnement'!$AF$9=\"\",'Auto-Positionnement'!$AE$9,'Auto-Positionnement'!$AF$9)","v":0},null,{"$f":"IF('Auto-Positionnement'!$AF$10=\"\",'Auto-Positionnement'!$AE$10,'Auto-Positionnement'!$AF$10)","v":0}]
[{"$f":"'Base Professeur'!B6","v":"Dracin"},{"$f":"'Base Professeur'!C6","v":"Yacine"},"Partiellement",{"$f":"IF('Auto-Positionnement'!$H$15=\"\",'Auto-Positionnement'!$G$15,'Auto-Positionnement'!$H$15)","v":"Partiellement"},"Atteint",{"$f":"IF('Auto-Positionnement'!$H$16=\"\",'Auto-Positionnement'!$G$16,'Auto-Positionnement'!$H$16)","v":"Dépassé"},"Dépassé",{"$f":"IF('Auto-Positionnement'!$H$17=\"\",'Auto-Positionnement'!$G$17,'Auto-Positionnement'!$H$17)","v":"Atteint"},"Atteint",{"$f":"IF('Auto-Positionnement'!$H$18=\"\",'Auto-Positionnement'!$G$18,'Auto-Positionnement'!$H$18)","v":"Atteint"},"Atteint",{"$f":"IF('Auto-Positionnement'!$H$19=\"\",'Auto-Positionnement'!$G$19,'Auto-Positionnement'!$H$19)","v":"Dépassé"},"Non Atteint",{"$f":"IF('Auto-Positionnement'!$H$20=\"\",'Auto-Positionnement'!$G$20,'Auto-Positionnement'!$H$20)","v":"Partiellement"},null,null,{"$f":"IF('Auto-Positionnement'!$P$15=\"\",'Auto-Positionnement'!$O$15,'Auto-Positionnement'!$P$15)","v":0},null,{"$f":"IF('Auto-Positionnement'!$P$16=\"\",'Auto-Positionnement'!$O$16,'Auto-Positionnement'!$P$16)","v":0},null,{"$f":"IF('Auto-Positionnement'!$P$17=\"\",'Auto-Positionnement'!$O$17,'Auto-Positionnement'!$P$17)","v":0},null,{"$f":"IF('Auto-Positionnement'!$P$18=\"\",'Auto-Positionnement'!$O$18,'Auto-Positionnement'!$P$18)","v":0},null,{"$f":"IF('Auto-Positionnement'!$P$19=\"\",'Auto-Positionnement'!$O$19,'Auto-Positionnement'!$P$19)","v":0},null,{"$f":"IF('Auto-Positionnement'!$P$20=\"\",'Auto-Positionnement'!$O$20,'Auto-Positionnement'!$P$20)","v":0},null,null,{"$f":"IF('Auto-Positionnement'!$X$15=\"\",'Auto-Positionnement'!$W$15,'Auto-Positionnement'!$X$15)","v":0},null,{"$f":"IF('Auto-Positionnement'!$X$16=\"\",'Auto-Positionnement'!$W$16,'Auto-Positionnement'!$X$16)","v":0},null,{"$f":"IF('Auto-Positionnement'!$X$17=\"\",'Auto-Positionnement'!$W$17,'Auto-Positionnement'!$X$17)","v":0},null,{"$f":"IF('Auto-Positionnement'!$X$18=\"\",'Auto-Positionnement'!$W$18,'Auto-Positionnement'!$X$18)","v":0},null,{"$f":"IF('Auto-Positionnement'!$X$19=\"\",'Auto-Positionnement'!$W$19,'Auto-Positionnement'!$X$19)","v":0},null,{"$f":"IF('Auto-Positionnement'!$X$20=\"\",'Auto-Positionnement'!$W$20,'Auto-Positionnement'!$X$20)","v":0},null,null,{"$f":"IF('Auto-Positionnement'!$AF$15=\"\",'Auto-Positionnement'!$AE$15,'Auto-Positionnement'!$AF$15)","v":0},null,{"$f":"IF('Auto-Positionnement'!$AF$16=\"\",'Auto-Positionnement'!$AE$16,'Auto-Positionnement'!$AF$16)","v":0},null,{"$f":"IF('Auto-Positionnement'!$AF$17=\"\",'Auto-Positionnement'!$AE$17,'Auto-Positionnement'!$AF$17)","v":0},null,{"$f":"IF('Auto-Positionnement'!$AF$18=\"\",'Auto-Positionnement'!$AE$18,'Auto-Positionnement'!$AF$18)","v":0},null,{"$f":"IF('Auto-Positionnement'!$AF$19=\"\",'Auto-Positionnement'!$AE$19,'Auto-Positionnement'!$AF$19)","v":0},null,{"$f":"IF('Auto-Positionnement'!$AF$20=\"\",'Auto-Positionnement'!$AE$20,'Auto-Positionnement'!$AF$20)","v":0}]
[{"$f":"'Base Professeur'!B7","v":0},{"$f":"'Base Professeur'!C7","v":"Ludivine"},null,{"$f":"IF('Auto-Positionnement'!$H$25=\"\",'Auto-Positionnement'!$G$25,'Auto-Positionnement'!$H$25)","v":0},null,{"$f":"IF('Auto-Positionnement'!$H$26=\"\",'Auto-Positionnement'!$G$26,'Auto-Positionnement'!$H$26)","v":0},null,{"$f":"IF('Auto-Positionnement'!$H$27=\"\",'Auto-Positionnement'!$G$27,'Auto-Positionnement'!$H$27)","v":0},null,{"$f":"IF('Auto-Positionnement'!$H$28=\"\",'Auto-Positionnement'!$G$28,'Auto-Positionnement'!$H$28)","v":0},null,{"$f":"IF('Auto-Positionnement'!$H$29=\"\",'Auto-Positionnement'!$G$29,'Auto-Positionnement'!$H$29)","v":0},null,{"$f":"IF('Auto-Positionnement'!$H$30=\"\",'Auto-Positionnement'!$G$30,'Auto-Positionnement'!$H$30)","v":0},null,null,{"$f":"IF('Auto-Positionnement'!$P$25=\"\",'Auto-Positionnement'!$O$25,'Auto-Positionnement'!$P$25)","v":0},null,{"$f":"IF('Auto-Positionnement'!$P$26=\"\",'Auto-Positionnement'!$O$26,'Auto-Positionnement'!$P$26)","v":0},null,{"$f":"IF('Auto-Positionnement'!$P$27=\"\",'Auto-Positionnement'!$O$27,'Auto-Positionnement'!$P$27)","v":0},null,{"$f":"IF('Auto-Positionnement'!$P$28=\"\",'Auto-Positionnement'!$O$28,'Auto-Positionnement'!$P$28)","v":0},null,{"$f":"IF('Auto-Positionnement'!$P$29=\"\",'Auto-Positionnement'!$O$29,'Auto-Positionnement'!$P$29)","v":0},null,{"$f":"IF('Auto-Positionnement'!$P$30=\"\",'Auto-Positionnement'!$O$30,'Auto-Positionnement'!$P$30)","v":0},null,null,{"$f":"IF('Auto-Positionnement'!$X$25=\"\",'Auto-Positionnement'!$W$25,'Auto-Positionnement'!$X$25)","v":0},null,{"$f":"IF('Auto-Positionnement'!$X$26=\"\",'Auto-Positionnement'!$W$26,'Auto-Positionnement'!$X$26)","v":0},null,{"$f":"IF('Auto-Positionnement'!$X$27=\"\",'Auto-Positionnement'!$W$27,'Auto-Positionnement'!$X$27)","v":0},null,{"$f":"IF('Auto-Positionnement'!$X$28=\"\",'Auto-Positionnement'!$W$28,'Auto-Positionnement'!$X$28)","v":0},null,{"$f":"IF('Auto-Positionnement'!$X$29=\"\",'Auto-Positionnement'!$W$29,'Auto-Positionnement'!$X$29)","v":0},null,{"$f":"IF('Auto-Positionnement'!$X$30=\"\",'Auto-Positionnement'!$W$30,'Auto-Positionnement'!$X$30)","v":0},null,null,{"$f":"IF('Auto-Positionnement'!$AF$25=\"\",'Auto-Positionnement'!$AE$25,'Auto-Positionnement'!$AF$25)","v":0},null,{"$f":"IF('Auto-Positionnement'!$AF$26=\"\",'Auto-Positionnement'!$AE$26,'Auto-Positionnement'!$AF$26)","v":0},null,{"$f":"IF('Auto-Positionnement'!$AF$27=\"\",'Auto-Positionnement'!$AE$27,'Auto-Positionnement'!$AF$27)","v":0},null,{"$f":"IF('Auto-Positionnement'!$AF$28=\"\",'Auto-Positionnement'!$AE$28,'Auto-Positionnement'!$AF$28)","v":0},null,{"$f":"IF('Auto-Positionnement'!$AF$29=\"\",'Auto-Positionnement'!$AE$29,'Auto-Positionnement'!$AF$29)","v":0},null,{"$f":"IF('Auto-Positionnement'!$AF$30=\"\",'Auto-Positionnement'!$AE$30,'Auto-Positionnement'!$AF$30)","v":0}]
[{"$f":"'Base Professeur'!B8","v":0},{"$f":"'Base Professeur'!C8","v":"Nouceiba"},null,{"$f":"IF('Auto-Positionnement'!$H$35=\"\",'Auto-Positionnement'!$G$35,'Auto-Positionnement'!$H$35)","v":0},null,{"$f":"IF('Auto-Positionnement'!$H$36=\"\",'Auto-Positionnement'!$G$36,'Auto-Positionnement'!$H$36)","v":0},null,{"$f":"IF('Auto-Positionnement'!$H$37=\"\",'Auto-Positionnement'!$G$37,'Auto-Positionnement'!$H$37)","v":0},null,{"$f":"IF('Auto-Positionnement'!$H$38=\"\",'Auto-Positionnement'!$G$38,'Auto-Positionnement'!$H$38)","v":0},null,{"$f":"IF('Auto-Positionnement'!$H$39=\"\",'Auto-Positionnement'!$G$39,'Auto-Positionnement'!$H$39)","v":0},null,{"$f":"IF('Auto-Positionnement'!$H$40=\"\",'Auto-Positionnement'!$G$40,'Auto-Positionnement'!$H$40)","v":0},null,null,{"$f":"IF('Auto-Positionnement'!$P$35=\"\",'Auto-Positionnement'!$O$35,'Auto-Positionnement'!$P$35)","v":0},null,{"$f":"IF('Auto-Positionnement'!$P$36=\"\",'Auto-Positionnement'!$O$36,'Auto-Positionnement'!$P$36)","v":0},null,{"$f":"IF('Auto-Positionnement'!$P$37=\"\",'Auto-Positionnement'!$O$37,'Auto-Positionnement'!$P$37)","v":0},null,{"$f":"IF('Auto-Positionnement'!$P$38=\"\",'Auto-Positionnement'!$O$38,'Auto-Positionnement'!$P$38)","v":0},null,{"$f":"IF('Auto-Positionnement'!$P$39=\"\",'Auto-Positionnement'!$O$39,'Auto-Positionnement'!$P$39)","v":0},null,{"$f":"IF('Auto-Positionnement'!$P$40=\"\",'Auto-Positionnement'!$O$40,'Auto-Positionnement'!$P$40)","v":0},null,null,{"$f":"IF('Auto-Positionnement'!$X$35=\"\",'Auto-Positionnement'!$W$35,'Auto-Positionnement'!$X$35)","v":0},null,{"$f":"IF('Auto-Positionnement'!$X$36=\"\",'Auto-Positionnement'!$W$36,'Auto-Positionnement'!$X$36)","v":0},null,{"$f":"IF('Auto-Positionnement'!$X$37=\"\",'Auto-Positionnement'!$W$37,'Auto-Positionnement'!$X$37)","v":0},null,{"$f":"IF('Auto-Positionnement'!$X$38=\"\",'Auto-Positionnement'!$W$38,'Auto-Positionnement'!$X$38)","v":0},null,{"$f":"IF('Auto-Positionnement'!$X$39=\"\",'Auto-Positionnement'!$W$39,'Auto-Positionnement'!$X$39)","v":0},null,{"$f":"IF('Auto-Positionnement'!$X$40=\"\",'Auto-Positionnement'!$W$40,'Auto-Positionnement'!$X$40)","v":0},null,null,{"$f":"IF('Auto-Positionnement'!$AF$35=\"\",'Auto-Positionnement'!$AE$35,'Auto-Positionnement'!$AF$35)","v":0},null,{"$f":"IF('Auto-Positionnement'!$AF$36=\"\",'Auto-Positionnement'!$AE$36,'Auto-Positionnement'!$AF$36)","v":0},null,{"$f":"IF('Auto-Positionnement'!$AF$37=\"\",'Auto-Positionnement'!$AE$37,'Auto-Positionnement'!$AF$37)","v":0},null,{"$f":"IF('Auto-Positionnement'!$AF$38=\"\",'Auto-Positionnement'!$AE$38,'Auto-Positionnement'!$AF$38)","v":0},null,{"$f":"IF('Auto-Positionnement'!$AF$39=\"\",'Auto-Positionnement'!$AE$39,'Auto-Positionnement'!$AF$39)","v":0},null,{"$f":"IF('Auto-Positionnement'!$AF$40=\"\",'Auto-Positionnement'!$AE$40,'Auto-Positionnement'!$AF$40)","v":0}]
[{"$f":"'Base Professeur'!B9","v":0},{"$f":"'Base Professeur'!C9","v":"Tanem"},null,{"$f":"IF('Auto-Positionnement'!$H$45=\"\",'Auto-Positionnement'!$G$45,'Auto-Positionnement'!$H$45)","v":0},null,{"$f":"IF('Auto-Positionnement'!$H$46=\"\",'Auto-Positionnement'!$G$46,'Auto-Positionnement'!$H$46)","v":0},null,{"$f":"IF('Auto-Positionnement'!$H$47=\"\",'Auto-Positionnement'!$G$47,'Auto-Positionnement'!$H$47)","v":0},null,{"$f":"IF('Auto-Positionnement'!$H$48=\"\",'Auto-Positionnement'!$G$48,'Auto-Positionnement'!$H$48)","v":0},null,{"$f":"IF('Auto-Positionnement'!$H$49=\"\",'Auto-Positionnement'!$G$49,'Auto-Positionnement'!$H$49)","v":0},null,{"$f":"IF('Auto-Positionnement'!$H$50=\"\",'Auto-Positionnement'!$G$50,'Auto-Positionnement'!$H$50)","v":0},null,null,{"$f":"IF('Auto-Positionnement'!$P$45=\"\",'Auto-Positionnement'!$O$45,'Auto-Positionnement'!$P$45)","v":0},null,{"$f":"IF('Auto-Positionnement'!$P$46=\"\",'Auto-Positionnement'!$O$46,'Auto-Positionnement'!$P$46)","v":0},null,{"$f":"IF('Auto-Positionnement'!$P$47=\"\",'Auto-Positionnement'!$O$47,'Auto-Positionnement'!$P$47)","v":0},null,{"$f":"IF('Auto-Positionnement'!$P$48=\"\",'Auto-Positionnement'!$O$48,'Auto-Positionnement'!$P$48)","v":0},null,{"$f":"IF('Auto-Positionnement'!$P$49=\"\",'Auto-Positionnement'!$O$49,'Auto-Positionnement'!$P$49)","v":0},null,{"$f":"IF('Auto-Positionnement'!$P$50=\"\",'Auto-Positionnement'!$O$50,'Auto-Positionnement'!$P$50)","v":0},null,null,{"$f":"IF('Auto-Positionnement'!$X$45=\"\",'Auto-Positionnement'!$W$45,'Auto-Positionnement'!$X$45)","v":0},null,{"$f":"IF('Auto-Positionnement'!$X$46=\"\",'Auto-Positionnement'!$W$46,'Auto-Positionnement'!$X$46)","v":0},null,{"$f":"IF('Auto-Positionnement'!$X$47=\"\",'Auto-Positionnement'!$W$47,'Auto-Positionnement'!$X$47)","v":0},null,{"$f":"IF('Auto-Positionnement'!$X$48=\"\",'Auto-Positionnement'!$W$48,'Auto-Positionnement'!$X$48)","v":0},null,{"$f":"IF('Auto-Positionnement'!$X$49=\"\",'Auto-Positionnement'!$W$49,'Auto-Positionnement'!$X$49)","v":0},null,{"$f":"IF('Auto-Positionnement'!$X$50=\"\",'Auto-Positionnement'!$W$50,'Auto-Positionnement'!$X$50)","v":0},null,null,{"$f":"IF('Auto-Positionnement'!$AF$45=\"\",'Auto-Positionnement'!$AE$45,'Auto-Positionnement'!$AF$45)","v":0},null,{"$f":"IF('Auto-Positionnement'!$AF$46=\"\",'Auto-Positionnement'!$AE$46,'Auto-Positionnement'!$AF$46)","v":0},null,{"$f":"IF('Auto-Positionnement'!$AF$47=\"\",'Auto-Positionnement'!$AE$47,'Auto-Positionnement'!$AF$47)","v":0},null,{"$f":"IF('Auto-Positionnement'!$AF$48=\"\",'Auto-Positionnement'!$AE$48,'Auto-Positionnement'!$AF$48)","v":0},null,{"$f":"IF('Auto-Positionnement'!$AF$49=\"\",'Auto-Positionnement'!$AE$49,'Auto-Positionnement'!$AF$49)","v":0},null,{"$f":"IF('Auto-Positionnement'!$AF$50=\"\",'Auto-Positionnement'!$AE$50,'Auto-Positionnement'!$AF$50)","v":0}]
[{"$f":"'Base Professeur'!B10","v":0},{"$f":"'Base Professeur'!C10","v":"Rémi"},null,{"$f":"IF('Auto-Positionnement'!$H$55=\"\",'Auto-Positionnement'!$G$55,'Auto-Positionnement'!$H$55)","v":0},null,{"$f":"IF('Auto-Positionnement'!$H$56=\"\",'Auto-Positionnement'!$G$56,'Auto-Positionnement'!$H$56)","v":0},null,{"$f":"IF('Auto-Positionnement'!$H$57=\"\",'Auto-Positionnement'!$G$57,'Auto-Positionnement'!$H$57)","v":0},null,{"$f":"IF('Auto-Positionnement'!$H$58=\"\",'Auto-Positionnement'!$G$58,'Auto-Positionnement'!$H$58)","v":0},null,{"$f":"IF('Auto-Positionnement'!$H$59=\"\",'Auto-Positionnement'!$G$59,'Auto-Positionnement'!$H$59)","v":0},null,{"$f":"IF('Auto-Positionnement'!$H$60=\"\",'Auto-Positionnement'!$G$60,'Auto-Positionnement'!$H$60)","v":0},null,null,{"$f":"IF('Auto-Positionnement'!$P$55=\"\",'Auto-Positionnement'!$O$55,'Auto-Positionnement'!$P$55)","v":0},null,{"$f":"IF('Auto-Positionnement'!$P$56=\"\",'Auto-Positionnement'!$O$56,'Auto-Positionnement'!$P$56)","v":0},null,{"$f":"IF('Auto-Positionnement'!$P$57=\"\",'Auto-Positionnement'!$O$57,'Auto-Positionnement'!$P$57)","v":0},null,{"$f":"IF('Auto-Positionnement'!$P$58=\"\",'Auto-Positionnement'!$O$58,'Auto-Positionnement'!$P$58)","v":0},null,{"$f":"IF('Auto-Positionnement'!$P$59=\"\",'Auto-Positionnement'!$O$59,'Auto-Positionnement'!$P$59)","v":0},null,{"$f":"IF('Auto-Positionnement'!$P$60=\"\",'Auto-Positionnement'!$O$60,'Auto-Positionnement'!$P$60)","v":0},null,null,{"$f":"IF('Auto-Positionnement'!$X$55=\"\",'Auto-Positionnement'!$W$55,'Auto-Positionnement'!$X$55)","v":0},null,{"$f":"IF('Auto-Positionnement'!$X$56=\"\",'Auto-Positionnement'!$W$56,'Auto-Positionnement'!$X$56)","v":0},null,{"$f":"IF('Auto-Positionnement'!$X$57=\"\",'Auto-Positionnement'!$W$57,'Auto-Positionnement'!$X$57)","v":0},null,{"$f":"IF('Auto-Positionnement'!$X$58=\"\",'Auto-Positionnement'!$W$58,'Auto-Positionnement'!$X$58)","v":0},null,{"$f":"IF('Auto-Positionnement'!$X$59=\"\",'Auto-Positionnement'!$W$59,'Auto-Positionnement'!$X$59)","v":0},null,{"$f":"IF('Auto-Positionnement'!$X$60=\"\",'Auto-Positionnement'!$W$60,'Auto-Positionnement'!$X$60)","v":0},null,null,{"$f":"IF('Auto-Positionnement'!$AF$55=\"\",'Auto-Positionnement'!$AE$55,'Auto-Positionnement'!$AF$55)","v":0},null,{"$f":"IF('Auto-Positionnement'!$AF$56=\"\",'Auto-Positionnement'!$AE$56,'Auto-Positionnement'!$AF$56)","v":0},null,{"$f":"IF('Auto-Positionnement'!$AF$57=\"\",'Auto-Positionnement'!$AE$57,'Auto-Positionnement'!$AF$57)","v":0},null,{"$f":"IF('Auto-Positionnement'!$AF$58=\"\",'Auto-Positionnement'!$AE$58,'Auto-Positionnement'!$AF$58)","v":0},null,{"$f":"IF('Auto-Positionnement'!$AF$59=\"\",'Auto-Positionnement'!$AE$59,'Auto-Positionnement'!$AF$59)","v":0},null,{"$f":"IF('Auto-Positionnement'!$AF$60=\"\",'Auto-Positionnement'!$AE$60,'Auto-Positionnement'!$AF$60)","v":0}]
[{"$f":"'Base Professeur'!B11","v":0},{"$f":"'Base Professeur'!C11","v":"Léo"},null,{"$f":"IF('Auto-Positionnement'!$H$65=\"\",'Auto-Positionnement'!$G$65,'Auto-Positionnement'!$H$65)","v":0},null,{"$f":"IF('Auto-Positionnement'!$H$66=\"\",'Auto-Positionnement'!$G$66,'Auto-Positionnement'!$H$66)","v":0},null,{"$f":"IF('Auto-Positionnement'!$H$67=\"\",'Auto-Positionnement'!$G$67,'Auto-Positionnement'!$H$67)","v":0},null,{"$f":"IF('Auto-Positionnement'!$H$68=\"\",'Auto-Positionnement'!$G$68,'Auto-Positionnement'!$H$68)","v":0},null,{"$f":"IF('Auto-Positionnement'!$H$69=\"\",'Auto-Positionnement'!$G$69,'Auto-Positionnement'!$H$69)","v":0},null,{"$f":"IF('Auto-Positionnement'!$H$70=\"\",'Auto-Positionnement'!$G$70,'Auto-Positionnement'!$H$70)","v":0},null,null,{"$f":"IF('Auto-Positionnement'!$P$65=\"\",'Auto-Positionnement'!$O$65,'Auto-Positionnement'!$P$65)","v":0},null,{"$f":"IF('Auto-Positionnement'!$P$66=\"\",'Auto-Positionnement'!$O$66,'Auto-Positionnement'!$P$66)","v":0},null,{"$f":"IF('Auto-Positionnement'!$P$67=\"\",'Auto-Positionnement'!$O$67,'Auto-Positionnement'!$P$67)","v":0},null,{"$f":"IF('Auto-Positionnement'!$P$68=\"\",'Auto-Positionnement'!$O$68,'Auto-Positionnement'!$P$68)","v":0},null,{"$f":"IF('Auto-Positionnement'!$P$69=\"\",'Auto-Positionnement'!$O$69,'Auto-Positionnement'!$P$69)","v":0},null,{"$f":"IF('Auto-Positionnement'!$P$70=\"\",'Auto-Positionnement'!$O$70,'Auto-Positionnement'!$P$70)","v":0},null,null,{"$f":"IF('Auto-Positionnement'!$X$65=\"\",'Auto-Positionnement'!$W$65,'Auto-Positionnement'!$X$65)","v":0},null,{"$f":"IF('Auto-Positionnement'!$X$66=\"\",'Auto-Positionnement'!$W$66,'Auto-Positionnement'!$X$66)","v":0},null,{"$f":"IF('Auto-Positionnement'!$X$67=\"\",'Auto-Positionnement'!$W$67,'Auto-Positionnement'!$X$67)","v":0},null,{"$f":"IF('Auto-Positionnement'!$X$68=\"\",'Auto-Positionnement'!$W$68,'Auto-Positionnement'!$X$68)","v":0},null,{"$f":"IF('Auto-Positionnement'!$X$69=\"\",'Auto-Positionnement'!$W$69,'Auto-Positionnement'!$X$69)","v":0},null,{"$f":"IF('Auto-Positionnement'!$X$70=\"\",'Auto-Positionnement'!$W$70,'Auto-Positionnement'!$X$70)","v":0},null,null,{"$f":"IF('Auto-Positionnement'!$AF$65=\"\",'Auto-Positionnement'!$AE$65,'Auto-Positionnement'!$AF$65)","v":0},null,{"$f":"IF('Auto-Positionnement'!$AF$66=\"\",'Auto-Positionnement'!$AE$66,'Auto-Positionnement'!$AF$66)","v":0},null,{"$f":"IF('Auto-Positionnement'!$AF$67=\"\",'Auto-Positionnement'!$AE$67,'Auto-Positionnement'!$AF$67)","v":0},null,{"$f":"IF('Auto-Positionnement'!$AF$68=\"\",'Auto-Positionnement'!$AE$68,'Auto-Positionnement'!$AF$68)","v":0},null,{"$f":"IF('Auto-Positionnement'!$AF$69=\"\",'Auto-Positionnement'!$AE$69,'Auto-Positionnement'!$AF$69)","v":0},null,{"$f":"IF('Auto-Positionnement'!$AF$70=\"\",'Auto-Positionnement'!$AE$70,'Auto-Positionnement'!$AF$70)","v":0}]
[{"$f":"'Base Professeur'!B12","v":0},{"$f":"'Base Professeur'!C12","v":"Zoé"},null,{"$f":"IF('Auto-Positionnement'!$H$75=\"\",'Auto-Positionnement'!$G$75,'Auto-Positionnement'!$H$75)","v":0},null,{"$f":"IF('Auto-Positionnement'!$H$76=\"\",'Auto-Positionnement'!$G$76,'Auto-Positionnement'!$H$76)","v":0},null,{"$f":"IF('Auto-Positionnement'!$H$77=\"\",'Auto-Positionnement'!$G$77,'Auto-Positionnement'!$H$77)","v":0},null,{"$f":"IF('Auto-Positionnement'!$H$78=\"\",'Auto-Positionnement'!$G$78,'Auto-Positionnement'!$H$78)","v":0},null,{"$f":"IF('Auto-Positionnement'!$H$79=\"\",'Auto-Positionnement'!$G$79,'Auto-Positionnement'!$H$79)","v":0},null,{"$f":"IF('Auto-Positionnement'!$H$80=\"\",'Auto-Positionnement'!$G$80,'Auto-Positionnement'!$H$80)","v":0},null,null,{"$f":"IF('Auto-Positionnement'!$P$75=\"\",'Auto-Positionnement'!$O$75,'Auto-Positionnement'!$P$75)","v":0},null,{"$f":"IF('Auto-Positionnement'!$P$76=\"\",'Auto-Positionnement'!$O$76,'Auto-Positionnement'!$P$76)","v":0},null,{"$f":"IF('Auto-Positionnement'!$P$77=\"\",'Auto-Positionnement'!$O$77,'Auto-Positionnement'!$P$77)","v":0},null,{"$f":"IF('Auto-Positionnement'!$P$78=\"\",'Auto-Positionnement'!$O$78,'Auto-Positionnement'!$P$78)","v":0},null,{"$f":"IF('Auto-Positionnement'!$P$79=\"\",'Auto-Positionnement'!$O$79,'Auto-Positionnement'!$P$79)","v":0},null,{"$f":"IF('Auto-Positionnement'!$P$80=\"\",'Auto-Positionnement'!$O$80,'Auto-Positionnement'!$P$80)","v":0},null,null,{"$f":"IF('Auto-Positionnement'!$X$75=\"\",'Auto-Positionnement'!$W$75,'Auto-Positionnement'!$X$75)","v":0},null,{"$f":"IF('Auto-Positionnement'!$X$76=\"\",'Auto-Positionnement'!$W$76,'Auto-Positionnement'!$X$76)","v":0},null,{"$f":"IF('Auto-Positionnement'!$X$77=\"\",'Auto-Positionnement'!$W$77,'Auto-Positionnement'!$X$77)","v":0},null,{"$f":"IF('Auto-Positionnement'!$X$78=\"\",'Auto-Positionnement'!$W$78,'Auto-Positionnement'!$X$78)","v":0},null,{"$f":"IF('Auto-Positionnement'!$X$79=\"\",'Auto-Positionnement'!$W$79,'Auto-Positionnement'!$X$79)","v":0},null,{"$f":"IF('Auto-Positionnement'!$X$80=\"\",'Auto-Positionnement'!$W$80,'Auto-Positionnement'!$X$80)","v":0},null,null,{"$f":"IF('Auto-Positionnement'!$AF$75=\"\",'Auto-Positionnement'!$AE$75,'Auto-Positionnement'!$AF$75)","v":0},null,{"$f":"IF('Auto-Positionnement'!$AF$76=\"\",'Auto-Positionnement'!$AE$76,'Auto-Positionnement'!$AF$76)","v":0},null,{"$f":"IF('Auto-Positionnement'!$AF$77=\"\",'Auto-Positionnement'!$AE$77,'Auto-Positionnement'!$AF$77)","v":0},null,{"$f":"IF('Auto-Positionnement'!$AF$78=\"\",'Auto-Positionnement'!$AE$78,'Auto-Positionnement'!$AF$78)","v":0},null,{"$f":"IF('Auto-Positionnement'!$AF$79=\"\",'Auto-Positionnement'!$AE$79,'Auto-Positionnement'!$AF$79)","v":0},null,{"$f":"IF('Auto-Positionnement'!$AF$80=\"\",'Auto-Positionnement'!$AE$80,'Auto-Positionnement'!$AF$80)","v":0}]
[{"$f":"'Base Professeur'!B13","v":0},{"$f":"'Base Professeur'!C13","v":"Elliot"},null,{"$f":"IF('Auto-Positionnement'!$H$85=\"\",'Auto-Positionnement'!$G$85,'Auto-Positionnement'!$H$85)","v":0},null,{"$f":"IF('Auto-Positionnement'!$H$86=\"\",'Auto-Positionnement'!$G$86,'Auto-Positionnement'!$H$86)","v":0},null,{"$f":"IF('Auto-Positionnement'!$H$87=\"\",'Auto-Positionnement'!$G$87,'Auto-Positionnement'!$H$87)","v":0},null,{"$f":"IF('Auto-Positionnement'!$H$88=\"\",'Auto-Positionnement'!$G$88,'Auto-Positionnement'!$H$88)","v":0},null,{"$f":"IF('Auto-Positionnement'!$H$89=\"\",'Auto-Positionnement'!$G$89,'Auto-Positionnement'!$H$89)","v":0},null,{"$f":"IF('Auto-Positionnement'!$H$90=\"\",'Auto-Positionnement'!$G$90,'Auto-Positionnement'!$H$90)","v":0},null,null,{"$f":"IF('Auto-Positionnement'!$P$85=\"\",'Auto-Positionnement'!$O$85,'Auto-Positionnement'!$P$85)","v":0},null,{"$f":"IF('Auto-Positionnement'!$P$86=\"\",'Auto-Positionnement'!$O$86,'Auto-Positionnement'!$P$86)","v":0},null,{"$f":"IF('Auto-Positionnement'!$P$87=\"\",'Auto-Positionnement'!$O$87,'Auto-Positionnement'!$P$87)","v":0},null,{"$f":"IF('Auto-Positionnement'!$P$88=\"\",'Auto-Positionnement'!$O$88,'Auto-Positionnement'!$P$88)","v":0},null,{"$f":"IF('Auto-Positionnement'!$P$89=\"\",'Auto-Positionnement'!$O$89,'Auto-Positionnement'!$P$89)","v":0},null,{"$f":"IF('Auto-Positionnement'!$P$90=\"\",'Auto-Positionnement'!$O$90,'Auto-Positionnement'!$P$90)","v":0},null,null,{"$f":"IF('Auto-Positionnement'!$X$85=\"\",'Auto-Positionnement'!$W$85,'Auto-Positionnement'!$X$85)","v":0},null,{"$f":"IF('Auto-Positionnement'!$X$86=\"\",'Auto-Positionnement'!$W$86,'Auto-Positionnement'!$X$86)","v":0},null,{"$f":"IF('Auto-Positionnement'!$X$87=\"\",'Auto-Positionnement'!$W$87,'Auto-Positionnement'!$X$87)","v":0},null,{"$f":"IF('Auto-Positionnement'!$X$88=\"\",'Auto-Positionnement'!$W$88,'Auto-Positionnement'!$X$88)","v":0},null,{"$f":"IF('Auto-Positionnement'!$X$89=\"\",'Auto-Positionnement'!$W$89,'Auto-Positionnement'!$X$89)","v":0},null,{"$f":"IF('Auto-Positionnement'!$X$90=\"\",'Auto-Positionnement'!$W$90,'Auto-Positionnement'!$X$90)","v":0},null,null,{"$f":"IF('Auto-Positionnement'!$AF$85=\"\",'Auto-Positionnement'!$AE$85,'Auto-Positionnement'!$AF$85)","v":0},null,{"$f":"IF('Auto-Positionnement'!$AF$86=\"\",'Auto-Positionnement'!$AE$86,'Auto-Positionnement'!$AF$86)","v":0},null,{"$f":"IF('Auto-Positionnement'!$AF$87=\"\",'Auto-Positionnement'!$AE$87,'Auto-Positionnement'!$AF$87)","v":0},null,{"$f":"IF('Auto-Positionnement'!$AF$88=\"\",'Auto-Positionnement'!$AE$88,'Auto-Positionnement'!$AF$88)","v":0},null,{"$f":"IF('Auto-Positionnement'!$AF$89=\"\",'Auto-Positionnement'!$AE$89,'Auto-Positionnement'!$AF$89)","v":0},null,{"$f":"IF('Auto-Positionnement'!$AF$90=\"\",'Auto-Positionnement'!$AE$90,'Auto-Positionnement'!$AF$90)","v":0}]
[{"$f":"'Base Professeur'!B14","v":0},{"$f":"'Base Professeur'!C14","v":"Sophia"},null,{"$f":"IF('Auto-Positionnement'!$H$95=\"\",'Auto-Positionnement'!$G$95,'Auto-Positionnement'!$H$95)","v":0},null,{"$f":"IF('Auto-Positionnement'!$H$96=\"\",'Auto-Positionnement'!$G$96,'Auto-Positionnement'!$H$96)","v":0},null,{"$f":"IF('Auto-Positionnement'!$H$97=\"\",'Auto-Positionnement'!$G$97,'Auto-Positionnement'!$H$97)","v":0},null,{"$f":"IF('Auto-Positionnement'!$H$98=\"\",'Auto-Positionnement'!$G$98,'Auto-Positionnement'!$H$98)","v":0},null,{"$f":"IF('Auto-Positionnement'!$H$99=\"\",'Auto-Positionnement'!$G$99,'Auto-Positionnement'!$H$99)","v":0},null,{"$f":"IF('Auto-Positionnement'!$H$100=\"\",'Auto-Positionnement'!$G$100,'Auto-Positionnement'!$H$100)","v":0},null,null,{"$f":"IF('Auto-Positionnement'!$P$95=\"\",'Auto-Positionnement'!$O$95,'Auto-Positionnement'!$P$95)","v":0},null,{"$f":"IF('Auto-Positionnement'!$P$96=\"\",'Auto-Positionnement'!$O$96,'Auto-Positionnement'!$P$96)","v":0},null,{"$f":"IF('Auto-Positionnement'!$P$97=\"\",'Auto-Positionnement'!$O$97,'Auto-Positionnement'!$P$97)","v":0},null,{"$f":"IF('Auto-Positionnement'!$P$98=\"\",'Auto-Positionnement'!$O$98,'Auto-Positionnement'!$P$98)","v":0},null,{"$f":"IF('Auto-Positionnement'!$P$99=\"\",'Auto-Positionnement'!$O$99,'Auto-Positionnement'!$P$99)","v":0},null,{"$f":"IF('Auto-Positionnement'!$P$100=\"\",'Auto-Positionnement'!$O$100,'Auto-Positionnement'!$P$100)","v":0},null,null,{"$f":"IF('Auto-Positionnement'!$X$95=\"\",'Auto-Positionnement'!$W$95,'Auto-Positionnement'!$X$95)","v":0},null,{"$f":"IF('Auto-Positionnement'!$X$96=\"\",'Auto-Positionnement'!$W$96,'Auto-Positionnement'!$X$96)","v":0},null,{"$f":"IF('Auto-Positionnement'!$X$97=\"\",'Auto-Positionnement'!$W$97,'Auto-Positionnement'!$X$97)","v":0},null,{"$f":"IF('Auto-Positionnement'!$X$98=\"\",'Auto-Positionnement'!$W$98,'Auto-Positionnement'!$X$98)","v":0},null,{"$f":"IF('Auto-Positionnement'!$X$99=\"\",'Auto-Positionnement'!$W$99,'Auto-Positionnement'!$X$99)","v":0},null,{"$f":"IF('Auto-Positionnement'!$X$100=\"\",'Auto-Positionnement'!$W$100,'Auto-Positionnement'!$X$100)","v":0},null,null,{"$f":"IF('Auto-Positionnement'!$AF$95=\"\",'Auto-Positionnement'!$AE$95,'Auto-Positionnement'!$AF$95)","v":0},null,{"$f":"IF('Auto-Positionnement'!$AF$96=\"\",'Auto-Positionnement'!$AE$96,'Auto-Positionnement'!$AF$96)","v":0},null,{"$f":"IF('Auto-Positionnement'!$AF$97=\"\",'Auto-Positionnement'!$AE$97,'Auto-Positionnement'!$AF$97)","v":0},null,{"$f":"IF('Auto-Positionnement'!$AF$98=\"\",'Auto-Positionnement'!$AE$98,'Auto-Positionnement'!$AF$98)","v":0},null,{"$f":"IF('Auto-Positionnement'!$AF$99=\"\",'Auto-Positionnement'!$AE$99,'Auto-Positionnement'!$AF$99)","v":0},null,{"$f":"IF('Auto-Positionnement'!$AF$100=\"\",'Auto-Positionnement'!$AE$100,'Auto-Positionnement'!$AF$100)","v":0}]
[{"$f":"'Base Professeur'!B15","v":0},{"$f":"'Base Professeur'!C15","v":"Léa"},null,{"$f":"IF('Auto-Positionnement'!$H$105=\"\",'Auto-Positionnement'!$G$105,'Auto-Positionnement'!$H$105)","v":0},null,{"$f":"IF('Auto-Positionnement'!$H$106=\"\",'Auto-Positionnement'!$G$106,'Auto-Positionnement'!$H$106)","v":0},null,{"$f":"IF('Auto-Positionnement'!$H$107=\"\",'Auto-Positionnement'!$G$107,'Auto-Positionnement'!$H$107)","v":0},null,{"$f":"IF('Auto-Positionnement'!$H$108=\"\",'Auto-Positionnement'!$G$108,'Auto-Positionnement'!$H$108)","v":0},null,{"$f":"IF('Auto-Positionnement'!$H$109=\"\",'Auto-Positionnement'!$G$109,'Auto-Positionnement'!$H$109)","v":0},null,{"$f":"IF('Auto-Positionnement'!$H$110=\"\",'Auto-Positionnement'!$G$110,'Auto-Positionnement'!$H$110)","v":0},null,null,{"$f":"IF('Auto-Positionnement'!$P$105=\"\",'Auto-Positionnement'!$O$105,'Auto-Positionnement'!$P$105)","v":0},null,{"$f":"IF('Auto-Positionnement'!$P$106=\"\",'Auto-Positionnement'!$O$106,'Auto-Positionnement'!$P$106)","v":0},null,{"$f":"IF('Auto-Positionnement'!$P$107=\"\",'Auto-Positionnement'!$O$107,'Auto-Positionnement'!$P$107)","v":0},null,{"$f":"IF('Auto-Positionnement'!$P$108=\"\",'Auto-Positionnement'!$O$108,'Auto-Positionnement'!$P$108)","v":0},null,{"$f":"IF('Auto-Positionnement'!$P$109=\"\",'Auto-Positionnement'!$O$109,'Auto-Positionnement'!$P$109)","v":0},null,{"$f":"IF('Auto-Positionnement'!$P$110=\"\",'Auto-Positionnement'!$O$110,'Auto-Positionnement'!$P$110)","v":0},null,null,{"$f":"IF('Auto-Positionnement'!$X$105=\"\",'Auto-Positionnement'!$W$105,'Auto-Positionnement'!$X$105)","v":0},null,{"$f":"IF('Auto-Positionnement'!$X$106=\"\",'Auto-Positionnement'!$W$106,'Auto-Positionnement'!$X$106)","v":0},null,{"$f":"IF('Auto-Positionnement'!$X$107=\"\",'Auto-Positionnement'!$W$107,'Auto-Positionnement'!$X$107)","v":0},null,{"$f":"IF('Auto-Positionnement'!$X$108=\"\",'Auto-Positionnement'!$W$108,'Auto-Positionnement'!$X$108)","v":0},null,{"$f":"IF('Auto-Positionnement'!$X$109=\"\",'Auto-Positionnement'!$W$109,'Auto-Positionnement'!$X$109)","v":0},null,{"$f":"IF('Auto-Positionnement'!$X$110=\"\",'Auto-Positionnement'!$W$110,'Auto-Positionnement'!$X$110)","v":0},null,null,{"$f":"IF('Auto-Positionnement'!$AF$105=\"\",'Auto-Positionnement'!$AE$105,'Auto-Positionnement'!$AF$105)","v":0},null,{"$f":"IF('Auto-Positionnement'!$AF$106=\"\",'Auto-Positionnement'!$AE$106,'Auto-Positionnement'!$AF$106)","v":0},null,{"$f":"IF('Auto-Positionnement'!$AF$107=\"\",'Auto-Positionnement'!$AE$107,'Auto-Positionnement'!$AF$107)","v":0},null,{"$f":"IF('Auto-Positionnement'!$AF$108=\"\",'Auto-Positionnement'!$AE$108,'Auto-Positionnement'!$AF$108)","v":0},null,{"$f":"IF('Auto-Positionnement'!$AF$109=\"\",'Auto-Positionnement'!$AE$109,'Auto-Positionnement'!$AF$109)","v":0},null,{"$f":"IF('Auto-Positionnement'!$AF$110=\"\",'Auto-Positionnement'!$AE$110,'Auto-Positionnement'!$AF$110)","v":0}]
[{"$f":"'Base Professeur'!B16","v":0},{"$f":"'Base Professeur'!C16","v":"Eliza"},null,{"$f":"IF('Auto-Positionnement'!$H$115=\"\",'Auto-Positionnement'!$G$115,'Auto-Positionnement'!$H$115)","v":0},null,{"$f":"IF('Auto-Positionnement'!$H$116=\"\",'Auto-Positionnement'!$G$116,'Auto-Positionnement'!$H$116)","v":0},null,{"$f":"IF('Auto-Positionnement'!$H$117=\"\",'Auto-Positionnement'!$G$117,'Auto-Positionnement'!$H$117)","v":0},null,{"$f":"IF('Auto-Positionnement'!$H$118=\"\",'Auto-Positionnement'!$G$118,'Auto-Positionnement'!$H$118)","v":0},null,{"$f":"IF('Auto-Positionnement'!$H$119=\"\",'Auto-Positionnement'!$G$119,'Auto-Positionnement'!$H$119)","v":0},null,{"$f":"IF('Auto-Positionnement'!$H$120=\"\",'Auto-Positionnement'!$G$120,'Auto-Positionnement'!$H$120)","v":0},null,null,{"$f":"IF('Auto-Positionnement'!$P$115=\"\",'Auto-Positionnement'!$O$115,'Auto-Positionnement'!$P$115)","v":0},null,{"$f":"IF('Auto-Positionnement'!$P$116=\"\",'Auto-Positionnement'!$O$116,'Auto-Positionnement'!$P$116)","v":0},null,{"$f":"IF('Auto-Positionnement'!$P$117=\"\",'Auto-Positionnement'!$O$117,'Auto-Positionnement'!$P$117)","v":0},null,{"$f":"IF('Auto-Positionnement'!$P$118=\"\",'Auto-Positionnement'!$O$118,'Auto-Positionnement'!$P$118)","v":0},null,{"$f":"IF('Auto-Positionnement'!$P$119=\"\",'Auto-Positionnement'!$O$119,'Auto-Positionnement'!$P$119)","v":0},null,{"$f":"IF('Auto-Positionnement'!$P$120=\"\",'Auto-Positionnement'!$O$120,'Auto-Positionnement'!$P$120)","v":0},null,null,{"$f":"IF('Auto-Positionnement'!$X$115=\"\",'Auto-Positionnement'!$W$115,'Auto-Positionnement'!$X$115)","v":0},null,{"$f":"IF('Auto-Positionnement'!$X$116=\"\",'Auto-Positionnement'!$W$116,'Auto-Positionnement'!$X$116)","v":0},null,{"$f":"IF('Auto-Positionnement'!$X$117=\"\",'Auto-Positionnement'!$W$117,'Auto-Positionnement'!$X$117)","v":0},null,{"$f":"IF('Auto-Positionnement'!$X$118=\"\",'Auto-Positionnement'!$W$118,'Auto-Positionnement'!$X$118)","v":0},null,{"$f":"IF('Auto-Positionnement'!$X$119=\"\",'Auto-Positionnement'!$W$119,'Auto-Positionnement'!$X$119)","v":0},null,{"$f":"IF('Auto-Positionnement'!$X$120=\"\",'Auto-Positionnement'!$W$120,'Auto-Positionnement'!$X$120)","v":0},null,null,{"$f":"IF('Auto-Positionnement'!$AF$115=\"\",'Auto-Positionnement'!$AE$115,'Auto-Positionnement'!$AF$115)","v":0},null,{"$f":"IF('Auto-Positionnement'!$AF$116=\"\",'Auto-Positionnement'!$AE$116,'Auto-Positionnement'!$AF$116)","v":0},null,{"$f":"IF('Auto-Positionnement'!$AF$117=\"\",'Auto-Positionnement'!$AE$117,'Auto-Positionnement'!$AF$117)","v":0},null,{"$f":"IF('Auto-Positionnement'!$AF$118=\"\",'Auto-Positionnement'!$AE$118,'Auto-Positionnement'!$AF$118)","v":0},null,{"$f":"IF('Auto-Positionnement'!$AF$119=\"\",'Auto-Positionnement'!$AE$119,'Auto-Positionnement'!$AF$119)","v":0},null,{"$f":"IF('Auto-Positionnement'!$AF$120=\"\",'Auto-Positionnement'!$AE$120,'Auto-Positionnement'!$AF$120)","v":0}]
[{"$f":"'Base Professeur'!B17","v":0},{"$f":"'Base Professeur'!C17","v":"Mathis"},null,{"$f":"IF('Auto-Positionnement'!$H$125=\"\",'Auto-Positionnement'!$G$125,'Auto-Positionnement'!$H$125)","v":0},null,{"$f":"IF('Auto-Positionnement'!$H$126=\"\",'Auto-Positionnement'!$G$126,'Auto-Positionnement'!$H$126)","v":0},null,{"$f":"IF('Auto-Positionnement'!$H$127=\"\",'Auto-Positionnement'!$G$127,'Auto-Positionnement'!$H$127)","v":0},null,{"$f":"IF('Auto-Positionnement'!$H$128=\"\",'Auto-Positionnement'!$G$128,'Auto-Positionnement'!$H$128)","v":0},null,{"$f":"IF('Auto-Positionnement'!$H$129=\"\",'Auto-Positionnement'!$G$129,'Auto-Positionnement'!$H$129)","v":0},null,{"$f":"IF('Auto-Positionnement'!$H$130=\"\",'Auto-Positionnement'!$G$130,'Auto-Positionnement'!$H$130)","v":0},null,null,{"$f":"IF('Auto-Positionnement'!$P$125=\"\",'Auto-Positionnement'!$O$125,'Auto-Positionnement'!$P$125)","v":0},null,{"$f":"IF('Auto-Positionnement'!$P$126=\"\",'Auto-Positionnement'!$O$126,'Auto-Positionnement'!$P$126)","v":0},null,{"$f":"IF('Auto-Positionnement'!$P$127=\"\",'Auto-Positionnement'!$O$127,'Auto-Positionnement'!$P$127)","v":0},null,{"$f":"IF('Auto-Positionnement'!$P$128=\"\",'Auto-Positionnement'!$O$128,'Auto-Positionnement'!$P$128)","v":0},null,{"$f":"IF('Auto-Positionnement'!$P$129=\"\",'Auto-Positionnement'!$O$129,'Auto-Positionnement'!$P$129)","v":0},null,{"$f":"IF('Auto-Positionnement'!$P$130=\"\",'Auto-Positionnement'!$O$130,'Auto-Positionnement'!$P$130)","v":0},null,null,{"$f":"IF('Auto-Positionnement'!$X$125=\"\",'Auto-Positionnement'!$W$125,'Auto-Positionnement'!$X$125)","v":0},null,{"$f":"IF('Auto-Positionnement'!$X$126=\"\",'Auto-Positionnement'!$W$126,'Auto-Positionnement'!$X$126)","v":0},null,{"$f":"IF('Auto-Positionnement'!$X$127=\"\",'Auto-Positionnement'!$W$127,'Auto-Positionnement'!$X$127)","v":0},null,{"$f":"IF('Auto-Positionnement'!$X$128=\"\",'Auto-Positionnement'!$W$128,'Auto-Positionnement'!$X$128)","v":0},null,{"$f":"IF('Auto-Positionnement'!$X$129=\"\",'Auto-Positionnement'!$W$129,'Auto-Positionnement'!$X$129)","v":0},null,{"$f":"IF('Auto-Positionnement'!$X$130=\"\",'Auto-Positionnement'!$W$130,'Auto-Positionnement'!$X$130)","v":0},null,null,{"$f":"IF('Auto-Positionnement'!$AF$125=\"\",'Auto-Positionnement'!$AE$125,'Auto-Positionnement'!$AF$125)","v":0},null,{"$f":"IF('Auto-Positionnement'!$AF$126=\"\",'Auto-Positionnement'!$AE$126,'Auto-Positionnement'!$AF$126)","v":0},null,{"$f":"IF('Auto-Positionnement'!$AF$127=\"\",'Auto-Positionnement'!$AE$127,'Auto-Positionnement'!$AF$127)","v":0},null,{"$f":"IF('Auto-Positionnement'!$AF$128=\"\",'Auto-Positionnement'!$AE$128,'Auto-Positionnement'!$AF$128)","v":0},null,{"$f":"IF('Auto-Positionnement'!$AF$129=\"\",'Auto-Positionnement'!$AE$129,'Auto-Positionnement'!$AF$129)","v":0},null,{"$f":"IF('Auto-Positionnement'!$AF$130=\"\",'Auto-Positionnement'!$AE$130,'Auto-Positionnement'!$AF$130)","v":0}]
[{"$f":"'Base Professeur'!B18","v":0},{"$f":"'Base Professeur'!C18","v":"Camille"},null,{"$f":"IF('Auto-Positionnement'!$H$135=\"\",'Auto-Positionnement'!$G$135,'Auto-Positionnement'!$H$135)","v":0},null,{"$f":"IF('Auto-Positionnement'!$H$136=\"\",'Auto-Positionnement'!$G$136,'Auto-Positionnement'!$H$136)","v":0},null,{"$f":"IF('Auto-Positionnement'!$H$137=\"\",'Auto-Positionnement'!$G$137,'Auto-Positionnement'!$H$137)","v":0},null,{"$f":"IF('Auto-Positionnement'!$H$138=\"\",'Auto-Positionnement'!$G$138,'Auto-Positionnement'!$H$138)","v":0},null,{"$f":"IF('Auto-Positionnement'!$H$139=\"\",'Auto-Positionnement'!$G$139,'Auto-Positionnement'!$H$139)","v":0},null,{"$f":"IF('Auto-Positionnement'!$H$140=\"\",'Auto-Positionnement'!$G$140,'Auto-Positionnement'!$H$140)","v":0},null,null,{"$f":"IF('Auto-Positionnement'!$P$135=\"\",'Auto-Positionnement'!$O$135,'Auto-Positionnement'!$P$135)","v":0},null,{"$f":"IF('Auto-Positionnement'!$P$136=\"\",'Auto-Positionnement'!$O$136,'Auto-Positionnement'!$P$136)","v":0},null,{"$f":"IF('Auto-Positionnement'!$P$137=\"\",'Auto-Positionnement'!$O$137,'Auto-Positionnement'!$P$137)","v":0},null,{"$f":"IF('Auto-Positionnement'!$P$138=\"\",'Auto-Positionnement'!$O$138,'Auto-Positionnement'!$P$138)","v":0},null,{"$f":"IF('Auto-Positionnement'!$P$139=\"\",'Auto-Positionnement'!$O$139,'Auto-Positionnement'!$P$139)","v":0},null,{"$f":"IF('Auto-Positionnement'!$P$140=\"\",'Auto-Positionnement'!$O$140,'Auto-Positionnement'!$P$140)","v":0},null,null,{"$f":"IF('Auto-Positionnement'!$X$135=\"\",'Auto-Positionnement'!$W$135,'Auto-Positionnement'!$X$135)","v":0},null,{"$f":"IF('Auto-Positionnement'!$X$136=\"\",'Auto-Positionnement'!$W$136,'Auto-Positionnement'!$X$136)","v":0},null,{"$f":"IF('Auto-Positionnement'!$X$137=\"\",'Auto-Positionnement'!$W$137,'Auto-Positionnement'!$X$137)","v":0},null,{"$f":"IF('Auto-Positionnement'!$X$138=\"\",'Auto-Positionnement'!$W$138,'Auto-Positionnement'!$X$138)","v":0},null,{"$f":"IF('Auto-Positionnement'!$X$139=\"\",'Auto-Positionnement'!$W$139,'Auto-Positionnement'!$X$139)","v":0},null,{"$f":"IF('Auto-Positionnement'!$X$140=\"\",'Auto-Positionnement'!$W$140,'Auto-Positionnement'!$X$140)","v":0},null,null,{"$f":"IF('Auto-Positionnement'!$AF$135=\"\",'Auto-Positionnement'!$AE$135,'Auto-Positionnement'!$AF$135)","v":0},null,{"$f":"IF('Auto-Positionnement'!$AF$136=\"\",'Auto-Positionnement'!$AE$136,'Auto-Positionnement'!$AF$136)","v":0},null,{"$f":"IF('Auto-Positionnement'!$AF$137=\"\",'Auto-Positionnement'!$AE$137,'Auto-Positionnement'!$AF$137)","v":0},null,{"$f":"IF('Auto-Positionnement'!$AF$138=\"\",'Auto-Positionnement'!$AE$138,'Auto-Positionnement'!$AF$138)","v":0},null,{"$f":"IF('Auto-Positionnement'!$AF$139=\"\",'Auto-Positionnement'!$AE$139,'Auto-Positionnement'!$AF$139)","v":0},null,{"$f":"IF('Auto-Positionnement'!$AF$140=\"\",'Auto-Positionnement'!$AE$140,'Auto-Positionnement'!$AF$140)","v":0}]
[{"$f":"'Base Professeur'!B19","v":0},{"$f":"'Base Professeur'!C19","v":"Azra"},null,{"$f":"IF('Auto-Positionnement'!$H$145=\"\",'Auto-Positionnement'!$G$145,'Auto-Positionnement'!$H$145)","v":0},null,{"$f":"IF('Auto-Positionnement'!$H$146=\"\",'Auto-Positionnement'!$G$146,'Auto-Positionnement'!$H$146)","v":0},null,{"$f":"IF('Auto-Positionnement'!$H$147=\"\",'Auto-Positionnement'!$G$147,'Auto-Positionnement'!$H$147)","v":0},null,{"$f":"IF('Auto-Positionnement'!$H$148=\"\",'Auto-Positionnement'!$G$148,'Auto-Positionnement'!$H$148)","v":0},null,{"$f":"IF('Auto-Positionnement'!$H$149=\"\",'Auto-Positionnement'!$G$149,'Auto-Positionnement'!$H$149)","v":0},null,{"$f":"IF('Auto-Positionnement'!$H$150=\"\",'Auto-Positionnement'!$G$150,'Auto-Positionnement'!$H$150)","v":0},null,null,{"$f":"IF('Auto-Positionnement'!$P$145=\"\",'Auto-Positionnement'!$O$145,'Auto-Positionnement'!$P$145)","v":0},null,{"$f":"IF('Auto-Positionnement'!$P$146=\"\",'Auto-Positionnement'!$O$146,'Auto-Positionnement'!$P$146)","v":0},null,{"$f":"IF('Auto-Positionnement'!$P$147=\"\",'Auto-Positionnement'!$O$147,'Auto-Positionnement'!$P$147)","v":0},null,{"$f":"IF('Auto-Positionnement'!$P$148=\"\",'Auto-Positionnement'!$O$148,'Auto-Positionnement'!$P$148)","v":0},null,{"$f":"IF('Auto-Positionnement'!$P$149=\"\",'Auto-Positionnement'!$O$149,'Auto-Positionnement'!$P$149)","v":0},null,{"$f":"IF('Auto-Positionnement'!$P$150=\"\",'Auto-Positionnement'!$O$150,'Auto-Positionnement'!$P$150)","v":0},null,null,{"$f":"IF('Auto-Positionnement'!$X$145=\"\",'Auto-Positionnement'!$W$145,'Auto-Positionnement'!$X$145)","v":0},null,{"$f":"IF('Auto-Positionnement'!$X$146=\"\",'Auto-Positionnement'!$W$146,'Auto-Positionnement'!$X$146)","v":0},null,{"$f":"IF('Auto-Positionnement'!$X$147=\"\",'Auto-Positionnement'!$W$147,'Auto-Positionnement'!$X$147)","v":0},null,{"$f":"IF('Auto-Positionnement'!$X$148=\"\",'Auto-Positionnement'!$W$148,'Auto-Positionnement'!$X$148)","v":0},null,{"$f":"IF('Auto-Positionnement'!$X$149=\"\",'Auto-Positionnement'!$W$149,'Auto-Positionnement'!$X$149)","v":0},null,{"$f":"IF('Auto-Positionnement'!$X$150=\"\",'Auto-Positionnement'!$W$150,'Auto-Positionnement'!$X$150)","v":0},null,null,{"$f":"IF('Auto-Positionnement'!$AF$145=\"\",'Auto-Positionnement'!$AE$145,'Auto-Positionnement'!$AF$145)","v":0},null,{"$f":"IF('Auto-Positionnement'!$AF$146=\"\",'Auto-Positionnement'!$AE$146,'Auto-Positionnement'!$AF$146)","v":0},null,{"$f":"IF('Auto-Positionnement'!$AF$147=\"\",'Auto-Positionnement'!$AE$147,'Auto-Positionnement'!$AF$147)","v":0},null,{"$f":"IF('Auto-Positionnement'!$AF$148=\"\",'Auto-Positionnement'!$AE$148,'Auto-Positionnement'!$AF$148)","v":0},null,{"$f":"IF('Auto-Positionnement'!$AF$149=\"\",'Auto-Positionnement'!$AE$149,'Auto-Positionnement'!$AF$149)","v":0},null,{"$f":"IF('Auto-Positionnement'!$AF$150=\"\",'Auto-Positionnement'!$AE$150,'Auto-Positionnement'!$AF$150)","v":0}]
[{"$f":"'Base Professeur'!B20","v":0},{"$f":"'Base Professeur'!C20","v":"Téoman"},null,{"$f":"IF('Auto-Positionnement'!$H$155=\"\",'Auto-Positionnement'!$G$155,'Auto-Positionnement'!$H$155)","v":0},null,{"$f":"IF('Auto-Positionnement'!$H$156=\"\",'Auto-Positionnement'!$G$156,'Auto-Positionnement'!$H$156)","v":0},null,{"$f":"IF('Auto-Positionnement'!$H$157=\"\",'Auto-Positionnement'!$G$157,'Auto-Positionnement'!$H$157)","v":0},null,{"$f":"IF('Auto-Positionnement'!$H$158=\"\",'Auto-Positionnement'!$G$158,'Auto-Positionnement'!$H$158)","v":0},null,{"$f":"IF('Auto-Positionnement'!$H$159=\"\",'Auto-Positionnement'!$G$159,'Auto-Positionnement'!$H$159)","v":0},null,{"$f":"IF('Auto-Positionnement'!$H$160=\"\",'Auto-Positionnement'!$G$160,'Auto-Positionnement'!$H$160)","v":0},null,null,{"$f":"IF('Auto-Positionnement'!$P$155=\"\",'Auto-Positionnement'!$O$155,'Auto-Positionnement'!$P$155)","v":0},null,{"$f":"IF('Auto-Positionnement'!$P$156=\"\",'Auto-Positionnement'!$O$156,'Auto-Positionnement'!$P$156)","v":0},null,{"$f":"IF('Auto-Positionnement'!$P$157=\"\",'Auto-Positionnement'!$O$157,'Auto-Positionnement'!$P$157)","v":0},null,{"$f":"IF('Auto-Positionnement'!$P$158=\"\",'Auto-Positionnement'!$O$158,'Auto-Positionnement'!$P$158)","v":0},null,{"$f":"IF('Auto-Positionnement'!$P$159=\"\",'Auto-Positionnement'!$O$159,'Auto-Positionnement'!$P$159)","v":0},null,{"$f":"IF('Auto-Positionnement'!$P$160=\"\",'Auto-Positionnement'!$O$160,'Auto-Positionnement'!$P$160)","v":0},null,null,{"$f":"IF('Auto-Positionnement'!$X$155=\"\",'Auto-Positionnement'!$W$155,'Auto-Positionnement'!$X$155)","v":0},null,{"$f":"IF('Auto-Positionnement'!$X$156=\"\",'Auto-Positionnement'!$W$156,'Auto-Positionnement'!$X$156)","v":0},null,{"$f":"IF('Auto-Positionnement'!$X$157=\"\",'Auto-Positionnement'!$W$157,'Auto-Positionnement'!$X$157)","v":0},null,{"$f":"IF('Auto-Positionnement'!$X$158=\"\",'Auto-Positionnement'!$W$158,'Auto-Positionnement'!$X$158)","v":0},null,{"$f":"IF('Auto-Positionnement'!$X$159=\"\",'Auto-Positionnement'!$W$159,'Auto-Positionnement'!$X$159)","v":0},null,{"$f":"IF('Auto-Positionnement'!$X$160=\"\",'Auto-Positionnement'!$W$160,'Auto-Positionnement'!$X$160)","v":0},null,null,{"$f":"IF('Auto-Positionnement'!$AF$155=\"\",'Auto-Positionnement'!$AE$155,'Auto-Positionnement'!$AF$155)","v":0},null,{"$f":"IF('Auto-Positionnement'!$AF$156=\"\",'Auto-Positionnement'!$AE$156,'Auto-Positionnement'!$AF$156)","v":0},null,{"$f":"IF('Auto-Positionnement'!$AF$157=\"\",'Auto-Positionnement'!$AE$157,'Auto-Positionnement'!$AF$157)","v":0},null,{"$f":"IF('Auto-Positionnement'!$AF$158=\"\",'Auto-Positionnement'!$AE$158,'Auto-Positionnement'!$AF$158)","v":0},null,{"$f":"IF('Auto-Positionnement'!$AF$159=\"\",'Auto-Positionnement'!$AE$159,'Auto-Positionnement'!$AF$159)","v":0},null,{"$f":"IF('Auto-Positionnement'!$AF$160=\"\",'Auto-Positionnement'!$AE$160,'Auto-Positionnement'!$AF$160)","v":0}]
[{"$f":"'Base Professeur'!B21","v":0},{"$f":"'Base Professeur'!C21","v":"Emirkan"},null,{"$f":"IF('Auto-Positionnement'!$H$165=\"\",'Auto-Positionnement'!$G$165,'Auto-Positionnement'!$H$165)","v":0},null,{"$f":"IF('Auto-Positionnement'!$H$166=\"\",'Auto-Positionnement'!$G$166,'Auto-Positionnement'!$H$166)","v":0},null,{"$f":"IF('Auto-Positionnement'!$H$167=\"\",'Auto-Positionnement'!$G$167,'Auto-Positionnement'!$H$167)","v":0},null,{"$f":"IF('Auto-Positionnement'!$H$168=\"\",'Auto-Positionnement'!$G$168,'Auto-Positionnement'!$H$168)","v":0},null,{"$f":"IF('Auto-Positionnement'!$H$169=\"\",'Auto-Positionnement'!$G$169,'Auto-Positionnement'!$H$169)","v":0},null,{"$f":"IF('Auto-Positionnement'!$H$170=\"\",'Auto-Positionnement'!$G$170,'Auto-Positionnement'!$H$170)","v":0},null,null,{"$f":"IF('Auto-Positionnement'!$P$165=\"\",'Auto-Positionnement'!$O$165,'Auto-Positionnement'!$P$165)","v":0},null,{"$f":"IF('Auto-Positionnement'!$P$166=\"\",'Auto-Positionnement'!$O$166,'Auto-Positionnement'!$P$166)","v":0},null,{"$f":"IF('Auto-Positionnement'!$P$167=\"\",'Auto-Positionnement'!$O$167,'Auto-Positionnement'!$P$167)","v":0},null,{"$f":"IF('Auto-Positionnement'!$P$168=\"\",'Auto-Positionnement'!$O$168,'Auto-Positionnement'!$P$168)","v":0},null,{"$f":"IF('Auto-Positionnement'!$P$169=\"\",'Auto-Positionnement'!$O$169,'Auto-Positionnement'!$P$169)","v":0},null,{"$f":"IF('Auto-Positionnement'!$P$170=\"\",'Auto-Positionnement'!$O$170,'Auto-Positionnement'!$P$170)","v":0},null,null,{"$f":"IF('Auto-Positionnement'!$X$165=\"\",'Auto-Positionnement'!$W$165,'Auto-Positionnement'!$X$165)","v":0},null,{"$f":"IF('Auto-Positionnement'!$X$166=\"\",'Auto-Positionnement'!$W$166,'Auto-Positionnement'!$X$166)","v":0},null,{"$f":"IF('Auto-Positionnement'!$X$167=\"\",'Auto-Positionnement'!$W$167,'Auto-Positionnement'!$X$167)","v":0},null,{"$f":"IF('Auto-Positionnement'!$X$168=\"\",'Auto-Positionnement'!$W$168,'Auto-Positionnement'!$X$168)","v":0},null,{"$f":"IF('Auto-Positionnement'!$X$169=\"\",'Auto-Positionnement'!$W$169,'Auto-Positionnement'!$X$169)","v":0},null,{"$f":"IF('Auto-Positionnement'!$X$170=\"\",'Auto-Positionnement'!$W$170,'Auto-Positionnement'!$X$170)","v":0},null,null,{"$f":"IF('Auto-Positionnement'!$AF$165=\"\",'Auto-Positionnement'!$AE$165,'Auto-Positionnement'!$AF$165)","v":0},null,{"$f":"IF('Auto-Positionnement'!$AF$166=\"\",'Auto-Positionnement'!$AE$166,'Auto-Positionnement'!$AF$166)","v":0},null,{"$f":"IF('Auto-Positionnement'!$AF$167=\"\",'Auto-Positionnement'!$AE$167,'Auto-Positionnement'!$AF$167)","v":0},null,{"$f":"IF('Auto-Positionnement'!$AF$168=\"\",'Auto-Positionnement'!$AE$168,'Auto-Positionnement'!$AF$168)","v":0},null,{"$f":"IF('Auto-Positionnement'!$AF$169=\"\",'Auto-Positionnement'!$AE$169,'Auto-Positionnement'!$AF$169)","v":0},null,{"$f":"IF('Auto-Positionnement'!$AF$170=\"\",'Auto-Positionnement'!$AE$170,'Auto-Positionnement'!$AF$170)","v":0}]
[{"$f":"'Base Professeur'!B22","v":0},{"$f":"'Base Professeur'!C22","v":"Mohamed-Ali"},null,{"$f":"IF('Auto-Positionnement'!$H$175=\"\",'Auto-Positionnement'!$G$175,'Auto-Positionnement'!$H$175)","v":0},null,{"$f":"IF('Auto-Positionnement'!$H$176=\"\",'Auto-Positionnement'!$G$176,'Auto-Positionnement'!$H$176)","v":0},null,{"$f":"IF('Auto-Positionnement'!$H$177=\"\",'Auto-Positionnement'!$G$177,'Auto-Positionnement'!$H$177)","v":0},null,{"$f":"IF('Auto-Positionnement'!$H$178=\"\",'Auto-Positionnement'!$G$178,'Auto-Positionnement'!$H$178)","v":0},null,{"$f":"IF('Auto-Positionnement'!$H$179=\"\",'Auto-Positionnement'!$G$179,'Auto-Positionnement'!$H$179)","v":0},null,{"$f":"IF('Auto-Positionnement'!$H$180=\"\",'Auto-Positionnement'!$G$180,'Auto-Positionnement'!$H$180)","v":0},null,null,{"$f":"IF('Auto-Positionnement'!$P$175=\"\",'Auto-Positionnement'!$O$175,'Auto-Positionnement'!$P$175)","v":0},null,{"$f":"IF('Auto-Positionnement'!$P$176=\"\",'Auto-Positionnement'!$O$176,'Auto-Positionnement'!$P$176)","v":0},null,{"$f":"IF('Auto-Positionnement'!$P$177=\"\",'Auto-Positionnement'!$O$177,'Auto-Positionnement'!$P$177)","v":0},null,{"$f":"IF('Auto-Positionnement'!$P$178=\"\",'Auto-Positionnement'!$O$178,'Auto-Positionnement'!$P$178)","v":0},null,{"$f":"IF('Auto-Positionnement'!$P$179=\"\",'Auto-Positionnement'!$O$179,'Auto-Positionnement'!$P$179)","v":0},null,{"$f":"IF('Auto-Positionnement'!$P$180=\"\",'Auto-Positionnement'!$O$180,'Auto-Positionnement'!$P$180)","v":0},null,null,{"$f":"IF('Auto-Positionnement'!$X$175=\"\",'Auto-Positionnement'!$W$175,'Auto-Positionnement'!$X$175)","v":0},null,{"$f":"IF('Auto-Positionnement'!$X$176=\"\",'Auto-Positionnement'!$W$176,'Auto-Positionnement'!$X$176)","v":0},null,{"$f":"IF('Auto-Positionnement'!$X$177=\"\",'Auto-Positionnement'!$W$177,'Auto-Positionnement'!$X$177)","v":0},null,{"$f":"IF('Auto-Positionnement'!$X$178=\"\",'Auto-Positionnement'!$W$178,'Auto-Positionnement'!$X$178)","v":0},null,{"$f":"IF('Auto-Positionnement'!$X$179=\"\",'Auto-Positionnement'!$W$179,'Auto-Positionnement'!$X$179)","v":0},null,{"$f":"IF('Auto-Positionnement'!$X$180=\"\",'Auto-Positionnement'!$W$180,'Auto-Positionnement'!$X$180)","v":0},null,null,{"$f":"IF('Auto-Positionnement'!$AF$175=\"\",'Auto-Positionnement'!$AE$175,'Auto-Positionnement'!$AF$175)","v":0},null,{"$f":"IF('Auto-Positionnement'!$AF$176=\"\",'Auto-Positionnement'!$AE$176,'Auto-Positionnement'!$AF$176)","v":0},null,{"$f":"IF('Auto-Positionnement'!$AF$177=\"\",'Auto-Positionnement'!$AE$177,'Auto-Positionnement'!$AF$177)","v":0},null,{"$f":"IF('Auto-Positionnement'!$AF$178=\"\",'Auto-Positionnement'!$AE$178,'Auto-Positionnement'!$AF$178)","v":0},null,{"$f":"IF('Auto-Positionnement'!$AF$179=\"\",'Auto-Positionnement'!$AE$179,'Auto-Positionnement'!$AF$179)","v":0},null,{"$f":"IF('Auto-Positionnement'!$AF$180=\"\",'Auto-Positionnement'!$AE$180,'Auto-Positionnement'!$AF$180)","v":0}]
[{"$f":"'Base Professeur'!B23","v":0},{"$f":"'Base Professeur'!C23","v":"Keyran"},null,{"$f":"IF('Auto-Positionnement'!$H$185=\"\",'Auto-Positionnement'!$G$185,'Auto-Positionnement'!$H$185)","v":0},null,{"$f":"IF('Auto-Positionnement'!$H$186=\"\",'Auto-Positionnement'!$G$186,'Auto-Positionnement'!$H$186)","v":0},null,{"$f":"IF('Auto-Positionnement'!$H$187=\"\",'Auto-Positionnement'!$G$187,'Auto-Positionnement'!$H$187)","v":0},null,{"$f":"IF('Auto-Positionnement'!$H$188=\"\",'Auto-Positionnement'!$G$188,'Auto-Positionnement'!$H$188)","v":0},null,{"$f":"IF('Auto-Positionnement'!$H$189=\"\",'Auto-Positionnement'!$G$189,'Auto-Positionnement'!$H$189)","v":0},null,{"$f":"IF('Auto-Positionnement'!$H$190=\"\",'Auto-Positionnement'!$G$190,'Auto-Positionnement'!$H$190)","v":0},null,null,{"$f":"IF('Auto-Positionnement'!$P$185=\"\",'Auto-Positionnement'!$O$185,'Auto-Positionnement'!$P$185)","v":0},null,{"$f":"IF('Auto-Positionnement'!$P$186=\"\",'Auto-Positionnement'!$O$186,'Auto-Positionnement'!$P$186)","v":0},null,{"$f":"IF('Auto-Positionnement'!$P$187=\"\",'Auto-Positionnement'!$O$187,'Auto-Positionnement'!$P$187)","v":0},null,{"$f":"IF('Auto-Positionnement'!$P$188=\"\",'Auto-Positionnement'!$O$188,'Auto-Positionnement'!$P$188)","v":0},null,{"$f":"IF('Auto-Positionnement'!$P$189=\"\",'Auto-Positionnement'!$O$189,'Auto-Positionnement'!$P$189)","v":0},null,{"$f":"IF('Auto-Positionnement'!$P$190=\"\",'Auto-Positionnement'!$O$190,'Auto-Positionnement'!$P$190)","v":0},null,null,{"$f":"IF('Auto-Positionnement'!$X$185=\"\",'Auto-Positionnement'!$W$185,'Auto-Positionnement'!$X$185)","v":0},null,{"$f":"IF('Auto-Positionnement'!$X$186=\"\",'Auto-Positionnement'!$W$186,'Auto-Positionnement'!$X$186)","v":0},null,{"$f":"IF('Auto-Positionnement'!$X$187=\"\",'Auto-Positionnement'!$W$187,'Auto-Positionnement'!$X$187)","v":0},null,{"$f":"IF('Auto-Positionnement'!$X$188=\"\",'Auto-Positionnement'!$W$188,'Auto-Positionnement'!$X$188)","v":0},null,{"$f":"IF('Auto-Positionnement'!$X$189=\"\",'Auto-Positionnement'!$W$189,'Auto-Positionnement'!$X$189)","v":0},null,{"$f":"IF('Auto-Positionnement'!$X$190=\"\",'Auto-Positionnement'!$W$190,'Auto-Positionnement'!$X$190)","v":0},null,null,{"$f":"IF('Auto-Positionnement'!$AF$185=\"\",'Auto-Positionnement'!$AE$185,'Auto-Positionnement'!$AF$185)","v":0},null,{"$f":"IF('Auto-Positionnement'!$AF$186=\"\",'Auto-Positionnement'!$AE$186,'Auto-Positionnement'!$AF$186)","v":0},null,{"$f":"IF('Auto-Positionnement'!$AF$187=\"\",'Auto-Positionnement'!$AE$187,'Auto-Positionnement'!$AF$187)","v":0},null,{"$f":"IF('Auto-Positionnement'!$AF$188=\"\",'Auto-Positionnement'!$AE$188,'Auto-Positionnement'!$AF$188)","v":0},null,{"$f":"IF('Auto-Positionnement'!$AF$189=\"\",'Auto-Positionnement'!$AE$189,'Auto-Positionnement'!$AF$189)","v":0},null,{"$f":"IF('Auto-Positionnement'!$AF$190=\"\",'Auto-Positionnement'!$AE$190,'Auto-Positionnement'!$AF$190)","v":0}]
[{"$f":"'Base Professeur'!B24","v":0},{"$f":"'Base Professeur'!C24","v":"Anne"},null,{"$f":"IF('Auto-Positionnement'!$H$195=\"\",'Auto-Positionnement'!$G$195,'Auto-Positionnement'!$H$195)","v":0},null,{"$f":"IF('Auto-Positionnement'!$H$196=\"\",'Auto-Positionnement'!$G$196,'Auto-Positionnement'!$H$196)","v":0},null,{"$f":"IF('Auto-Positionnement'!$H$197=\"\",'Auto-Positionnement'!$G$197,'Auto-Positionnement'!$H$197)","v":0},null,{"$f":"IF('Auto-Positionnement'!$H$198=\"\",'Auto-Positionnement'!$G$198,'Auto-Positionnement'!$H$198)","v":0},null,{"$f":"IF('Auto-Positionnement'!$H$199=\"\",'Auto-Positionnement'!$G$199,'Auto-Positionnement'!$H$199)","v":0},null,{"$f":"IF('Auto-Positionnement'!$H$200=\"\",'Auto-Positionnement'!$G$200,'Auto-Positionnement'!$H$200)","v":0},null,null,{"$f":"IF('Auto-Positionnement'!$P$195=\"\",'Auto-Positionnement'!$O$195,'Auto-Positionnement'!$P$195)","v":0},null,{"$f":"IF('Auto-Positionnement'!$P$196=\"\",'Auto-Positionnement'!$O$196,'Auto-Positionnement'!$P$196)","v":0},null,{"$f":"IF('Auto-Positionnement'!$P$197=\"\",'Auto-Positionnement'!$O$197,'Auto-Positionnement'!$P$197)","v":0},null,{"$f":"IF('Auto-Positionnement'!$P$198=\"\",'Auto-Positionnement'!$O$198,'Auto-Positionnement'!$P$198)","v":0},null,{"$f":"IF('Auto-Positionnement'!$P$199=\"\",'Auto-Positionnement'!$O$199,'Auto-Positionnement'!$P$199)","v":0},null,{"$f":"IF('Auto-Positionnement'!$P$200=\"\",'Auto-Positionnement'!$O$200,'Auto-Positionnement'!$P$200)","v":0},null,null,{"$f":"IF('Auto-Positionnement'!$X$195=\"\",'Auto-Positionnement'!$W$195,'Auto-Positionnement'!$X$195)","v":0},null,{"$f":"IF('Auto-Positionnement'!$X$196=\"\",'Auto-Positionnement'!$W$196,'Auto-Positionnement'!$X$196)","v":0},null,{"$f":"IF('Auto-Positionnement'!$X$197=\"\",'Auto-Positionnement'!$W$197,'Auto-Positionnement'!$X$197)","v":0},null,{"$f":"IF('Auto-Positionnement'!$X$198=\"\",'Auto-Positionnement'!$W$198,'Auto-Positionnement'!$X$198)","v":0},null,{"$f":"IF('Auto-Positionnement'!$X$199=\"\",'Auto-Positionnement'!$W$199,'Auto-Positionnement'!$X$199)","v":0},null,{"$f":"IF('Auto-Positionnement'!$X$200=\"\",'Auto-Positionnement'!$W$200,'Auto-Positionnement'!$X$200)","v":0},null,null,{"$f":"IF('Auto-Positionnement'!$AF$195=\"\",'Auto-Positionnement'!$AE$195,'Auto-Positionnement'!$AF$195)","v":0},null,{"$f":"IF('Auto-Positionnement'!$AF$196=\"\",'Auto-Positionnement'!$AE$196,'Auto-Positionnement'!$AF$196)","v":0},null,{"$f":"IF('Auto-Positionnement'!$AF$197=\"\",'Auto-Positionnement'!$AE$197,'Auto-Positionnement'!$AF$197)","v":0},null,{"$f":"IF('Auto-Positionnement'!$AF$198=\"\",'Auto-Positionnement'!$AE$198,'Auto-Positionnement'!$AF$198)","v":0},null,{"$f":"IF('Auto-Positionnement'!$AF$199=\"\",'Auto-Positionnement'!$AE$199,'Auto-Positionnement'!$AF$199)","v":0},null,{"$f":"IF('Auto-Positionnement'!$AF$200=\"\",'Auto-Positionnement'!$AE$200,'Auto-Positionnement'!$AF$200)","v":0}]
[{"$f":"'Base Professeur'!B25","v":0},{"$f":"'Base Professeur'!C25","v":"Louise"},null,{"$f":"IF('Auto-Positionnement'!$H$205=\"\",'Auto-Positionnement'!$G$205,'Auto-Positionnement'!$H$205)","v":0},null,{"$f":"IF('Auto-Positionnement'!$H$206=\"\",'Auto-Positionnement'!$G$206,'Auto-Positionnement'!$H$206)","v":0},null,{"$f":"IF('Auto-Positionnement'!$H$207=\"\",'Auto-Positionnement'!$G$207,'Auto-Positionnement'!$H$207)","v":0},null,{"$f":"IF('Auto-Positionnement'!$H$208=\"\",'Auto-Positionnement'!$G$208,'Auto-Positionnement'!$H$208)","v":0},null,{"$f":"IF('Auto-Positionnement'!$H$209=\"\",'Auto-Positionnement'!$G$209,'Auto-Positionnement'!$H$209)","v":0},null,{"$f":"IF('Auto-Positionnement'!$H$210=\"\",'Auto-Positionnement'!$G$210,'Auto-Positionnement'!$H$210)","v":0},null,null,{"$f":"IF('Auto-Positionnement'!$P$205=\"\",'Auto-Positionnement'!$O$205,'Auto-Positionnement'!$P$205)","v":0},null,{"$f":"IF('Auto-Positionnement'!$P$206=\"\",'Auto-Positionnement'!$O$206,'Auto-Positionnement'!$P$206)","v":0},null,{"$f":"IF('Auto-Positionnement'!$P$207=\"\",'Auto-Positionnement'!$O$207,'Auto-Positionnement'!$P$207)","v":0},null,{"$f":"IF('Auto-Positionnement'!$P$208=\"\",'Auto-Positionnement'!$O$208,'Auto-Positionnement'!$P$208)","v":0},null,{"$f":"IF('Auto-Positionnement'!$P$209=\"\",'Auto-Positionnement'!$O$209,'Auto-Positionnement'!$P$209)","v":0},null,{"$f":"IF('Auto-Positionnement'!$P$210=\"\",'Auto-Positionnement'!$O$210,'Auto-Positionnement'!$P$210)","v":0},null,null,{"$f":"IF('Auto-Positionnement'!$X$205=\"\",'Auto-Positionnement'!$W$205,'Auto-Positionnement'!$X$205)","v":0},null,{"$f":"IF('Auto-Positionnement'!$X$206=\"\",'Auto-Positionnement'!$W$206,'Auto-Positionnement'!$X$206)","v":0},null,{"$f":"IF('Auto-Positionnement'!$X$207=\"\",'Auto-Positionnement'!$W$207,'Auto-Positionnement'!$X$207)","v":0},null,{"$f":"IF('Auto-Positionnement'!$X$208=\"\",'Auto-Positionnement'!$W$208,'Auto-Positionnement'!$X$208)","v":0},null,{"$f":"IF('Auto-Positionnement'!$X$209=\"\",'Auto-Positionnement'!$W$209,'Auto-Positionnement'!$X$209)","v":0},null,{"$f":"IF('Auto-Positionnement'!$X$210=\"\",'Auto-Positionnement'!$W$210,'Auto-Positionnement'!$X$210)","v":0},null,null,{"$f":"IF('Auto-Positionnement'!$AF$205=\"\",'Auto-Positionnement'!$AE$205,'Auto-Positionnement'!$AF$205)","v":0},null,{"$f":"IF('Auto-Positionnement'!$AF$206=\"\",'Auto-Positionnement'!$AE$206,'Auto-Positionnement'!$AF$206)","v":0},null,{"$f":"IF('Auto-Positionnement'!$AF$207=\"\",'Auto-Positionnement'!$AE$207,'Auto-Positionnement'!$AF$207)","v":0},null,{"$f":"IF('Auto-Positionnement'!$AF$208=\"\",'Auto-Positionnement'!$AE$208,'Auto-Positionnement'!$AF$208)","v":0},null,{"$f":"IF('Auto-Positionnement'!$AF$209=\"\",'Auto-Positionnement'!$AE$209,'Auto-Positionnement'!$AF$209)","v":0},null,{"$f":"IF('Auto-Positionnement'!$AF$210=\"\",'Auto-Positionnement'!$AE$210,'Auto-Positionnement'!$AF$210)","v":0}]
[{"$f":"'Base Professeur'!B26","v":0},{"$f":"'Base Professeur'!C26","v":"Colin"},null,{"$f":"IF('Auto-Positionnement'!$H$215=\"\",'Auto-Positionnement'!$G$215,'Auto-Positionnement'!$H$215)","v":0},null,{"$f":"IF('Auto-Positionnement'!$H$216=\"\",'Auto-Positionnement'!$G$216,'Auto-Positionnement'!$H$216)","v":0},null,{"$f":"IF('Auto-Positionnement'!$H$217=\"\",'Auto-Positionnement'!$G$217,'Auto-Positionnement'!$H$217)","v":0},null,{"$f":"IF('Auto-Positionnement'!$H$218=\"\",'Auto-Positionnement'!$G$218,'Auto-Positionnement'!$H$218)","v":0},null,{"$f":"IF('Auto-Positionnement'!$H$219=\"\",'Auto-Positionnement'!$G$219,'Auto-Positionnement'!$H$219)","v":0},null,{"$f":"IF('Auto-Positionnement'!$H$220=\"\",'Auto-Positionnement'!$G$220,'Auto-Positionnement'!$H$220)","v":0},null,null,{"$f":"IF('Auto-Positionnement'!$P$215=\"\",'Auto-Positionnement'!$O$215,'Auto-Positionnement'!$P$215)","v":0},null,{"$f":"IF('Auto-Positionnement'!$P$216=\"\",'Auto-Positionnement'!$O$216,'Auto-Positionnement'!$P$216)","v":0},null,{"$f":"IF('Auto-Positionnement'!$P$217=\"\",'Auto-Positionnement'!$O$217,'Auto-Positionnement'!$P$217)","v":0},null,{"$f":"IF('Auto-Positionnement'!$P$218=\"\",'Auto-Positionnement'!$O$218,'Auto-Positionnement'!$P$218)","v":0},null,{"$f":"IF('Auto-Positionnement'!$P$219=\"\",'Auto-Positionnement'!$O$219,'Auto-Positionnement'!$P$219)","v":0},null,{"$f":"IF('Auto-Positionnement'!$P$220=\"\",'Auto-Positionnement'!$O$220,'Auto-Positionnement'!$P$220)","v":0},null,null,{"$f":"IF('Auto-Positionnement'!$X$215=\"\",'Auto-Positionnement'!$W$215,'Auto-Positionnement'!$X$215)","v":0},null,{"$f":"IF('Auto-Positionnement'!$X$216=\"\",'Auto-Positionnement'!$W$216,'Auto-Positionnement'!$X$216)","v":0},null,{"$f":"IF('Auto-Positionnement'!$X$217=\"\",'Auto-Positionnement'!$W$217,'Auto-Positionnement'!$X$217)","v":0},null,{"$f":"IF('Auto-Positionnement'!$X$218=\"\",'Auto-Positionnement'!$W$218,'Auto-Positionnement'!$X$218)","v":0},null,{"$f":"IF('Auto-Positionnement'!$X$219=\"\",'Auto-Positionnement'!$W$219,'Auto-Positionnement'!$X$219)","v":0},null,{"$f":"IF('Auto-Positionnement'!$X$220=\"\",'Auto-Positionnement'!$W$220,'Auto-Positionnement'!$X$220)","v":0},null,null,{"$f":"IF('Auto-Positionnement'!$AF$215=\"\",'Auto-Positionnement'!$AE$215,'Auto-Positionnement'!$AF$215)","v":0},null,{"$f":"IF('Auto-Positionnement'!$AF$216=\"\",'Auto-Positionnement'!$AE$216,'Auto-Positionnement'!$AF$216)","v":0},null,{"$f":"IF('Auto-Positionnement'!$AF$217=\"\",'Auto-Positionnement'!$AE$217,'Auto-Positionnement'!$AF$217)","v":0},null,{"$f":"IF('Auto-Positionnement'!$AF$218=\"\",'Auto-Positionnement'!$AE$218,'Auto-Positionnement'!$AF$218)","v":0},null,{"$f":"IF('Auto-Positionnement'!$AF$219=\"\",'Auto-Positionnement'!$AE$219,'Auto-Positionnement'!$AF$219)","v":0},null,{"$f":"IF('Auto-Positionnement'!$AF$220=\"\",'Auto-Positionnement'!$AE$220,'Auto-Positionnement'!$AF$220)","v":0}]
[{"$f":"'Base Professeur'!B27","v":0},{"$f":"'Base Professeur'!C27","v":"Maya"},null,{"$f":"IF('Auto-Positionnement'!$H$225=\"\",'Auto-Positionnement'!$G$225,'Auto-Positionnement'!$H$225)","v":0},null,{"$f":"IF('Auto-Positionnement'!$H$226=\"\",'Auto-Positionnement'!$G$226,'Auto-Positionnement'!$H$226)","v":0},null,{"$f":"IF('Auto-Positionnement'!$H$227=\"\",'Auto-Positionnement'!$G$227,'Auto-Positionnement'!$H$227)","v":0},null,{"$f":"IF('Auto-Positionnement'!$H$228=\"\",'Auto-Positionnement'!$G$228,'Auto-Positionnement'!$H$228)","v":0},null,{"$f":"IF('Auto-Positionnement'!$H$229=\"\",'Auto-Positionnement'!$G$229,'Auto-Positionnement'!$H$229)","v":0},null,{"$f":"IF('Auto-Positionnement'!$H$230=\"\",'Auto-Positionnement'!$G$230,'Auto-Positionnement'!$H$230)","v":0},null,null,{"$f":"IF('Auto-Positionnement'!$P$225=\"\",'Auto-Positionnement'!$O$225,'Auto-Positionnement'!$P$225)","v":0},null,{"$f":"IF('Auto-Positionnement'!$P$226=\"\",'Auto-Positionnement'!$O$226,'Auto-Positionnement'!$P$226)","v":0},null,{"$f":"IF('Auto-Positionnement'!$P$227=\"\",'Auto-Positionnement'!$O$227,'Auto-Positionnement'!$P$227)","v":0},null,{"$f":"IF('Auto-Positionnement'!$P$228=\"\",'Auto-Positionnement'!$O$228,'Auto-Positionnement'!$P$228)","v":0},null,{"$f":"IF('Auto-Positionnement'!$P$229=\"\",'Auto-Positionnement'!$O$229,'Auto-Positionnement'!$P$229)","v":0},null,{"$f":"IF('Auto-Positionnement'!$P$230=\"\",'Auto-Positionnement'!$O$230,'Auto-Positionnement'!$P$230)","v":0},null,null,{"$f":"IF('Auto-Positionnement'!$X$225=\"\",'Auto-Positionnement'!$W$225,'Auto-Positionnement'!$X$225)","v":0},null,{"$f":"IF('Auto-Positionnement'!$X$226=\"\",'Auto-Positionnement'!$W$226,'Auto-Positionnement'!$X$226)","v":0},null,{"$f":"IF('Auto-Positionnement'!$X$227=\"\",'Auto-Positionnement'!$W$227,'Auto-Positionnement'!$X$227)","v":0},null,{"$f":"IF('Auto-Positionnement'!$X$228=\"\",'Auto-Positionnement'!$W$228,'Auto-Positionnement'!$X$228)","v":0},null,{"$f":"IF('Auto-Positionnement'!$X$229=\"\",'Auto-Positionnement'!$W$229,'Auto-Positionnement'!$X$229)","v":0},null,{"$f":"IF('Auto-Positionnement'!$X$230=\"\",'Auto-Positionnement'!$W$230,'Auto-Positionnement'!$X$230)","v":0},null,null,{"$f":"IF('Auto-Positionnement'!$AF$225=\"\",'Auto-Positionnement'!$AE$225,'Auto-Positionnement'!$AF$225)","v":0},null,{"$f":"IF('Auto-Positionnement'!$AF$226=\"\",'Auto-Positionnement'!$AE$226,'Auto-Positionnement'!$AF$226)","v":0},null,{"$f":"IF('Auto-Positionnement'!$AF$227=\"\",'Auto-Positionnement'!$AE$227,'Auto-Positionnement'!$AF$227)","v":0},null,{"$f":"IF('Auto-Positionnement'!$AF$228=\"\",'Auto-Positionnement'!$AE$228,'Auto-Positionnement'!$AF$228)","v":0},null,{"$f":"IF('Auto-Positionnement'!$AF$229=\"\",'Auto-Positionnement'!$AE$229,'Auto-Positionnement'!$AF$229)","v":0},null,{"$f":"IF('Auto-Positionnement'!$AF$230=\"\",'Auto-Positionnement'!$AE$230,'Auto-Positionnement'!$AF$230)","v":0}]
[{"$f":"'Base Professeur'!B28","v":0},{"$f":"'Base Professeur'!C28","v":"Enzo"},null,{"$f":"IF('Auto-Positionnement'!$H$235=\"\",'Auto-Positionnement'!$G$235,'Auto-Positionnement'!$H$235)","v":0},null,{"$f":"IF('Auto-Positionnement'!$H$236=\"\",'Auto-Positionnement'!$G$236,'Auto-Positionnement'!$H$236)","v":0},null,{"$f":"IF('Auto-Positionnement'!$H$237=\"\",'Auto-Positionnement'!$G$237,'Auto-Positionnement'!$H$237)","v":0},null,{"$f":"IF('Auto-Positionnement'!$H$238=\"\",'Auto-Positionnement'!$G$238,'Auto-Positionnement'!$H$238)","v":0},null,{"$f":"IF('Auto-Positionnement'!$H$239=\"\",'Auto-Positionnement'!$G$239,'Auto-Positionnement'!$H$239)","v":0},null,{"$f":"IF('Auto-Positionnement'!$H$240=\"\",'Auto-Positionnement'!$G$240,'Auto-Positionnement'!$H$240)","v":0},null,null,{"$f":"IF('Auto-Positionnement'!$P$235=\"\",'Auto-Positionnement'!$O$235,'Auto-Positionnement'!$P$235)","v":0},null,{"$f":"IF('Auto-Positionnement'!$P$236=\"\",'Auto-Positionnement'!$O$236,'Auto-Positionnement'!$P$236)","v":0},null,{"$f":"IF('Auto-Positionnement'!$P$237=\"\",'Auto-Positionnement'!$O$237,'Auto-Positionnement'!$P$237)","v":0},null,{"$f":"IF('Auto-Positionnement'!$P$238=\"\",'Auto-Positionnement'!$O$238,'Auto-Positionnement'!$P$238)","v":0},null,{"$f":"IF('Auto-Positionnement'!$P$239=\"\",'Auto-Positionnement'!$O$239,'Auto-Positionnement'!$P$239)","v":0},null,{"$f":"IF('Auto-Positionnement'!$P$240=\"\",'Auto-Positionnement'!$O$240,'Auto-Positionnement'!$P$240)","v":0},null,null,{"$f":"IF('Auto-Positionnement'!$X$235=\"\",'Auto-Positionnement'!$W$235,'Auto-Positionnement'!$X$235)","v":0},null,{"$f":"IF('Auto-Positionnement'!$X$236=\"\",'Auto-Positionnement'!$W$236,'Auto-Positionnement'!$X$236)","v":0},null,{"$f":"IF('Auto-Positionnement'!$X$237=\"\",'Auto-Positionnement'!$W$237,'Auto-Positionnement'!$X$237)","v":0},null,{"$f":"IF('Auto-Positionnement'!$X$238=\"\",'Auto-Positionnement'!$W$238,'Auto-Positionnement'!$X$238)","v":0},null,{"$f":"IF('Auto-Positionnement'!$X$239=\"\",'Auto-Positionnement'!$W$239,'Auto-Positionnement'!$X$239)","v":0},null,{"$f":"IF('Auto-Positionnement'!$X$240=\"\",'Auto-Positionnement'!$W$240,'Auto-Positionnement'!$X$240)","v":0},null,null,{"$f":"IF('Auto-Positionnement'!$AF$235=\"\",'Auto-Positionnement'!$AE$235,'Auto-Positionnement'!$AF$235)","v":0},null,{"$f":"IF('Auto-Positionnement'!$AF$236=\"\",'Auto-Positionnement'!$AE$236,'Auto-Positionnement'!$AF$236)","v":0},null,{"$f":"IF('Auto-Positionnement'!$AF$237=\"\",'Auto-Positionnement'!$AE$237,'Auto-Positionnement'!$AF$237)","v":0},null,{"$f":"IF('Auto-Positionnement'!$AF$238=\"\",'Auto-Positionnement'!$AE$238,'Auto-Positionnement'!$AF$238)","v":0},null,{"$f":"IF('Auto-Positionnement'!$AF$239=\"\",'Auto-Positionnement'!$AE$239,'Auto-Positionnement'!$AF$239)","v":0},null,{"$f":"IF('Auto-Positionnement'!$AF$240=\"\",'Auto-Positionnement'!$AE$240,'Auto-Positionnement'!$AF$240)","v":0}]
[{"$f":"'Base Professeur'!B29","v":0},{"$f":"'Base Professeur'!C29","v":"Elève 1"},null,{"$f":"IF('Auto-Positionnement'!$H$245=\"\",'Auto-Positionnement'!$G$245,'Auto-Positionnement'!$H$245)","v":0},null,{"$f":"IF('Auto-Positionnement'!$H$246=\"\",'Auto-Positionnement'!$G$246,'Auto-Positionnement'!$H$246)","v":0},null,{"$f":"IF('Auto-Positionnement'!$H$247=\"\",'Auto-Positionnement'!$G$247,'Auto-Positionnement'!$H$247)","v":0},null,{"$f":"IF('Auto-Positionnement'!$H$248=\"\",'Auto-Positionnement'!$G$248,'Auto-Positionnement'!$H$248)","v":0},null,{"$f":"IF('Auto-Positionnement'!$H$249=\"\",'Auto-Positionnement'!$G$249,'Auto-Positionnement'!$H$249)","v":0},null,{"$f":"IF('Auto-Positionnement'!$H$250=\"\",'Auto-Positionnement'!$G$250,'Auto-Positionnement'!$H$250)","v":0},null,null,{"$f":"IF('Auto-Positionnement'!$P$245=\"\",'Auto-Positionnement'!$O$245,'Auto-Positionnement'!$P$245)","v":0},null,{"$f":"IF('Auto-Positionnement'!$P$246=\"\",'Auto-Positionnement'!$O$246,'Auto-Positionnement'!$P$246)","v":0},null,{"$f":"IF('Auto-Positionnement'!$P$247=\"\",'Auto-Positionnement'!$O$247,'Auto-Positionnement'!$P$247)","v":0},null,{"$f":"IF('Auto-Positionnement'!$P$248=\"\",'Auto-Positionnement'!$O$248,'Auto-Positionnement'!$P$248)","v":0},null,{"$f":"IF('Auto-Positionnement'!$P$249=\"\",'Auto-Positionnement'!$O$249,'Auto-Positionnement'!$P$249)","v":0},null,{"$f":"IF('Auto-Positionnement'!$P$250=\"\",'Auto-Positionnement'!$O$250,'Auto-Positionnement'!$P$250)","v":0},null,null,{"$f":"IF('Auto-Positionnement'!$X$245=\"\",'Auto-Positionnement'!$W$245,'Auto-Positionnement'!$X$245)","v":0},null,{"$f":"IF('Auto-Positionnement'!$X$246=\"\",'Auto-Positionnement'!$W$246,'Auto-Positionnement'!$X$246)","v":0},null,{"$f":"IF('Auto-Positionnement'!$X$247=\"\",'Auto-Positionnement'!$W$247,'Auto-Positionnement'!$X$247)","v":0},null,{"$f":"IF('Auto-Positionnement'!$X$248=\"\",'Auto-Positionnement'!$W$248,'Auto-Positionnement'!$X$248)","v":0},null,{"$f":"IF('Auto-Positionnement'!$X$249=\"\",'Auto-Positionnement'!$W$249,'Auto-Positionnement'!$X$249)","v":0},null,{"$f":"IF('Auto-Positionnement'!$X$250=\"\",'Auto-Positionnement'!$W$250,'Auto-Positionnement'!$X$250)","v":0},null,null,{"$f":"IF('Auto-Positionnement'!$AF$245=\"\",'Auto-Positionnement'!$AE$245,'Auto-Positionnement'!$AF$245)","v":0},null,{"$f":"IF('Auto-Positionnement'!$AF$246=\"\",'Auto-Positionnement'!$AE$246,'Auto-Positionnement'!$AF$246)","v":0},null,{"$f":"IF('Auto-Positionnement'!$AF$247=\"\",'Auto-Positionnement'!$AE$247,'Auto-Positionnement'!$AF$247)","v":0},null,{"$f":"IF('Auto-Positionnement'!$AF$248=\"\",'Auto-Positionnement'!$AE$248,'Auto-Positionnement'!$AF$248)","v":0},null,{"$f":"IF('Auto-Positionnement'!$AF$249=\"\",'Auto-Positionnement'!$AE$249,'Auto-Positionnement'!$AF$249)","v":0},null,{"$f":"IF('Auto-Positionnement'!$AF$250=\"\",'Auto-Positionnement'!$AE$250,'Auto-Positionnement'!$AF$250)","v":0}]
[{"$f":"'Base Professeur'!B30","v":0},{"$f":"'Base Professeur'!C30","v":2},null,{"$f":"IF('Auto-Positionnement'!$H$255=\"\",'Auto-Positionnement'!$G$255,'Auto-Positionnement'!$H$255)","v":0},null,{"$f":"IF('Auto-Positionnement'!$H$256=\"\",'Auto-Positionnement'!$G$256,'Auto-Positionnement'!$H$256)","v":0},null,{"$f":"IF('Auto-Positionnement'!$H$257=\"\",'Auto-Positionnement'!$G$257,'Auto-Positionnement'!$H$257)","v":0},null,{"$f":"IF('Auto-Positionnement'!$H$258=\"\",'Auto-Positionnement'!$G$258,'Auto-Positionnement'!$H$258)","v":0},null,{"$f":"IF('Auto-Positionnement'!$H$259=\"\",'Auto-Positionnement'!$G$259,'Auto-Positionnement'!$H$259)","v":0},null,{"$f":"IF('Auto-Positionnement'!$H$260=\"\",'Auto-Positionnement'!$G$260,'Auto-Positionnement'!$H$260)","v":0},null,null,{"$f":"IF('Auto-Positionnement'!$P$255=\"\",'Auto-Positionnement'!$O$255,'Auto-Positionnement'!$P$255)","v":0},null,{"$f":"IF('Auto-Positionnement'!$P$256=\"\",'Auto-Positionnement'!$O$256,'Auto-Positionnement'!$P$256)","v":0},null,{"$f":"IF('Auto-Positionnement'!$P$257=\"\",'Auto-Positionnement'!$O$257,'Auto-Positionnement'!$P$257)","v":0},null,{"$f":"IF('Auto-Positionnement'!$P$258=\"\",'Auto-Positionnement'!$O$258,'Auto-Positionnement'!$P$258)","v":0},null,{"$f":"IF('Auto-Positionnement'!$P$259=\"\",'Auto-Positionnement'!$O$259,'Auto-Positionnement'!$P$259)","v":0},null,{"$f":"IF('Auto-Positionnement'!$P$260=\"\",'Auto-Positionnement'!$O$260,'Auto-Positionnement'!$P$260)","v":0},null,null,{"$f":"IF('Auto-Positionnement'!$X$255=\"\",'Auto-Positionnement'!$W$255,'Auto-Positionnement'!$X$255)","v":0},null,{"$f":"IF('Auto-Positionnement'!$X$256=\"\",'Auto-Positionnement'!$W$256,'Auto-Positionnement'!$X$256)","v":0},null,{"$f":"IF('Auto-Positionnement'!$X$257=\"\",'Auto-Positionnement'!$W$257,'Auto-Positionnement'!$X$257)","v":0},null,{"$f":"IF('Auto-Positionnement'!$X$258=\"\",'Auto-Positionnement'!$W$258,'Auto-Positionnement'!$X$258)","v":0},null,{"$f":"IF('Auto-Positionnement'!$X$259=\"\",'Auto-Positionnement'!$W$259,'Auto-Positionnement'!$X$259)","v":0},null,{"$f":"IF('Auto-Positionnement'!$X$260=\"\",'Auto-Positionnement'!$W$260,'Auto-Positionnement'!$X$260)","v":0},null,null,{"$f":"IF('Auto-Positionnement'!$AF$255=\"\",'Auto-Positionnement'!$AE$255,'Auto-Positionnement'!$AF$255)","v":0},null,{"$f":"IF('Auto-Positionnement'!$AF$256=\"\",'Auto-Positionnement'!$AE$256,'Auto-Positionnement'!$AF$256)","v":0},null,{"$f":"IF('Auto-Positionnement'!$AF$257=\"\",'Auto-Positionnement'!$AE$257,'Auto-Positionnement'!$AF$257)","v":0},null,{"$f":"IF('Auto-Positionnement'!$AF$258=\"\",'Auto-Positionnement'!$AE$258,'Auto-Positionnement'!$AF$258)","v":0},null,{"$f":"IF('Auto-Positionnement'!$AF$259=\"\",'Auto-Positionnement'!$AE$259,'Auto-Positionnement'!$AF$259)","v":0},null,{"$f":"IF('Auto-Positionnement'!$AF$260=\"\",'Auto-Positionnement'!$AE$260,'Auto-Positionnement'!$AF$260)","v":0}]
[{"$f":"'Base Professeur'!B31","v":0},{"$f":"'Base Professeur'!C31","v":3},null,{"$f":"IF('Auto-Positionnement'!$H$265=\"\",'Auto-Positionnement'!$G$265,'Auto-Positionnement'!$H$265)","v":0},null,{"$f":"IF('Auto-Positionnement'!$H$266=\"\",'Auto-Positionnement'!$G$266,'Auto-Positionnement'!$H$266)","v":0},null,{"$f":"IF('Auto-Positionnement'!$H$267=\"\",'Auto-Positionnement'!$G$267,'Auto-Positionnement'!$H$267)","v":0},null,{"$f":"IF('Auto-Positionnement'!$H$268=\"\",'Auto-Positionnement'!$G$268,'Auto-Positionnement'!$H$268)","v":0},null,{"$f":"IF('Auto-Positionnement'!$H$269=\"\",'Auto-Positionnement'!$G$269,'Auto-Positionnement'!$H$269)","v":0},null,{"$f":"IF('Auto-Positionnement'!$H$270=\"\",'Auto-Positionnement'!$G$270,'Auto-Positionnement'!$H$270)","v":0},null,null,{"$f":"IF('Auto-Positionnement'!$P$265=\"\",'Auto-Positionnement'!$O$265,'Auto-Positionnement'!$P$265)","v":0},null,{"$f":"IF('Auto-Positionnement'!$P$266=\"\",'Auto-Positionnement'!$O$266,'Auto-Positionnement'!$P$266)","v":0},null,{"$f":"IF('Auto-Positionnement'!$P$267=\"\",'Auto-Positionnement'!$O$267,'Auto-Positionnement'!$P$267)","v":0},null,{"$f":"IF('Auto-Positionnement'!$P$268=\"\",'Auto-Positionnement'!$O$268,'Auto-Positionnement'!$P$268)","v":0},null,{"$f":"IF('Auto-Positionnement'!$P$269=\"\",'Auto-Positionnement'!$O$269,'Auto-Positionnement'!$P$269)","v":0},null,{"$f":"IF('Auto-Positionnement'!$P$270=\"\",'Auto-Positionnement'!$O$270,'Auto-Positionnement'!$P$270)","v":0},null,null,{"$f":"IF('Auto-Positionnement'!$X$265=\"\",'Auto-Positionnement'!$W$265,'Auto-Positionnement'!$X$265)","v":0},null,{"$f":"IF('Auto-Positionnement'!$X$266=\"\",'Auto-Positionnement'!$W$266,'Auto-Positionnement'!$X$266)","v":0},null,{"$f":"IF('Auto-Positionnement'!$X$267=\"\",'Auto-Positionnement'!$W$267,'Auto-Positionnement'!$X$267)","v":0},null,{"$f":"IF('Auto-Positionnement'!$X$268=\"\",'Auto-Positionnement'!$W$268,'Auto-Positionnement'!$X$268)","v":0},null,{"$f":"IF('Auto-Positionnement'!$X$269=\"\",'Auto-Positionnement'!$W$269,'Auto-Positionnement'!$X$269)","v":0},null,{"$f":"IF('Auto-Positionnement'!$X$270=\"\",'Auto-Positionnement'!$W$270,'Auto-Positionnement'!$X$270)","v":0},null,null,{"$f":"IF('Auto-Positionnement'!$AF$265=\"\",'Auto-Positionnement'!$AE$265,'Auto-Positionnement'!$AF$265)","v":0},null,{"$f":"IF('Auto-Positionnement'!$AF$266=\"\",'Auto-Positionnement'!$AE$266,'Auto-Positionnement'!$AF$266)","v":0},null,{"$f":"IF('Auto-Positionnement'!$AF$267=\"\",'Auto-Positionnement'!$AE$267,'Auto-Positionnement'!$AF$267)","v":0},null,{"$f":"IF('Auto-Positionnement'!$AF$268=\"\",'Auto-Positionnement'!$AE$268,'Auto-Positionnement'!$AF$268)","v":0},null,{"$f":"IF('Auto-Positionnement'!$AF$269=\"\",'Auto-Positionnement'!$AE$269,'Auto-Positionnement'!$AF$269)","v":0},null,{"$f":"IF('Auto-Positionnement'!$AF$270=\"\",'Auto-Positionnement'!$AE$270,'Auto-Positionnement'!$AF$270)","v":0}]
[{"$f":"'Base Professeur'!B32","v":0},{"$f":"'Base Professeur'!C32","v":4},null,{"$f":"IF('Auto-Positionnement'!$H$275=\"\",'Auto-Positionnement'!$G$275,'Auto-Positionnement'!$H$275)","v":0},null,{"$f":"IF('Auto-Positionnement'!$H$276=\"\",'Auto-Positionnement'!$G$276,'Auto-Positionnement'!$H$276)","v":0},null,{"$f":"IF('Auto-Positionnement'!$H$277=\"\",'Auto-Positionnement'!$G$277,'Auto-Positionnement'!$H$277)","v":0},null,{"$f":"IF('Auto-Positionnement'!$H$278=\"\",'Auto-Positionnement'!$G$278,'Auto-Positionnement'!$H$278)","v":0},null,{"$f":"IF('Auto-Positionnement'!$H$279=\"\",'Auto-Positionnement'!$G$279,'Auto-Positionnement'!$H$279)","v":0},null,{"$f":"IF('Auto-Positionnement'!$H$280=\"\",'Auto-Positionnement'!$G$280,'Auto-Positionnement'!$H$280)","v":0},null,null,{"$f":"IF('Auto-Positionnement'!$P$275=\"\",'Auto-Positionnement'!$O$275,'Auto-Positionnement'!$P$275)","v":0},null,{"$f":"IF('Auto-Positionnement'!$P$276=\"\",'Auto-Positionnement'!$O$276,'Auto-Positionnement'!$P$276)","v":0},null,{"$f":"IF('Auto-Positionnement'!$P$277=\"\",'Auto-Positionnement'!$O$277,'Auto-Positionnement'!$P$277)","v":0},null,{"$f":"IF('Auto-Positionnement'!$P$278=\"\",'Auto-Positionnement'!$O$278,'Auto-Positionnement'!$P$278)","v":0},null,{"$f":"IF('Auto-Positionnement'!$P$279=\"\",'Auto-Positionnement'!$O$279,'Auto-Positionnement'!$P$279)","v":0},null,{"$f":"IF('Auto-Positionnement'!$P$280=\"\",'Auto-Positionnement'!$O$280,'Auto-Positionnement'!$P$280)","v":0},null,null,{"$f":"IF('Auto-Positionnement'!$X$275=\"\",'Auto-Positionnement'!$W$275,'Auto-Positionnement'!$X$275)","v":0},null,{"$f":"IF('Auto-Positionnement'!$X$276=\"\",'Auto-Positionnement'!$W$276,'Auto-Positionnement'!$X$276)","v":0},null,{"$f":"IF('Auto-Positionnement'!$X$277=\"\",'Auto-Positionnement'!$W$277,'Auto-Positionnement'!$X$277)","v":0},null,{"$f":"IF('Auto-Positionnement'!$X$278=\"\",'Auto-Positionnement'!$W$278,'Auto-Positionnement'!$X$278)","v":0},null,{"$f":"IF('Auto-Positionnement'!$X$279=\"\",'Auto-Positionnement'!$W$279,'Auto-Positionnement'!$X$279)","v":0},null,{"$f":"IF('Auto-Positionnement'!$X$280=\"\",'Auto-Positionnement'!$W$280,'Auto-Positionnement'!$X$280)","v":0},null,null,{"$f":"IF('Auto-Positionnement'!$AF$275=\"\",'Auto-Positionnement'!$AE$275,'Auto-Positionnement'!$AF$275)","v":0},null,{"$f":"IF('Auto-Positionnement'!$AF$276=\"\",'Auto-Positionnement'!$AE$276,'Auto-Positionnement'!$AF$276)","v":0},null,{"$f":"IF('Auto-Positionnement'!$AF$277=\"\",'Auto-Positionnement'!$AE$277,'Auto-Positionnement'!$AF$277)","v":0},null,{"$f":"IF('Auto-Positionnement'!$AF$278=\"\",'Auto-Positionnement'!$AE$278,'Auto-Positionnement'!$AF$278)","v":0},null,{"$f":"IF('Auto-Positionnement'!$AF$279=\"\",'Auto-Positionnement'!$AE$279,'Auto-Positionnement'!$AF$279)","v":0},null,{"$f":"IF('Auto-Positionnement'!$AF$280=\"\",'Auto-Positionnement'!$AE$280,'Auto-Positionnement'!$AF$280)","v":0}]
[{"$f":"'Base Professeur'!B33","v":0},{"$f":"'Base Professeur'!C33","v":5},null,{"$f":"IF('Auto-Positionnement'!$H$285=\"\",'Auto-Positionnement'!$G$285,'Auto-Positionnement'!$H$285)","v":0},null,{"$f":"IF('Auto-Positionnement'!$H$286=\"\",'Auto-Positionnement'!$G$286,'Auto-Positionnement'!$H$286)","v":0},null,{"$f":"IF('Auto-Positionnement'!$H$287=\"\",'Auto-Positionnement'!$G$287,'Auto-Positionnement'!$H$287)","v":0},null,{"$f":"IF('Auto-Positionnement'!$H$288=\"\",'Auto-Positionnement'!$G$288,'Auto-Positionnement'!$H$288)","v":0},null,{"$f":"IF('Auto-Positionnement'!$H$289=\"\",'Auto-Positionnement'!$G$289,'Auto-Positionnement'!$H$289)","v":0},null,{"$f":"IF('Auto-Positionnement'!$H$290=\"\",'Auto-Positionnement'!$G$290,'Auto-Positionnement'!$H$290)","v":0},null,null,{"$f":"IF('Auto-Positionnement'!$P$285=\"\",'Auto-Positionnement'!$O$285,'Auto-Positionnement'!$P$285)","v":0},null,{"$f":"IF('Auto-Positionnement'!$P$286=\"\",'Auto-Positionnement'!$O$286,'Auto-Positionnement'!$P$286)","v":0},null,{"$f":"IF('Auto-Positionnement'!$P$287=\"\",'Auto-Positionnement'!$O$287,'Auto-Positionnement'!$P$287)","v":0},null,{"$f":"IF('Auto-Positionnement'!$P$288=\"\",'Auto-Positionnement'!$O$288,'Auto-Positionnement'!$P$288)","v":0},null,{"$f":"IF('Auto-Positionnement'!$P$289=\"\",'Auto-Positionnement'!$O$289,'Auto-Positionnement'!$P$289)","v":0},null,{"$f":"IF('Auto-Positionnement'!$P$290=\"\",'Auto-Positionnement'!$O$290,'Auto-Positionnement'!$P$290)","v":0},null,null,{"$f":"IF('Auto-Positionnement'!$X$285=\"\",'Auto-Positionnement'!$W$285,'Auto-Positionnement'!$X$285)","v":0},null,{"$f":"IF('Auto-Positionnement'!$X$286=\"\",'Auto-Positionnement'!$W$286,'Auto-Positionnement'!$X$286)","v":0},null,{"$f":"IF('Auto-Positionnement'!$X$287=\"\",'Auto-Positionnement'!$W$287,'Auto-Positionnement'!$X$287)","v":0},null,{"$f":"IF('Auto-Positionnement'!$X$288=\"\",'Auto-Positionnement'!$W$288,'Auto-Positionnement'!$X$288)","v":0},null,{"$f":"IF('Auto-Positionnement'!$X$289=\"\",'Auto-Positionnement'!$W$289,'Auto-Positionnement'!$X$289)","v":0},null,{"$f":"IF('Auto-Positionnement'!$X$290=\"\",'Auto-Positionnement'!$W$290,'Auto-Positionnement'!$X$290)","v":0},null,null,{"$f":"IF('Auto-Positionnement'!$AF$285=\"\",'Auto-Positionnement'!$AE$285,'Auto-Positionnement'!$AF$285)","v":0},null,{"$f":"IF('Auto-Positionnement'!$AF$286=\"\",'Auto-Positionnement'!$AE$286,'Auto-Positionnement'!$AF$286)","v":0},null,{"$f":"IF('Auto-Positionnement'!$AF$287=\"\",'Auto-Positionnement'!$AE$287,'Auto-Positionnement'!$AF$287)","v":0},null,{"$f":"IF('Auto-Positionnement'!$AF$288=\"\",'Auto-Positionnement'!$AE$288,'Auto-Positionnement'!$AF$288)","v":0},null,{"$f":"IF('Auto-Positionnement'!$AF$289=\"\",'Auto-Positionnement'!$AE$289,'Auto-Positionnement'!$AF$289)","v":0},null,{"$f":"IF('Auto-Positionnement'!$AF$290=\"\",'Auto-Positionnement'!$AE$290,'Auto-Positionnement'!$AF$290)","v":0}]
[{"$f":"'Base Professeur'!B34","v":0},{"$f":"'Base Professeur'!C34","v":6},null,{"$f":"IF('Auto-Positionnement'!$H$295=\"\",'Auto-Positionnement'!$G$295,'Auto-Positionnement'!$H$295)","v":0},null,{"$f":"IF('Auto-Positionnement'!$H$296=\"\",'Auto-Positionnement'!$G$296,'Auto-Positionnement'!$H$296)","v":0},null,{"$f":"IF('Auto-Positionnement'!$H$297=\"\",'Auto-Positionnement'!$G$297,'Auto-Positionnement'!$H$297)","v":0},null,{"$f":"IF('Auto-Positionnement'!$H$298=\"\",'Auto-Positionnement'!$G$298,'Auto-Positionnement'!$H$298)","v":0},null,{"$f":"IF('Auto-Positionnement'!$H$299=\"\",'Auto-Positionnement'!$G$299,'Auto-Positionnement'!$H$299)","v":0},null,{"$f":"IF('Auto-Positionnement'!$H$300=\"\",'Auto-Positionnement'!$G$300,'Auto-Positionnement'!$H$300)","v":0},null,null,{"$f":"IF('Auto-Positionnement'!$P$295=\"\",'Auto-Positionnement'!$O$295,'Auto-Positionnement'!$P$295)","v":0},null,{"$f":"IF('Auto-Positionnement'!$P$296=\"\",'Auto-Positionnement'!$O$296,'Auto-Positionnement'!$P$296)","v":0},null,{"$f":"IF('Auto-Positionnement'!$P$297=\"\",'Auto-Positionnement'!$O$297,'Auto-Positionnement'!$P$297)","v":0},null,{"$f":"IF('Auto-Positionnement'!$P$298=\"\",'Auto-Positionnement'!$O$298,'Auto-Positionnement'!$P$298)","v":0},null,{"$f":"IF('Auto-Positionnement'!$P$299=\"\",'Auto-Positionnement'!$O$299,'Auto-Positionnement'!$P$299)","v":0},null,{"$f":"IF('Auto-Positionnement'!$P$300=\"\",'Auto-Positionnement'!$O$300,'Auto-Positionnement'!$P$300)","v":0},null,null,{"$f":"IF('Auto-Positionnement'!$X$295=\"\",'Auto-Positionnement'!$W$295,'Auto-Positionnement'!$X$295)","v":0},null,{"$f":"IF('Auto-Positionnement'!$X$296=\"\",'Auto-Positionnement'!$W$296,'Auto-Positionnement'!$X$296)","v":0},null,{"$f":"IF('Auto-Positionnement'!$X$297=\"\",'Auto-Positionnement'!$W$297,'Auto-Positionnement'!$X$297)","v":0},null,{"$f":"IF('Auto-Positionnement'!$X$298=\"\",'Auto-Positionnement'!$W$298,'Auto-Positionnement'!$X$298)","v":0},null,{"$f":"IF('Auto-Positionnement'!$X$299=\"\",'Auto-Positionnement'!$W$299,'Auto-Positionnement'!$X$299)","v":0},null,{"$f":"IF('Auto-Positionnement'!$X$300=\"\",'Auto-Positionnement'!$W$300,'Auto-Positionnement'!$X$300)","v":0},null,null,{"$f":"IF('Auto-Positionnement'!$AF$295=\"\",'Auto-Positionnement'!$AE$295,'Auto-Positionnement'!$AF$295)","v":0},null,{"$f":"IF('Auto-Positionnement'!$AF$296=\"\",'Auto-Positionnement'!$AE$296,'Auto-Positionnement'!$AF$296)","v":0},null,{"$f":"IF('Auto-Positionnement'!$AF$297=\"\",'Auto-Positionnement'!$AE$297,'Auto-Positionnement'!$AF$297)","v":0},null,{"$f":"IF('Auto-Positionnement'!$AF$298=\"\",'Auto-Positionnement'!$AE$298,'Auto-Positionnement'!$AF$298)","v":0},null,{"$f":"IF('Auto-Positionnement'!$AF$299=\"\",'Auto-Positionnement'!$AE$299,'Auto-Positionnement'!$AF$299)","v":0},null,{"$f":"IF('Auto-Positionnement'!$AF$300=\"\",'Auto-Positionnement'!$AE$300,'Auto-Positionnement'!$AF$300)","v":0}]
[{"$f":"'Base Professeur'!B35","v":0},{"$f":"'Base Professeur'!C35","v":7},null,{"$f":"IF('Auto-Positionnement'!$H$305=\"\",'Auto-Positionnement'!$G$305,'Auto-Positionnement'!$H$305)","v":0},null,{"$f":"IF('Auto-Positionnement'!$H$306=\"\",'Auto-Positionnement'!$G$306,'Auto-Positionnement'!$H$306)","v":0},null,{"$f":"IF('Auto-Positionnement'!$H$307=\"\",'Auto-Positionnement'!$G$307,'Auto-Positionnement'!$H$307)","v":0},null,{"$f":"IF('Auto-Positionnement'!$H$308=\"\",'Auto-Positionnement'!$G$308,'Auto-Positionnement'!$H$308)","v":0},null,{"$f":"IF('Auto-Positionnement'!$H$309=\"\",'Auto-Positionnement'!$G$309,'Auto-Positionnement'!$H$309)","v":0},null,{"$f":"IF('Auto-Positionnement'!$H$310=\"\",'Auto-Positionnement'!$G$310,'Auto-Positionnement'!$H$310)","v":0},null,null,{"$f":"IF('Auto-Positionnement'!$P$305=\"\",'Auto-Positionnement'!$O$305,'Auto-Positionnement'!$P$305)","v":0},null,{"$f":"IF('Auto-Positionnement'!$P$306=\"\",'Auto-Positionnement'!$O$306,'Auto-Positionnement'!$P$306)","v":0},null,{"$f":"IF('Auto-Positionnement'!$P$307=\"\",'Auto-Positionnement'!$O$307,'Auto-Positionnement'!$P$307)","v":0},null,{"$f":"IF('Auto-Positionnement'!$P$308=\"\",'Auto-Positionnement'!$O$308,'Auto-Positionnement'!$P$308)","v":0},null,{"$f":"IF('Auto-Positionnement'!$P$309=\"\",'Auto-Positionnement'!$O$309,'Auto-Positionnement'!$P$309)","v":0},null,{"$f":"IF('Auto-Positionnement'!$P$310=\"\",'Auto-Positionnement'!$O$310,'Auto-Positionnement'!$P$310)","v":0},null,null,{"$f":"IF('Auto-Positionnement'!$X$305=\"\",'Auto-Positionnement'!$W$305,'Auto-Positionnement'!$X$305)","v":0},null,{"$f":"IF('Auto-Positionnement'!$X$306=\"\",'Auto-Positionnement'!$W$306,'Auto-Positionnement'!$X$306)","v":0},null,{"$f":"IF('Auto-Positionnement'!$X$307=\"\",'Auto-Positionnement'!$W$307,'Auto-Positionnement'!$X$307)","v":0},null,{"$f":"IF('Auto-Positionnement'!$X$308=\"\",'Auto-Positionnement'!$W$308,'Auto-Positionnement'!$X$308)","v":0},null,{"$f":"IF('Auto-Positionnement'!$X$309=\"\",'Auto-Positionnement'!$W$309,'Auto-Positionnement'!$X$309)","v":0},null,{"$f":"IF('Auto-Positionnement'!$X$310=\"\",'Auto-Positionnement'!$W$310,'Auto-Positionnement'!$X$310)","v":0},null,null,{"$f":"IF('Auto-Positionnement'!$AF$305=\"\",'Auto-Positionnement'!$AE$305,'Auto-Positionnement'!$AF$305)","v":0},null,{"$f":"IF('Auto-Positionnement'!$AF$306=\"\",'Auto-Positionnement'!$AE$306,'Auto-Positionnement'!$AF$306)","v":0},null,{"$f":"IF('Auto-Positionnement'!$AF$307=\"\",'Auto-Positionnement'!$AE$307,'Auto-Positionnement'!$AF$307)","v":0},null,{"$f":"IF('Auto-Positionnement'!$AF$308=\"\",'Auto-Positionnement'!$AE$308,'Auto-Positionnement'!$AF$308)","v":0},null,{"$f":"IF('Auto-Positionnement'!$AF$309=\"\",'Auto-Positionnement'!$AE$309,'Auto-Positionnement'!$AF$309)","v":0},null,{"$f":"IF('Auto-Positionnement'!$AF$310=\"\",'Auto-Positionnement'!$AE$310,'Auto-Positionnement'!$AF$310)","v":0}]
[{"$f":"'Base Professeur'!B36","v":0},{"$f":"'Base Professeur'!C36","v":8},null,{"$f":"IF('Auto-Positionnement'!$H$315=\"\",'Auto-Positionnement'!$G$315,'Auto-Positionnement'!$H$315)","v":0},null,{"$f":"IF('Auto-Positionnement'!$H$316=\"\",'Auto-Positionnement'!$G$316,'Auto-Positionnement'!$H$316)","v":0},null,{"$f":"IF('Auto-Positionnement'!$H$317=\"\",'Auto-Positionnement'!$G$317,'Auto-Positionnement'!$H$317)","v":0},null,{"$f":"IF('Auto-Positionnement'!$H$318=\"\",'Auto-Positionnement'!$G$318,'Auto-Positionnement'!$H$318)","v":0},null,{"$f":"IF('Auto-Positionnement'!$H$319=\"\",'Auto-Positionnement'!$G$319,'Auto-Positionnement'!$H$319)","v":0},null,{"$f":"IF('Auto-Positionnement'!$H$320=\"\",'Auto-Positionnement'!$G$320,'Auto-Positionnement'!$H$320)","v":0},null,null,{"$f":"IF('Auto-Positionnement'!$P$315=\"\",'Auto-Positionnement'!$O$315,'Auto-Positionnement'!$P$315)","v":0},null,{"$f":"IF('Auto-Positionnement'!$P$316=\"\",'Auto-Positionnement'!$O$316,'Auto-Positionnement'!$P$316)","v":0},null,{"$f":"IF('Auto-Positionnement'!$P$317=\"\",'Auto-Positionnement'!$O$317,'Auto-Positionnement'!$P$317)","v":0},null,{"$f":"IF('Auto-Positionnement'!$P$318=\"\",'Auto-Positionnement'!$O$318,'Auto-Positionnement'!$P$318)","v":0},null,{"$f":"IF('Auto-Positionnement'!$P$319=\"\",'Auto-Positionnement'!$O$319,'Auto-Positionnement'!$P$319)","v":0},null,{"$f":"IF('Auto-Positionnement'!$P$320=\"\",'Auto-Positionnement'!$O$320,'Auto-Positionnement'!$P$320)","v":0},null,null,{"$f":"IF('Auto-Positionnement'!$X$315=\"\",'Auto-Positionnement'!$W$315,'Auto-Positionnement'!$X$315)","v":0},null,{"$f":"IF('Auto-Positionnement'!$X$316=\"\",'Auto-Positionnement'!$W$316,'Auto-Positionnement'!$X$316)","v":0},null,{"$f":"IF('Auto-Positionnement'!$X$317=\"\",'Auto-Positionnement'!$W$317,'Auto-Positionnement'!$X$317)","v":0},null,{"$f":"IF('Auto-Positionnement'!$X$318=\"\",'Auto-Positionnement'!$W$318,'Auto-Positionnement'!$X$318)","v":0},null,{"$f":"IF('Auto-Positionnement'!$X$319=\"\",'Auto-Positionnement'!$W$319,'Auto-Positionnement'!$X$319)","v":0},null,{"$f":"IF('Auto-Positionnement'!$X$320=\"\",'Auto-Positionnement'!$W$320,'Auto-Positionnement'!$X$320)","v":0},null,null,{"$f":"IF('Auto-Positionnement'!$AF$315=\"\",'Auto-Positionnement'!$AE$315,'Auto-Positionnement'!$AF$315)","v":0},null,{"$f":"IF('Auto-Positionnement'!$AF$316=\"\",'Auto-Positionnement'!$AE$316,'Auto-Positionnement'!$AF$316)","v":0},null,{"$f":"IF('Auto-Positionnement'!$AF$317=\"\",'Auto-Positionnement'!$AE$317,'Auto-Positionnement'!$AF$317)","v":0},null,{"$f":"IF('Auto-Positionnement'!$AF$318=\"\",'Auto-Positionnement'!$AE$318,'Auto-Positionnement'!$AF$318)","v":0},null,{"$f":"IF('Auto-Positionnement'!$AF$319=\"\",'Auto-Positionnement'!$AE$319,'Auto-Positionnement'!$AF$319)","v":0},null,{"$f":"IF('Auto-Positionnement'!$AF$320=\"\",'Auto-Positionnement'!$AE$320,'Auto-Positionnement'!$AF$320)","v":0}]
[{"$f":"'Base Professeur'!B37","v":0},{"$f":"'Base Professeur'!C37","v":9},null,{"$f":"IF('Auto-Positionnement'!$H$325=\"\",'Auto-Positionnement'!$G$325,'Auto-Positionnement'!$H$325)","v":0},null,{"$f":"IF('Auto-Positionnement'!$H$326=\"\",'Auto-Positionnement'!$G$326,'Auto-Positionnement'!$H$326)","v":0},null,{"$f":"IF('Auto-Positionnement'!$H$327=\"\",'Auto-Positionnement'!$G$327,'Auto-Positionnement'!$H$327)","v":0},null,{"$f":"IF('Auto-Positionnement'!$H$328=\"\",'Auto-Positionnement'!$G$328,'Auto-Positionnement'!$H$328)","v":0},null,{"$f":"IF('Auto-Positionnement'!$H$329=\"\",'Auto-Positionnement'!$G$329,'Auto-Positionnement'!$H$329)","v":0},null,{"$f":"IF('Auto-Positionnement'!$H$330=\"\",'Auto-Positionnement'!$G$330,'Auto-Positionnement'!$H$330)","v":0},null,null,{"$f":"IF('Auto-Positionnement'!$P$325=\"\",'Auto-Positionnement'!$O$325,'Auto-Positionnement'!$P$325)","v":0},null,{"$f":"IF('Auto-Positionnement'!$P$326=\"\",'Auto-Positionnement'!$O$326,'Auto-Positionnement'!$P$326)","v":0},null,{"$f":"IF('Auto-Positionnement'!$P$327=\"\",'Auto-Positionnement'!$O$327,'Auto-Positionnement'!$P$327)","v":0},null,{"$f":"IF('Auto-Positionnement'!$P$328=\"\",'Auto-Positionnement'!$O$328,'Auto-Positionnement'!$P$328)","v":0},null,{"$f":"IF('Auto-Positionnement'!$P$329=\"\",'Auto-Positionnement'!$O$329,'Auto-Positionnement'!$P$329)","v":0},null,{"$f":"IF('Auto-Positionnement'!$P$330=\"\",'Auto-Positionnement'!$O$330,'Auto-Positionnement'!$P$330)","v":0},null,null,{"$f":"IF('Auto-Positionnement'!$X$325=\"\",'Auto-Positionnement'!$W$325,'Auto-Positionnement'!$X$325)","v":0},null,{"$f":"IF('Auto-Positionnement'!$X$326=\"\",'Auto-Positionnement'!$W$326,'Auto-Positionnement'!$X$326)","v":0},null,{"$f":"IF('Auto-Positionnement'!$X$327=\"\",'Auto-Positionnement'!$W$327,'Auto-Positionnement'!$X$327)","v":0},null,{"$f":"IF('Auto-Positionnement'!$X$328=\"\",'Auto-Positionnement'!$W$328,'Auto-Positionnement'!$X$328)","v":0},null,{"$f":"IF('Auto-Positionnement'!$X$329=\"\",'Auto-Positionnement'!$W$329,'Auto-Positionnement'!$X$329)","v":0},null,{"$f":"IF('Auto-Positionnement'!$X$330=\"\",'Auto-Positionnement'!$W$330,'Auto-Positionnement'!$X$330)","v":0},null,null,{"$f":"IF('Auto-Positionnement'!$AF$325=\"\",'Auto-Positionnement'!$AE$325,'Auto-Positionnement'!$AF$325)","v":0},null,{"$f":"IF('Auto-Positionnement'!$AF$326=\"\",'Auto-Positionnement'!$AE$326,'Auto-Positionnement'!$AF$326)","v":0},null,{"$f":"IF('Auto-Positionnement'!$AF$327=\"\",'Auto-Positionnement'!$AE$327,'Auto-Positionnement'!$AF$327)","v":0},null,{"$f":"IF('Auto-Positionnement'!$AF$328=\"\",'Auto-Positionnement'!$AE$328,'Auto-Positionnement'!$AF$328)","v":0},null,{"$f":"IF('Auto-Positionnement'!$AF$329=\"\",'Auto-Positionnement'!$AE$329,'Auto-Positionnement'!$AF$329)","v":0},null,{"$f":"IF('Auto-Positionnement'!$AF$330=\"\",'Auto-Positionnement'!$AE$330,'Auto-Positionnement'!$AF$330)","v":0}]
[{"$f":"'Base Professeur'!B38","v":0},{"$f":"'Base Professeur'!C38","v":10},null,{"$f":"IF('Auto-Positionnement'!$H$335=\"\",'Auto-Positionnement'!$G$335,'Auto-Positionnement'!$H$335)","v":0},null,{"$f":"IF('Auto-Positionnement'!$H$336=\"\",'Auto-Positionnement'!$G$336,'Auto-Positionnement'!$H$336)","v":0},null,{"$f":"IF('Auto-Positionnement'!$H$337=\"\",'Auto-Positionnement'!$G$337,'Auto-Positionnement'!$H$337)","v":0},null,{"$f":"IF('Auto-Positionnement'!$H$338=\"\",'Auto-Positionnement'!$G$338,'Auto-Positionnement'!$H$338)","v":0},null,{"$f":"IF('Auto-Positionnement'!$H$339=\"\",'Auto-Positionnement'!$G$339,'Auto-Positionnement'!$H$339)","v":0},null,{"$f":"IF('Auto-Positionnement'!$H$340=\"\",'Auto-Positionnement'!$G$340,'Auto-Positionnement'!$H$340)","v":0},null,null,{"$f":"IF('Auto-Positionnement'!$P$335=\"\",'Auto-Positionnement'!$O$335,'Auto-Positionnement'!$P$335)","v":0},null,{"$f":"IF('Auto-Positionnement'!$P$336=\"\",'Auto-Positionnement'!$O$336,'Auto-Positionnement'!$P$336)","v":0},null,{"$f":"IF('Auto-Positionnement'!$P$337=\"\",'Auto-Positionnement'!$O$337,'Auto-Positionnement'!$P$337)","v":0},null,{"$f":"IF('Auto-Positionnement'!$P$338=\"\",'Auto-Positionnement'!$O$338,'Auto-Positionnement'!$P$338)","v":0},null,{"$f":"IF('Auto-Positionnement'!$P$339=\"\",'Auto-Positionnement'!$O$339,'Auto-Positionnement'!$P$339)","v":0},null,{"$f":"IF('Auto-Positionnement'!$P$340=\"\",'Auto-Positionnement'!$O$340,'Auto-Positionnement'!$P$340)","v":0},null,null,{"$f":"IF('Auto-Positionnement'!$X$335=\"\",'Auto-Positionnement'!$W$335,'Auto-Positionnement'!$X$335)","v":0},null,{"$f":"IF('Auto-Positionnement'!$X$336=\"\",'Auto-Positionnement'!$W$336,'Auto-Positionnement'!$X$336)","v":0},null,{"$f":"IF('Auto-Positionnement'!$X$337=\"\",'Auto-Positionnement'!$W$337,'Auto-Positionnement'!$X$337)","v":0},null,{"$f":"IF('Auto-Positionnement'!$X$338=\"\",'Auto-Positionnement'!$W$338,'Auto-Positionnement'!$X$338)","v":0},null,{"$f":"IF('Auto-Positionnement'!$X$339=\"\",'Auto-Positionnement'!$W$339,'Auto-Positionnement'!$X$339)","v":0},null,{"$f":"IF('Auto-Positionnement'!$X$340=\"\",'Auto-Positionnement'!$W$340,'Auto-Positionnement'!$X$340)","v":0},null,null,{"$f":"IF('Auto-Positionnement'!$AF$335=\"\",'Auto-Positionnement'!$AE$335,'Auto-Positionnement'!$AF$335)","v":0},null,{"$f":"IF('Auto-Positionnement'!$AF$336=\"\",'Auto-Positionnement'!$AE$336,'Auto-Positionnement'!$AF$336)","v":0},null,{"$f":"IF('Auto-Positionnement'!$AF$337=\"\",'Auto-Positionnement'!$AE$337,'Auto-Positionnement'!$AF$337)","v":0},null,{"$f":"IF('Auto-Positionnement'!$AF$338=\"\",'Auto-Positionnement'!$AE$338,'Auto-Positionnement'!$AF$338)","v":0},null,{"$f":"IF('Auto-Positionnement'!$AF$339=\"\",'Auto-Positionnement'!$AE$339,'Auto-Positionnement'!$AF$339)","v":0},null,{"$f":"IF('Auto-Positionnement'!$AF$340=\"\",'Auto-Positionnement'!$AE$340,'Auto-Positionnement'!$AF$340)","v":0}]
[{"$f":"'Base Professeur'!B39","v":0},{"$f":"'Base Professeur'!C39","v":11},null,{"$f":"IF('Auto-Positionnement'!$H$345=\"\",'Auto-Positionnement'!$G$345,'Auto-Positionnement'!$H$345)","v":0},null,{"$f":"IF('Auto-Positionnement'!$H$346=\"\",'Auto-Positionnement'!$G$346,'Auto-Positionnement'!$H$346)","v":0},null,{"$f":"IF('Auto-Positionnement'!$H$347=\"\",'Auto-Positionnement'!$G$347,'Auto-Positionnement'!$H$347)","v":0},null,{"$f":"IF('Auto-Positionnement'!$H$348=\"\",'Auto-Positionnement'!$G$348,'Auto-Positionnement'!$H$348)","v":0},null,{"$f":"IF('Auto-Positionnement'!$H$349=\"\",'Auto-Positionnement'!$G$349,'Auto-Positionnement'!$H$349)","v":0},null,{"$f":"IF('Auto-Positionnement'!$H$350=\"\",'Auto-Positionnement'!$G$350,'Auto-Positionnement'!$H$350)","v":0},null,null,{"$f":"IF('Auto-Positionnement'!$P$345=\"\",'Auto-Positionnement'!$O$345,'Auto-Positionnement'!$P$345)","v":0},null,{"$f":"IF('Auto-Positionnement'!$P$346=\"\",'Auto-Positionnement'!$O$346,'Auto-Positionnement'!$P$346)","v":0},null,{"$f":"IF('Auto-Positionnement'!$P$347=\"\",'Auto-Positionnement'!$O$347,'Auto-Positionnement'!$P$347)","v":0},null,{"$f":"IF('Auto-Positionnement'!$P$348=\"\",'Auto-Positionnement'!$O$348,'Auto-Positionnement'!$P$348)","v":0},null,{"$f":"IF('Auto-Positionnement'!$P$349=\"\",'Auto-Positionnement'!$O$349,'Auto-Positionnement'!$P$349)","v":0},null,{"$f":"IF('Auto-Positionnement'!$P$350=\"\",'Auto-Positionnement'!$O$350,'Auto-Positionnement'!$P$350)","v":0},null,null,{"$f":"IF('Auto-Positionnement'!$X$345=\"\",'Auto-Positionnement'!$W$345,'Auto-Positionnement'!$X$345)","v":0},null,{"$f":"IF('Auto-Positionnement'!$X$346=\"\",'Auto-Positionnement'!$W$346,'Auto-Positionnement'!$X$346)","v":0},null,{"$f":"IF('Auto-Positionnement'!$X$347=\"\",'Auto-Positionnement'!$W$347,'Auto-Positionnement'!$X$347)","v":0},null,{"$f":"IF('Auto-Positionnement'!$X$348=\"\",'Auto-Positionnement'!$W$348,'Auto-Positionnement'!$X$348)","v":0},null,{"$f":"IF('Auto-Positionnement'!$X$349=\"\",'Auto-Positionnement'!$W$349,'Auto-Positionnement'!$X$349)","v":0},null,{"$f":"IF('Auto-Positionnement'!$X$350=\"\",'Auto-Positionnement'!$W$350,'Auto-Positionnement'!$X$350)","v":0},null,null,{"$f":"IF('Auto-Positionnement'!$AF$345=\"\",'Auto-Positionnement'!$AE$345,'Auto-Positionnement'!$AF$345)","v":0},null,{"$f":"IF('Auto-Positionnement'!$AF$346=\"\",'Auto-Positionnement'!$AE$346,'Auto-Positionnement'!$AF$346)","v":0},null,{"$f":"IF('Auto-Positionnement'!$AF$347=\"\",'Auto-Positionnement'!$AE$347,'Auto-Positionnement'!$AF$347)","v":0},null,{"$f":"IF('Auto-Positionnement'!$AF$348=\"\",'Auto-Positionnement'!$AE$348,'Auto-Positionnement'!$AF$348)","v":0},null,{"$f":"IF('Auto-Positionnement'!$AF$349=\"\",'Auto-Positionnement'!$AE$349,'Auto-Positionnement'!$AF$349)","v":0},null,{"$f":"IF('Auto-Positionnement'!$AF$350=\"\",'Auto-Positionnement'!$AE$350,'Auto-Positionnement'!$AF$350)","v":0}]
[]
[null,null,null,null,"Vider l'ensemble des Positionnements du Professeur",null,null,null,null,null,null,null,null,null,null,null,null,"Vider l'ensemble des Positionnements du Professeur",null,null,null,null,null,null,null,null,null,null,null,null,"Vider l'ensemble des Positionnements du Professeur",null,null,null,null,null,null,null,null,null,null,null,null,"Vider l'ensemble des Positionnements du Professeur"]